Workbook

Sheet DATOS ENTRADA
C2: INSTITUTO DE DESARROLLO URBANO
C3: SUBDIRECCIÓN GENERAL DE DESARROLLO URBANO
C4: DIRECCIÓN TÉCNICA DE PROYECTOS
B7: OBJETO DE LA CONTRATACIÓN: | C7: "ACTUALIZACIÓN, AJUSTES Y COMPLEMENTACIÓN DE LA FACTIBILIDAD Y ESTUDIOS Y DISEÑOS DEL CABLE AÉREO EN SAN CRISTÓBAL, EN BOGOTÁ D.C."
B9: CONTRATO N. | C9: 1630 de 2020
B10: MODALIDAD DE PROYECTO
B11: FECHA: | C11: 2022-03-22
H12: Comienzo | I12: Fin
B13: ACTIVIDADES | C13: MESES | D13: MONTOS | H13: 2023-01-03 | I13: 2023-03-08 | J13: =+(I13-H13)/30 -> 2.133333333
B14: PRELIMINARES | C14: 6.33 | D14: =PRELIMINARES!K74 -> 792738645
B15: EJECUCIÓN DE OBRAS | C15: 23 | D15: =+'PPTO GRAL CAPEX CIVIL'!I867 -> 69491247936
B16: RECIBO DE OBRA | C16: 3
B17: TOTAL PROYECTO | C17: =C14+C15+C16 -> 32.33 | D17: =SUM(D14:D16) -> 70283986581
B19: AIU | C19: =+AIU!N97 -> 0.28664
B20: PMA (Incl. AIU) | C20: =+'AIU AMBIENTAL SST BIOSEG'!M42 -> 0.17697 | D20: =+'PPTO GRAL CAPEX CIVIL'!I869 -> 3539155267
B21: CDC Y CE (Incl. AIU) | C21: ='DIALOGO CYC'!L83 -> 0.18589 | D21: =+'PPTO GRAL CAPEX CIVIL'!I871 -> 1261209454
B22: PMT (Incl. AIU) | C22: =+'AIU PMT'!M42 -> 0.18748 | D22: =+'PPTO GRAL CAPEX CIVIL'!I873 -> 2243021558
B23: AJUSTES POR CAMBIO DE VIGENCIA | D23: =+'PPTO GRAL CAPEX CIVIL'!I877 -> 5064246591
B24: ENSAYOS DE LABORATORIO | D24: =+'PPTO GRAL CAPEX CIVIL'!I879 -> 254758865
B25: COMPENSACIONES SDA | D25: =+'PPTO GRAL CAPEX CIVIL'!I881 -> 55611323
B26: BIOSEGURIDAD | D26: =+'PPTO GRAL CAPEX CIVIL'!I885 -> 381463556
B27: COSTO TOTAL DEL PROYECTO | D27: =SUM(D17:D26) -> 8.308345319e+10 | F27: =+'PPTO GRAL CAPEX CIVIL'!I883 -> 792738645
B29: ANTICIPO | C29: 0.2
B31: TRM Euro | C31: =ROUND(1.10485*C33,2) -> 4221.27
B32: Fecha TRM Euro | C32: 2021-12-31
B33: TRM Dólar | C33: 3820.67
B34: Fecha TRM Dólar | C34: 2021-12-31
B36: CONSIDERACIONES
B37: Cuando el proceso licitatorio es de Estudios y Diseños y Construcción, la etapa de preliminares se incluye en el componente de estudios y diseños. En este caso, no se incluye el costo de preliminares en los valores base para la estimación del AIU.
B40: Cuando se trata de un proceso de Construcción, se separa la etapa de preliminares de la etapa de obra. El AIU sólo contemplaría el tiempo estimado para la ejecución de la obra (plazo de preliminares solo en vigencias de amparos pólizas). El costo de preliminares se incluye en los valores base para el cálculo del AIU.
B43: Se debe ajustar la hoja de desglose de topes de acuerdo a los costos directos que aplican en cada proceso.
A48: 1
A49: 2
A50: 3
A51: 4
A52: 5
A53: 6
A54: 7
A55: 8
A56: 9
A57: 10
B58: SMLMV 2022 | C58: 1000000

Sheet PPTO OFICIAL-TOTAL CIVIL
B3: EL PRESUPUESTO OFICIAL TOTAL , se estima en la suma de: | H3: EL PRESUPUESTO OFICIAL TOTAL , se estima en la suma de:
B4: =C7+C9 -> 8.308345319e+10 | C4: =+NUMERO2LETRA(B4,,,"PESOS M/C",,1) -> OCHENTA Y TRES MIL OCHENTA Y TRES MILLONES CUATROCIENTOS CINCUENTA Y TRES MIL CIENTO NOVENTA Y CUATRO PESOS M/C CON SESENTA | H4: 3268244200 | I4: TRES MIL DOSCIENTOS SESENTA Y OCHO MILLONES DOSCIENTOS CUARENTA Y CUATRO MIL DOSCIENTOS PESOS M/C
B5: La suma indicada como Presupuesto Oficial Total, se divide de la siguiente manera: | H5: La suma indicada como Presupuesto Oficial Total, se divide de la siguiente manera:
B6: VALOR ESTIMADO DE FASE DE PRELIMINARES ( H ) | F6: COMPROBACIÓN PRELIMINARES | G6: COMPROBACIÓN OBRA | H6: VALOR ESTIMADO DE FASE DE PRELIMINARES (INCLUYE ENSAYOS DE LABORATORIO, CAMBIO DE VIGENCIA E IVA) ( H )
B7: Es la suma de | C7: =+'PPTO GRAL CAPEX CIVIL'!I883 -> 792738645 | D7: =+NUMERO2LETRA(C7,,,"PESOS M/C",,1) -> SETECIENTOS NOVENTA Y DOS MILLONES SETECIENTOS TREINTA Y OCHO MIL SEISCIENTOS CUARENTA Y CINCO PESOS M/C | F7: 0 | G7: 0 | H7: Es la suma de | I7: 306093432 | J7: TRESCIENTOS SEIS MILLONES NOVENTA Y TRES MIL CUATROCIENTOS TREINTA Y DOS PESOS M/C
B8: VALOR PARA LA FASE DE CONSTRUCCIÓN ( A + B + C + D + E + F + G + I ) | H8: VALOR PARA LA FASE DE CONSTRUCCIÓN ( A + B + C + D + E + F + G + I )
B9: Es la suma de | C9: =C21+C24+C27+C30+C33+C36+C39+C42 -> 8.229071455e+10 | D9: =+NUMERO2LETRA(C9,,,"PESOS M/C",,1) -> OCHENTA Y DOS MIL DOSCIENTOS NOVENTA MILLONES SETECIENTOS CATORCE MIL QUINIENTOS CUARENTA Y NUEVE PESOS M/C CON SESENTA | H9: Es la suma de | I9: 2962150768 | J9: DOS MIL NOVECIENTOS SESENTA Y DOS MILLONES CIENTO CINCUENTA MIL SETECIENTOS SESENTA Y OCHO PESOS M/C
B12: AIU | C12: =+'PPTO GRAL CAPEX CIVIL'!F867 -> 0.28664 | D12: =+RIGHT(F12,LEN(F12)-FIND(" ",F12)) -> VEINTIOCHO PUNTO SEISCIENTOS SESENTA Y CUATRO POR CIENTO | F12: =PORCENTAJE2LETRA(C12*100) -> CERO VEINTIOCHO PUNTO SEISCIENTOS SESENTA Y CUATRO POR CIENTO | H12: AIU | I12: 0.2881 | J12: VEINTIOCHO PUNTO OCHOCIENTOS DIEZ POR CIENTO
B14: COSTOS DE OBRA CIVIL SIN REDES (INCLUYE A.I.U) | H14: COSTOS DE OBRA SIN REDES (INCLUYE A.I.U)
B15: Es la suma de | C15: =+'PPTO GRAL CAPEX CIVIL'!I865-'PPTO OFICIAL-TOTAL CIVIL'!C18 -> 60937723882 | D15: =+NUMERO2LETRA(C15,,,"PESOS M/C",,1) -> SESENTA MIL NOVECIENTOS TREINTA Y SIETE MILLONES SETECIENTOS VEINTITRÉS MIL OCHOCIENTOS OCHENTA Y DOS PESOS M/C | H15: Es la suma de | I15: 0 | J15: CERO PESOS M/C
B17: COSTOS REDES (INCLUYE A.I.U) | H17: COSTOS REDES (INCLUYE A.I.U)
B18: Es la suma de | C18: =SUM('PPTO GRAL CAPEX CIVIL'!I266:I822) -> 8553524054 | D18: =+NUMERO2LETRA(C18,,,"PESOS M/C",,1) -> OCHO MIL QUINIENTOS CINCUENTA Y TRES MILLONES QUINIENTOS VEINTICUATRO MIL CINCUENTA Y CUATRO PESOS M/C | H18: Es la suma de | I18: 0 | J18: CERO PESOS M/C
B20: COSTO TOTAL OBRAS CIVILES CON A.I.U. ( A ) | H20: COSTO TOTAL OBRAS CON A.I.U. ( A )
B21: Es la suma de | C21: =+C15+C18 -> 69491247936 | D21: =+NUMERO2LETRA(C21,,,"PESOS M/C",,1) -> SESENTA Y NUEVE MIL CUATROCIENTOS NOVENTA Y UN MILLONES DOSCIENTOS CUARENTA Y SIETE MIL NOVECIENTOS TREINTA Y SEIS PESOS M/C | H21: Es la suma de | I21: 0 | J21: CERO PESOS M/C
B23: COSTO ACTIVIDADES AMBIENTALES Y SST ( B ) | H23: COSTO ACTIVIDADES AMBIENTALES Y SST ( B )
B24: Es la suma de | C24: =+'AMBIENTAL Y SST'!K189 -> 3539155267 | D24: =+NUMERO2LETRA(C24,,,"PESOS M/C",,1) -> TRES MIL QUINIENTOS TREINTA Y NUEVE MILLONES CIENTO CINCUENTA Y CINCO MIL DOSCIENTOS SESENTA Y SEIS PESOS M/C CON SESENTA | H24: Es la suma de | I24: 1232159389 | J24: MIL DOSCIENTOS TREINTA Y DOS MILLONES CIENTO CINCUENTA Y NUEVE MIL TRESCIENTOS OCHENTA Y NUEVE PESOS M/C
B26: COSTO DIÁLOGO CIUDADANO Y DE COMUNICACIÓN ESTRATÉGICA ( C ) | H26: COSTO DIÁLOGO CIUDADANO Y DE COMUNICACIÓN ESTRATÉGICA ( C )
B27: Es la suma de | C27: =+'DIALOGO CYC'!M85 -> 1261209454 | D27: =+NUMERO2LETRA(C27,,,"PESOS M/C",,1) -> MIL DOSCIENTOS SESENTA Y UN MILLONES DOSCIENTOS NUEVE MIL CUATROCIENTOS CINCUENTA Y CUATRO PESOS M/C | H27: Es la suma de | I27: 496718949 | J27: CUATROCIENTOS NOVENTA Y SEIS MILLONES SETECIENTOS DIECIOCHO MIL NOVECIENTOS CUARENTA Y NUEVE PESOS M/C
B29: COSTO PLAN DE MANEJO DE TRÁNSITO ( D ) | H29: COSTO PLAN DE MANEJO DE TRÁNSITO ( D )
B30: Es la suma de | C30: =+PMT!L69 -> 2243021558 | D30: =+NUMERO2LETRA(C30,,,"PESOS M/C",,1) -> DOS MIL DOSCIENTOS CUARENTA Y TRES MILLONES VEINTIÚN MIL QUINIENTOS CINCUENTA Y OCHO PESOS M/C | H30: Es la suma de | I30: 652416587 | J30: SEISCIENTOS CINCUENTA Y DOS MILLONES CUATROCIENTOS DIECISEIS MIL QUINIENTOS OCHENTA Y SIETE PESOS M/C
B32: AJUSTES POR CAMBIO DE VIGENCIA PARA OBRAS-AIU-PMA-PGS-PMT ( E ) | H32: AJUSTES POR CAMBIO DE VIGENCIA PARA OBRAS-AIU-PMA-PGS-PMT ( E )
B33: Es la suma de | C33: =+AJUSTES!G57 -> 5064246591 | D33: =+NUMERO2LETRA(C33,,,"PESOS M/C",,1) -> CINCO MIL SESENTA Y CUATRO MILLONES DOSCIENTOS CUARENTA Y SEIS MIL QUINIENTOS NOVENTA Y UN PESOS M/C | H33: Es la suma de | I33: 184788486 | J33: CIENTO OCHENTA Y CUATRO MILLONES SETECIENTOS OCHENTA Y OCHO MIL CUATROCIENTOS OCHENTA Y SEIS PESOS M/C
B35: COSTOS ESTIMADOS PARA ENSAYOS DE LABORATORIO EN LA FASE DE EJECUCIÓN ( F ) | H35: COSTOS ESTIMADOS PARA ENSAYOS DE LABORATORIO EN LA FASE DE EJECUCIÓN ( F )
B36: Es la suma de | C36: =+'ENSAYOS-OBRA'!H53 -> 254758865 | D36: =+NUMERO2LETRA(C36,,,"PESOS M/C",,1) -> DOSCIENTOS CINCUENTA Y CUATRO MILLONES SETECIENTOS CINCUENTA Y OCHO MIL OCHOCIENTOS SESENTA Y CINCO PESOS M/C | H36: Es la suma de | I36: 283914653 | J36: DOSCIENTOS OCHENTA Y TRES MILLONES NOVECIENTOS CATORCE MIL SEISCIENTOS CINCUENTA Y TRES PESOS M/C
B38: COSTOS DE COMPENSACIONES, EVALUACIÓN Y SEGUIMIENTO SDA ( G ) | H38: COSTOS DE COMPENSACIONES, EVALUACIÓN Y SEGUIMIENTO SDA ( G )
B39: Es la suma de | C39: =+'COMPENSAC-EVALUAC-SEG-SDA'!J15 -> 55611323 | D39: =+NUMERO2LETRA(C39,,,"PESOS M/C",,1) -> CINCUENTA Y CINCO MILLONES SEISCIENTOS ONCE MIL TRESCIENTOS VEINTITRES PESOS M/C | H39: Es la suma de | I39: 55488169 | J39: CINCUENTA Y CINCO MILLONES CUATROCIENTOS OCHENTA Y OCHO MIL CIENTO SESENTA Y NUEVE PESOS M/C
B41: MEDIDAS DE BIOSEGURIDAD ( I ) | H41: MEDIDAS DE BIOSEGURIDAD ( I )
B42: Es la suma de | C42: =+BIOSEGURIDAD!Q44 -> 381463556 | D42: =+NUMERO2LETRA(C42,,,"PESOS M/C",,1) -> TRESCIENTOS OCHENTA Y UN MILLONES CUATROCIENTOS SESENTA Y TRES MIL QUINIENTOS CINCUENTA Y SEIS PESOS M/C | H42: Es la suma de | I42: 56664535 | J42: CINCUENTA Y SEIS MILLONES SEISCIENTOS SESENTA Y CUATRO MIL QUINIENTOS TREINTA Y CINCO PESOS M/C
B46: AIU MÁXIMO | C46: =C12 -> 0.28664 | D46: =+RIGHT(F46,LEN(F46)-FIND(" ",F46)) -> VEINTIOCHO PUNTO SEISCIENTOS SESENTA Y CUATRO POR CIENTO | F46: =PORCENTAJE2LETRA(C46*100) -> CERO VEINTIOCHO PUNTO SEISCIENTOS SESENTA Y CUATRO POR CIENTO
B49: AIU MÍNIMO | C49: =+ROUND(C46*90%,5) -> 0.25798 | D49: =+RIGHT(F49,LEN(F49)-FIND(" ",F49)) -> VEINTICINCO PUNTO SETECIENTOS NOVENTA Y OCHO POR CIENTO | F49: =PORCENTAJE2LETRA(C49*100) -> CERO VEINTICINCO PUNTO SETECIENTOS NOVENTA Y OCHO POR CIENTO

Sheet PRELIMINARES
B2: FORMATO | D2: CÓDIGO | E2: PROCESO | H2: VERSIÓN
B3: MATRIZ PARA CÁLCULO PRELIMINARES
B4: ='DATOS ENTRADA'!$C$2 -> INSTITUTO DE DESARROLLO URBANO
B5: ='DATOS ENTRADA'!$C$3 -> SUBDIRECCIÓN GENERAL DE DESARROLLO URBANO
B6: ='DATOS ENTRADA'!$C$4 -> DIRECCIÓN TÉCNICA DE PROYECTOS
B7: =IF('DATOS ENTRADA'!C5=0,"",'DATOS ENTRADA'!C5) -> 
B8: ='DATOS ENTRADA'!B7 -> OBJETO DE LA CONTRATACIÓN: | D8: ='DATOS ENTRADA'!$C$7 -> "ACTUALIZACIÓN, AJUSTES Y COMPLEMENTACIÓN DE LA FACTIBILIDAD Y ESTUDIOS Y DISEÑOS DEL CABLE AÉREO EN SAN CRISTÓBAL, EN BOGOTÁ D.C."
B10: TERMINO ESTIMADO FASE PRELIMINARES | E10: ='DATOS ENTRADA'!C14 -> 6.33 | F10: MESES | H10: FECHA: | I10: ='DATOS ENTRADA'!C11 -> 2022-03-22
C12: 1. COSTOS DE PERSONAL
C13: CARGO | E13: CANTIDAD | F13: CATEGORÍA | G13: DEDICACIÓN FASE DE PRELIMINARES (MES) | H13: TARIFA (MES) | I13: FACTOR PRESTACIONAL | J13: N. MESES PRELIMINARES | K13: SALARIO + PRESTACIONES
E14: A | G14: B | H14: C | I14: D | J14: E | K14: F= A*B*C*D*E
A15: CÓD. IDU | B15: 1.1 | C15: PERSONAL PROFESIONAL (Ingenieros y Otros) | M15: CANTID MES
A16: =VLOOKUP(F16,TABLAS!$C$24:$H$31,6,FALSE) -> 9108 | B16: =B15+0.001 -> 1.101 | C16: DIRECTOR DE OBRA | E16: 1 | F16: 2 | G16: 0.5 | H16: =VLOOKUP(A16,TABLAS!$A$2:$G$44,4,FALSE) -> 9695000 | I16: =VLOOKUP(A16,TABLAS!$A$2:$G$44,5) -> 1.5854 | J16: =$E$10 -> 6.33 | K16: =ROUND((E16*G16*H16*I16*J16),0) -> 48647484 | M16: =(E16*G16*J16)/$E$10 -> 0.5
A17: =VLOOKUP(F17,TABLAS!$C$24:$H$31,6,FALSE) -> 9109 | B17: 1.102 | C17: INGENIERO RESIDENTE DE OBRA | E17: 2 | F17: 3 | G17: 1 | H17: =VLOOKUP(A17,TABLAS!$A$2:$G$44,4,FALSE) -> 8182000 | I17: =VLOOKUP(A17,TABLAS!$A$2:$G$44,5) -> 1.4509 | J17: =$E$10 -> 6.33 | K17: 150290200 | M17: =(E17*G17*J17)/$E$10 -> 2
A18: =VLOOKUP(F18,TABLAS!$C$24:$H$31,6,FALSE) -> 9109 | B18: 1.103 | C18: ARQUITECTO RESIDENTE EN URBANISMO Y ESPACIO PÚBLICO | E18: 1 | F18: 3 | G18: 0.25 | H18: =VLOOKUP(A18,TABLAS!$A$2:$G$44,4,FALSE) -> 8182000 | I18: =VLOOKUP(A18,TABLAS!$A$2:$G$44,5) -> 1.4509 | J18: =$E$10 -> 6.33 | K18: 18786275 | M18: =(E18*G18*J18)/$E$10 -> 0.25
A19: =VLOOKUP(F19,TABLAS!$C$24:$H$31,6,FALSE) -> 9109 | B19: 1.104 | C19: PROFESIONAL EN PRESUPUESTO Y PROGRAMACIÓN | E19: 1 | F19: 3 | G19: 0.5 | H19: =VLOOKUP(A19,TABLAS!$A$2:$G$44,4,FALSE) -> 8182000 | I19: =VLOOKUP(A19,TABLAS!$A$2:$G$44,5) -> 1.4509 | J19: 6.33 | K19: 37572550 | M19: =(E19*G19*J19)/$E$10 -> 0.5
A20: =VLOOKUP(F20,TABLAS!$C$24:$H$31,6,FALSE) -> 9109 | B20: 1.105 | C20: ESPECIALISTA EN DISEÑO GEOMÉTRICO | E20: 1 | F20: 3 | G20: 0.25 | H20: =VLOOKUP(A20,TABLAS!$A$2:$G$44,4,FALSE) -> 8182000 | I20: =VLOOKUP(A20,TABLAS!$A$2:$G$44,5) -> 1.4509 | J20: 6.33 | K20: 18786275 | M20: =(E20*G20*J20)/$E$10 -> 0.25
A21: =VLOOKUP(F21,TABLAS!$C$24:$H$31,6,FALSE) -> 9109 | B21: 1.106 | C21: ESPECIALISTA EN REDES HIDROSANITARIAS | E21: 1 | F21: 3 | G21: 0.25 | H21: =VLOOKUP(A21,TABLAS!$A$2:$G$44,4,FALSE) -> 8182000 | I21: =VLOOKUP(A21,TABLAS!$A$2:$G$44,5) -> 1.4509 | J21: 6.33 | K21: 18786275 | M21: =(E21*G21*J21)/$E$10 -> 0.25
A22: =VLOOKUP(F22,TABLAS!$C$24:$H$31,6,FALSE) -> 9109 | B22: 1.107 | C22: ESPECIALISTA EN REDES ELÉCTRICAS, GAS, TELÉFONO Y FIBRA ÓPTICA | E22: 1 | F22: 3 | G22: 0.25 | H22: =VLOOKUP(A22,TABLAS!$A$2:$G$44,4,FALSE) -> 8182000 | I22: =VLOOKUP(A22,TABLAS!$A$2:$G$44,5) -> 1.4509 | J22: 6.33 | K22: 18786275 | M22: =(E22*G22*J22)/$E$10 -> 0.25
A23: =VLOOKUP(F23,TABLAS!$C$24:$H$31,6,FALSE) -> 9109 | B23: 1.108 | C23: ESPECIALISTA EN ESTRUCTURAS | E23: 1 | F23: 3 | G23: 0.25 | H23: =VLOOKUP(A23,TABLAS!$A$2:$G$44,4,FALSE) -> 8182000 | I23: =VLOOKUP(A23,TABLAS!$A$2:$G$44,5) -> 1.4509 | J23: 6.33 | K23: =ROUND((E23*G23*H23*I23*J23),0) -> 18786275 | M23: =(E23*G23*J23)/$E$10 -> 0.25
A24: =VLOOKUP(F24,TABLAS!$C$24:$H$31,6,FALSE) -> 9109 | B24: 1.109 | C24: ESPECIALISTA EN GEOTECNIA | E24: 1 | F24: 3 | G24: 0.25 | H24: =VLOOKUP(A24,TABLAS!$A$2:$G$44,4,FALSE) -> 8182000 | I24: =VLOOKUP(A24,TABLAS!$A$2:$G$44,5) -> 1.4509 | J24: 6.33 | K24: =ROUND((E24*G24*H24*I24*J24),0) -> 18786275 | M24: 0.25
A25: =VLOOKUP(F25,TABLAS!$C$24:$H$31,6,FALSE) -> 9109 | B25: 1.11 | C25: ESPECIALISTA EN PAVIMENTOS | E25: 1 | F25: 3 | G25: 0.25 | H25: =VLOOKUP(A25,TABLAS!$A$2:$G$44,4,FALSE) -> 8182000 | I25: =VLOOKUP(A25,TABLAS!$A$2:$G$44,5) -> 1.4509 | J25: 6.33 | K25: 18786275 | M25: 0.25
A26: =VLOOKUP(F26,TABLAS!$C$24:$H$31,6,FALSE) -> 9112 | B26: 1.111 | C26: PROFESIONAL SIG-CAD | E26: 1 | F26: 6 | G26: 0.3 | H26: =VLOOKUP(A26,TABLAS!$A$2:$G$44,4,FALSE) -> 5604000 | I26: =VLOOKUP(A26,TABLAS!$A$2:$G$44,5) -> 1.4522 | J26: 6.33 | K26: 15454307 | M26: 0.3
B27: 1.2 | C27: PERSONAL TÉCNICO Y PERSONAL AUXILIAR | M27: 0
A28: 9085 | B28: =B27+0.001 -> 1.201 | C28: =VLOOKUP(A28,TABLAS!$A$2:$G$44,2,FALSE) -> TARIFA MES - PERSONAL TÉCNICO - AUXILIAR DE INGENIERÍA (NO INCLUYE FACTOR DE PRESTACIONES) | E28: 1 | F28: N/A | G28: 1 | H28: =VLOOKUP(A28,TABLAS!$A$2:$G$44,4,FALSE) -> 2305000 | I28: =VLOOKUP(A28,TABLAS!$A$2:$G$44,5) -> 1.4583 | J28: =$E$10 -> 6.33 | K28: 21277545 | M28: 1
A29: 9094 | B29: =B28+0.001 -> 1.202 | C29: =VLOOKUP(A29,TABLAS!$A$2:$G$44,2,FALSE) -> TARIFA MES - PERSONAL TÉCNICO - INSPECTOR 2 (NO INCLUYE FACTOR DE PRESTACIONES) | E29: 1 | F29: N/A | G29: 1 | H29: =VLOOKUP(A29,TABLAS!$A$2:$G$44,4,FALSE) -> 1790000 | I29: =VLOOKUP(A29,TABLAS!$A$2:$G$44,5) -> 1.5589 | J29: 6.33 | K29: =ROUND((E29*G29*H29*I29*J29),0) -> 17663428 | M29: =(E29*G29*J29)/$E$10 -> 1 | N29: PERSONAL LAVADO LLANTAS Y PALETEROS
A30: 9088 | B30: =B29+0.001 -> 1.203 | C30: =VLOOKUP(A30,TABLAS!$A$2:$G$44,2,FALSE) -> TARIFA MES - PERSONAL TÉCNICO - TOPÓGRAFO INSPECTOR (NO INCLUYE FACTOR DE PRESTACIONES) | E30: 1 | F30: N/A | G30: 0.25 | H30: =VLOOKUP(A30,TABLAS!$A$2:$G$44,4,FALSE) -> 2733000 | I30: =VLOOKUP(A30,TABLAS!$A$2:$G$44,5) -> 1.4567 | J30: 6.33 | K30: 6300187 | M30: 0.25
A31: 9098 | B31: =B30+0.001 -> 1.204 | C31: =VLOOKUP(A31,TABLAS!$A$2:$G$44,2,FALSE) -> TARIFA MES - PERSONAL AUXILIAR TÉCNICO - CADENERO 1 (NO INCLUYE FACTOR DE PRESTACIONES) | E31: 1 | F31: N/A | G31: 0.25 | H31: =VLOOKUP(A31,TABLAS!$A$2:$G$44,4,FALSE) -> 1695000 | I31: =VLOOKUP(A31,TABLAS!$A$2:$G$44,5) -> 1.5652 | J31: 6.33 | K31: 4198395 | M31: 0.25
A32: 9099 | B32: =B31+0.001 -> 1.205 | C32: =VLOOKUP(A32,TABLAS!$A$2:$G$44,2,FALSE) -> TARIFA MES - PERSONAL AUXILIAR TÉCNICO - CADENERO 2 (NO INCLUYE FACTOR DE PRESTACIONES) | E32: 1 | F32: N/A | G32: 0.25 | H32: =VLOOKUP(A32,TABLAS!$A$2:$G$44,4,FALSE) -> 1476000 | I32: =VLOOKUP(A32,TABLAS!$A$2:$G$44,5) -> 1.5825 | J32: 6.33 | K32: 3696356 | M32: 0.25
A33: 9089 | B33: =B31+0.001 -> 1.205 | C33: =VLOOKUP(A33,TABLAS!$A$2:$G$44,2,FALSE) -> TARIFA MES - PERSONAL TÉCNICO - LABORATORISTA INSPECTOR (NO INCLUYE FACTOR DE PRESTACIONES) | E33: 1 | F33: N/A | G33: 0.5 | H33: =VLOOKUP(A33,TABLAS!$A$2:$G$44,4,FALSE) -> 2421000 | I33: =VLOOKUP(A33,TABLAS!$A$2:$G$44,5) -> 1.4578 | J33: 6.33 | K33: =ROUND((E33*G33*H33*I33*J33),0) -> 11170341 | M33: =(E33*G33*J33)/$E$10 -> 0.5
B34: 1.3 | C34: PERSONAL ADMINISTRATIVO | M34: 0
A35: 9100 | B35: =B34+0.001 -> 1.301 | C35: =VLOOKUP(A35,TABLAS!$A$2:$G$44,2,FALSE) -> TARIFA MES - PERSONAL AUXILIAR TÉCNICO - CONDUCTOR O MOTORISTA (NO INCLUYE FACTOR DE PRESTACIONES) | E35: 1 | F35: N/A | G35: 1 | H35: =VLOOKUP(A35,TABLAS!$A$2:$G$44,4,FALSE) -> 1228000 | I35: =VLOOKUP(A35,TABLAS!$A$2:$G$44,5) -> 1.6097 | J35: =$E$10 -> 6.33 | K35: 12512584 | M35: 1
A36: 9104 | B36: =B35+0.001 -> 1.302 | C36: =VLOOKUP(A36,TABLAS!$A$2:$G$44,2,FALSE) -> TARIFA MES - PERSONAL ADMINISTRATIVO - SECRETARIA 1 (NO INCLUYE FACTOR DE PRESTACIONES) | E36: 1 | F36: N/A | G36: 1 | H36: =VLOOKUP(A36,TABLAS!$A$2:$G$44,4,FALSE) -> 1476000 | I36: =VLOOKUP(A36,TABLAS!$A$2:$G$44,5) -> 1.5825 | J36: =$E$10 -> 6.33 | K36: 14785424 | M36: 1
C37: SUBTOTAL COSTOS DE PERSONAL | K37: =SUM(K16:K36) -> 475072726
A39: CÓD. IDU | B39: 2 | C39: GASTOS OPERACIONALES | E39: CANT. | F39: ÁREA (M2) | G39: DEDICACIÓN FASE DE PRELIMINARES | H39: DEDICACIÓN X ÁREA (M2) | I39: COSTO ($/M2.MES) | J39: N. MESES PRELIMINARES | K39: VALOR ($)
A40: 9576 | B40: =B39+0.001 -> 2.001 | C40: =VLOOKUP(A40,TABLAS!$A$48:$D$61,2,FALSE) -> ALQUILER MES - ARRIENDO OFICINA INCL. ADMINISTRACIÓN, SERVICIOS PÚBLICOS, COMUNICACIONES | E40: 1 | F40: 20 | G40: 1 | H40: =F40*G40*E40 -> 20 | I40: =VLOOKUP(A40,TABLAS!$A$49:$D$64,4,0) -> 32508 | J40: =$E$10 -> 6.33 | K40: =ROUND(I40*H40*J40,0) -> 4115513
A41: 9577 | B41: 2.002 | C41: =VLOOKUP(A41,TABLAS!$A$48:$D$61,2,FALSE) -> ALQUILER MES - CAMPAMENTOS INCL. SERVICIOS PÚBLICOS PROVISIONALES | E41: 1 | F41: 300 | G41: 0.25 | H41: =F41*G41*E41 -> 75 | I41: =VLOOKUP(A41,TABLAS!$A$49:$D$64,4,0) -> 26189 | J41: 6.33 | K41: =ROUND(I41*H41*J41,0) -> 12433228
A42: 9578 | B42: 2.003 | C42: =VLOOKUP(A42,TABLAS!$A$48:$D$61,2,FALSE) -> GASTOS OFICINA (PAPELERIA, FOTOCOPIAS Y OTROS) | E42: 1 | F42: N/A | G42: 0.5 | H42: N/A | I42: =VLOOKUP(A42,TABLAS!$A$49:$D$64,4,0) -> 922582 | J42: 6.33 | K42: =ROUND(E42*I42*G42*J42,0) -> 2919972
A43: 9456 | B43: 2.004 | C43: =VLOOKUP(A43,TABLAS!$A$48:$D$61,2,FALSE) -> ALQUILER DE VEHICULO: CAMPERO, PICK-UP, CAMIONETA, CAMION O SIMILAR DE 1300cc A 2000cc DE CILINDRADA, MODELO 2014 A 2011. 75% DE LA TARIFA ESTABLECIDA. INCLUYE TODOS LOS COSTOS DE OPERACIÓN Y MANTENIMIENTO EXCEPTO EL SALARIO DEL CONDUCTOR | E43: =E35 -> 1 | F43: N/A | G43: =G35 -> 1 | H43: N/A | I43: =VLOOKUP(A43,TABLAS!$A$49:$D$64,4,0) -> 4816500 | J43: 6.33 | K43: =ROUND(E43*I43*G43*J43,0) -> 30488445
A44: 9117 | B44: 2.005 | C44: =VLOOKUP(A44,TABLAS!$A$48:$D$61,2,FALSE) -> EQUIPO COMPLETO DE LABORATORIO - ESTUDIOS - MES | E44: =E33 -> 1 | F44: N/A | G44: =G33 -> 0.5 | H44: N/A | I44: =VLOOKUP(A44,TABLAS!$A$49:$D$64,4,0) -> 5657000 | J44: 6.33 | K44: =ROUND(E44*I44*G44*J44,0) -> 17904405
A45: 9115 | B45: 2.006 | C45: =VLOOKUP(A45,TABLAS!$A:$G,2,FALSE) -> EQUIPO DE TOPOGRAFÍA. INCLUYE TRÁNSITO, NIVEL Y ELEMENTOS COMPLEMENTARIOS - MES | E45: =E30 -> 1 | F45: N/A | G45: =G30 -> 0.25 | H45: N/A | I45: =VLOOKUP(A45,TABLAS!$A$49:$D$64,4,0) -> 3627000 | J45: 6.33 | K45: =ROUND(E45*I45*G45*J45,0) -> 5739728
C46: SUBTOTAL GASTOS OPERACIONALES | K46: =SUM(K40:K45) -> 73601291
B49: SUBTOTAL COSTOS PERSONAL + GASTOS OPERACIONALES + ENSAYOS LABORATORIO PARA FASE PRELIMINARES | K49: =(K37+K46) -> 548674017
B50: IVA | J50: 0.19 | K50: =ROUND((K49)*J50,0) -> 104248063
B51: A. | C51: SUBTOTAL COSTOS ESTIMADO PARA FASE PRELIMINARES (INCLUYE IVA) | K51: =K49+K50 -> 652922080
B54: TERMINO ESTIMADO PRELIMINARES - GESTION Y AVALES DE TERCEROS Y MODIFICACIONES DE DISEÑOS. | E54: ='DATOS ENTRADA'!C14 -> 6.33 | F54: MESES
C56: COSTOS DE PERSONAL
C57: CARGO | E57: lim | F57: CATEGORÍA | G57: DEDICACIÓN FASE DE PRELIMINARES (MES) | H57: TARIFA (MES) INCLUYE F.P | I57: FACTOR PRESTACIONAL | J57: N. MESES PRELIMINARES | K57: SALARIO + PRESTACIONES
E58: A | G58: B | H58: C | I58: D | J58: E | K58: F= A*B*C*E
A59: CÓD. IDU | B59: 4 | C59: PERSONAL PROFESIONAL (Ingenieros y Otros)
A60: =VLOOKUP(F60,TABLAS!$C$33:$H$40,6,FALSE) -> 9467 | B60: =B59+0.001 -> 4.001 | C60: ESPECIALISTA EN REDES HIDROSANITARIAS | E60: 1 | F60: =F21 -> 3 | G60: 0.25 | H60: =VLOOKUP(A60,TABLAS!$A$2:$G$44,4,FALSE) -> 11871264 | I60: N.A | J60: =$E$54 -> 6.33 | K60: =ROUND((E60*G60*H60*J60),0) -> 18786275 | M60: =(E60*G60*J60)/$E$10 -> 0.25
A61: =VLOOKUP(F61,TABLAS!$C$33:$H$40,6,FALSE) -> 9467 | B61: =B60+0.001 -> 4.002 | C61: ESPECIALISTA EN ESTRUCTURAS | E61: 1 | F61: 3 | G61: 0.25 | H61: =VLOOKUP(A61,TABLAS!$A$2:$G$44,4,FALSE) -> 11871264 | I61: N.A | J61: 6.33 | K61: 18786275 | M61: 0.25
A62: =VLOOKUP(F62,TABLAS!$C$33:$H$40,6,FALSE) -> 9467 | B62: =B61+0.001 -> 4.003 | C62: ESPECIALISTA EN GEOTECNIA | E62: 1 | F62: 3 | G62: 0.25 | H62: =VLOOKUP(A62,TABLAS!$A$2:$G$44,4,FALSE) -> 11871264 | I62: N.A | J62: 6.33 | K62: =ROUND((E62*G62*H62*J62),0) -> 18786275 | M62: =(E62*G62*J62)/$E$10 -> 0.25
A63: =VLOOKUP(F63,TABLAS!$C$33:$H$40,6,FALSE) -> 9467 | B63: 4.004 | C63: ESPECIALISTA EN REDES ELÉCTRICAS, GAS, TELÉFONO Y FIBRA ÓPTICA | E63: 1 | F63: =F22 -> 3 | G63: 0.25 | H63: =VLOOKUP(A63,TABLAS!$A$2:$G$44,4,FALSE) -> 11871264 | I63: N.A | J63: 6.33 | K63: 18786275 | M63: 0.25
A64: =VLOOKUP(F64,TABLAS!$C$33:$H$40,6,FALSE) -> 9470 | B64: 4.005 | C64: PROFESIONAL SIG-CAD | E64: 1 | F64: 6 | G64: 0.25 | H64: =VLOOKUP(A64,TABLAS!$A$2:$G$44,4,FALSE) -> 8139250 | I64: N.A | J64: 6.33 | K64: 12880363 | M64: 0.25
A65: =VLOOKUP(F65,TABLAS!$C$33:$H$40,6,FALSE) -> 9470 | B65: 4.006 | C65: RESIDENTE AMBIENTAL | E65: 0 | F65: 6 | G65: 0.25 | H65: =VLOOKUP(A65,TABLAS!$A$2:$G$44,4,FALSE) -> 8139250 | I65: N.A | J65: 6.33 | K65: 0 | M65: 0
A66: =VLOOKUP(F66,TABLAS!$C$33:$H$40,6,FALSE) -> 9469 | B66: 4.007 | C66: RESIDENTE FORESTAL | E66: 0 | F66: 5 | G66: 0.25 | H66: =VLOOKUP(A66,TABLAS!$A$2:$G$44,4,FALSE) -> 9123740 | I66: N.A | J66: 6.33 | K66: 0 | M66: 0
A67: =VLOOKUP(F67,TABLAS!$C$33:$H$40,6,FALSE) -> 9467 | B67: 4.008 | C67: ESPECIALISTA EN TRÁNSITO Y TRANSPORTE | E67: 1 | F67: =+PMT!E20 -> 3 | G67: 0.25 | H67: =VLOOKUP(A67,TABLAS!$A$2:$G$44,4,FALSE) -> 11871264 | I67: N.A | J67: 6.33 | K67: 18786275 | M67: 0.25
C68: SUBTOTAL COSTOS DE PERSONAL | K68: =SUM(K60:K67) -> 106811738 | M68: =SUM(M16:M67) -> 11.8
B69: SUBTOTAL COSTOS DE PERSONAL INCLUYENDO FACTOR MULTIPLICADOR | J69: 1.1 | K69: =ROUND(K68*J69,0) -> 117492912
B70: IVA | J70: 0.19 | K70: =ROUND((K69)*J70,0) -> 22323653
B71: B | C71: SUBTOTAL COSTOS ESTIMADOS PARA GESTION Y AVALES ANTE TERCEROS Y MODIFICACIONES DE DISEÑOS (INCLUYE F.M E IVA) | K71: =K69+K70 -> 139816565
M73: VR. BASICO | N73: =K49+K69 -> 666166929
C74: TOTAL COSTOS ESTIMADOS PARA FASE PRELIMINARES (INCLUYE IVA) | I74: ( A + B ) | K74: =K51+K71 -> 792738645 | M74: IVA | N74: =K50+K70 -> 126571716
M75: TOTAL | N75: =N73+N74 -> 792738645

Sheet PPTO GRAL CAPEX CIVIL
A1: 1
A2: 2 | B2: FORMATO
A3: 3 | B3: Presupuesto General de Obras - Costos Directos
A4: 4 | B4: CÓDIGO | D4: PROCESO | F4: VERSIÓN
A5: 5 | B5: FO-DP-01 | D5: Proyectos | F5: 2
A6: 6 | B6: INSTITUTO DE DESARROLLO URBANO | U6: TRM U$ | V6: 3886.87 | W6: Para ascensores
A7: 7 | B7: SUBDIRECCIÓN GENERAL DE DESARROLLO URBANO
A8: 8 | B8: DIRECCIÓN TÉCNICA DE PROYECTOS
A9: 9
A10: 10 | B10: OBJETO DE LA CONTRATACIÓN: | D10: ACTUALIZACIÓN, AJUSTES Y COMPLEMENTACIÓN DE LA FACTIBILIDAD Y ESTUDIOS Y DISEÑOS DEL CABLE AÉREO EN SAN CRISTÓBAL, EN BOGOTÁ D.C.
A11: 11 | B11: PRESUPUESTO GENERAL DE OBRAS | Z11: 1 | AA11: 2 | AB11: 3
A12: 12 | I12: =+'DATOS ENTRADA'!C11 -> 2022-03-22 | U12: Formulas para codificación de ítems | Z12: 113 | AA12: Estación La Victoria | AB12: Estación Altamira | AD12: 1 | AE12: =+AD12+1 -> 2 | AF12: 3 | AG12: 4 | AH12: 5 | AI12: 6 | AJ12: 7 | AK12: 8 | AL12: 9 | AM12: 10 | AN12: 11 | AO12: 12 | AP12: 13 | AQ12: 14 | AR12: 15 | AS12: 16 | AT12: 17 | AU12: 18 | AV12: 19 | AW12: 20 | AX12: 21 | AY12: 22
A13: 13 | B13: COD. IDU | C13: ÍTEM | D13: DESCRIPCIÓN | E13: UNIDAD | F13: CANTIDAD | G13: VR. UNITARIO | H13: VR. UNITARIO CON A.I.U. | I13: VALOR TOTAL | J13: Cantidades del Modelo BIM | L13: Especificación Técnica | M13: Suma Capítulos | N13: Observacion del presupuestador | S13: Auxiliar chequeo | U13: Descripcion | V13: Codigo parcial | Y13: Cantidad Total | Z13: Cantidad proyectada Estacion 20 de Julio | AA13: Cantidad proyectada Estacion Intermedia La Victoria | AB13: Cantidad proyectada Estacion Retorno Altamira | AC13: Cantidad Geotecnia | AD13: Cantidad Estructura Pilona 1 | AE13: Cantidad Estructura Pilona 2 | AF13: Cantidad Estructura Pilona 3 | AG13: Cantidad Estructura Pilona 4 | AH13: Cantidad Estructura Pilona 5 | AI13: Cantidad Estructura Pilona 6 | AJ13: Cantidad Estructura Pilona 7 | AK13: Cantidad Estructura Pilona 8 | AL13: Cantidad Estructura Pilona 9 | AM13: Cantidad Estructura Pilona 10 | AN13: Cantidad Estructura Pilona 11 | AO13: Cantidad Estructura Pilona 12 | AP13: Cantidad Estructura Pilona 13 | AQ13: Cantidad Estructura Pilona 14 | AR13: Cantidad Estructura Pilona 15 | AS13: Cantidad Estructura Pilona 16 | AT13: Cantidad Estructura Pilona 17 | AU13: Cantidad Estructura Pilona 18 | AV13: Cantidad Estructura Pilona 19 | AW13: Cantidad Estructura Pilona 20 | AX13: Cantidad Estructura Pilona 21 | AY13: Cantidad Estructura Pilona 22 | AZ13: Cantidad Espacio Publico Pilona 1 | BA13: Cantidad Espacio Publico Pilona 2 | BB13: Cantidad Espacio Publico Pilona 3 | BC13: Cantidad Espacio Publico Pilona 4 | BD13: Cantidad Espacio Publico Pilona 5 | BE13: Cantidad Espacio Publico Pilona 6 | BF13: Cantidad Espacio Publico Pilona 7 | BG13: Cantidad Espacio Publico Pilona 8 | BH13: Cantidad Espacio Publico Pilona 9 | BI13: Cantidad Espacio Publico Pilona 10 | BJ13: Cantidad Espacio Publico Pilona 11 | BK13: Cantidad Espacio Publico Pilona 12 | BL13: Cantidad Espacio Publico Pilona 13 | BM13: Cantidad Espacio Publico Pilona 14 | BN13: Cantidad Espacio Publico Pilona 15 | BO13: Cantidad Espacio Publico Pilona 16 | BP13: Cantidad Espacio Publico Pilona 17 | BQ13: Cantidad Espacio Publico Pilona 18 | BR13: Cantidad Espacio Publico Pilona 19 | BS13: Cantidad Espacio Publico Pilona 20 | BT13: Cantidad Espacio Publico Pilona 21 | BU13: Cantidad Espacio Publico Pilona 22 | BV13: Cantidad Señalización y Semaforización | BW13: Cantidad Pavimentos | BX13: Cantidad Arqueología | BY13: Acueducto Estación Transferencia | BZ13: Acueducto Estaciones + Pilonas | CA13: Acueducto Tramo 1 | CB13: Acueducto Tramo 2 | CC13: Alcantarillado Sanitario | CD13: Alcantarillado Plivial Tramo 1 | CE13: Alcantarillado Plivial Tramo 2 | CF13: SUDs | CG13: Interferencia Redes de Media Tensión Tramo 20 de Julio a La Victoria | CH13: Geotecnia Tramo 1 | CI13: Geotecnia Tramo 2
A14: 14 | C14: =IF(W14="",V14,CONCATENATE(V14,".",W14)) -> 1 | D14: PRELIMINARES, MOVIMIENTO DE TIERRAS Y RELLENOS (INCLUYE CANTIDADES PARA ESTABILIZACION | O14: Cantidad por validar | U14: PRELIMINARES, MOVIMIENTO DE TIERRAS Y RELLENOS (INCLUYE CANTIDADES PARA ESTABILIZACION | V14: =VLOOKUP(U14,'auxiliar capitulos'!$A$2:$M$68,13,FALSE) -> 1
A15: 15 | C15: 1.1 | D15: PRELIMINARES | N15: Item no aparece | U15: PRELIMINARES | V15: =VLOOKUP(U15,'auxiliar capitulos'!$A$2:$M$68,13,FALSE) -> 1.1
A16: 16 | B16: 3007 | C16: 1.1.1 | D16: REPLANTEO GENERAL | E16: M2 | F16: =Y16 -> 171688.8065 | G16: =VLOOKUP($B16,'Listado Ins Ana'!$G$3965:$K$8277,4,FALSE) -> 671 | H16: =ROUND(G16*(1+$F$867),0) -> 863 | I16: =ROUND(H16*F16,0) -> 148167440 | J16: No | K16: =+I16 -> 148167440 | N16: No se calculó cantidad para este ítem. Se solicita confirmar que este íem no aplica. | O16: 1 | S16: =VLOOKUP(B16,'Listado Ins Ana'!$G$3966:$J$100621,4,FALSE)-G16 -> 0 | U16: PRELIMINARES | V16: =VLOOKUP(U16,'auxiliar capitulos'!$A$2:$M$68,13,FALSE) -> 1.1 | W16: =IF(E16="","",IF(E15="",1,W15+1)) -> 1 | Y16: =SUM(Z16:CJ16) -> 171688.8065 | Z16: 171688.8065
A17: 17 | C17: 1.2 | D17: DEMOLICIONES | M17: =SUM(I18:I20) -> 1280556692 | U17: DEMOLICIONES | V17: =VLOOKUP(U17,'auxiliar capitulos'!$A$2:$M$68,13,FALSE) -> 1.2 | W17: =IF(E17="","",IF(E16="",1,W16+1)) ->  | Y17: 0
A18: 18 | B18: 6141 | C18: 1.2.1 | D18: DEMOLICIÓN CONSTRUCCIONES DE 1 PISO TEJA. INCLUYEN EL CARGUE, TRANSPORTE Y DISPOSICIÓN FINAL DE ESCOMBROS EN SITIO AUTORIZADO (DISTANCIA DE TRANSPORTE 28 KM.). INCLUYE MUROS INTERNOS, EXTERNOS, PLACAS Y CUBIERTAS, ADEMÁS DE LOS ELEMENTOS INTERNOS QUE SE ENCUENTREN EN LOS MISMOS. | E18: M2 | F18: =Y18 -> 5478.35 | G18: =VLOOKUP($B18,'Listado Ins Ana'!$G$3965:$K$8277,4,FALSE) -> 37392 | H18: =ROUND(G18*(1+$F$867),0) -> 48110 | I18: =ROUND(H18*F18,0) -> 263563419 | J18: No | K18: =+I18 -> 263563419 | S18: =VLOOKUP(B18,'Listado Ins Ana'!$G$3966:$J$100621,4,FALSE)-G18 -> 0 | U18: DEMOLICIONES | V18: =VLOOKUP(U18,'auxiliar capitulos'!$A$2:$M$68,13,FALSE) -> 1.2 | W18: =IF(E18="","",IF(E17="",1,W17+1)) -> 1 | Y18: 5478.35 | AA18: 3272.62 | AB18: 663.53 | AI18: 401.7 | AK18: 143.8 | AQ18: 122.8 | AR18: 63 | AU18: 86.5 | AV18: 284.4 | AY18: 440
A19: 19 | B19: 6143 | C19: 1.2.2 | D19: DEMOLICIÓN CONSTRUCCIONES DE 2 HASTA 3 PISOS. INCLUYEN EL CARGUE, TRANSPORTE Y DISPOSICIÓN FINAL DE ESCOMBROS EN SITIO AUTORIZADO (DISTANCIA DE TRANSPORTE 28 KM.). INCLUYE MUROS INTERNOS, EXTERNOS, PLACAS Y CUBIERTAS, ADEMÁS DE LOS ELEMENTOS INTERNOS QUE SE ENCUENTREN EN LOS MISMOS. | E19: M2 | F19: =Y19 -> 10316.2 | G19: =VLOOKUP($B19,'Listado Ins Ana'!$G$3965:$K$8277,4,FALSE) -> 65379 | H19: =ROUND(G19*(1+$F$867),0) -> 84119 | I19: 867788428 | J19: No | K19: 867788428 | S19: =VLOOKUP(B19,'Listado Ins Ana'!$G$3966:$J$100621,4,FALSE)-G19 -> 0 | U19: DEMOLICIONES | V19: =VLOOKUP(U19,'auxiliar capitulos'!$A$2:$M$68,13,FALSE) -> 1.2 | W19: =IF(E19="","",IF(E18="",1,W18+1)) -> 2 | Y19: 10316.2 | AA19: 9364.30 | AB19: 3569.99 | AF19: 580.22 | AG19: 350.68 | AH19: 579.37 | AI19: 584.65 | AK19: 739.45 | AQ19: 663.15 | AR19: 1275.04 | AT19: 329.48 | AU19: 297.1 | AV19: 395.41 | AW19: 358.92 | AX19: 401.44 | AY19: 191.3
A20: 20 | B20: 6144 | C20: 1.2.3 | D20: DEMOLICIÓN CONSTRUCCIONES DE 4 HASTA 6 PISOS. INCLUYEN EL CARGUE, TRANSPORTE Y DISPOSICIÓN FINAL DE ESCOMBROS EN SITIO AUTORIZADO (DISTANCIA DE TRANSPORTE 28 KM.). INCLUYE MUROS INTERNOS, EXTERNOS, PLACAS Y CUBIERTAS, ADEMÁS DE LOS ELEMENTOS INTERNOS QUE SE ENCUENTREN EN LOS MISMOS. | E20: M2 | F20: =Y20 -> 1530.73 | G20: =VLOOKUP($B20,'Listado Ins Ana'!$G$3965:$K$8277,4,FALSE) -> 75758 | H20: =ROUND(G20*(1+$F$867),0) -> 97473 | I20: 149204845 | J20: No | K20: 149204845 | S20: =VLOOKUP(B20,'Listado Ins Ana'!$G$3966:$J$100621,4,FALSE)-G20 -> 0 | U20: DEMOLICIONES | V20: =VLOOKUP(U20,'auxiliar capitulos'!$A$2:$M$68,13,FALSE) -> 1.2 | W20: =IF(E20="","",IF(E19="",1,W19+1)) -> 3 | Y20: 1530.73 | AA20: 586.83 | AB20: 450.5 | AH20: 246.7 | AI20: 246.7
A21: 21 | C21: 1.3 | D21: MOVIMIENTO DE TERRAS | U21: MOVIMIENTO DE TERRAS | V21: =VLOOKUP(U21,'auxiliar capitulos'!$A$2:$M$68,13,FALSE) -> 1.3 | W21: =IF(E21="","",IF(#REF!="",1,#REF!+1)) ->  | Y21: 0
A22: 22 | B22: 3464 | C22: 1.3.1 | D22: =VLOOKUP(B22,'Listado Ins Ana'!$G$3966:$M$8318,2,FALSE) -> EXCAVACION MANUAL EN MATERIAL COMUN. INCLUYE CARGUE. | E22: =VLOOKUP(B22,'Listado Ins Ana'!$G$3966:$M$8318,3,FALSE) -> M3 | F22: =+Y22 -> 20849.99072 | G22: =VLOOKUP(B22,'Listado Ins Ana'!$G$3966:$M$8318,4,FALSE) -> 31876 | H22: =ROUND(G22*(1+$F$867),0) -> 41013 | I22: =ROUND(H22*F22,0) -> 855120669 | J22: No | K22: =+I22 -> 855120669 | N22: No se calculó cantidad para este ítem. Se solicita confirmar que este íem no aplica. | O22: 1 | S22: =VLOOKUP(B22,'Listado Ins Ana'!$G$3966:$J$100621,4,FALSE)-G22 -> 0 | U22: MOVIMIENTO DE TERRAS | V22: =VLOOKUP(U22,'auxiliar capitulos'!$A$2:$M$68,13,FALSE) -> 1.3 | W22: =IF(E22="","",IF(E21="",1,W21+1)) -> 1 | Y22: 20849.99072 | CH22: 5668.656244 | CI22: 15181.33447
A23: 47 | B23: 7462 | C23: 1.3.2 | D23: =VLOOKUP(B23,'Listado Ins Ana'!$G$2:$M$3331,2,FALSE) -> TRANSPORTE DE PETREOS | E23: =VLOOKUP(B23,'Listado Ins Ana'!$G$2:$M$3331,3,FALSE) -> M3-KM | F23: =+Y23 -> 883622.6066 | G23: =VLOOKUP(B23,'Listado Ins Ana'!$G$2:$M$3331,4,FALSE) -> 1449 | H23: =ROUND(G23*(1+$F$867),0) -> 1864 | I23: 1647072539 | J23: No | K23: 1647072539 | S23: =VLOOKUP(B23,'Listado Ins Ana'!$G$3966:$J$100621,4,FALSE)-G23 -> 2132103 | U23: MOVIMIENTO DE TERRAS | V23: =VLOOKUP(U23,'auxiliar capitulos'!$A$2:$M$68,13,FALSE) -> 1.3 | W23: 2 | Y23: 883622.6066 | Z23: =Z22*1.3*$CL23 -> 0 | AA23: 0 | AB23: 0 | AC23: 0 | AD23: 0 | AE23: 0 | AF23: 0 | AG23: 0 | AH23: 0 | AI23: 0 | AJ23: 0 | AK23: 0 | AL23: 0 | AM23: 0 | AN23: 0 | AO23: 0 | AP23: 0 | AQ23: 0 | AR23: 0 | AS23: 0 | AT23: 0 | AU23: 0 | AV23: 0 | AW23: 0 | AX23: 0 | AY23: 0 | AZ23: 0 | BA23: 0 | BB23: 0 | BC23: 0 | BD23: 0 | BE23: 0 | BF23: 0 | BG23: 0 | BH23: 0 | BI23: 0 | BJ23: 0 | BK23: 0 | BM23: =BM22*1.3*$CL23 -> 0 | BN23: 0 | BO23: 0 | BP23: 0 | BQ23: 0 | BR23: 0 | BS23: 0 | BT23: 0 | BU23: 0 | BV23: 0 | BW23: 0 | BX23: 0 | BY23: 0 | BZ23: 0 | CA23: 0 | CB23: 0 | CC23: 0 | CD23: 0 | CE23: 0 | CG23: =CG22*1.3*$CL23 -> 0 | CH23: =CH22*1.3*$CL23 -> 240237.6516 | CI23: =CI22*1.3*$CL23 -> 643384.955 | CJ23: =CJ22*1.3*$CL23 -> 0 | CK23: Distancia de acarreo critica a Mondoñedo | CL23: 32.6
A24: 23 | B24: 6333 | C24: =IF(W24="",V24,CONCATENATE(V24,".",W24)) -> 1.3.2 | D24: =VLOOKUP(B24,'Listado Ins Ana'!$G$3966:$M$8318,2,FALSE) -> GAVIONES - SUMINISTRO Y CONSTRUCCIÓN. INCLUYE RAJÓN, MALLA PARA GAVIONES Y ALAMBRE RECOCIDO. | E24: =VLOOKUP(B24,'Listado Ins Ana'!$G$3966:$M$8318,3,FALSE) -> M3 | F24: =+Y24 -> 28.08 | G24: =VLOOKUP(B24,'Listado Ins Ana'!$G$3966:$M$8318,4,FALSE) -> 178264 | H24: =ROUND(G24*(1+$F$867),0) -> 229362 | I24: 6440485 | J24: No | K24: 6440485 | N24: No se calculó cantidad para este ítem. Se solicita confirmar que este íem no aplica. | O24: 1 | S24: =VLOOKUP(B24,'Listado Ins Ana'!$G$3966:$J$100621,4,FALSE)-G24 -> 0 | U24: MOVIMIENTO DE TERRAS | V24: =VLOOKUP(U24,'auxiliar capitulos'!$A$2:$M$68,13,FALSE) -> 1.3 | W24: =IF(E24="","",IF(E22="",1,W22+1)) -> 2 | Y24: 28.08 | CH24: 28.08
A25: 24 | B25: 4788 | C25: 1.3.3 | D25: =VLOOKUP(B25,'Listado Ins Ana'!$G$3966:$M$8318,2,FALSE) -> GEODREN PLANAR H=1.0 M. SUMINISTRO E INSTALACION. | E25: =VLOOKUP(B25,'Listado Ins Ana'!$G$3966:$M$8318,3,FALSE) -> ML | F25: 5 | G25: =VLOOKUP(B25,'Listado Ins Ana'!$G$3966:$M$8318,4,FALSE) -> 34254 | H25: =ROUND(G25*(1+$F$867),0) -> 44073 | I25: 220365 | J25: No | K25: 220365 | N25: No se calculó cantidad para este ítem. Se solicita confirmar que este íem no aplica. | O25: 1 | S25: =VLOOKUP(B25,'Listado Ins Ana'!$G$3966:$J$100621,4,FALSE)-G25 -> 0 | U25: MOVIMIENTO DE TERRAS | V25: =VLOOKUP(U25,'auxiliar capitulos'!$A$2:$M$68,13,FALSE) -> 1.3 | W25: 3 | Y25: 5 | CH25: 5
A26: 25 | B26: 5180 | C26: 1.3.4 | D26: =VLOOKUP(B26,'Listado Ins Ana'!$G$3966:$M$8318,2,FALSE) -> FILTRO DE DRENAJE DE 0.6M X 1.0M. SUMINISTRO E INSTALACION. (INCLUYE TUBERIA PERFORADA D=4", GRAVA COMUN 1/2" Y GEOTEXTIL NT 4000 O SIMILAR). | E26: =VLOOKUP(B26,'Listado Ins Ana'!$G$3966:$M$8318,3,FALSE) -> ML | F26: 100 | G26: =VLOOKUP(B26,'Listado Ins Ana'!$G$3966:$M$8318,4,FALSE) -> 188130 | H26: =ROUND(G26*(1+$F$867),0) -> 242056 | I26: 24205600 | J26: No | K26: 24205600 | N26: No se calculó cantidad para este ítem. Se solicita confirmar que este íem no aplica. | O26: 1 | S26: =VLOOKUP(B26,'Listado Ins Ana'!$G$3966:$J$100621,4,FALSE)-G26 -> 0 | U26: MOVIMIENTO DE TERRAS | V26: =VLOOKUP(U26,'auxiliar capitulos'!$A$2:$M$68,13,FALSE) -> 1.3 | W26: 4 | Y26: 100 | CH26: 30 | CI26: 70
A27: 26 | C27: 1.4 | D27: RELLENOS | U27: RELLENOS | V27: =VLOOKUP(U27,'auxiliar capitulos'!$A$2:$M$68,13,FALSE) -> 1.4 | W27: =IF(E27="","",IF(#REF!="",1,#REF!+1)) ->  | Y27: 0
A28: 27 | B28: 4792 | C28: 1.4.1 | D28: =VLOOKUP(B28,'Listado Ins Ana'!$G$3966:$M$8318,2,FALSE) -> RELLENO EN RECEBO COMUN (SUMINISTRO E INSTALACIÓN EXTENDIDO MANUAL, HUMEDECIMIENTO Y COMPACTACIÓN TRANSPORTE A 28 KM). | E28: =VLOOKUP(B28,'Listado Ins Ana'!$G$3966:$M$8318,3,FALSE) -> M3 | F28: =+Y28 -> 3545.529047 | G28: =VLOOKUP(B28,'Listado Ins Ana'!$G$3966:$M$8318,4,FALSE) -> 78768 | H28: =ROUND(G28*(1+$F$867),0) -> 101346 | I28: =ROUND(H28*F28,0) -> 359325187 | J28: No | K28: =+I28 -> 359325187 | N28: No se calculó cantidad para este ítem. Se solicita confirmar que este íem no aplica. | O28: 1 | S28: =VLOOKUP(B28,'Listado Ins Ana'!$G3965:$J100612,4,FALSE)-G28 -> 0 | U28: RELLENOS | V28: =VLOOKUP(U28,'auxiliar capitulos'!$A$2:$M$68,13,FALSE) -> 1.4 | W28: =IF(E28="","",IF(E27="",1,W27+1)) -> 1 | Y28: 3545.529047 | CH28: 2290.184974 | CI28: 1255.344073
A29: 28 | C29: =IF(W29="",V29,CONCATENATE(V29,".",W29)) -> 2 | D29: ESTRUCTURAS | M29: =SUM(I55:I64) -> 5949090238 | U29: ESTRUCTURAS | V29: =VLOOKUP(U29,'auxiliar capitulos'!$A$2:$M$68,13,FALSE) -> 2 | W29: =IF(E29="","",IF(E28="",1,W28+1)) ->  | Y29: =SUM(Z29:CJ29) -> 0
A30: 53 | C30: 2.1 | D30: ESTRUCTURAS EDIFICACIONES | U30: ESTRUCTURAS EDIFICACIONES | V30: =VLOOKUP(U30,'auxiliar capitulos'!$A$2:$M$68,13,FALSE) -> 2.1 | Y30: 0
A31: 29 | B31: 6710 | C31: 2.1.1 | D31: =VLOOKUP(B31,'Listado Ins Ana'!$G$3966:$M$8318,2,FALSE) -> VIGA DE CIMENTACION EN CONCRETO PREMEZCLADO DE 4000 PSI (28 Mpa) GRAVA COMUN (Incluye Sumin., Formaleteo metalico, Colocación y Curado. No incl. Refuerzo). | E31: =VLOOKUP(B31,'Listado Ins Ana'!$G$3966:$M$8318,3,FALSE) -> M3 | F31: =+Y31 -> 425.46 | G31: =VLOOKUP(B31,'Listado Ins Ana'!$G$3966:$M$8318,4,FALSE) -> 612542 | H31: =ROUND(G31*(1+$F$867),0) -> 788121 | I31: =ROUND(H31*F31,0) -> 335313961 | U31: ESTRUCTURAS EDIFICACIONES | V31: =VLOOKUP(U31,'auxiliar capitulos'!$A$2:$M$68,13,FALSE) -> 2.1 | W31: =IF(E31="","",IF(E29="",1,W29+1)) -> 1 | Y31: 425.46 | Z31: 90.83 | AA31: 167.43 | AB31: 167.2
A32: 30 | B32: 5051 | C32: 2.1.2 | D32: =VLOOKUP(B32,'Listado Ins Ana'!$G$3966:$M$8318,2,FALSE) -> PILOTE PREEXCAVADOS EN CONCRETO TREMIE DE 3000PSI (210 KG/CM2) ACELERADO A 2 DIAS (INC. ACELERANTE, ALQUILER DE EQUIPO DE PERFORACION CON OPERARIO, MANO DE OBRA, TRANSPORTE Y DISPOSICION FINAL DE ESCOMBROS AUTORIZADOA 21KM. | E32: =VLOOKUP(B32,'Listado Ins Ana'!$G$3966:$M$8318,3,FALSE) -> M3 | F32: 3142 | G32: =VLOOKUP(B32,'Listado Ins Ana'!$G$3966:$M$8318,4,FALSE) -> 1451262 | H32: 1867252 | I32: 5866905784 | U32: ESTRUCTURAS EDIFICACIONES | V32: =VLOOKUP(U32,'auxiliar capitulos'!$A$2:$M$68,13,FALSE) -> 2.1 | W32: 2 | Y32: 3142 | Z32: 684.06 | AA32: 1048.38 | AB32: 1409.56
A33: 31 | B33: 8088 | C33: 2.1.3 | D33: =VLOOKUP(B33,'Listado Ins Ana'!$G$3966:$M$8318,2,FALSE) -> DADO DE CIMENTACION EN CONCRETO 4000 PSI, (28 Mpa) GRAVA COMÚN. Premezclado. Incluye Sumin, Formaleteo en madera, Bombeo, Colocación y curado. (No incl. Refuerzo). | E33: =VLOOKUP(B33,'Listado Ins Ana'!$G$3966:$M$8318,3,FALSE) -> M3 | F33: 1416.67 | G33: =VLOOKUP(B33,'Listado Ins Ana'!$G$3966:$M$8318,4,FALSE) -> 648817 | H33: 834794 | I33: 1182627616 | U33: ESTRUCTURAS EDIFICACIONES | V33: =VLOOKUP(U33,'auxiliar capitulos'!$A$2:$M$68,13,FALSE) -> 2.1 | W33: 3 | Y33: 1416.67 | Z33: 360.34 | AA33: 473.72 | AB33: 582.61
A34: 32 | B34: 6765 | C34: 2.1.4 | D34: =VLOOKUP(B34,'Listado Ins Ana'!$G$3966:$M$8318,2,FALSE) -> VIGAS Y PLACAS AÉREAS EN CONCRETO PREMEZCLADO DE 4000 PSI (28 Mpa) GRAVA COMUN (Incluye suministro, formaleteo en madera, colocacion, andamio, cerchas, parales y curado. No incluye refuerzo) | E34: =VLOOKUP(B34,'Listado Ins Ana'!$G$3966:$M$8318,3,FALSE) -> M3 | F34: 3687.64 | G34: =VLOOKUP(B34,'Listado Ins Ana'!$G$3966:$M$8318,4,FALSE) -> 632318 | H34: 813566 | I34: 3000138524 | U34: ESTRUCTURAS EDIFICACIONES | V34: =VLOOKUP(U34,'auxiliar capitulos'!$A$2:$M$68,13,FALSE) -> 2.1 | W34: 4 | Y34: 3687.64 | Z34: 821.27 | AA34: 1400.32 | AB34: 1466.05
A35: 33 | B35: 5271 | C35: 2.1.5 | D35: =VLOOKUP(B35,'Listado Ins Ana'!$G$3966:$M$8318,2,FALSE) -> CONCRETO 2000 PSI GRAVA COMUN 1" (SUMINISTRO Y COLOCACIÓN. INCLUYE SUMINISTRO DE CONCRETO, FORMALETEADO, FUNDIDA Y CURADO.) | E35: =VLOOKUP(B35,'Listado Ins Ana'!$G$3966:$M$8318,3,FALSE) -> M3 | F35: 219.7505 | G35: =VLOOKUP(B35,'Listado Ins Ana'!$G$3966:$M$8318,4,FALSE) -> 455945 | H35: 586637 | I35: 128913774 | U35: ESTRUCTURAS EDIFICACIONES | V35: =VLOOKUP(U35,'auxiliar capitulos'!$A$2:$M$68,13,FALSE) -> 2.1 | W35: 5 | Y35: 219.7505 | Z35: 44.5495 | AA35: 72.85 | AB35: 102.351
A36: 34 | B36: 7680 | C36: 2.1.6 | D36: =VLOOKUP(B36,'Listado Ins Ana'!$G$3966:$M$8318,2,FALSE) -> COLUMNA EN CONCRETO DE 4000 PSI, (28 MPa) PREMEZCLADO, GRAVA COMÚN (Incluye suministro, Grúa Telescópica, Bombeo, formaleteo metálico, colocación y curado, No incluye refuerzo). | E36: =VLOOKUP(B36,'Listado Ins Ana'!$G$3966:$M$8318,3,FALSE) -> M3 | F36: 2163.81 | G36: =VLOOKUP(B36,'Listado Ins Ana'!$G$3966:$M$8318,4,FALSE) -> 645251 | H36: 830206 | I36: 1796408045 | U36: ESTRUCTURAS EDIFICACIONES | V36: =VLOOKUP(U36,'auxiliar capitulos'!$A$2:$M$68,13,FALSE) -> 2.1 | W36: 6 | Y36: 2163.81 | Z36: 461.86 | AA36: 898.99 | AB36: 802.96
A37: 35 | B37: 5426 | C37: 2.1.7 | D37: =VLOOKUP(B37,'Listado Ins Ana'!$G$3966:$M$8318,2,FALSE) -> CONCRETO 4000 PSI GRAVA COMÚN PARA RAMPAS Y ESCALERAS (PREMEZCLADO. INCL. SUMINISTRO, FORMALETEO Y COLOCACIÓN. NO INCL. REFUERZO, CURADO). | E37: =VLOOKUP(B37,'Listado Ins Ana'!$G$3966:$M$8318,3,FALSE) -> M3 | F37: 110.17 | G37: =VLOOKUP(B37,'Listado Ins Ana'!$G$3966:$M$8318,4,FALSE) -> 628524 | H37: 808684 | I37: 89092716 | U37: ESTRUCTURAS EDIFICACIONES | V37: =VLOOKUP(U37,'auxiliar capitulos'!$A$2:$M$68,13,FALSE) -> 2.1 | W37: 7 | Y37: 110.17 | Z37: 22.6 | AA37: 48.57 | AB37: 39
A38: 36 | B38: 5421 | C38: 2.1.8 | D38: =VLOOKUP(B38,'Listado Ins Ana'!$G$3966:$M$8318,2,FALSE) -> MURO ESTRUCTURAL EN CONCRETO 4000 PSI PREMEZCLADO, GRAVA COMÚN. (Incluye suministro, formaleteo, bombeo, colocación y curado. No incl. Refuerzo). | E38: =VLOOKUP(B38,'Listado Ins Ana'!$G$3966:$M$8318,3,FALSE) -> M3 | F38: 951.29 | G38: =VLOOKUP(B38,'Listado Ins Ana'!$G$3966:$M$8318,4,FALSE) -> 725470 | H38: 933419 | I38: 887952161 | U38: ESTRUCTURAS EDIFICACIONES | V38: =VLOOKUP(U38,'auxiliar capitulos'!$A$2:$M$68,13,FALSE) -> 2.1 | W38: 8 | Y38: 951.29 | Z38: 121.23 | AA38: 431 | AB38: 399.06
A39: 37 | B39: 3708 | C39: 2.1.9 | D39: =VLOOKUP(B39,'Listado Ins Ana'!$G$3966:$M$8318,2,FALSE) -> ACERO DE REFUERZO FY=60000 PSI. SUMINISTRO E INSTALACIÓN. DE ACUERDO A LO ESTIPULADO POR LA NSR-10, NORMA ASTM A-706, ICONTEC 2289 PARA EL ACERO PDR-60. INCLUYE TODOS LOS COSTOS DE SUMINISTRO DE MATERIALES (REFUERZO (G60) FIGURADO, CORRUGADO, INCLUYE EL ALAMBRE DE AMARRE), EQUIPOS, TRANSPORTES, MANEJO, ALMACENAMIENTO, DESPERDICIOS Y MANO DE OBRA. | E39: =VLOOKUP(B39,'Listado Ins Ana'!$G$3966:$M$8318,3,FALSE) -> KG | F39: 1883178.283 | G39: =VLOOKUP(B39,'Listado Ins Ana'!$G$3966:$M$8318,4,FALSE) -> 3979 | H39: 5120 | I39: 9641872811 | U39: ESTRUCTURAS EDIFICACIONES | V39: =VLOOKUP(U39,'auxiliar capitulos'!$A$2:$M$68,13,FALSE) -> 2.1 | W39: 9 | Y39: 1883178.283 | Z39: 382546.7933 | AA39: 818508.04 | AB39: 682123.45
A40: 38 | B40: KES001 | C40: 2.1.10 | D40: =VLOOKUP(B40,'Listado Ins Ana'!$G$3966:$M$8540,2,FALSE) -> ACERO ESTRUCTURAL TIPO ASTM A500 Gr. C. PARA CELOSIA | E40: =VLOOKUP(B40,'Listado Ins Ana'!$G$3966:$M$8540,3,FALSE) -> KG | F40: 366800.1012 | G40: =VLOOKUP(B40,'Listado Ins Ana'!$G$3966:$M$8540,4,FALSE) -> 15693 | H40: 20191 | I40: 7406060843 | U40: ESTRUCTURAS EDIFICACIONES | V40: =VLOOKUP(U40,'auxiliar capitulos'!$A$2:$M$68,13,FALSE) -> 2.1 | W40: 10 | Y40: 366800.1012 | Z40: 220165.2648 | AA40: 66811.0014 | AB40: 79823.835
A41: 39 | B41: KES005 | C41: 2.1.11 | D41: =VLOOKUP(B41,'Listado Ins Ana'!$G$3966:$M$8540,2,FALSE) -> BARRAS SAE 1020 PARA RIOSTRAS DE EDIFICACIÓN (SUMINISTRO E INSTALACIÓN) | E41: =VLOOKUP(B41,'Listado Ins Ana'!$G$3966:$M$8540,3,FALSE) -> KG | F41: =+Y41 -> 1704.2688 | G41: =VLOOKUP(B41,'Listado Ins Ana'!$G$3966:$M$8540,4,FALSE) -> 14273 | H41: 18364 | I41: 31297192 | U41: ESTRUCTURAS EDIFICACIONES | V41: =VLOOKUP(U41,'auxiliar capitulos'!$A$2:$M$68,13,FALSE) -> 2.1 | W41: 11 | Y41: 1704.2688 | Z41: 366.0228 | AA41: 565.0983 | AB41: 773.1477
A42: 40 | B42: KES006 | C42: 2.1.12 | D42: =VLOOKUP(B42,'Listado Ins Ana'!$G$3966:$M$8540,2,FALSE) -> BARRAS SAE 1045 PARA RIOSTRAS DE PUENTE (SUMINISTRO E INSTALACIÓN) | E42: =VLOOKUP(B42,'Listado Ins Ana'!$G$3966:$M$8540,3,FALSE) -> KG | F42: 986.3334 | G42: =VLOOKUP(B42,'Listado Ins Ana'!$G$3966:$M$8540,4,FALSE) -> 14273 | H42: 18364 | I42: 18113027 | U42: ESTRUCTURAS EDIFICACIONES | V42: =VLOOKUP(U42,'auxiliar capitulos'!$A$2:$M$68,13,FALSE) -> 2.1 | W42: 12 | Y42: 986.3334 | Z42: 986.3334
A43: 41 | B43: KES007 | C43: 2.1.13 | D43: =VLOOKUP(B43,'Listado Ins Ana'!$G$3966:$M$8540,2,FALSE) -> ACERO ASTM A572 GRADO 50. Fy=345MPa, Fu=450MPa. (SUMINISTRO E INSTALACIÓN). | E43: =VLOOKUP(B43,'Listado Ins Ana'!$G$3966:$M$8540,3,FALSE) -> KG | F43: 23996.9574 | G43: =VLOOKUP(B43,'Listado Ins Ana'!$G$3966:$M$8540,4,FALSE) -> 14273 | H43: 18364 | I43: 440680126 | U43: ESTRUCTURAS EDIFICACIONES | V43: =VLOOKUP(U43,'auxiliar capitulos'!$A$2:$M$68,13,FALSE) -> 2.1 | W43: 13 | Y43: 23996.9574 | Z43: 11031.0525 | AA43: 12965.9049
A44: 42 | B44: KES008 | C44: 2.1.14 | D44: =VLOOKUP(B44,'Listado Ins Ana'!$G$3966:$M$8540,2,FALSE) -> Lamina colaborante ASTM ASTM A653 Gr50 (INCLUYE TRANSPORTE, FABRICACIÓN Y MONTAJE CON ANTICORROSIVO Y PINTURA DE ACABADO EN EPÓXICO) (INCLUYE MATERIALES, INSUMOS, HERRAMIENTAS Y EQUIPOS, ANDAMIOS, MANO DE OBRA CALIFICADA Y TODO LO NECESARIO PARA DESARROLLAR LA OBRA. | E44: =VLOOKUP(B44,'Listado Ins Ana'!$G$3966:$M$8540,3,FALSE) -> M2 | F44: 116 | G44: =VLOOKUP(B44,'Listado Ins Ana'!$G$3966:$M$8540,4,FALSE) -> 73504 | H44: 94573 | I44: 10970468 | U44: ESTRUCTURAS EDIFICACIONES | V44: =VLOOKUP(U44,'auxiliar capitulos'!$A$2:$M$68,13,FALSE) -> 2.1 | W44: 14 | Y44: 116 | AA44: 116
A45: 53 | C45: =IF(W45="",V45,CONCATENATE(V45,".",W45)) -> 2.2 | D45: ESTRUCTURAS DE CIMENTACIÓN MASTILES | U45: ESTRUCTURAS DE CIMENTACIÓN MASTILES | V45: =VLOOKUP(U45,'auxiliar capitulos'!$A$2:$M$68,13,FALSE) -> 2.2 | Y45: =SUM(Z45:CJ45) -> 0
A46: 29 | B46: 6007 | C46: 2.2.15 | D46: =VLOOKUP(B46,'Listado Ins Ana'!$G$3966:$M$8318,2,FALSE) -> PILOTE PREEXCAVADO EN CONCRETO TREMIE DE 4000 PSI (280 KG/CM2) ACELERADO A 2 DÍAS. INCLUYE ACELERANTE, ALQUILER DE EQUIPO DE PERFORACIÓN CON OPERARIO, MOTOBOMBA, BENTONITA, MANO DE OBRA, TRANSPORTE Y DISPOSICIÓN FINAL DE ESCOMBROS EN SITIO AUTORIZADO. DISTANCIA DE TRANSPORTE 21 KM. | E46: =VLOOKUP(B46,'Listado Ins Ana'!$G$3966:$M$8318,3,FALSE) -> M3 | F46: =+Y46 -> 826.99 | G46: =VLOOKUP(B46,'Listado Ins Ana'!$G$3966:$M$8318,4,FALSE) -> 1480735 | H46: =ROUND(G46*(1+$F$867),0) -> 1905173 | I46: =ROUND(H46*F46,0) -> 1575559019 | U46: ESTRUCTURAS DE CIMENTACIÓN MASTILES | V46: =VLOOKUP(U46,'auxiliar capitulos'!$A$2:$M$68,13,FALSE) -> 2.2 | W46: =IF(E46="","",IF(E44="",1,W44+1)) -> 15 | Y46: 826.99 | Z46: 154.66 | AA46: =286.51+286.51 -> 573.02 | AB46: 99.31
A47: 30 | B47: 3708 | C47: 2.2.16 | D47: =VLOOKUP(B47,'Listado Ins Ana'!$G$3966:$M$8318,2,FALSE) -> ACERO DE REFUERZO FY=60000 PSI. SUMINISTRO E INSTALACIÓN. DE ACUERDO A LO ESTIPULADO POR LA NSR-10, NORMA ASTM A-706, ICONTEC 2289 PARA EL ACERO PDR-60. INCLUYE TODOS LOS COSTOS DE SUMINISTRO DE MATERIALES (REFUERZO (G60) FIGURADO, CORRUGADO, INCLUYE EL ALAMBRE DE AMARRE), EQUIPOS, TRANSPORTES, MANEJO, ALMACENAMIENTO, DESPERDICIOS Y MANO DE OBRA. | E47: =VLOOKUP(B47,'Listado Ins Ana'!$G$3966:$M$8318,3,FALSE) -> KG | F47: 359446.93 | G47: =VLOOKUP(B47,'Listado Ins Ana'!$G$3966:$M$8318,4,FALSE) -> 3979 | H47: 5120 | I47: 1840368282 | U47: ESTRUCTURAS DE CIMENTACIÓN MASTILES | V47: =VLOOKUP(U47,'auxiliar capitulos'!$A$2:$M$68,13,FALSE) -> 2.2 | W47: =IF(E47="","",IF(E46="",1,W46+1)) -> 16 | Y47: 359446.93 | Z47: 78977 | AA47: =100746.29+100746.29 -> 201492.58 | AB47: 78977.35
A48: 31 | B48: 3637 | C48: 2.2.17 | D48: =VLOOKUP(B48,'Listado Ins Ana'!$G$3966:$M$8318,2,FALSE) -> DADO EN CONCRETO 4000 PSI, (27 Mpa) PREMEZCLADO, GRAVA COMÚN (Incluye Suministro, Formaleteo en madera, Bombeo, colocación y Curado. No incluye refuerzo) | E48: =VLOOKUP(B48,'Listado Ins Ana'!$G$3966:$M$8318,3,FALSE) -> M3 | F48: 1503.28 | G48: =VLOOKUP(B48,'Listado Ins Ana'!$G$3966:$M$8318,4,FALSE) -> 591365 | H48: 760874 | I48: 1143806667 | U48: ESTRUCTURAS DE CIMENTACIÓN MASTILES | V48: =VLOOKUP(U48,'auxiliar capitulos'!$A$2:$M$68,13,FALSE) -> 2.2 | W48: 17 | Y48: 1503.28 | Z48: 323.94 | AA48: =427.7+427.7 -> 855.4 | AB48: 323.94
A49: 32 | B49: 5055 | C49: 2.2.18 | D49: =VLOOKUP(B49,'Listado Ins Ana'!$G$3966:$M$8318,2,FALSE) -> DESCABECE DE PILOTES (INCLUYE TRANSPORTE Y DISPOSICIÓN FINAL DE ESCOMBROS EN SITIO AUTORIZADO A 21 KM. | E49: =VLOOKUP(B49,'Listado Ins Ana'!$G$3966:$M$8318,3,FALSE) -> M3 | F49: 59.66 | G49: =VLOOKUP(B49,'Listado Ins Ana'!$G$3966:$M$8318,4,FALSE) -> 166049 | H49: 213645 | I49: 12746061 | U49: ESTRUCTURAS DE CIMENTACIÓN MASTILES | V49: =VLOOKUP(U49,'auxiliar capitulos'!$A$2:$M$68,13,FALSE) -> 2.2 | W49: 18 | Y49: 59.66 | Z49: 11.92 | AA49: =17.91+17.91 -> 35.82 | AB49: 11.92
A50: 33 | B50: 6021 | C50: 2.2.19 | D50: =VLOOKUP(B50,'Listado Ins Ana'!$G$3966:$M$8318,2,FALSE) -> CONCRETO DE NIVELACIÓN 2000 PSI GRAVA COMÚN (140 KG/CM2) (PREMEZCLADO. INCLUYE SUMINISTRO, FUNDIDA Y NIVELACIÓN Y COLOCACIÓN. NO INCLUYE REFUERZO, CURADO) PARA MEJORAMIENTO, ADECUACIÓN Y REHABILITACIÓN DE ESPACIO PÚBLICO. | E50: =VLOOKUP(B50,'Listado Ins Ana'!$G$3966:$M$8318,3,FALSE) -> M3 | F50: 13.26 | G50: =VLOOKUP(B50,'Listado Ins Ana'!$G$3966:$M$8318,4,FALSE) -> 501815 | H50: 645655 | I50: 8561385 | U50: ESTRUCTURAS DE CIMENTACIÓN MASTILES | V50: =VLOOKUP(U50,'auxiliar capitulos'!$A$2:$M$68,13,FALSE) -> 2.2 | W50: 19 | Y50: 13.26 | Z50: 3 | AA50: =3.63+3.63 -> 7.26 | AB50: 3
A51: 34 | B51: 5416 | C51: 2.2.20 | D51: =VLOOKUP(B51,'Listado Ins Ana'!$G$3966:$M$8318,2,FALSE) -> EXCAVACIÓN MECÁNICA PARA DADOS (NIVEL DE FUNCIONAMIENTO. INCLUYE CARGUE). | E51: =VLOOKUP(B51,'Listado Ins Ana'!$G$3966:$M$8318,3,FALSE) -> M3 | F51: 1254.8 | G51: =VLOOKUP(B51,'Listado Ins Ana'!$G$3966:$M$8318,4,FALSE) -> 41264 | H51: 53092 | I51: 66619842 | U51: ESTRUCTURAS DE CIMENTACIÓN MASTILES | V51: =VLOOKUP(U51,'auxiliar capitulos'!$A$2:$M$68,13,FALSE) -> 2.2 | W51: 20 | Y51: 1254.8 | Z51: 313.7 | AA51: =313.7+313.7 -> 627.4 | AB51: 313.7
A52: 35 | B52: 3017 | C52: 2.2.21 | D52: =VLOOKUP(B52,'Listado Ins Ana'!$G$3966:$M$8318,2,FALSE) -> TRANSPORTE Y DISPOSICIÓN FINAL DE ESCOMBROS EN SITIO AUTORIZADO (DISTANCIA DE TRANSPORTE 21 KM). A DISTANCIA MAYOR DEL ACARREO LIBRE (90 M) EN SITIO AUTORIZADO POR LA ENTIDAD AMBIENTAL COMPETENTE. | E52: =VLOOKUP(B52,'Listado Ins Ana'!$G$3966:$M$8318,3,FALSE) -> M3 | F52: 1631.24 | G52: =VLOOKUP(B52,'Listado Ins Ana'!$G$3966:$M$8318,4,FALSE) -> 34429 | H52: 44298 | I52: 72260670 | U52: ESTRUCTURAS DE CIMENTACIÓN MASTILES | V52: =VLOOKUP(U52,'auxiliar capitulos'!$A$2:$M$68,13,FALSE) -> 2.2 | W52: 21 | Y52: 1631.24 | Z52: =1.3*313.7 -> 407.81 | AA52: =1.3*(313.7+313.7) -> 815.62 | AB52: =1.3*313.7 -> 407.81
A53: 36 | B53: 4908 | C53: 2.2.22 | D53: =VLOOKUP(B53,'Listado Ins Ana'!$G$3966:$M$8318,2,FALSE) -> MATERIAL SELECCIONADO. SUMINISTRO, EXTENDIDO MANUAL, NIVELACIÓN, HUMEDECIMIENTO Y COMPACTACIÓN. | E53: =VLOOKUP(B53,'Listado Ins Ana'!$G$3966:$M$8318,3,FALSE) -> M3 | F53: 857.36 | G53: =VLOOKUP(B53,'Listado Ins Ana'!$G$3966:$M$8318,4,FALSE) -> 79657 | H53: 102490 | I53: 87870826 | U53: ESTRUCTURAS DE CIMENTACIÓN MASTILES | V53: =VLOOKUP(U53,'auxiliar capitulos'!$A$2:$M$68,13,FALSE) -> 2.2 | W53: 22 | Y53: 857.36 | Z53: 223.88 | AA53: =204.8+204.8 -> 409.6 | AB53: 223.88
A54: 53 | C54: =IF(W54="",V54,CONCATENATE(V54,".",W54)) -> 2.3 | D54: CIMENTACIÓN PILONAS | U54: CIMENTACIÓN PILONAS | V54: =VLOOKUP(U54,'auxiliar capitulos'!$A$2:$M$68,13,FALSE) -> 2.3 | Y54: =SUM(Z54:CJ54) -> 0
A55: 43 | B55: 6007 | C55: 2.3.15 | D55: PILOTE PREEXCAVADO EN CONCRETO TREMIE DE 4000 PSI (280 KG/CM2) ACELERADO A 2 DÍAS. INCLUYE ACELERANTE, ALQUILER DE EQUIPO DE PERFORACIÓN CON OPERARIO, MOTOBOMBA, BENTONITA, MANO DE OBRA, TRANSPORTE Y DISPOSICIÓN FINAL DE ESCOMBROS EN SITIO AUTORIZADO. DISTANCIA DE TRANSPORTE 21 KM. | E55: M3 | F55: =Y55 -> 1362.280968 | G55: =VLOOKUP($B55,'Listado Ins Ana'!$G$3965:$K$8277,4,FALSE) -> 1480735 | H55: =ROUND(G55*(1+$F$867),0) -> 1905173 | I55: =ROUND(H55*F55,0) -> 2595380919 | J55: Si | K55: =+I55 -> 2595380919 | S55: =VLOOKUP(B55,'Listado Ins Ana'!$G$3966:$J$100621,4,FALSE)-G55 -> 0 | U55: CIMENTACIÓN PILONAS | V55: =VLOOKUP(U55,'auxiliar capitulos'!$A$2:$M$68,13,FALSE) -> 2.3 | W55: =IF(E55="","",IF(E44="",1,W44+1)) -> 15 | Y55: 1362.280968 | AD55: 32.98672286 | AE55: 39.26990817 | AF55: 86.39379797 | AG55: 73.51326809 | AH55: 80.42477193 | AI55: 126.2920247 | AJ55: 67.54424205 | AK55: 47.1238898 | AL55: 80.11061267 | AM55: 45.23893421 | AN55: 67.85840132 | BK55: 80.69966129 | BM55: 64.96813608 | BN55: 69.90043654 | BO55: 55.35486256 | BP55: 49.35442059 | BQ55: 44.95619087 | BR55: 51.05088062 | BS55: 56.51725184 | BT55: 70.12034803 | BU55: 72.60220622
A56: 37 | B56: 3708 | C56: =IF(W56="",V56,CONCATENATE(V56,".",W56)) -> 2.1.16 | D56: =VLOOKUP(B56,'Listado Ins Ana'!$G$3966:$M$8318,2,FALSE) -> ACERO DE REFUERZO FY=60000 PSI. SUMINISTRO E INSTALACIÓN. DE ACUERDO A LO ESTIPULADO POR LA NSR-10, NORMA ASTM A-706, ICONTEC 2289 PARA EL ACERO PDR-60. INCLUYE TODOS LOS COSTOS DE SUMINISTRO DE MATERIALES (REFUERZO (G60) FIGURADO, CORRUGADO, INCLUYE EL ALAMBRE DE AMARRE), EQUIPOS, TRANSPORTES, MANEJO, ALMACENAMIENTO, DESPERDICIOS Y MANO DE OBRA. | E56: =VLOOKUP(B56,'Listado Ins Ana'!$G$3966:$M$8318,3,FALSE) -> KG | F56: =+Y56 -> 322517.2372 | G56: =VLOOKUP(B56,'Listado Ins Ana'!$G$3966:$M$8318,4,FALSE) -> 3979 | H56: 5120 | I56: 1651288254 | U56: ESTRUCTURAS EDIFICACIONES | V56: =VLOOKUP(U56,'auxiliar capitulos'!$A$2:$M$68,13,FALSE) -> 2.1 | W56: =IF(E56="","",IF(E55="",1,W55+1)) -> 16 | Y56: =SUM(Z56:CJ56) -> 322517.2372 | AD56: 9726.34475 | AE56: 11959.48371 | AF56: 19139.8942 | AG56: 15964.56892 | AH56: 17053.82261 | AI56: 27216.57554 | AJ56: 17988.43712 | AK56: 12963.5451 | AL56: 16165.48086 | AM56: 12799.28172 | AN56: 14322.55363 | AO56: 19597.38353 | AQ56: 13480.25189 | AR56: 15336.26486 | AS56: 13989.74721 | AT56: 12977.64549 | AU56: 12910.98527 | AV56: 15713.54082 | AW56: 14690.3304 | AX56: 14544.44554 | AY56: 13976.65402
A57: 44 | B57: 3637 | C57: 2.3.16 | D57: DADO EN CONCRETO 4000 PSI, (27 Mpa) PREMEZCLADO, GRAVA COMÚN (Incluye Suministro, Formaleteo en madera, Bombeo, colocación y Curado. No incluye refuerzo) | E57: M3 | F57: 1461.561981 | G57: =VLOOKUP($B57,'Listado Ins Ana'!$G$3965:$K$8277,4,FALSE) -> 591365 | H57: 760874 | I57: 1112064510 | J57: Si | K57: 1112064510 | S57: =VLOOKUP(B57,'Listado Ins Ana'!$G$3966:$J$100621,4,FALSE)-G57 -> 0 | U57: CIMENTACIÓN PILONAS | V57: =VLOOKUP(U57,'auxiliar capitulos'!$A$2:$M$68,13,FALSE) -> 2.3 | W57: =IF(E57="","",IF(E55="",1,W55+1)) -> 16 | Y57: 1461.561981 | AD57: 60.10121556 | AE57: 73.64933388 | AF57: 69.75630257 | AG57: 66.58075041 | AH57: 73.64933388 | AI57: 109.0084034 | AJ57: 77.63130257 | AK57: 73.64933388 | AL57: 60.10121556 | AM57: 66.58075041 | AN57: 68.44607105 | BK57: 78.421865 | BM57: 61.57383712 | BN57: 70.82190049 | BO57: 66.58075041 | BP57: 59.51216694 | BQ57: 66.58075041 | BR57: 77.63130257 | BS57: 66.58075041 | BT57: 59.51216694 | BU57: 55.19247704
A58: 45 | B58: 5055 | C58: 2.3.17 | D58: DESCABECE DE PILOTES (INCLUYE TRANSPORTE Y DISPOSICIÓN FINAL DE ESCOMBROS EN SITIO AUTORIZADO A 21 KM. | E58: M3 | F58: 176.9957593 | G58: =VLOOKUP($B58,'Listado Ins Ana'!$G$3965:$K$8277,4,FALSE) -> 166049 | H58: 213645 | I58: 37814259 | J58: No | K58: 37814259 | S58: =VLOOKUP(B58,'Listado Ins Ana'!$G$3966:$J$100621,4,FALSE)-G58 -> 0 | U58: CIMENTACIÓN PILONAS | V58: =VLOOKUP(U58,'auxiliar capitulos'!$A$2:$M$68,13,FALSE) -> 2.3 | W58: 17 | Y58: 176.9957593 | AD58: 7.853981634 | AE58: 10.90132651 | AF58: 7.696902001 | AG58: 7.382742736 | AH58: 11.18406985 | AI58: 12.53495469 | AJ58: 7.759733854 | AK58: 9.581857593 | AL58: 7.728317928 | AM58: 7.508406442 | AN58: 8.168140899 | BK58: 10.01382658 | BM58: 7.853981634 | BN58: 9.644689447 | BO58: 8.230972752 | BP58: 5.372123438 | BQ58: 7.659202889 | BR58: 8.230972752 | BS58: 9.393362034 | BT58: 7.238229474 | BU58: 5.057964172
A59: 46 | B59: 6021 | C59: 2.3.18 | D59: CONCRETO DE NIVELACIÓN 2000 PSI GRAVA COMÚN (140 KG/CM2) (PREMEZCLADO. INCLUYE SUMINISTRO, FUNDIDA Y NIVELACIÓN Y COLOCACIÓN. NO INCLUYE REFUERZO, CURADO) PARA MEJORAMIENTO, ADECUACIÓN Y REHABILITACIÓN DE ESPACIO PÚBLICO. | E59: M3 | F59: 25.5038059 | G59: =VLOOKUP($B59,'Listado Ins Ana'!$G$3965:$K$8277,4,FALSE) -> 501815 | H59: 645655 | I59: 16466660 | J59: No | K59: 16466660 | N59: Se sugiere revisar la cantidad. Debería esta por encima de 300 m3 | S59: =VLOOKUP(B59,'Listado Ins Ana'!$G$3966:$J$100621,4,FALSE)-G59 -> 0 | U59: CIMENTACIÓN PILONAS | V59: =VLOOKUP(U59,'auxiliar capitulos'!$A$2:$M$68,13,FALSE) -> 2.3 | W59: 18 | Y59: 25.5038059 | AD59: 1.198340735 | AE59: 1.198340735 | AF59: 0.9358407346 | AG59: 1.198340735 | AH59: 1.198340735 | AI59: 1.728761102 | AJ59: 1.198340735 | AK59: 1.198340735 | AL59: 1.198340735 | AM59: 1.198340735 | AN59: 1.198340735 | BK59: 1.407300918 | BM59: 1.198340735 | BN59: 1.198340735 | BO59: 1.198340735 | BP59: 1.198340735 | BQ59: 1.198340735 | BR59: 1.198340735 | BS59: 1.198340735 | BT59: 1.060110658 | BU59: 1.198340735
A60: 47 | B60: 5416 | C60: 2.3.19 | D60: EXCAVACIÓN MECÁNICA PARA DADOS (NIVEL DE FUNCIONAMIENTO. INCLUYE CARGUE). | E60: M3 | F60: 3098.225 | G60: =VLOOKUP($B60,'Listado Ins Ana'!$G$3965:$K$8277,4,FALSE) -> 41264 | H60: 53092 | I60: 164490962 | J60: No | K60: 164490962 | S60: =VLOOKUP(B60,'Listado Ins Ana'!$G$3966:$J$100621,4,FALSE)-G60 -> 0 | U60: CIMENTACIÓN PILONAS | V60: =VLOOKUP(U60,'auxiliar capitulos'!$A$2:$M$68,13,FALSE) -> 2.3 | W60: 19 | Y60: 3098.225 | AD60: 143.4375 | AE60: 198 | AF60: 90 | AG60: 135 | AH60: 203.0625 | AI60: 203.25 | AJ60: 141.75 | AK60: 174.375 | AL60: 141.1875 | AM60: 137.25 | AN60: 149.0625 | BK60: 166.4 | BM60: 143.4375 | BN60: 175.5 | BO60: 150.1875 | BP60: 99 | BQ60: 139.95 | BR60: 150.1875 | BS60: 171 | BT60: 92.8125 | BU60: 93.375
A61: 48 | B61: 3017 | C61: 2.3.20 | D61: TRANSPORTE Y DISPOSICIÓN FINAL DE ESCOMBROS EN SITIO AUTORIZADO (DISTANCIA DE TRANSPORTE 21 KM). A DISTANCIA MAYOR DEL ACARREO LIBRE (90 M) EN SITIO AUTORIZADO POR LA ENTIDAD AMBIENTAL COMPETENTE. | E61: M3 | F61: 3613.1375 | G61: =VLOOKUP($B61,'Listado Ins Ana'!$G$3965:$K$8277,4,FALSE) -> 34429 | H61: 44298 | I61: 160054765 | J61: No | K61: 160054765 | S61: =VLOOKUP(B61,'Listado Ins Ana'!$G$3966:$J$100621,4,FALSE)-G61 -> 0 | U61: CIMENTACIÓN PILONAS | V61: =VLOOKUP(U61,'auxiliar capitulos'!$A$2:$M$68,13,FALSE) -> 2.3 | W61: 20 | Y61: 3613.1375 | AD61: =1.3*AD60 -> 186.46875 | AE61: 257.4 | AF61: 117 | AG61: 175.5 | AH61: 263.98125 | AI61: 264.225 | AJ61: 184.275 | AK61: 226.6875 | AL61: 183.54375 | AM61: 178.425 | AN61: 193.78125 | BK61: 166.4 | BM61: 143.4375 | BN61: 175.5 | BO61: 150.1875 | BP61: 99 | BQ61: 139.95 | BR61: 150.1875 | BS61: 171 | BT61: 92.8125 | BU61: 93.375
A62: 49 | B62: 4908 | C62: 2.3.21 | D62: MATERIAL SELECCIONADO. SUMINISTRO, EXTENDIDO MANUAL, NIVELACIÓN, HUMEDECIMIENTO Y COMPACTACIÓN. | E62: M3 | F62: 1911.331371 | G62: =VLOOKUP($B62,'Listado Ins Ana'!$G$3965:$K$8277,4,FALSE) -> 79657 | H62: 102490 | I62: 195892352 | J62: No | K62: 195892352 | S62: =VLOOKUP(B62,'Listado Ins Ana'!$G$3966:$J$100621,4,FALSE)-G62 -> 0 | U62: CIMENTACIÓN PILONAS | V62: =VLOOKUP(U62,'auxiliar capitulos'!$A$2:$M$68,13,FALSE) -> 2.3 | W62: 21 | Y62: 1911.331371 | AD62: 91.64126148 | AE62: 137.1873906 | AF62: 41.03550419 | AG62: 82.10420405 | AH62: 141.6137181 | AI62: 122.577563 | AJ62: 84.43296217 | AK62: 116.5311956 | AL62: 89.58761102 | AM62: 84.07146071 | AN62: 96.77538763 | BK62: 19.76691464 | BM62: 91.64126148 | BN62: 117.514824 | BO62: 95.38318651 | BP62: 79.4649 | BQ62: 86.4321687 | BR62: 91.25764704 | BS62: 113.5803106 | BT62: 66.787 | BU62: 61.9449
A63: 50 | B63: 6226 | C63: 2.3.22 | D63: DEMOLICIÓN PAVIMENTO ASFÁLTICO DE ESPESOR 10 CM. INCLUYE TODOS LOS COSTOS DE SUMINISTRO DE EQUIPOS (HERRAMIENTA MENOR, MARTILLO NEUMÁTICO, COMPRESOR, PROVISIONAL DE ENERGÍA), TRANSPORTE, MANEJO, ALMACENAMIENTO, DESPERDICIOS, CARGUE Y TRANSPORTE DE MATERIALES SOBRANTES A ESCOMBRERA AUTORIZADA Y MANO DE OBRA. | E63: M2 | F63: 8.4375 | G63: =VLOOKUP($B63,'Listado Ins Ana'!$G$3965:$K$8277,4,FALSE) -> 10614 | H63: 13656 | I63: 115223 | J63: No | K63: 115223 | S63: =VLOOKUP(B63,'Listado Ins Ana'!$G$3966:$J$100621,4,FALSE)-G63 -> 0 | U63: CIMENTACIÓN PILONAS | V63: =VLOOKUP(U63,'auxiliar capitulos'!$A$2:$M$68,13,FALSE) -> 2.3 | W63: 22 | Y63: 8.4375 | AD63: 8.4375
A64: 51 | B64: 5196 | C64: 2.3.23 | D64: DEMOLICIÓN DE CONCRETO: ESPESORES 8CM A 15CM. (INCLUYE RETIRO DE MATERIAL, TRANSPORTE Y DISPOSICIÓN FINAL DE ESCOMBROS EN SITIO AUTORIZADO). | E64: M3 | F64: 144.375 | G64: =VLOOKUP($B64,'Listado Ins Ana'!$G$3965:$K$8277,4,FALSE) -> 83562 | H64: 107514 | I64: 15522334 | J64: No | K64: 15522334 | S64: =VLOOKUP(B64,'Listado Ins Ana'!$G$3966:$J$100621,4,FALSE)-G64 -> 0 | U64: CIMENTACIÓN PILONAS | V64: =VLOOKUP(U64,'auxiliar capitulos'!$A$2:$M$68,13,FALSE) -> 2.3 | W64: 23 | Y64: 144.375 | AE64: 8.4375 | AF64: 5.4 | AG64: 8.4375 | AH64: 8.4375 | AI64: 11.25 | AK64: 8.4375 | AL64: 8.4375 | AN64: 8.4375 | BK64: 9.6 | BM64: 8.4375 | BN64: 8.4375 | BP64: 8.4375 | BQ64: 8.4375 | BR64: 8.4375 | BS64: 8.4375 | BT64: 8.4375 | BU64: 8.4375
A65: 305 | C65: 2.4 | D65: ESTRUCTURAS PARA CONTENCIÓN URBANISMO | U65: ESTRUCTURAS PARA CONTENCIÓN URBANISMO | V65: =VLOOKUP(U65,'auxiliar capitulos'!$A$2:$M$68,13,FALSE) -> 2.4 | W65: =IF(E65="","",IF(#REF!="",1,#REF!+1)) ->  | Y65: 0
A66: 306 | B66: 6021 | C66: 2.4.1 | D66: =VLOOKUP(B66,'Listado Ins Ana'!$G$3966:$M$8318,2,FALSE) -> CONCRETO DE NIVELACIÓN 2000 PSI GRAVA COMÚN (140 KG/CM2) (PREMEZCLADO. INCLUYE SUMINISTRO, FUNDIDA Y NIVELACIÓN Y COLOCACIÓN. NO INCLUYE REFUERZO, CURADO) PARA MEJORAMIENTO, ADECUACIÓN Y REHABILITACIÓN DE ESPACIO PÚBLICO. | E66: =VLOOKUP(B66,'Listado Ins Ana'!$G$3966:$M$8318,3,FALSE) -> M3 | F66: =+Y66 -> 68.79 | G66: =VLOOKUP(B66,'Listado Ins Ana'!$G$3966:$M$8318,4,FALSE) -> 501815 | H66: =ROUND(G66*(1+$F$867),0) -> 645655 | I66: =ROUND(H66*F66,0) -> 44414607 | J66: No | K66: =+I66 -> 44414607 | N66: No se calculó cantidad para este ítem. Se solicita confirmar que este íem no aplica. | O66: 1 | S66: =VLOOKUP(B66,'Listado Ins Ana'!$G$3966:$J$100621,4,FALSE)-G66 -> 0 | U66: ESTRUCTURAS PARA CONTENCIÓN URBANISMO | V66: =VLOOKUP(U66,'auxiliar capitulos'!$A$2:$M$68,13,FALSE) -> 2.4 | W66: =IF(E66="","",IF(E65="",1,W65+1)) -> 1 | Y66: 68.79 | AF66: 2.55 | AG66: 3.47 | AH66: 4 | AI66: 15.32 | AK66: 7.04 | AL66: 6.93 | AQ66: 1.92 | AR66: 4.89 | AT66: 2.75 | AU66: 3.39 | AV66: 6.37 | AW66: 3.45 | AX66: 6.71
A67: 307 | B67: KES003 | C67: 2.4.2 | D67: =VLOOKUP(B67,'Listado Ins Ana'!$G$3966:$M$8318,2,FALSE) -> CONCRETO 4000 PSI PARA MURO ESTRUCTURAL (Premezclado Incluye Sumin, Formaleteo y Colocación No incluye Refuerzo, Curado). | E67: =VLOOKUP(B67,'Listado Ins Ana'!$G$3966:$M$8318,3,FALSE) -> M3 | F67: 1403.76 | G67: =VLOOKUP(B67,'Listado Ins Ana'!$G$3966:$M$8318,4,FALSE) -> 785534 | H67: 1010699 | I67: 1418778828 | J67: No | K67: 1418778828 | N67: No se calculó cantidad para este ítem. Se solicita confirmar que este íem no aplica. | O67: 1 | S67: =VLOOKUP(B67,'Listado Ins Ana'!$G$3966:$J$100621,4,FALSE)-G67 -> 0 | U67: ESTRUCTURAS PARA CONTENCIÓN URBANISMO | V67: =VLOOKUP(U67,'auxiliar capitulos'!$A$2:$M$68,13,FALSE) -> 2.4 | W67: 2 | Y67: 1403.76 | AF67: 76.12 | AG67: 50.5 | AH67: 90.44 | AI67: 307.21 | AK67: 139.47 | AL67: 120.37 | AQ67: 22.77 | AR67: 77.36 | AT67: 60.88 | AU67: 68.31 | AV67: 128.85 | AW67: 91.59 | AX67: 169.89
A68: 308 | B68: 3708 | C68: 2.4.3 | D68: =VLOOKUP(B68,'Listado Ins Ana'!$G$3966:$M$8318,2,FALSE) -> ACERO DE REFUERZO FY=60000 PSI. SUMINISTRO E INSTALACIÓN. DE ACUERDO A LO ESTIPULADO POR LA NSR-10, NORMA ASTM A-706, ICONTEC 2289 PARA EL ACERO PDR-60. INCLUYE TODOS LOS COSTOS DE SUMINISTRO DE MATERIALES (REFUERZO (G60) FIGURADO, CORRUGADO, INCLUYE EL ALAMBRE DE AMARRE), EQUIPOS, TRANSPORTES, MANEJO, ALMACENAMIENTO, DESPERDICIOS Y MANO DE OBRA. | E68: =VLOOKUP(B68,'Listado Ins Ana'!$G$3966:$M$8318,3,FALSE) -> KG | F68: 211688.21 | G68: =VLOOKUP(B68,'Listado Ins Ana'!$G$3966:$M$8318,4,FALSE) -> 3979 | H68: 5120 | I68: 1083843635 | J68: No | K68: 1083843635 | N68: No se calculó cantidad para este ítem. Se solicita confirmar que este íem no aplica. | O68: 1 | S68: =VLOOKUP(B68,'Listado Ins Ana'!$G$3966:$J$100621,4,FALSE)-G68 -> 0 | U68: ESTRUCTURAS PARA CONTENCIÓN URBANISMO | V68: =VLOOKUP(U68,'auxiliar capitulos'!$A$2:$M$68,13,FALSE) -> 2.4 | W68: 3 | Y68: 211688.21 | AF68: 15086.32 | AG68: 7097.82 | AH68: 12261.87 | AI68: 47622.21 | AK68: 19347.62 | AL68: 15621.45 | AQ68: 3690.73 | AR68: 15609.43 | AT68: 7895.54 | AU68: 9173.96 | AV68: 19771.15 | AW68: 13267.39 | AX68: 25242.72
A69: 309 | B69: 3464 | C69: 2.4.4 | D69: =VLOOKUP(B69,'Listado Ins Ana'!$G$3966:$M$8318,2,FALSE) -> EXCAVACION MANUAL EN MATERIAL COMUN. INCLUYE CARGUE. | E69: =VLOOKUP(B69,'Listado Ins Ana'!$G$3966:$M$8318,3,FALSE) -> M3 | F69: 2257.7 | G69: =VLOOKUP(B69,'Listado Ins Ana'!$G$3966:$M$8318,4,FALSE) -> 31876 | H69: 41013 | I69: 92595050 | K69: 92595050 | N69: No se calculó cantidad para este ítem. Se solicita confirmar que este íem no aplica. | O69: 1 | S69: =VLOOKUP(B69,'Listado Ins Ana'!$G7480:$J100679,4,FALSE)-G69 ->  | U69: ESTRUCTURAS PARA CONTENCIÓN URBANISMO | V69: =VLOOKUP(U69,'auxiliar capitulos'!$A$2:$M$68,13,FALSE) -> 2.4 | W69: 4 | Y69: 2257.7 | AF69: 76.85 | AG69: 91.52 | AH69: 185.97 | AI69: 463.1 | AK69: 274.73 | AL69: 195.3 | AQ69: 92.23 | AR69: 123.09 | AT69: 115.43 | AU69: 71.38 | AV69: 215.17 | AW69: 114.42 | AX69: 238.51
A70: 310 | B70: 3017 | C70: 2.4.5 | D70: =VLOOKUP(B70,'Listado Ins Ana'!$G$3966:$M$8318,2,FALSE) -> TRANSPORTE Y DISPOSICIÓN FINAL DE ESCOMBROS EN SITIO AUTORIZADO (DISTANCIA DE TRANSPORTE 21 KM). A DISTANCIA MAYOR DEL ACARREO LIBRE (90 M) EN SITIO AUTORIZADO POR LA ENTIDAD AMBIENTAL COMPETENTE. | E70: =VLOOKUP(B70,'Listado Ins Ana'!$G$3966:$M$8318,3,FALSE) -> M3 | F70: 2935.01 | G70: =VLOOKUP(B70,'Listado Ins Ana'!$G$3966:$M$8318,4,FALSE) -> 34429 | H70: 44298 | I70: 130015073 | K70: 130015073 | N70: No se calculó cantidad para este ítem. Se solicita confirmar que este íem no aplica. | O70: 1 | S70: =VLOOKUP(B70,'Listado Ins Ana'!$G$3966:$J$100621,4,FALSE)-G70 -> 0 | U70: ESTRUCTURAS PARA CONTENCIÓN URBANISMO | V70: =VLOOKUP(U70,'auxiliar capitulos'!$A$2:$M$68,13,FALSE) -> 2.4 | W70: 5 | Y70: 2935.01 | AF70: =1.3*AF69 -> 99.905 | AG70: =1.3*AG69 -> 118.976 | AH70: 241.761 | AI70: 602.03 | AK70: 357.149 | AL70: 253.89 | AQ70: 119.899 | AR70: 160.017 | AS70: 0 | AT70: 150.059 | AU70: 92.794 | AV70: 279.721 | AW70: 148.746 | AX70: 310.063
A71: 311 | B71: 7364 | C71: 2.4.6 | D71: =VLOOKUP(B71,'Listado Ins Ana'!$G$3966:$M$8318,2,FALSE) -> RELLENO EN RECEBO COMUN (SUMINISTRO E INSTALACIÓN EXTENDIDO MECANICO, HUMEDECIMIENTO, COMPACTACIÓN Y TRANSPORTE A 28 KM). | E71: =VLOOKUP(B71,'Listado Ins Ana'!$G$3966:$M$8318,3,FALSE) -> M3 | F71: 853.97 | G71: =VLOOKUP(B71,'Listado Ins Ana'!$G$3966:$M$8318,4,FALSE) -> 70963 | H71: 91304 | I71: 77970877 | K71: 77970877 | N71: No se calculó cantidad para este ítem. Se solicita confirmar que este íem no aplica. | O71: 1 | S71: =VLOOKUP(B71,'Listado Ins Ana'!$G7480:$J100681,4,FALSE)-G71 ->  | U71: ESTRUCTURAS PARA CONTENCIÓN URBANISMO | V71: =VLOOKUP(U71,'auxiliar capitulos'!$A$2:$M$68,13,FALSE) -> 2.4 | W71: 6 | Y71: 853.97 | AF71: 0.73 | AG71: 41.03 | AH71: 95.53 | AI71: 155.9 | AK71: 135.26 | AL71: 74.92 | AQ71: 69.47 | AR71: 45.73 | AT71: 54.55 | AU71: 3.07 | AV71: 86.31 | AW71: 22.84 | AX71: 68.63
A72: 312 | B72: GMC007 | C72: 2.4.7 | D72: =VLOOKUP(B72,'Listado Ins Ana'!$G$3966:$M$8318,2,FALSE) -> BLOQUE ESTRUCTURAL EN CONCRETO 39X14X6. INCLUYE BLOQUE ESTRUCTURAL (39cm x 14cm x 6cm) MORTERO 1:3 HECHO EN OBRA PARA PEGA, CORTADORA, DISCO DIAMANTADO, ANDAMIO, ACERO Y GROUTING. | E72: =VLOOKUP(B72,'Listado Ins Ana'!$G$3966:$M$8318,3,FALSE) -> M2 | F72: 1104.12 | G72: =VLOOKUP(B72,'Listado Ins Ana'!$G$3966:$M$8318,4,FALSE) -> 129762.33 | H72: 166957 | I72: 184340563 | K72: 184340563 | N72: No se calculó cantidad para este ítem. Se solicita confirmar que este íem no aplica. | O72: 1 | S72: =VLOOKUP(B72,'Listado Ins Ana'!$G7480:$J100682,4,FALSE)-G72 -> 0 | U72: ESTRUCTURAS PARA CONTENCIÓN URBANISMO | V72: =VLOOKUP(U72,'auxiliar capitulos'!$A$2:$M$68,13,FALSE) -> 2.4 | W72: 7 | Y72: 1104.12 | AF72: 38.3 | AG72: 48.4 | AH72: 58.5 | AI72: 0 | AK72: 85.89 | AL72: 44.64 | AQ72: 44.64 | AR72: 87.73 | AT72: 77.5 | AU72: 130.2 | AV72: 124.62 | AW72: 81.7 | AX72: 282
A73: 313 | B73: GMC008 | C73: 2.4.8 | D73: =VLOOKUP(B73,'Listado Ins Ana'!$G$3966:$M$8318,2,FALSE) -> ALFAJÍA EN CONCRETO A LA VISTA 30 X 10, COLOR GRIS BASALTO, SIMILAR O EQUIVALENTE, PIEZA PREFABRICADA Y/O FUNDIDA EN SITIO, EN CONCRETO DE 28 MPA DE RESISTENCIA A LA COMPRESIÓN A 28 DÍAS, CON ACABADO LISO. SE INSTALA COMO REMATE SUPERIOR DE LOS MUROS ESTRUCTURALES QUE SEPARAN LAS NUEVAS ÁREAS DE ESPACIO PUBLICO CONTRA LAS CULATAS DE LAS CONSTRUCCIONES EXISTENTES, LAS DIMENSIONES PUEDEN VARIAR RESPECTO DEL ALINEAMIENTO PREVISTO EN LOS PLANOS, INCLUYE ANCLAJE CON PERNO, CLAVO O GRAFIL, CADA 50 CM CON ADHESIVO EPÓXICO PARA PEGA DE CONCRETO TIPO EPOTOC, SIMILAR O EQUIVALENTE. EL REFUERZO ES 0.32 M2 POR CADA METRO LINEAL DE ALFAJIA, CON MALLA ELECTROSOLDADA 6X6-6/6 DE FY=5000KG/CM2 | E73: =VLOOKUP(B73,'Listado Ins Ana'!$G$3966:$M$8318,3,FALSE) -> ML | F73: 894.9 | G73: =VLOOKUP(B73,'Listado Ins Ana'!$G$3966:$M$8318,4,FALSE) -> 25173.49 | H73: 32389 | I73: 28984916 | K73: 28984916 | N73: No se calculó cantidad para este ítem. Se solicita confirmar que este íem no aplica. | O73: 1 | S73: =VLOOKUP(B73,'Listado Ins Ana'!$G$3966:$J$100621,4,FALSE)-G73 -> 0 | U73: ESTRUCTURAS PARA CONTENCIÓN URBANISMO | V73: =VLOOKUP(U73,'auxiliar capitulos'!$A$2:$M$68,13,FALSE) -> 2.4 | W73: 8 | Y73: 894.9 | AF73: 23.8 | AG73: 44.1 | AH73: 47.5 | AI73: 119.5 | AK73: 81.2 | AL73: 75.3 | AQ73: 38.8 | AR73: 70.7 | AT73: 55.6 | AU73: 46.6 | AV73: 120.8 | AW73: 50.6 | AX73: 120.4
A74: 314 | B74: 4009 | C74: 2.4.9 | D74: =VLOOKUP(B74,'Listado Ins Ana'!$G$3966:$M$8318,2,FALSE) -> GEOTEXTIL NT 3000 PARA SUBDRENES/FILTROS (INCLUYE SUMINISTRO E INSTALACIÓN) | E74: =VLOOKUP(B74,'Listado Ins Ana'!$G$3966:$M$8318,3,FALSE) -> M2 | F74: 1259.64 | G74: =VLOOKUP(B74,'Listado Ins Ana'!$G$3966:$M$8318,4,FALSE) -> 7864 | H74: 10118 | I74: 12745038 | K74: 12745038 | N74: No se calculó cantidad para este ítem. Se solicita confirmar que este íem no aplica. | O74: 1 | S74: =VLOOKUP(B74,'Listado Ins Ana'!$G7480:$J100684,4,FALSE)-G74 ->  | U74: ESTRUCTURAS PARA CONTENCIÓN URBANISMO | V74: =VLOOKUP(U74,'auxiliar capitulos'!$A$2:$M$68,13,FALSE) -> 2.4 | W74: 9 | Y74: 1259.64 | AF74: 39.6 | AG74: 58.2 | AH74: 56.9 | AI74: 249.3 | AK74: 55.9 | AL74: 161.94 | AQ74: 34.9 | AR74: 118.9 | AT74: 76.9 | AU74: 77.2 | AV74: 113 | AW74: 64.5 | AX74: 152.4
A75: 315 | B75: 5412 | C75: 2.4.10 | D75: =VLOOKUP(B75,'Listado Ins Ana'!$G$3966:$M$8318,2,FALSE) -> RELLENO EN TRITURADO DE 3/4`` (INCLUYE TRANSPORTE, SUMINISTRO, EXTENDIDO MANUAL Y COLOCACIÓN) | E75: =VLOOKUP(B75,'Listado Ins Ana'!$G$3966:$M$8318,3,FALSE) -> M3 | F75: 227.8 | G75: =VLOOKUP(B75,'Listado Ins Ana'!$G$3966:$M$8318,4,FALSE) -> 107123 | H75: 137829 | I75: 31397446 | K75: 31397446 | N75: No se calculó cantidad para este ítem. Se solicita confirmar que este íem no aplica. | O75: 1 | S75: =VLOOKUP(B75,'Listado Ins Ana'!$G7480:$J100685,4,FALSE)-G75 ->  | U75: ESTRUCTURAS PARA CONTENCIÓN URBANISMO | V75: =VLOOKUP(U75,'auxiliar capitulos'!$A$2:$M$68,13,FALSE) -> 2.4 | W75: 10 | Y75: 227.8 | AF75: 5.9 | AG75: 8.3 | AH75: 15 | AI75: 43.5 | AK75: 25.8 | AL75: 24.3 | AQ75: 5.2 | AR75: 17.8 | AT75: 11.5 | AU75: 11.6 | AV75: 25.7 | AW75: 10.3 | AX75: 22.9
A76: 316 | B76: 3905 | C76: 2.4.11 | D76: =VLOOKUP(B76,'Listado Ins Ana'!$G$3966:$M$8318,2,FALSE) -> TUBERIA PVC PARA DRENAJE D=6" CON FILTRO (INCLUYE SUMINISTRO E INSTALACIÓN) | E76: =VLOOKUP(B76,'Listado Ins Ana'!$G$3966:$M$8318,3,FALSE) -> ML | F76: 894.9 | G76: =VLOOKUP(B76,'Listado Ins Ana'!$G$3966:$M$8318,4,FALSE) -> 44137 | H76: 56788 | I76: 50819581 | K76: 50819581 | N76: No se calculó cantidad para este ítem. Se solicita confirmar que este íem no aplica. | O76: 1 | S76: =VLOOKUP(B76,'Listado Ins Ana'!$G$3966:$J$100621,4,FALSE)-G76 -> 0 | U76: ESTRUCTURAS PARA CONTENCIÓN URBANISMO | V76: =VLOOKUP(U76,'auxiliar capitulos'!$A$2:$M$68,13,FALSE) -> 2.4 | W76: 11 | Y76: 894.9 | AF76: 23.8 | AG76: 44.1 | AH76: 47.5 | AI76: 119.5 | AK76: 81.2 | AL76: 75.3 | AQ76: 38.8 | AR76: 70.7 | AT76: 55.6 | AU76: 46.6 | AV76: 120.8 | AW76: 50.6 | AX76: 120.4
A77: 317 | B77: 3904 | C77: 2.4.12 | D77: =VLOOKUP(B77,'Listado Ins Ana'!$G$3966:$M$8318,2,FALSE) -> TUBERIA PVC PARA DRENAJE D=4" SIN FILTRO (INCLUYE SUMINISTRO E INSTALACIÓN) | E77: =VLOOKUP(B77,'Listado Ins Ana'!$G$3966:$M$8318,3,FALSE) -> ML | F77: 310 | G77: =VLOOKUP(B77,'Listado Ins Ana'!$G$3966:$M$8318,4,FALSE) -> 23329 | H77: 30016 | I77: 9304960 | K77: 9304960 | N77: No se calculó cantidad para este ítem. Se solicita confirmar que este íem no aplica. | O77: 1 | S77: =VLOOKUP(B77,'Listado Ins Ana'!$G7480:$J100687,4,FALSE)-G77 ->  | U77: ESTRUCTURAS PARA CONTENCIÓN URBANISMO | V77: =VLOOKUP(U77,'auxiliar capitulos'!$A$2:$M$68,13,FALSE) -> 2.4 | W77: 12 | Y77: 310 | AF77: 8 | AG77: 15 | AH77: 21 | AI77: 45 | AK77: 27 | AL77: 25 | AQ77: 13 | AR77: 24 | AT77: 19 | AU77: 16 | AV77: 40 | AW77: 17 | AX77: 40
A78: 52 | C78: =IF(W78="",V78,CONCATENATE(V78,".",W78)) -> 3 | D78: ARQUITECTURA Y PAISAJISMO | U78: ARQUITECTURA Y PAISAJISMO | V78: =VLOOKUP(U78,'auxiliar capitulos'!$A$2:$M$68,13,FALSE) -> 3 | Y78: =SUM(Z78:CJ78) -> 0
A79: 53 | C79: =IF(W79="",V79,CONCATENATE(V79,".",W79)) -> 3.1 | D79: MAMPOSTERIA Y ACABADOS ARQUITECTONICOS | U79: MAMPOSTERIA Y ACABADOS ARQUITECTONICOS | V79: =VLOOKUP(U79,'auxiliar capitulos'!$A$2:$M$68,13,FALSE) -> 3.1 | Y79: =SUM(Z79:CJ79) -> 0
A80: 54 | C80: 3.1.1 | D80: =+'auxiliar capitulos'!A20 -> MAMPOSTERÍA MUROS DIVISORIOS | U80: =+$D$80 -> MAMPOSTERÍA MUROS DIVISORIOS | V80: =VLOOKUP(U80,'auxiliar capitulos'!$A$2:$M$68,13,FALSE) -> 3.1.1 | W80: =IF(E80="","",IF(#REF!="",1,#REF!+1)) ->  | Y80: 0
A81: 55 | B81: ARQ101 | C81: 3.1.1.1 | D81: =VLOOKUP(B81,'Listado Ins Ana'!$G$3966:$M$8318,2,FALSE) -> MAMPOSTERIA EN BLOQUE DE CONCRETO 12X19X39, REVITADO, Y RANURADO CADA 5 HILADAS, INCLUYE MORTERO DE PEGA PREMEZCLADO , TIPO INDURAL O SIMILAR EQUIVALENTE. | E81: =VLOOKUP(B81,'Listado Ins Ana'!$G$3966:$M$8318,3,FALSE) -> M2 | F81: =+Y81 -> 2393.54 | G81: =VLOOKUP(B81,'Listado Ins Ana'!$G$3966:$M$8318,4,FALSE) -> 1 | H81: =ROUND(G81*(1+$F$867),0) -> 1 | I81: =ROUND(H81*F81,0) -> 2394 | K81: =+I81 -> 2394 | O81: 1 | S81: =VLOOKUP(B81,'Listado Ins Ana'!$G$3966:$J$100621,4,FALSE)-G81 -> 0 | U81: MAMPOSTERÍA MUROS DIVISORIOS | V81: =VLOOKUP(U81,'auxiliar capitulos'!$A$2:$M$68,13,FALSE) -> 3.1.1 | W81: =IF(E81="","",IF(E80="",1,W80+1)) -> 1 | Y81: 2393.54 | Z81: 224 | AA81: 1242.75 | AB81: 926.79
A82: 56 | B82: ARQ102 | C82: 3.1.1.2 | D82: =VLOOKUP(B82,'Listado Ins Ana'!$G$3966:$M$8318,2,FALSE) -> SUMINISTRO, TRANSPORTE E INSTALACIÓN MURO EN PLACA DE TABLA YESO ½” TIPO DRYWALL, GYPLAC, O SIMILAR EQUIVALENTE, MASILLADO Y PINTADO COLOR BLANCO. INCLUYE: PERFILERÍA GALVANIZADA PARA SOPORTE, CHAZOS, CINTAS DE UNIÓN O ENSAMBLE ENTRE ELEMENTOS, CORTES, FILETES Y TODO LO NECESARIO PARA SU CORRECTA INSTALACIÓN Y ACABADO ESTÉTICO. | E82: =VLOOKUP(B82,'Listado Ins Ana'!$G$3966:$M$8318,3,FALSE) -> M2 | F82: 1295.07 | G82: =VLOOKUP(B82,'Listado Ins Ana'!$G$3966:$M$8318,4,FALSE) -> 67626 | H82: =ROUND(G82*(1+$F$867),0) -> 87010 | I82: =ROUND(H82*F82,0) -> 112684041 | K82: =+I82 -> 112684041 | O82: 1 | S82: =VLOOKUP(B82,'Listado Ins Ana'!$G7716:$J100686,4,FALSE)-G82 -> 0 | U82: MAMPOSTERÍA MUROS DIVISORIOS | V82: =VLOOKUP(U82,'auxiliar capitulos'!$A$2:$M$68,13,FALSE) -> 3.1.1 | W82: 2 | Y82: 1295.07 | Z82: 586.17 | AA82: 586.4 | AB82: 122.5
A83: 56 | B83: 5371 | C83: 3.1.1.3 | D83: =VLOOKUP(B83,'Listado Ins Ana'!$G$3966:$M$8318,2,FALSE) -> MURO EN LADRILLO TOLETE COMUN. | E83: =VLOOKUP(B83,'Listado Ins Ana'!$G$3966:$M$8318,3,FALSE) -> M2 | F83: 6.03 | G83: =VLOOKUP(B83,'Listado Ins Ana'!$G$3966:$M$8318,4,FALSE) -> 49824 | H83: =ROUND(G83*(1+$F$867),0) -> 64106 | I83: =ROUND(H83*F83,0) -> 386559 | K83: =+I83 -> 386559 | O83: 1 | S83: =VLOOKUP(B83,'Listado Ins Ana'!$G7718:$J100688,4,FALSE)-G83 ->  | U83: MAMPOSTERÍA MUROS DIVISORIOS | V83: =VLOOKUP(U83,'auxiliar capitulos'!$A$2:$M$68,13,FALSE) -> 3.1.1 | W83: 3 | Y83: 6.03 | AA83: 3.96 | AB83: 2.07
A84: 55 | B84: ARQ103 | C84: 3.1.1.4 | D84: =VLOOKUP(B84,'Listado Ins Ana'!$G$3966:$M$8318,2,FALSE) -> M2 - MAMPOSTERIA EN BLOQUE DE CONCRETO 14X19X39 TIPO KREATO SIMILAR EQUIVALENTE, REVITADO Y RANURADO CADA 5 HILADAS; PAÑETADO 1:4 ESTUCADO Y PINTADO AL INTERIOR DE LOS ESPACIOS (UNA UNA SOLA CARA) Y CARA EXTERNA BLOQUE A LA VISTA, SIMILAR O EQUIVALENTE | E84: =VLOOKUP(B84,'Listado Ins Ana'!$G$3966:$M$8318,3,FALSE) -> M2 | F84: 1473.72 | G84: =VLOOKUP(B84,'Listado Ins Ana'!$G$3966:$M$8318,4,FALSE) -> 1 | H84: =ROUND(G84*(1+$F$867),0) -> 1 | I84: =ROUND(H84*F84,0) -> 1474 | K84: =+I84 -> 1474 | O84: 1 | S84: =VLOOKUP(B84,'Listado Ins Ana'!$G$3966:$J$100621,4,FALSE)-G84 -> 0 | U84: MAMPOSTERÍA MUROS DIVISORIOS | V84: =VLOOKUP(U84,'auxiliar capitulos'!$A$2:$M$68,13,FALSE) -> 3.1.1 | W84: 4 | Y84: 1473.72 | Z84: 429 | AA84: 701.49 | AB84: 343.23
A85: 56 | B85: ARQ104 | C85: 3.1.1.5 | D85: =VLOOKUP(B85,'Listado Ins Ana'!$G$3966:$M$8318,2,FALSE) -> M3 - MAMPOSTERIA EN BLOQUE DE CONCRETO 14X19X39 TIPO KREATO SIMILAR EQUIVALENTE, REVITADO Y RANURADO CADA 5 HILADAS; PAÑETADO 1:4 ESTUCADO Y PINTADO (AMBAS CARAS), SIMILAR O EQUIVALENTE | E85: =VLOOKUP(B85,'Listado Ins Ana'!$G$3966:$M$8318,3,FALSE) -> M2 | F85: 610.57 | G85: =VLOOKUP(B85,'Listado Ins Ana'!$G$3966:$M$8318,4,FALSE) -> 1 | H85: =ROUND(G85*(1+$F$867),0) -> 1 | I85: =ROUND(H85*F85,0) -> 611 | K85: =+I85 -> 611 | O85: 1 | S85: =VLOOKUP(B85,'Listado Ins Ana'!$G7713:$J100683,4,FALSE)-G85 -> 0 | U85: MAMPOSTERÍA MUROS DIVISORIOS | V85: =VLOOKUP(U85,'auxiliar capitulos'!$A$2:$M$68,13,FALSE) -> 3.1.1 | W85: 5 | Y85: 610.57 | Z85: 264 | AA85: 200.79 | AB85: 145.78
B86: ARQ105 | C86: 3.1.1.6 | D86: =VLOOKUP(B86,'Listado Ins Ana'!$G$3966:$M$8318,2,FALSE) -> M4 - MAMPOSTERIA EN BLOQUE DE CONCRETO 14X19X39 TIPO KREATO SIMILAR EQUIVALENTE, REVITADO Y RANURADO CADA 5 HILADAS; PAÑETADO 1:4 ESTUCADO Y PINTADO VINILO VINILTEX CORONA MAS ENCHAPE EN CERAMICA CORONA REF EGEO BLANCO DE 30X60 SIMILAR EQUIVALENTE INSTALACION HORIZONTAL. (EN UNA SOLA CARA) Y CARA EXTERNA BLOQUE A LA VISTA, SIMILAR O EQUIVALENTE | E86: =VLOOKUP(B86,'Listado Ins Ana'!$G$3966:$M$8318,3,FALSE) -> M2 | F86: 10.75 | G86: =VLOOKUP(B86,'Listado Ins Ana'!$G$3966:$M$8318,4,FALSE) -> 1 | U86: MAMPOSTERÍA MUROS DIVISORIOS | V86: =VLOOKUP(U86,'auxiliar capitulos'!$A$2:$M$68,13,FALSE) -> 3.1.1 | W86: 6 | Y86: 10.75 | AB86: 10.75
A87: 56 | B87: ARQ106 | C87: 3.1.1.7 | D87: =VLOOKUP(B87,'Listado Ins Ana'!$G$3966:$M$8318,2,FALSE) -> M5 - MAMPOSTERIA EN BLOQUE DE CONCRETO 14X19X39 TIPO KREATO SIMILAR EQUIVALENTE, REVITADO Y RANURADO CADA 5 HILADAS; PAÑETADO MAS ENCHAPE EN CERAMICA CORONA REF EGEO BLANCO DE 30X60 SIMILAR EQUIVALENTE INSTALACION HORIZONTAL. (EN UNA SOLA CARA) Y CARA EXTERNA BLOQUE A LA VISTA, SIMILAR O EQUIVALENTE | E87: =VLOOKUP(B87,'Listado Ins Ana'!$G$3966:$M$8318,3,FALSE) -> M2 | F87: 708.46 | G87: =VLOOKUP(B87,'Listado Ins Ana'!$G$3966:$M$8318,4,FALSE) -> 1 | H87: =ROUND(G87*(1+$F$867),0) -> 1 | I87: =ROUND(H87*F87,0) -> 708 | K87: =+I87 -> 708 | O87: 1 | S87: =VLOOKUP(B87,'Listado Ins Ana'!$G7715:$J100685,4,FALSE)-G87 -> 0 | U87: MAMPOSTERÍA MUROS DIVISORIOS | V87: =VLOOKUP(U87,'auxiliar capitulos'!$A$2:$M$68,13,FALSE) -> 3.1.1 | W87: 7 | Y87: 708.46 | Z87: 175 | AA87: 344.34 | AB87: 189.12
A88: 55 | B88: ARQ107 | C88: 3.1.1.8 | D88: =VLOOKUP(B88,'Listado Ins Ana'!$G$3966:$M$8318,2,FALSE) -> M6 - MAMPOSTERIA EN BLOQUE DE CONCRETO 14X19X39 TIPO KREATO SIMILAR EQUIVALENTE, REVITADO Y RANURADO CADA 5 HILADAS; PAÑETADO MAS ENCHAPE EN CERAMICA CORONA REF EGEO BLANCO DE 30X60 SIMILAR EQUIVALENTE INSTALACION HORIZONTAL. (EN AMBAS CARAS), SIMILAR O EQUIVALENTE. | E88: =VLOOKUP(B88,'Listado Ins Ana'!$G$3966:$M$8318,3,FALSE) -> M2 | F88: 257.48 | G88: =VLOOKUP(B88,'Listado Ins Ana'!$G$3966:$M$8318,4,FALSE) -> 1 | H88: 1 | I88: 257 | K88: 257 | O88: 1 | S88: =VLOOKUP(B88,'Listado Ins Ana'!$G$3966:$J$100621,4,FALSE)-G88 -> 0 | U88: MAMPOSTERÍA MUROS DIVISORIOS | V88: =VLOOKUP(U88,'auxiliar capitulos'!$A$2:$M$68,13,FALSE) -> 3.1.1 | W88: 8 | Y88: 257.48 | Z88: 66 | AA88: 130.8 | AB88: 60.68
A89: 55 | B89: ARQ108 | C89: 3.1.1.9 | D89: =VLOOKUP(B89,'Listado Ins Ana'!$G$3966:$M$8318,2,FALSE) -> M8 - ZÓCALO EN CONCRETO 0.15 X 0.15, | E89: =VLOOKUP(B89,'Listado Ins Ana'!$G$3966:$M$8318,3,FALSE) -> M | F89: 186.67 | G89: =VLOOKUP(B89,'Listado Ins Ana'!$G$3966:$M$8318,4,FALSE) -> 1 | H89: 1 | I89: 187 | K89: 187 | O89: 1 | S89: =VLOOKUP(B89,'Listado Ins Ana'!$G$3966:$J$100621,4,FALSE)-G89 -> 0 | U89: MAMPOSTERÍA MUROS DIVISORIOS | V89: =VLOOKUP(U89,'auxiliar capitulos'!$A$2:$M$68,13,FALSE) -> 3.1.1 | W89: 9 | Y89: 186.67 | Z89: 186.67
A90: 55 | B90: ARQ109 | C90: 3.1.1.10 | D90: =VLOOKUP(B90,'Listado Ins Ana'!$G$3966:$M$8318,2,FALSE) -> M14 - MAMPOSTERIA EN BLOQUE DE CONCRETO 14X19X39 TIPO KREATO SIMILAR EQUIVALENTE, REVITADO Y RANURADO CADA 5 HILADAS; PAÑETADO MAS ENCHAPE EN CERAMICA CORONA REF EGEO BLANCO DE 30X60. SIMILAR EQUIVALENTE INSTALACION HORIZONTAL. (EN UNA SOLA CARA) Y CARA PAÑETADO 1:4 ESTUCADO Y PINTADO VINILO VINILTEX | E90: =VLOOKUP(B90,'Listado Ins Ana'!$G$3966:$M$8318,3,FALSE) -> M2 | F90: 201.75 | G90: =VLOOKUP(B90,'Listado Ins Ana'!$G$3966:$M$8318,4,FALSE) -> 1 | H90: 1 | I90: 202 | K90: 202 | O90: 1 | S90: =VLOOKUP(B90,'Listado Ins Ana'!$G$3966:$J$100621,4,FALSE)-G90 -> 0 | U90: MAMPOSTERÍA MUROS DIVISORIOS | V90: =VLOOKUP(U90,'auxiliar capitulos'!$A$2:$M$68,13,FALSE) -> 3.1.1 | W90: 10 | Y90: 201.75 | Z90: 94 | AA90: 50.15 | AB90: 57.6
A91: 56 | B91: ARQ110 | C91: 3.1.1.11 | D91: =VLOOKUP(B91,'Listado Ins Ana'!$G$3966:$M$8318,2,FALSE) -> M17 ENCHAPE EN CERÁMICA EGEO COLOR BLANCO DE 30X60 (INCLUYE SUMINISTRO E INSTALACIÓN HORIZONTAL), O SIMILAR EQUIVALENTE. | E91: =VLOOKUP(B91,'Listado Ins Ana'!$G$3966:$M$8318,3,FALSE) -> M2 | F91: 99.21 | G91: =VLOOKUP(B91,'Listado Ins Ana'!$G$3966:$M$8318,4,FALSE) -> 1 | H91: 1 | I91: 99 | K91: 99 | O91: 1 | S91: =VLOOKUP(B91,'Listado Ins Ana'!$G7719:$J100689,4,FALSE)-G91 -> 0 | U91: MAMPOSTERÍA MUROS DIVISORIOS | V91: =VLOOKUP(U91,'auxiliar capitulos'!$A$2:$M$68,13,FALSE) -> 3.1.1 | W91: 11 | Y91: 99.21 | Z91: 46 | AA91: 45 | AB91: 8.21
A92: 56 | B92: ARQ111 | C92: 3.1.1.12 | D92: =VLOOKUP(B92,'Listado Ins Ana'!$G$3966:$M$8318,2,FALSE) -> M19 | E92: =VLOOKUP(B92,'Listado Ins Ana'!$G$3966:$M$8318,3,FALSE) -> M2 | F92: 46.55 | G92: =VLOOKUP(B92,'Listado Ins Ana'!$G$3966:$M$8318,4,FALSE) -> 1 | H92: 1 | I92: 47 | K92: 47 | O92: 1 | S92: =VLOOKUP(B92,'Listado Ins Ana'!$G7720:$J100690,4,FALSE)-G92 -> 0 | U92: MAMPOSTERÍA MUROS DIVISORIOS | V92: =VLOOKUP(U92,'auxiliar capitulos'!$A$2:$M$68,13,FALSE) -> 3.1.1 | W92: 12 | Y92: 46.55 | Z92: 24 | AA92: 10.48 | AB92: 12.07
A93: 55 | B93: ARQ112 | C93: 3.1.1.13 | D93: =VLOOKUP(B93,'Listado Ins Ana'!$G$3966:$M$8318,2,FALSE) -> M20 | E93: =VLOOKUP(B93,'Listado Ins Ana'!$G$3966:$M$8318,3,FALSE) -> M2 | F93: 1066.75 | G93: =VLOOKUP(B93,'Listado Ins Ana'!$G$3966:$M$8318,4,FALSE) -> 1 | H93: 1 | I93: 1067 | K93: 1067 | O93: 1 | S93: =VLOOKUP(B93,'Listado Ins Ana'!$G$3966:$J$100621,4,FALSE)-G93 -> 0 | U93: MAMPOSTERÍA MUROS DIVISORIOS | V93: =VLOOKUP(U93,'auxiliar capitulos'!$A$2:$M$68,13,FALSE) -> 3.1.1 | W93: 13 | Y93: 1066.75 | Z93: 287 | AA93: 538.33 | AB93: 241.42
A94: 56 | B94: ARQ113 | C94: 3.1.1.14 | D94: =VLOOKUP(B94,'Listado Ins Ana'!$G$3966:$M$8318,2,FALSE) -> M23 | E94: =VLOOKUP(B94,'Listado Ins Ana'!$G$3966:$M$8318,3,FALSE) -> M2 | F94: 9.65 | G94: =VLOOKUP(B94,'Listado Ins Ana'!$G$3966:$M$8318,4,FALSE) -> 1 | H94: 1 | I94: 10 | K94: 10 | O94: 1 | S94: =VLOOKUP(B94,'Listado Ins Ana'!$G7722:$J100692,4,FALSE)-G94 -> 0 | U94: MAMPOSTERÍA MUROS DIVISORIOS | V94: =VLOOKUP(U94,'auxiliar capitulos'!$A$2:$M$68,13,FALSE) -> 3.1.1 | W94: 14 | Y94: 9.65 | Z94: 1 | AA94: 8.13 | AB94: 0.52
A95: 56 | B95: ARQ115 | C95: 3.1.1.15 | D95: =VLOOKUP(B95,'Listado Ins Ana'!$G$3966:$M$8318,2,FALSE) -> TBD MURRO PROPUESTA CONCRETO | E95: =VLOOKUP(B95,'Listado Ins Ana'!$G$3966:$M$8318,3,FALSE) -> M2 | F95: 71.31 | G95: =VLOOKUP(B95,'Listado Ins Ana'!$G$3966:$M$8318,4,FALSE) -> 1 | H95: 1 | I95: 71 | K95: 71 | O95: 1 | S95: =VLOOKUP(B95,'Listado Ins Ana'!$G7724:$J100694,4,FALSE)-G95 -> 0 | U95: MAMPOSTERÍA MUROS DIVISORIOS | V95: =VLOOKUP(U95,'auxiliar capitulos'!$A$2:$M$68,13,FALSE) -> 3.1.1 | W95: 15 | Y95: 71.31 | Z95: 71.31
A96: 57 | C96: 3.1.2 | D96: =+'auxiliar capitulos'!$A$21 -> REFORZAMIENTO MAMPOSTERÍA EN CONCRETO | U96: =+'auxiliar capitulos'!$A$21 -> REFORZAMIENTO MAMPOSTERÍA EN CONCRETO | V96: =VLOOKUP(U96,'auxiliar capitulos'!$A$2:$M$68,13,FALSE) -> 3.1.2 | Y96: 0
A97: 58 | B97: ARQ201 | C97: 3.1.2.1 | D97: =VLOOKUP(B97,'Listado Ins Ana'!$G$3966:$M$8318,2,FALSE) -> CONSTRUCCIÓN DE DOVELA FUNDIDA EN GROUTING 3000PSI PARA MAMPOSTERÍA ESTRUCTURAL INCLUYE ANCLAJE DE 1/2" , VENTANA DE INSPECCIÓN, INCLUYE ACERO DE REFUERZO , SEGÚN NORMA NSR-10 | E97: =VLOOKUP(B97,'Listado Ins Ana'!$G$3966:$M$8318,3,FALSE) -> M3 | F97: =+Y97 -> 0 | G97: =VLOOKUP(B97,'Listado Ins Ana'!$G$3966:$M$8318,4,FALSE) -> 0 | H97: =ROUND(G97*(1+$F$867),0) -> 0 | I97: =ROUND(H97*F97,0) -> 0 | K97: =+I97 -> 0 | N97: No se calculó cantidad para este ítem. Se solicita confirmar que este íem no aplica. | O97: 1 | S97: =VLOOKUP(B97,'Listado Ins Ana'!$G7716:$J100813,4,FALSE)-G97 -> 0 | U97: =+'auxiliar capitulos'!$A$21 -> REFORZAMIENTO MAMPOSTERÍA EN CONCRETO | V97: =VLOOKUP(U97,'auxiliar capitulos'!$A$2:$M$68,13,FALSE) -> 3.1.2 | W97: 1 | Y97: 0
A98: 59 | C98: 3.1.3 | D98: =+'auxiliar capitulos'!$A$22 -> PAÑETES, ENCHAPES Y PINTURAS | U98: =+'auxiliar capitulos'!$A$22 -> PAÑETES, ENCHAPES Y PINTURAS | V98: =VLOOKUP(U98,'auxiliar capitulos'!$A$2:$M$68,13,FALSE) -> 3.1.3 | Y98: 0
A99: 60 | B99: 5642 | C99: 3.1.3.1 | D99: =VLOOKUP(B99,'Listado Ins Ana'!$G$3966:$M$8318,2,FALSE) -> PAÑETE LISO O RÚSTICO 1:4 PARA MUROS. LAVADO O RÚSTICO. (INCLUYE SUMINISTRO E INSTALACIÓN) | E99: =VLOOKUP(B99,'Listado Ins Ana'!$G$3966:$M$8318,3,FALSE) -> M2 | F99: =+Y99 -> 2093.56 | G99: =VLOOKUP(B99,'Listado Ins Ana'!$G$3966:$M$8318,4,FALSE) -> 15863 | H99: =ROUND(G99*(1+$F$867),0) -> 20410 | I99: =ROUND(H99*F99,0) -> 42729560 | K99: =+I99 -> 42729560 | O99: 1 | S99: =VLOOKUP(B99,'Listado Ins Ana'!$G$3966:$J$100621,4,FALSE)-G99 -> 0 | U99: =+'auxiliar capitulos'!$A$22 -> PAÑETES, ENCHAPES Y PINTURAS | V99: =VLOOKUP(U99,'auxiliar capitulos'!$A$2:$M$68,13,FALSE) -> 3.1.3 | W99: 1 | Y99: 2093.56 | Z99: 579.42 | AA99: 1058.55 | AB99: 455.59
A100: 61 | B100: ARQ301 | C100: 3.1.3.2 | D100: =VLOOKUP(B100,'Listado Ins Ana'!$G$3966:$M$8318,2,FALSE) -> MORTERO IMPERMEABILIZANTE DE NIVELACIÓN PARA PISO (PISOS DE BAÑOS, COCINAS, ZONAS HUMEDAS, Y VIGAS CANAL ) TIPO SIKATOP SEAL-107 , O SIMILAR EQUIVALENTE. INCLUYE SUMINISTRO E INSTALACIÓN. | E100: =VLOOKUP(B100,'Listado Ins Ana'!$G$3966:$M$8318,3,FALSE) -> M2 | F100: 0 | G100: =VLOOKUP(B100,'Listado Ins Ana'!$G$3966:$M$8318,4,FALSE) -> 15252.3 | H100: 19624 | I100: 0 | K100: 0 | O100: 1 | S100: =VLOOKUP(B100,'Listado Ins Ana'!$G$3966:$J$100621,4,FALSE)-G100 -> 0 | U100: =+'auxiliar capitulos'!$A$22 -> PAÑETES, ENCHAPES Y PINTURAS | V100: =VLOOKUP(U100,'auxiliar capitulos'!$A$2:$M$68,13,FALSE) -> 3.1.3 | W100: 2 | Y100: 0
A101: 62 | B101: ARQ302 | C101: 3.1.3.3 | D101: =VLOOKUP(B101,'Listado Ins Ana'!$G$3966:$M$8318,2,FALSE) -> MORTERO IMPERMEABILIZANTE PARA PAREDES ( BAÑOS, COCINAS, ZONAS HUMEDAS, Y VIGAS CANAL ) TIPO SIKATOP SEAL-107 , O SIMILAR EQUIVALENTE. INCLUYE SUMINISTRO E INSTALACIÓN. | E101: =VLOOKUP(B101,'Listado Ins Ana'!$G$3966:$M$8318,3,FALSE) -> M2 | F101: 3356 | G101: =VLOOKUP(B101,'Listado Ins Ana'!$G$3966:$M$8318,4,FALSE) -> 15252.3 | H101: 19624 | I101: 65858144 | K101: 65858144 | O101: 1 | S101: =VLOOKUP(B101,'Listado Ins Ana'!$G$3966:$J$100621,4,FALSE)-G101 -> 0 | U101: =+'auxiliar capitulos'!$A$22 -> PAÑETES, ENCHAPES Y PINTURAS | V101: =VLOOKUP(U101,'auxiliar capitulos'!$A$2:$M$68,13,FALSE) -> 3.1.3 | W101: 3 | Y101: 3356 | Z101: 1483 | AA101: 1873
A102: 63 | B102: 8184 | C102: 3.1.3.4 | D102: =VLOOKUP(B102,'Listado Ins Ana'!$G$3966:$M$8318,2,FALSE) -> ESTUCO PLASTICO EN MUROS (INCLUYE SUMINISTRO E INSTALACIÓN). | E102: =VLOOKUP(B102,'Listado Ins Ana'!$G$3966:$M$8318,3,FALSE) -> M2 | F102: 884.8 | G102: =VLOOKUP(B102,'Listado Ins Ana'!$G$3966:$M$8318,4,FALSE) -> 5726 | H102: 7367 | I102: 6518322 | K102: 6518322 | O102: 1 | S102: =VLOOKUP(B102,'Listado Ins Ana'!$G$3966:$J$100621,4,FALSE)-G102 -> 0 | U102: =+'auxiliar capitulos'!$A$22 -> PAÑETES, ENCHAPES Y PINTURAS | V102: =VLOOKUP(U102,'auxiliar capitulos'!$A$2:$M$68,13,FALSE) -> 3.1.3 | W102: 4 | Y102: 884.8 | Z102: 182.28 | AA102: 553.85 | AB102: 148.67
A103: 64 | B103: 5370 | C103: 3.1.3.5 | D103: =VLOOKUP(B103,'Listado Ins Ana'!$G$3966:$M$8318,2,FALSE) -> PINTURA VINILO TIPO 1 (2 MANOS). | E103: =VLOOKUP(B103,'Listado Ins Ana'!$G$3966:$M$8318,3,FALSE) -> M2 | F103: 2305.38 | G103: =VLOOKUP(B103,'Listado Ins Ana'!$G$3966:$M$8318,4,FALSE) -> 8950 | H103: 11515 | I103: 26546451 | K103: 26546451 | N103: No se calculó cantidad para este ítem. Se solicita confirmar que este íem no aplica. | O103: 1 | S103: =VLOOKUP(B103,'Listado Ins Ana'!$G$3966:$J$100621,4,FALSE)-G103 -> 0 | U103: =+'auxiliar capitulos'!$A$22 -> PAÑETES, ENCHAPES Y PINTURAS | V103: =VLOOKUP(U103,'auxiliar capitulos'!$A$2:$M$68,13,FALSE) -> 3.1.3 | W103: 5 | Y103: 2305.38 | Z103: 1078 | AA103: 1227.38
A104: 65 | B104: ARQ303 | C104: 3.1.3.6 | D104: =VLOOKUP(B104,'Listado Ins Ana'!$G$3966:$M$8318,2,FALSE) -> ENCHAPE EN CERÁMICA EGEO COLOR BLANCO DE 30X60 (INCLUYE SUMINISTRO E INSTALACIÓN HORIZONTAL), O SIMILAR EQUIVALENTE. | E104: =VLOOKUP(B104,'Listado Ins Ana'!$G$3966:$M$8318,3,FALSE) -> M2 | F104: 1208.76 | G104: =VLOOKUP(B104,'Listado Ins Ana'!$G$3966:$M$8318,4,FALSE) -> 80147 | H104: 103120 | I104: 124647331 | K104: 124647331 | N104: No se calculó cantidad para este ítem. Se solicita confirmar que este íem no aplica. | O104: 1 | S104: =VLOOKUP(B104,'Listado Ins Ana'!$G$3966:$J$100621,4,FALSE)-G104 -> 0 | U104: =+'auxiliar capitulos'!$A$22 -> PAÑETES, ENCHAPES Y PINTURAS | V104: =VLOOKUP(U104,'auxiliar capitulos'!$A$2:$M$68,13,FALSE) -> 3.1.3 | W104: 6 | Y104: 1208.76 | Z104: 397.14 | AA104: 504.7 | AB104: 306.92
A105: 66 | B105: ARQ304 | C105: 3.1.3.7 | D105: =VLOOKUP(B105,'Listado Ins Ana'!$G$3966:$M$8318,2,FALSE) -> MESÓN EN GRANITO NEGRO SAN GABRIEL NACIONAL CON REGRUESE HACIA LA CARA FRONTAL, E=4CM. (SUMINISTRO E INSTALACIÓN), O SIMILAR EQUIVALENTE. | E105: =VLOOKUP(B105,'Listado Ins Ana'!$G$3966:$M$8318,3,FALSE) -> ML | F105: 20 | G105: =VLOOKUP(B105,'Listado Ins Ana'!$G$3966:$M$8318,4,FALSE) -> 0 | H105: 0 | I105: 0 | K105: 0 | N105: No se calculó cantidad para este ítem. Se solicita confirmar que este íem no aplica. | O105: 1 | S105: =VLOOKUP(B105,'Listado Ins Ana'!$G$3966:$J$100621,4,FALSE)-G105 -> 0 | U105: =+'auxiliar capitulos'!$A$22 -> PAÑETES, ENCHAPES Y PINTURAS | V105: =VLOOKUP(U105,'auxiliar capitulos'!$A$2:$M$68,13,FALSE) -> 3.1.3 | W105: 7 | Y105: 20 | Z105: 7 | AA105: 8 | AB105: 5
A106: 67 | B106: 5647 | C106: 3.1.3.8 | D106: =VLOOKUP(B106,'Listado Ins Ana'!$G$3966:$M$8318,2,FALSE) -> PINTURA CIELO FALSO (INCLUYE SUMINISTRO E INSTALACIÓN). | E106: =VLOOKUP(B106,'Listado Ins Ana'!$G$3966:$M$8318,3,FALSE) -> M2 | F106: 0 | G106: =VLOOKUP(B106,'Listado Ins Ana'!$G$3966:$M$8318,4,FALSE) -> 9194 | H106: 11829 | I106: 0 | K106: 0 | N106: No se calculó cantidad para este ítem. Se solicita confirmar que este íem no aplica. | O106: 1 | S106: =VLOOKUP(B106,'Listado Ins Ana'!$G$3966:$J$100621,4,FALSE)-G106 -> 0 | U106: =+'auxiliar capitulos'!$A$22 -> PAÑETES, ENCHAPES Y PINTURAS | V106: =VLOOKUP(U106,'auxiliar capitulos'!$A$2:$M$68,13,FALSE) -> 3.1.3 | W106: 8 | Y106: 0
A107: 68 | C107: 3.1.4 | D107: =+'auxiliar capitulos'!$A$23 -> PISOS EN CONCRETO | U107: =+'auxiliar capitulos'!$A$23 -> PISOS EN CONCRETO | V107: =VLOOKUP(U107,'auxiliar capitulos'!$A$2:$M$68,13,FALSE) -> 3.1.4 | W107: =IF(E107="","",IF(E99="",1,W99+1)) ->  | Y107: 0
A108: 69 | B108: ARQ401 | C108: 3.1.4.3 | D108: =VLOOKUP(B108,'Listado Ins Ana'!$G$3966:$M$8318,2,FALSE) -> PISO EN CONCRETO ESMALTADO Y ENDURECIDO DE F'C=3.000PSI - ESPESOR = 0.06M, PULIDO Y BRILLADO CON HELICÓPTERO, UTILIZAR ENDURECEDOR DE CUARZO SUPERFICIAL EN UNA PROPORCIÓN DE 4.0KG X M2 Y FIBRA DE FLEXA NYLON FIBER EN UNA DOSIS DE 600GRXM3, O SIMILAR EQUIVALENTE. | E108: =VLOOKUP(B108,'Listado Ins Ana'!$G$3966:$M$8318,3,FALSE) -> M2 | F108: =+Y108 -> 2882.41 | G108: =VLOOKUP(B108,'Listado Ins Ana'!$G$3966:$M$8318,4,FALSE) -> 62140 | H108: =ROUND(G108*(1+$F$867),0) -> 79952 | I108: =ROUND(H108*F108,0) -> 230454444 | K108: =+I108 -> 230454444 | N108: No se calculó cantidad para este ítem. Se solicita confirmar que este íem no aplica. | O108: 1 | S108: =VLOOKUP(B108,'Listado Ins Ana'!$G7716:$J100824,4,FALSE)-G108 -> 0 | U108: =+'auxiliar capitulos'!$A$23 -> PISOS EN CONCRETO | V108: =VLOOKUP(U108,'auxiliar capitulos'!$A$2:$M$68,13,FALSE) -> 3.1.4 | W108: =IF(E108="","",IF(E100="",1,W100+1)) -> 3 | Y108: 2882.41 | Z108: 257.3 | AA108: 539.11 | AB108: 2086
A109: 70 | C109: 3.1.5 | D109: =+'auxiliar capitulos'!$A$24 -> ACABADOS EN PISOS | U109: =+'auxiliar capitulos'!$A$24 -> ACABADOS EN PISOS | V109: =VLOOKUP(U109,'auxiliar capitulos'!$A$2:$M$68,13,FALSE) -> 3.1.5 | W109: =IF(E109="","",IF(E101="",1,W101+1)) ->  | Y109: 0
A110: 71 | B110: ARQ501 | C110: 3.1.5.1 | D110: =VLOOKUP(B110,'Listado Ins Ana'!$G$3966:$M$8318,2,FALSE) -> BALDOSA DE GRANITO DE MÁRMOL TIPO ALFA DE 0.30x0.30M - BLANCO HUILA FONDO BLANCO GRANO 1, QUE CUMPLA CON LAS NORMAS NTC 2849 Y TRÁFICO INTENSO. INSTALACIÓN SEGÚN ESPECIFICACIONES DEL FABRICANTE. INCLUYE MORTERO DE NIVELACIÓN DE ESPESOR MEDIO 0.03M Y MORTERO DE AFINADO, MORTERO DE PEGA, COLOCACIÓN DE PIEZAS, CORTE DE PIEZAS, TRATAMIENTO DE JUNTAS CADA 6x6 PIEZAS, O SIMILAR EQUIVALENTE. INCLUYE SUMINISTRO, TRANSPORTE, INSTALACIÓN , DESTRONQUE, PULIDA Y BRILLADA. | E110: =VLOOKUP(B110,'Listado Ins Ana'!$G$3966:$M$8318,3,FALSE) -> M2 | F110: =+Y110 -> 7751.84 | G110: =VLOOKUP(B110,'Listado Ins Ana'!$G$3966:$M$8318,4,FALSE) -> 142822 | H110: =ROUND(G110*(1+$F$867),0) -> 183760 | I110: =ROUND(H110*F110,0) -> 1424478118 | K110: =+I110 -> 1424478118 | O110: 1 | S110: =VLOOKUP(B110,'Listado Ins Ana'!$G7716:$J100633,4,FALSE)-G110 -> 0 | U110: =+'auxiliar capitulos'!$A$24 -> ACABADOS EN PISOS | V110: =VLOOKUP(U110,'auxiliar capitulos'!$A$2:$M$68,13,FALSE) -> 3.1.5 | W110: =IF(E110="","",IF(E109="",1,W109+1)) -> 1 | Y110: 7751.84 | Z110: =123.4+1741.83 -> 1865.23 | AA110: =150.44+3478.17 -> 3628.61 | AB110: =311+1947 -> 2258
A111: 72 | B111: ARQ502 | C111: =IF(W111="",V111,CONCATENATE(V111,".",W111)) -> 3.1.5.2 | D111: =VLOOKUP(B111,'Listado Ins Ana'!$G$3966:$M$8318,2,FALSE) -> PISO TÉCNICO ELEVADO (≤60CM) PARA ÁREA DE CUARTO DE CONTROL Y POTENCIA. COLOR Y DIMENSIONES ACORDE CON LOS PLANOS Y ESPECIFICACIONES TÉCNICAS DEL PROVEEDOR, O SIMILAR EQUIVALENTE. INCLUYE (COMPONENTES DEL SISTEMA, SUMINISTRO E INSTALACIÓN). | E111: =VLOOKUP(B111,'Listado Ins Ana'!$G$3966:$M$8318,3,FALSE) -> M2 | F111: 34.61 | G111: =VLOOKUP(B111,'Listado Ins Ana'!$G$3966:$M$8318,4,FALSE) -> 0 | H111: 0 | I111: 0 | K111: 0 | O111: 1 | S111: =VLOOKUP(B111,'Listado Ins Ana'!$G$3966:$J$100621,4,FALSE)-G111 -> 0 | U111: =+'auxiliar capitulos'!$A$24 -> ACABADOS EN PISOS | V111: =VLOOKUP(U111,'auxiliar capitulos'!$A$2:$M$68,13,FALSE) -> 3.1.5 | W111: 2 | Y111: =SUM(Z111:CJ111) -> 34.61 | Z111: 12 | AA111: 10.61 | AB111: 12
A112: 73 | B112: ARQ503 | C112: 3.1.5.3 | D112: =VLOOKUP(B112,'Listado Ins Ana'!$G$3966:$M$8318,2,FALSE) -> PISO EN REJILLA METÁLICA TIPO INDUSTRIAL PESADO DE CONFIGURACIÓN 1"X1", PARA PLATAFORMAS Y DESCANSOS DE ESCALERAS DE MANTENIMIENTO, SEGÚN ESPECIFICACIONES Y RECOMEDACIÓN TÉCNICAS DEL PROVEEDOR , INCLUYE (SUMINISTRO, REJILLAS, ESTRUCTURAS DE APOYO , FIJACIONES , ACCESORIOS E INSTALACIÓN), O SIMILAR EQUIVALENTE. | E112: =VLOOKUP(B112,'Listado Ins Ana'!$G$3966:$M$8318,3,FALSE) -> M2 | F112: 33.38 | G112: =VLOOKUP(B112,'Listado Ins Ana'!$G$3966:$M$8318,4,FALSE) -> 0 | H112: 0 | I112: 0 | K112: 0 | O112: 1 | S112: =VLOOKUP(B112,'Listado Ins Ana'!$G$3966:$J$100621,4,FALSE)-G112 -> 0 | U112: =+'auxiliar capitulos'!$A$24 -> ACABADOS EN PISOS | V112: =VLOOKUP(U112,'auxiliar capitulos'!$A$2:$M$68,13,FALSE) -> 3.1.5 | W112: 3 | Y112: 33.38 | Z112: 12 | AA112: 10.38 | AB112: 11
A113: 74 | B113: ARQ504 | C113: 3.1.5.4 | D113: =VLOOKUP(B113,'Listado Ins Ana'!$G$3966:$M$8318,2,FALSE) -> ZÓCALO EN CONCRETO DE 3000PSI, FUNDIDO EN SITIO 0,15 M x 0,21 M. INCLUYE ACERO DE REFUERZO. SUMINISTRO E INSTALACIÓN. | E113: =VLOOKUP(B113,'Listado Ins Ana'!$G$3966:$M$8318,3,FALSE) -> M | F113: 229.29 | G113: =VLOOKUP(B113,'Listado Ins Ana'!$G$3966:$M$8318,4,FALSE) -> 31981.16 | H113: 41148 | I113: 9434825 | K113: 9434825 | O113: 1 | S113: =VLOOKUP(B113,'Listado Ins Ana'!$G$3966:$J$100621,4,FALSE)-G113 -> 0 | U113: =+'auxiliar capitulos'!$A$24 -> ACABADOS EN PISOS | V113: =VLOOKUP(U113,'auxiliar capitulos'!$A$2:$M$68,13,FALSE) -> 3.1.5 | W113: 4 | Y113: 229.29 | Z113: 133.33 | AA113: 50.29 | AB113: 45.67
A114: 75 | B114: ARQ505 | C114: 3.1.5.5 | D114: =VLOOKUP(B114,'Listado Ins Ana'!$G$3966:$M$8318,2,FALSE) -> ZÓCALO EN CONCRETO DE 3000PSI, FUNDIDO EN SITIO 0,12 M x 0,21 M. INCLUYE ACERO DE REFUERZO. SUMINISTRO E INSTALACIÓN. | E114: =VLOOKUP(B114,'Listado Ins Ana'!$G$3966:$M$8318,3,FALSE) -> M | F114: 9.13 | G114: =VLOOKUP(B114,'Listado Ins Ana'!$G$3966:$M$8318,4,FALSE) -> 27313.22 | H114: 35142 | I114: 320846 | K114: 320846 | O114: 1 | S114: =VLOOKUP(B114,'Listado Ins Ana'!$G7716:$J100637,4,FALSE)-G114 -> 0 | U114: =+'auxiliar capitulos'!$A$24 -> ACABADOS EN PISOS | V114: =VLOOKUP(U114,'auxiliar capitulos'!$A$2:$M$68,13,FALSE) -> 3.1.5 | W114: 5 | Y114: 9.13 | AA114: 8.13 | AB114: 1
A115: 76 | B115: 5062 | C115: 3.1.5.6 | D115: =VLOOKUP(B115,'Listado Ins Ana'!$G$3966:$M$8318,2,FALSE) -> ZOCALO MEDIA CAÑA EN GRANITO PARA INTERIORES H=7.2CM (INCLUYE SUMINISTRO Y COLOCACIÓN DE MATERIAL DE PEGA) | E115: =VLOOKUP(B115,'Listado Ins Ana'!$G$3966:$M$8318,3,FALSE) -> ML | F115: 22.7 | G115: =VLOOKUP(B115,'Listado Ins Ana'!$G$3966:$M$8318,4,FALSE) -> 29597 | H115: 38081 | I115: 864439 | K115: 864439 | N115: No se calculó cantidad para este ítem. Se solicita confirmar que este íem no aplica. | O115: 1 | S115: =VLOOKUP(B115,'Listado Ins Ana'!$G$3966:$J$100621,4,FALSE)-G115 -> 0 | U115: =+'auxiliar capitulos'!$A$24 -> ACABADOS EN PISOS | V115: =VLOOKUP(U115,'auxiliar capitulos'!$A$2:$M$68,13,FALSE) -> 3.1.5 | W115: 6 | Y115: 22.7 | Z115: 13.87 | AB115: 8.83
A116: 77 | B116: ARQ506 | C116: 3.1.5.7 | D116: =VLOOKUP(B116,'Listado Ins Ana'!$G$3966:$M$8318,2,FALSE) -> GUARDA ESCOBA EN GRANITO BLANCO HUILA FONDO BLANCO GRANO 1 DE FORMATO 0.10 CM X 0.30 CM (INCLUYE SUMINISTRO E INSTALACIÓN), O SIMILAR EQUIVALENTE. | E116: =VLOOKUP(B116,'Listado Ins Ana'!$G$3966:$M$8318,3,FALSE) -> M | F116: 1750.24 | G116: =VLOOKUP(B116,'Listado Ins Ana'!$G$3966:$M$8318,4,FALSE) -> 30231.59 | H116: 38897 | I116: 68079085 | K116: 68079085 | N116: No se calculó cantidad para este ítem. Se solicita confirmar que este íem no aplica. | O116: 1 | S116: =VLOOKUP(B116,'Listado Ins Ana'!$G$3966:$J$100621,4,FALSE)-G116 -> 0 | U116: =+'auxiliar capitulos'!$A$24 -> ACABADOS EN PISOS | V116: =VLOOKUP(U116,'auxiliar capitulos'!$A$2:$M$68,13,FALSE) -> 3.1.5 | W116: 7 | Y116: 1750.24 | Z116: 220.15 | AA116: 1084.54 | AB116: 445.55
A117: 78 | B117: ARQ507 | C117: 3.1.5.8 | D117: =VLOOKUP(B117,'Listado Ins Ana'!$G$3966:$M$8318,2,FALSE) -> JUNTA METÁLICA CONSTRUCTIVA MULTIPROPÓSITO SERIE 400, TIPO DECODEPOT MODELO J471, O SIMILAR EQUIVALENTE. | E117: =VLOOKUP(B117,'Listado Ins Ana'!$G$3966:$M$8318,3,FALSE) -> ML | F117: 0 | G117: =VLOOKUP(B117,'Listado Ins Ana'!$G$3966:$M$8318,4,FALSE) -> 0 | H117: 0 | I117: 0 | K117: 0 | N117: No se calculó cantidad para este ítem. Se solicita confirmar que este íem no aplica. | O117: 1 | S117: =VLOOKUP(B117,'Listado Ins Ana'!$G7716:$J100640,4,FALSE)-G117 -> 0 | U117: =+'auxiliar capitulos'!$A$24 -> ACABADOS EN PISOS | V117: =VLOOKUP(U117,'auxiliar capitulos'!$A$2:$M$68,13,FALSE) -> 3.1.5 | W117: 8 | Y117: 0
A118: 79 | B118: ARQ508 | C118: 3.1.5.9 | D118: =VLOOKUP(B118,'Listado Ins Ana'!$G$3966:$M$8318,2,FALSE) -> JUNTA METÁLICA CONSTRUCTIVA MULTIPROPÓSITO SERIE 400, TIPO DECODEPOT MODELO J421, O SIMILAR EQUIVALENTE. | E118: =VLOOKUP(B118,'Listado Ins Ana'!$G$3966:$M$8318,3,FALSE) -> ML | F118: 0 | G118: =VLOOKUP(B118,'Listado Ins Ana'!$G$3966:$M$8318,4,FALSE) -> 0 | H118: 0 | I118: 0 | K118: 0 | N118: No se calculó cantidad para este ítem. Se solicita confirmar que este íem no aplica. | O118: 1 | S118: =VLOOKUP(B118,'Listado Ins Ana'!$G7716:$J100641,4,FALSE)-G118 -> 0 | U118: =+'auxiliar capitulos'!$A$24 -> ACABADOS EN PISOS | V118: =VLOOKUP(U118,'auxiliar capitulos'!$A$2:$M$68,13,FALSE) -> 3.1.5 | W118: 9 | Y118: 0
A119: 80 | B119: ARQ509 | C119: 3.1.5.10 | D119: =VLOOKUP(B119,'Listado Ins Ana'!$G$3966:$M$8318,2,FALSE) -> PISO EN GRANITO BLANCO HUILA FONDO BLANCO GRANO 1 ESMERILADO, VACIADO Y PULIDO EN SITIO E=1.5CM INCLUYE JUNTAS DE DILATACIÓN, COLOR BLANCO (INCLUYE SUMINISTRO E INSTALACIÓN) PARA ESCALERA. | E119: =VLOOKUP(B119,'Listado Ins Ana'!$G$3966:$M$8318,3,FALSE) -> M2 | F119: 431.55 | G119: =VLOOKUP(B119,'Listado Ins Ana'!$G$3966:$M$8318,4,FALSE) -> 142822 | H119: 183760 | I119: 79301628 | K119: 79301628 | N119: No se calculó cantidad para este ítem. Se solicita confirmar que este íem no aplica. | O119: 1 | S119: =VLOOKUP(B119,'Listado Ins Ana'!$G7716:$J100642,4,FALSE)-G119 -> 0 | U119: =+'auxiliar capitulos'!$A$24 -> ACABADOS EN PISOS | V119: =VLOOKUP(U119,'auxiliar capitulos'!$A$2:$M$68,13,FALSE) -> 3.1.5 | W119: 10 | Y119: 431.55 | Z119: 112.12 | AA119: 134.53 | AB119: 184.9
A120: 81 | B120: ARQ510 | C120: 3.1.5.11 | D120: =VLOOKUP(B120,'Listado Ins Ana'!$G$3966:$M$8318,2,FALSE) -> CINTA ANTIDESLIZANTE DE ALTO TRAFICO ADHESIVA PARA ESCALERAS; COLOR NEGRO CON BANDA CENTRAL REFLECTIVA QUE ILUMINA AL CONTACTO CON LA LUZ DIRECTA; ADHESIVO RESISTENTE AL ENCOGIMIENTO Y AL DESPRENDIMIENTO. BASE POLIMÉRICA CON CAPA SUPERIOR DE MINERALES ABRASIVOS DE ALTO TRÁFICO. INCLUYE (SUMINISTRO E INSTALACIÓN). | E120: =VLOOKUP(B120,'Listado Ins Ana'!$G$3966:$M$8318,3,FALSE) -> M | F120: 900.66 | G120: =VLOOKUP(B120,'Listado Ins Ana'!$G$3966:$M$8318,4,FALSE) -> 10334 | H120: 13296 | I120: 11975175 | K120: 11975175 | N120: No se calculó cantidad para este ítem. Se solicita confirmar que este íem no aplica. | O120: 1 | S120: =VLOOKUP(B120,'Listado Ins Ana'!$G7716:$J100643,4,FALSE)-G120 -> 0 | U120: =+'auxiliar capitulos'!$A$24 -> ACABADOS EN PISOS | V120: =VLOOKUP(U120,'auxiliar capitulos'!$A$2:$M$68,13,FALSE) -> 3.1.5 | W120: 11 | Y120: 900.66 | Z120: 171 | AA120: 359.8 | AB120: 369.86
A121: 82 | B121: ARQ511 | C121: 3.1.5.12 | D121: =VLOOKUP(B121,'Listado Ins Ana'!$G$3966:$M$8318,2,FALSE) -> FRANJAS GUÍA EN RESINA PREFABRICADA TERMOFLEXIBLE, CON ENDURECIMIENTO Y CURADO RÁPIDO VERTIDAS INSITU SOBRE ENCOFRADO CON MEDIDAS ESTANDAR SEGÚN NORMA NTC 5610 , O SIMILAR EQUIVALENTE. INCLUYE (SUMINISTRO, FIJACIÓN, INSTALACIÓN Y CURADO) | E121: =VLOOKUP(B121,'Listado Ins Ana'!$G$3966:$M$8318,3,FALSE) -> M2 | F121: 29.12 | G121: =VLOOKUP(B121,'Listado Ins Ana'!$G$3966:$M$8318,4,FALSE) -> 0 | H121: 0 | I121: 0 | K121: 0 | N121: No se calculó cantidad para este ítem. Se solicita confirmar que este íem no aplica. | O121: 1 | S121: =VLOOKUP(B121,'Listado Ins Ana'!$G7716:$J100644,4,FALSE)-G121 -> 0 | U121: =+'auxiliar capitulos'!$A$24 -> ACABADOS EN PISOS | V121: =VLOOKUP(U121,'auxiliar capitulos'!$A$2:$M$68,13,FALSE) -> 3.1.5 | W121: 12 | Y121: 29.12 | AA121: 20.12 | AB121: 9
A122: 83 | B122: ARQ512 | C122: 3.1.5.13 | D122: =VLOOKUP(B122,'Listado Ins Ana'!$G$3966:$M$8318,2,FALSE) -> FRANJAS ALERTA EN RESINA PREFABRICADA TERMOFLEXIBLE, CON ENDURECIMIENTO Y CURADO RÁPIDO VERTIDAS INSITU SOBRE ENCOFRADO CON MEDIDAS ESTANDAR SEGÚN NORMA NTC 5610 , O SIMILAR EQUIVALENTE. INCLUYE (SUMINISTRO, FIJACIÓN, INSTALACIÓN Y CURADO) | E122: =VLOOKUP(B122,'Listado Ins Ana'!$G$3966:$M$8318,3,FALSE) -> M2 | F122: 126.07 | G122: =VLOOKUP(B122,'Listado Ins Ana'!$G$3966:$M$8318,4,FALSE) -> 0 | U122: =+'auxiliar capitulos'!$A$24 -> ACABADOS EN PISOS | V122: =VLOOKUP(U122,'auxiliar capitulos'!$A$2:$M$68,13,FALSE) -> 3.1.5 | W122: 13 | Y122: 126.07 | Z122: 36 | AA122: 58.07 | AB122: 32
A123: 84 | B123: 5433 | C123: 3.1.5.14 | D123: =VLOOKUP(B123,'Listado Ins Ana'!$G$3966:$M$8318,2,FALSE) -> SILLA EN CONCRETO DE 3000 PSI 10CM X 15CM (SUMINISTRO E INSTALACIÓN). | E123: =VLOOKUP(B123,'Listado Ins Ana'!$G$3966:$M$8318,3,FALSE) -> ML | F123: 11.9 | G123: =VLOOKUP(B123,'Listado Ins Ana'!$G$3966:$M$8318,4,FALSE) -> 55047 | U123: =+'auxiliar capitulos'!$A$24 -> ACABADOS EN PISOS | V123: =VLOOKUP(U123,'auxiliar capitulos'!$A$2:$M$68,13,FALSE) -> 3.1.5 | W123: 14 | Y123: 11.9 | Z123: 4.04 | AA123: 4 | AB123: 3.86
A124: 85 | B124: ARQ513 | C124: 3.1.5.15 | D124: =VLOOKUP(B124,'Listado Ins Ana'!$G$3966:$M$8318,2,FALSE) -> BOCAPUERTA EN GRANITO BLANCO HUILA ESMERILADO, ANCHO 12CM VACIADO Y PULIDO EN SITIO. INCLUYE SUMINISTRO, PEGA E INSTALCIÓN). | E124: =VLOOKUP(B124,'Listado Ins Ana'!$G$3966:$M$8318,3,FALSE) -> M | F124: 31.85 | G124: =VLOOKUP(B124,'Listado Ins Ana'!$G$3966:$M$8318,4,FALSE) -> 29377.6 | U124: =+'auxiliar capitulos'!$A$24 -> ACABADOS EN PISOS | V124: =VLOOKUP(U124,'auxiliar capitulos'!$A$2:$M$68,13,FALSE) -> 3.1.5 | W124: 15 | Y124: 31.85 | Z124: 13.17 | AA124: 11.25 | AB124: 7.43
A125: 86 | B125: ARQ514 | C125: 3.1.5.16 | D125: =VLOOKUP(B125,'Listado Ins Ana'!$G$3966:$M$8318,2,FALSE) -> ZÓCALO EN CONCRETO DE 3000PSI, FUNDIDO EN SITIO 0,10 M x 0,15 M. INCLUYE ACERO DE REFUERZO. SUMINISTRO E INSTALACIÓN. | E125: =VLOOKUP(B125,'Listado Ins Ana'!$G$3966:$M$8318,3,FALSE) -> M | F125: 46.54 | G125: =VLOOKUP(B125,'Listado Ins Ana'!$G$3966:$M$8318,4,FALSE) -> 20369.48 | H125: =ROUND(G125*(1+$F$867),0) -> 26208 | I125: =ROUND(H125*F125,0) -> 1219720 | U125: =+'auxiliar capitulos'!$A$24 -> ACABADOS EN PISOS | V125: =VLOOKUP(U125,'auxiliar capitulos'!$A$2:$M$68,13,FALSE) -> 3.1.5 | W125: 16 | Y125: 46.54 | Z125: 24 | AA125: 10.48 | AB125: 12.06
A126: 87 | C126: 3.1.6 | D126: CUBIERTAS, CIELO RASO, ACABADOS, IMPERMEABILIZACIÓN | U126: CUBIERTAS, CIELO RASO, ACABADOS, IMPERMEABILIZACIÓN | V126: =VLOOKUP(U126,'auxiliar capitulos'!$A$2:$M$68,13,FALSE) -> 3.1.6 | W126: =IF(E126="","",IF(E118="",1,W118+1)) ->  | Y126: 0
A127: 88 | B127: 5933 | C127: 3.1.6.1 | D127: =VLOOKUP(B127,'Listado Ins Ana'!$G$3966:$M$8318,2,FALSE) -> CUBIERTA 333C SENCILLA EN ALUZINC CAL. 24. SUM E INSTAL. PANEL SIN TRASLAPOS LONGITUDINALES. PINTURA PLASTISOL/DURANAR POR 1 CARA. COLOR A ESCOGER (E= 24 MICRONES). CLIPS METALICOS OCULTOS AISLANTE EN FIBRA DE VIDRIO DE 38MM. | E127: =VLOOKUP(B127,'Listado Ins Ana'!$G$3966:$M$8318,3,FALSE) -> M2 | F127: =+Y127 -> 0 | G127: =VLOOKUP(B127,'Listado Ins Ana'!$G$3966:$M$8318,4,FALSE) -> 229154 | H127: =ROUND(G127*(1+$F$867),0) -> 294839 | I127: =ROUND(H127*F127,0) -> 0 | K127: =+I127 -> 0 | L127: Item retirado de la BD IDU | N127: No se calculó cantidad para este ítem. Se solicita confirmar que este íem no aplica. | O127: 1 | S127: =VLOOKUP(B127,'Listado Ins Ana'!$G7716:$J100635,4,FALSE)-G127 ->  | U127: CUBIERTAS, CIELO RASO, ACABADOS, IMPERMEABILIZACIÓN | V127: =VLOOKUP(U127,'auxiliar capitulos'!$A$2:$M$68,13,FALSE) -> 3.1.6 | W127: =IF(E127="","",IF(E126="",1,W126+1)) -> 1 | Y127: 0
A128: 89 | B128: ARQ601 | C128: 3.1.6.2 | D128: =VLOOKUP(B128,'Listado Ins Ana'!$G$3966:$M$8318,2,FALSE) -> SISTEMA DE ACRISTALAMIENTO Y TECHOS DE POLICARBONATO SUNGLAZE, TIPO SUNGLAZE TM 4/600, GROSOR 4 MM, ANCHO 585 MM (SISTEMA DE 600 MM), ALTURA 21 MM, (SUMINISTRO E INSTALACIÓN), O SIMILAR EQUIVALENTE. | E128: =VLOOKUP(B128,'Listado Ins Ana'!$G$3966:$M$8318,3,FALSE) -> M2 | F128: 470 | G128: =VLOOKUP(B128,'Listado Ins Ana'!$G$3966:$M$8318,4,FALSE) -> 125464 | H128: 161427 | I128: 75870690 | U128: CUBIERTAS, CIELO RASO, ACABADOS, IMPERMEABILIZACIÓN | V128: =VLOOKUP(U128,'auxiliar capitulos'!$A$2:$M$68,13,FALSE) -> 3.1.6 | W128: 2 | Y128: 470 | Z128: 209 | AB128: 261
A129: 90 | B129: ARQ002 | C129: 3.1.6.3 | D129: =VLOOKUP(B129,'Listado Ins Ana'!$G$3966:$M$8318,2,FALSE) -> CUBIERTA EN ALUZINC CAL. 24. SUMINISTRO E INSTALACIÓN. PANEL SIN TRASLAPOS LONGITUDINALES. PINTURA PLASTISOL/DURANAR POR 1 CARA. COLOR A ESCOGER (E= 24 MICRONES). CLIPS METALICOS OCULTOS AISLANTE EN FIBRA DE VIDRIO DE 38MM. INCLUYE FLANCHE LATERAL PARA REMATE DE CUBIERTA Y CORTAGOTERA. | E129: =VLOOKUP(B129,'Listado Ins Ana'!$G$3966:$M$8318,3,FALSE) -> M2 | F129: 4293.35 | G129: =VLOOKUP(B129,'Listado Ins Ana'!$G$3966:$M$8318,4,FALSE) -> 425132 | H129: 546992 | I129: 2348428103 | U129: CUBIERTAS, CIELO RASO, ACABADOS, IMPERMEABILIZACIÓN | V129: =VLOOKUP(U129,'auxiliar capitulos'!$A$2:$M$68,13,FALSE) -> 3.1.6 | W129: 3 | Y129: 4293.35 | Z129: 933.46 | AA129: 1502.89 | AB129: 1857
A130: 90 | B130: ARQ602 | C130: 3.1.6.4 | D130: =VLOOKUP(B130,'Listado Ins Ana'!$G$3966:$M$8318,2,FALSE) -> CUBIERTA STICK SERIE 45 ALUMINA, ALUMINIO A LA VISTA, ANODIZADO COLOR NATURAL Y VIDRIO LAMINADO TEMPLADO DE 5MM+5MM+75MICRAS DE PVB -TRANSPARENCIA, COLOR Y TEXTURA A CONVENIR- SEGÚN NORMA NSR-10, (INCLUYE SUMINISTRO, ACCESORIOS, ANCLAJES, ESTRUCTURA DE APOYO E INSTALACIÓN), O, SIMILAR EQUIVALENTE. | E130: =VLOOKUP(B130,'Listado Ins Ana'!$G$3966:$M$8318,3,FALSE) -> M2 | F130: 0 | G130: =VLOOKUP(B130,'Listado Ins Ana'!$G$3966:$M$8318,4,FALSE) -> 0 | H130: 0 | I130: 0 | U130: CUBIERTAS, CIELO RASO, ACABADOS, IMPERMEABILIZACIÓN | V130: =VLOOKUP(U130,'auxiliar capitulos'!$A$2:$M$68,13,FALSE) -> 3.1.6 | W130: 4 | Y130: 0
A131: 93 | B131: ARQ607 | C131: 3.1.6.5 | D131: =VLOOKUP(B131,'Listado Ins Ana'!$G$3966:$M$8318,2,FALSE) -> PANEL DE FIBROCEMENTO MACHIMBRADO TEXTURA MADERA E=14MM. SOBRE CARA INTERIOR Y EXTERIOR DE LA SUBESTRUCTURA METÁLICA DE CUBIERTA, FACHAS Y PARAPETOS, TIPO PLYCEM O SIMILAR EQUIVALENTE. INCLUYE SUMINISTRO, TRASIEGO, INSTALACIÓN, CLIPS DE FIJACIÓN , ACCESORIOS, SELLOS Y REMATES. | E131: =VLOOKUP(B131,'Listado Ins Ana'!$G$3966:$M$8318,3,FALSE) -> M2 | F131: 167 | G131: =VLOOKUP(B131,'Listado Ins Ana'!$G$3966:$M$8318,4,FALSE) -> 658391 | H131: 847112 | I131: 141467704 | L131: Item retirado de la BD IDU | U131: CUBIERTAS, CIELO RASO, ACABADOS, IMPERMEABILIZACIÓN | V131: =VLOOKUP(U131,'auxiliar capitulos'!$A$2:$M$68,13,FALSE) -> 3.1.6 | W131: 5 | Y131: 167 | Z131: 46.4 | AA131: 120.6
A132: 94 | B132: ARQ603 | C132: 3.1.6.6 | D132: =VLOOKUP(B132,'Listado Ins Ana'!$G$3966:$M$8318,2,FALSE) -> TAPA CON MARCO PARA INSPECCIÓN DE REDES EN CIELO RASO; COMPUESTA DE LÁMINA DE YESO E.=3/8”, CON PINTURA VINILO ACRÍLICA PLÁSTICA LAVABLE TIPO 1, APLICADO EN TRES CAPAS; MARCO Y CONTRAMARCO EN PERFILES DE PVC TIPO “H” FIJADOS CON TORNILLOS AUTOPERFORANTES. MEDIDAS A <= 60CM, L <= 60CM. | E132: =VLOOKUP(B132,'Listado Ins Ana'!$G$3966:$M$8318,3,FALSE) -> M2 | F132: 0 | G132: =VLOOKUP(B132,'Listado Ins Ana'!$G$3966:$M$8318,4,FALSE) -> 0 | H132: 0 | I132: 0 | U132: CUBIERTAS, CIELO RASO, ACABADOS, IMPERMEABILIZACIÓN | V132: =VLOOKUP(U132,'auxiliar capitulos'!$A$2:$M$68,13,FALSE) -> 3.1.6 | W132: 6 | Y132: 0
A133: 95 | B133: ARQ604 | C133: 3.1.6.7 | D133: =VLOOKUP(B133,'Listado Ins Ana'!$G$3966:$M$8318,2,FALSE) -> CANALETA EN LÁMINA GALVANIZADA CALIBRE 18, ANCHO 30CM, GRAFADA, SOLDADA Y PINTADA CON ATICORROSIVO Y COLOR FINAL RAL 7047. INCLUYE SUMINISTRO E INSTALACIÓN. | E133: =VLOOKUP(B133,'Listado Ins Ana'!$G$3966:$M$8318,3,FALSE) -> M | F133: 473.31 | G133: =VLOOKUP(B133,'Listado Ins Ana'!$G$3966:$M$8318,4,FALSE) -> 138107 | H133: 177694 | I133: 84104347 | U133: CUBIERTAS, CIELO RASO, ACABADOS, IMPERMEABILIZACIÓN | V133: =VLOOKUP(U133,'auxiliar capitulos'!$A$2:$M$68,13,FALSE) -> 3.1.6 | W133: 7 | Y133: 473.31 | Z133: 60.6 | AA133: 212.71 | AB133: 200
A134: 96 | B134: 5066 | C134: 3.1.6.8 | D134: =VLOOKUP(B134,'Listado Ins Ana'!$G$3966:$M$8318,2,FALSE) -> FLANCHE LATERAL, REMATE DE CUBIERTA EN LAMINA GALVANIZADA CAL. 16 Y PINTADA. DESARROLLO 0.30M. SUMINISTRO E INSTALACIÓN. (NO INCLUYE ANDAMIO) | E134: =VLOOKUP(B134,'Listado Ins Ana'!$G$3966:$M$8318,3,FALSE) -> ML | F134: 41.42 | G134: =VLOOKUP(B134,'Listado Ins Ana'!$G$3966:$M$8318,4,FALSE) -> 31512 | H134: 40545 | I134: 1679374 | U134: CUBIERTAS, CIELO RASO, ACABADOS, IMPERMEABILIZACIÓN | V134: =VLOOKUP(U134,'auxiliar capitulos'!$A$2:$M$68,13,FALSE) -> 3.1.6 | W134: 8 | Y134: 41.42 | Z134: 41.42
A135: 97 | B135: ARQ606 | C135: 3.1.6.9 | D135: =VLOOKUP(B135,'Listado Ins Ana'!$G$3966:$M$8318,2,FALSE) -> MANTO IMPERMEABILIZANTE CON ALUMINIO REFLECTIVO AUTOADHESIVVO . INCLUYE SUMINISTRO E INSTALACIÓN. | E135: =VLOOKUP(B135,'Listado Ins Ana'!$G$3966:$M$8318,3,FALSE) -> M2 | F135: 0 | G135: =VLOOKUP(B135,'Listado Ins Ana'!$G$3966:$M$8318,4,FALSE) -> 1 | H135: 1 | I135: 0 | U135: CUBIERTAS, CIELO RASO, ACABADOS, IMPERMEABILIZACIÓN | V135: =VLOOKUP(U135,'auxiliar capitulos'!$A$2:$M$68,13,FALSE) -> 3.1.6 | W135: 9 | Y135: 0
A136: 98 | B136: ARQ605 | C136: 3.1.6.10 | D136: =VLOOKUP(B136,'Listado Ins Ana'!$G$3966:$M$8318,2,FALSE) -> CUBIERTA CORREDERA , O, DE ACCESO AL TECHO CON TRAGALUZ CORREDIZO, O SIMILAR EQUIVALENTE. | E136: =VLOOKUP(B136,'Listado Ins Ana'!$G$3966:$M$8318,3,FALSE) -> UN | F136: 3 | G136: =VLOOKUP(B136,'Listado Ins Ana'!$G$3966:$M$8318,4,FALSE) -> 0 | H136: 0 | I136: 0 | K136: =+I136 -> 0 | N136: No se calculó cantidad para este ítem. Se solicita confirmar que este íem no aplica. | O136: 1 | S136: =VLOOKUP(B136,'Listado Ins Ana'!$G7716:$J100636,4,FALSE)-G136 -> 0 | U136: CUBIERTAS, CIELO RASO, ACABADOS, IMPERMEABILIZACIÓN | V136: =VLOOKUP(U136,'auxiliar capitulos'!$A$2:$M$68,13,FALSE) -> 3.1.6 | W136: 10 | Y136: 3 | Z136: 1 | AA136: 1 | AB136: 1
A137: 99 | C137: 3.1.7 | D137: =+'auxiliar capitulos'!$A$26 -> FACHADAS Y ACABADOS ARQUITECTÓNICOS | U137: =+'auxiliar capitulos'!$A$26 -> FACHADAS Y ACABADOS ARQUITECTÓNICOS | V137: =VLOOKUP(U137,'auxiliar capitulos'!$A$2:$M$68,13,FALSE) -> 3.1.7 | W137: =IF(E137="","",IF(E129="",1,W129+1)) ->  | Y137: 0
A138: 100 | B138: ARQ701 | C138: 3.1.7.5 | D138: =VLOOKUP(B138,'Listado Ins Ana'!$G$3966:$M$8318,2,FALSE) -> FACHADA STICK SERIE 45 ALUMINA, ALUMINIO A LA VISTA, ANODIZADO COLOR NATURAL Y VIDRIO LAMINADO TEMPLADO DE 4MM+4MM+75MICRAS DE PVB -TRANSPARENCIA Y TEXTURA A CONVENIR- SEGÚN NORMA NSR-10, (INCLUYE SUMINISTRO, VENTANAS Y PUERTAS PROYECTANTES, HERRAJES, ACCESORIOS, ANCLAJES, ESTRUCTURA DE APOYO E INSTALACIÓN), O, SIMILAR EQUIVALENTE. | E138: =VLOOKUP(B138,'Listado Ins Ana'!$G$3966:$M$8318,3,FALSE) -> M2 | F138: =+Y138 -> 7707.8 | G138: =VLOOKUP(B138,'Listado Ins Ana'!$G$3966:$M$8318,4,FALSE) -> 0 | H138: =ROUND(G138*(1+$F$867),0) -> 0 | I138: =ROUND(H138*F138,0) -> 0 | U138: =+'auxiliar capitulos'!$A$26 -> FACHADAS Y ACABADOS ARQUITECTÓNICOS | V138: =VLOOKUP(U138,'auxiliar capitulos'!$A$2:$M$68,13,FALSE) -> 3.1.7 | W138: 5 | Y138: 7707.8 | Z138: 2470 | AA138: 2909.53 | AB138: 2328.27
A139: 101 | B139: ARQ702 | C139: 3.1.7.6 | D139: =VLOOKUP(B139,'Listado Ins Ana'!$G$3966:$M$8318,2,FALSE) -> MODULO DE PERSIANA EN CELOSIA DE ACERO GALVANIZADO CAL 18 Y ESTRUCTURA METÁLICA DE SOPORTE, DE COLOR RAL 7035 ALUMINIO ADONIZADO SEGUN MUESTRA , CON FIJACIONES, ANCLAJES, REMATES, Y ACCESORIOS, O SIMILAR EQUIVALENTE, SEGUN SU UBICACIÓN EN MODELOS BIM, PLANOS Y ESPECIFICACIONES TÉCNICAS. INCLUYE (MONTAJE, SUMINISTRO E INSTALACIÓN). | E139: =VLOOKUP(B139,'Listado Ins Ana'!$G$3966:$M$8318,3,FALSE) -> M2 | F139: 150.29 | G139: =VLOOKUP(B139,'Listado Ins Ana'!$G$3966:$M$8318,4,FALSE) -> 863716.08 | H139: 1111292 | I139: 167016075 | U139: =+'auxiliar capitulos'!$A$26 -> FACHADAS Y ACABADOS ARQUITECTÓNICOS | V139: =VLOOKUP(U139,'auxiliar capitulos'!$A$2:$M$68,13,FALSE) -> 3.1.7 | W139: 6 | Y139: 150.29 | Z139: 49 | AA139: 51.62 | AB139: 49.67
A140: 102 | B140: ARQ703 | C140: 3.1.7.7 | D140: =VLOOKUP(B140,'Listado Ins Ana'!$G$3966:$M$8318,2,FALSE) -> SISTEMA DE JARDÍN VERTICAL FACHADA VERDE TIPO GRO-WALL 4.5, CON PERFORACIONES PARA SISTEMA DE RIEGO, MATERIAL EN POLIPROPILENO RECICLADO, COLOR NEGRO, INCLUYE ESTRUCTURA DE SOPORTE, ACCESORIOS, FIJACIÓN, MONTAJE, E INSTALACIÓN Y DEMÁS NECESARIOS PARA SU OPERACIÓN; O SIMILAR EQUIVALENTE. | E140: =VLOOKUP(B140,'Listado Ins Ana'!$G$3966:$M$8318,3,FALSE) -> M2 | F140: 1049.51 | G140: =VLOOKUP(B140,'Listado Ins Ana'!$G$3966:$M$8318,4,FALSE) -> 300000 | H140: 385992 | I140: 405102464 | K140: =+I140 -> 405102464 | S140: =VLOOKUP(B140,'Listado Ins Ana'!$G$3966:$J$100621,4,FALSE)-G140 -> 0 | U140: =+'auxiliar capitulos'!$A$26 -> FACHADAS Y ACABADOS ARQUITECTÓNICOS | V140: =VLOOKUP(U140,'auxiliar capitulos'!$A$2:$M$68,13,FALSE) -> 3.1.7 | W140: 7 | Y140: 1049.51 | Z140: 287.17 | AA140: 527.06 | AB140: 235.28
A141: 103 | B141: ARQ704 | C141: 3.1.7.8 | D141: =VLOOKUP(B141,'Listado Ins Ana'!$G$3966:$M$8318,2,FALSE) -> SISTEMA DE JARDÍN VERTICAL FACHADA VERDE TIPO GRO-WALL SLIMPRO, CON PERFORACIONES PARA SISTEMA DE RIEGO, MATERIAL EN POLIPROPILENO RECICLADO, COLOR NEGRO, INCLUYE ESTRUCTURA DE SOPORTE, SISTEMA DE RIEGO, ACCESORIOS, FIJACIÓN, MONTAJE, CONSTRUCCIÓN E INSTALACIÓN Y DEMÁS NECESARIOS PARA SU OPERACIÓN; O SIMILAR EQUIVALENTE. | E141: =VLOOKUP(B141,'Listado Ins Ana'!$G$3966:$M$8318,3,FALSE) -> M2 | F141: 0 | G141: =VLOOKUP(B141,'Listado Ins Ana'!$G$3966:$M$8318,4,FALSE) -> 300000 | H141: 385992 | I141: 0 | U141: =+'auxiliar capitulos'!$A$26 -> FACHADAS Y ACABADOS ARQUITECTÓNICOS | V141: =VLOOKUP(U141,'auxiliar capitulos'!$A$2:$M$68,13,FALSE) -> 3.1.7 | W141: 8 | Y141: 0
A142: 104 | B142: ARQ705 | C142: 3.1.7.9 | D142: =VLOOKUP(B142,'Listado Ins Ana'!$G$3966:$M$8318,2,FALSE) -> SISTEMA DE JARDÍN VERTICAL FACHADA VERDE TIPO GRO-WALL FACADE, CON PERFORACIONES PARA SISTEMA DE RIEGO, MATERIAL EN POLIPROPILENO RECICLADO, COLOR NEGRO, INCLUYE ESTRUCTURA DE SOPORTE, SISTEMA DE RIEGO, ACCESORIOS, FIJACIÓN, MONTAJE, E INSTALACIÓN Y DEMÁS NECESARIOS PARA SU OPERACIÓN; O SIMILAR EQUIVALENTE. | E142: =VLOOKUP(B142,'Listado Ins Ana'!$G$3966:$M$8318,3,FALSE) -> M2 | F142: 0 | G142: =VLOOKUP(B142,'Listado Ins Ana'!$G$3966:$M$8318,4,FALSE) -> 300000 | H142: 385992 | I142: 0 | U142: =+'auxiliar capitulos'!$A$26 -> FACHADAS Y ACABADOS ARQUITECTÓNICOS | V142: =VLOOKUP(U142,'auxiliar capitulos'!$A$2:$M$68,13,FALSE) -> 3.1.7 | W142: 9 | Y142: 0
A143: 105 | B143: ARQ706 | C143: =IF(W143="",V143,CONCATENATE(V143,".",W143)) -> 3.1.7.10 | D143: =VLOOKUP(B143,'Listado Ins Ana'!$G$3966:$M$8318,2,FALSE) -> CORTASOL EN PANEL METALICO EN ALUZINC TIPO QUADROBRISE 25/75, , ACABADO LISO, COLOR ROBLE, Y FIJACIÓN ENTRE EJES 20CM , O SIMILAR EQUIVALENTE. INCLUYE (SUMINISTRO, FIJACIONES, ACCESORIOS, ESTRUCTURA DE APOYO SEGÚN NSR-10, E INSTALACIÓN). | E143: =VLOOKUP(B143,'Listado Ins Ana'!$G$3966:$M$8318,3,FALSE) -> M2 | F143: 479.15 | G143: =VLOOKUP(B143,'Listado Ins Ana'!$G$3966:$M$8318,4,FALSE) -> 130680 | H143: 168138 | I143: 80563323 | K143: =+I143 -> 80563323 | U143: =+'auxiliar capitulos'!$A$26 -> FACHADAS Y ACABADOS ARQUITECTÓNICOS | V143: =VLOOKUP(U143,'auxiliar capitulos'!$A$2:$M$68,13,FALSE) -> 3.1.7 | W143: 10 | Y143: =SUM(Z143:CJ143) -> 479.15 | Z143: 265 | AA143: 59.57 | AB143: 154.58
A144: 106 | B144: ARQ707 | C144: 3.1.7.11 | D144: =VLOOKUP(B144,'Listado Ins Ana'!$G$3966:$M$8318,2,FALSE) -> SOPORTE ARAÑA 4 PUNTOS ARTICULADO CON CONECTOR A VIGA Y/O COLUMNA TIPO PESADO EN ACERO INOXIDABLE 304, ACABADO LISO Y COLOR SATINADO REF OGS11-907C-OS, O SIMILAR EQUIVALENTE. INCLUYE (SUMINISTRO, FIJACIONES, ACCESORIOS, ESTRUCTURA DE APOYO SEGÚN NSR-10, E INSTALACIÓN). | E144: =VLOOKUP(B144,'Listado Ins Ana'!$G$3966:$M$8318,3,FALSE) -> UN | F144: 136 | G144: =VLOOKUP(B144,'Listado Ins Ana'!$G$3966:$M$8318,4,FALSE) -> 0 | H144: 0 | I144: 0 | U144: =+'auxiliar capitulos'!$A$26 -> FACHADAS Y ACABADOS ARQUITECTÓNICOS | V144: =VLOOKUP(U144,'auxiliar capitulos'!$A$2:$M$68,13,FALSE) -> 3.1.7 | W144: 11 | Y144: 136 | Z144: 136
A145: 107 | C145: 3.1.8 | D145: ='auxiliar capitulos'!$A$27 -> CARPINTERÍA EN ALUMINIO INTERNA | U145: ='auxiliar capitulos'!$A$27 -> CARPINTERÍA EN ALUMINIO INTERNA | V145: =VLOOKUP(U145,'auxiliar capitulos'!$A$2:$M$68,13,FALSE) -> 3.1.8 | Y145: 0
A146: 108 | B146: ARQ801 | C146: 3.1.8.1 | D146: =VLOOKUP(B146,'Listado Ins Ana'!$G$3966:$M$8318,2,FALSE) -> VENTANAS FIJAS, VENTANAS PROYECTANTES, PUERTAS BATIENTES, CON PERFILERIA INTERIOR EN ALUMINIO TIPO LINEA SUPERIOR SERIE 35 ANODIZADO, COLOR NATURAL Y VIDRIO TRANSPARENTE TEMPLADO DE SEGURIDAD, ESPESOR 6-10MM, O SIMILAR EQUIVALENTE. (INCLUYE SUMINISTRO, ACCESORIOS, HERRAJES, ESTRUCTURA DE APOYO E INSTALACIÓN), | E146: =VLOOKUP(B146,'Listado Ins Ana'!$G$3966:$M$8318,3,FALSE) -> M2 | F146: =+Y146 -> 802.8 | G146: =VLOOKUP(B146,'Listado Ins Ana'!$G$3966:$M$8318,4,FALSE) -> 0 | H146: =ROUND(G146*(1+$F$867),0) -> 0 | I146: =ROUND(H146*F146,0) -> 0 | K146: =+I146 -> 0 | S146: =VLOOKUP(B146,'Listado Ins Ana'!$G$3966:$J$100621,4,FALSE)-G146 -> 0 | U146: ='auxiliar capitulos'!$A$27 -> CARPINTERÍA EN ALUMINIO INTERNA | V146: =VLOOKUP(U146,'auxiliar capitulos'!$A$2:$M$68,13,FALSE) -> 3.1.8 | W146: =IF(E146="","",IF(E145="",1,W145+1)) -> 1 | Y146: 802.8 | Z146: 338 | AA146: 374.13 | AB146: 90.67
A147: 109 | B147: 7267 | C147: 3.1.8.2 | D147: =VLOOKUP(B147,'Listado Ins Ana'!$G$3966:$M$8318,2,FALSE) -> PERSIANA EN ALUMINIO EXTRUIDO NATURAL MATE O ACERO GALVANIZADO (INCLUYE SUMINISTRO E INSTALACIÓN) | E147: =VLOOKUP(B147,'Listado Ins Ana'!$G$3966:$M$8318,3,FALSE) -> M2 | F147: =+Y147 -> 0 | G147: =VLOOKUP(B147,'Listado Ins Ana'!$G$3966:$M$8318,4,FALSE) -> 233090 | H147: =ROUND(G147*(1+$F$867),0) -> 299903 | I147: =ROUND(H147*F147,0) -> 0 | K147: =+I147 -> 0 | S147: =VLOOKUP(B147,'Listado Ins Ana'!$G7716:$J100653,4,FALSE)-G147 ->  | U147: ='auxiliar capitulos'!$A$27 -> CARPINTERÍA EN ALUMINIO INTERNA | V147: =VLOOKUP(U147,'auxiliar capitulos'!$A$2:$M$68,13,FALSE) -> 3.1.8 | W147: =IF(E147="","",IF(E146="",1,W146+1)) -> 2 | Y147: 0
A148: 110 | C148: 3.1.9 | D148: ='auxiliar capitulos'!$A$28 -> CARPINTERÍA METÁLICA | U148: ='auxiliar capitulos'!$A$28 -> CARPINTERÍA METÁLICA | V148: =VLOOKUP(U148,'auxiliar capitulos'!$A$2:$M$68,13,FALSE) -> 3.1.9 | W148: =IF(E148="","",IF(E140="",1,W140+1)) ->  | Y148: 0
A149: 111 | B149: ARQ901 | C149: 3.1.9.1 | D149: =VLOOKUP(B149,'Listado Ins Ana'!$G$3966:$M$8318,2,FALSE) -> PUERTA SEGÚN TIPO Y DISEÑO DE DETALLE (VER PLANOS ANEXOS) | E149: =VLOOKUP(B149,'Listado Ins Ana'!$G$3966:$M$8318,3,FALSE) -> UN | F149: =+Y149 -> 0 | G149: =VLOOKUP(B149,'Listado Ins Ana'!$G$3966:$M$8318,4,FALSE) -> 0 | H149: =ROUND(G149*(1+$F$867),0) -> 0 | I149: =ROUND(H149*F149,0) -> 0 | J149: =SUM(I149:I180)/180 -> 2153611.144 | K149: =+I149 -> 0 | N149: No se calculó cantidad para este ítem. Se solicita confirmar que este íem no aplica. | O149: 1 | S149: =VLOOKUP(B149,'Listado Ins Ana'!$G7716:$J100663,4,FALSE)-G149 -> 0 | U149: ='auxiliar capitulos'!$A$28 -> CARPINTERÍA METÁLICA | V149: =VLOOKUP(U149,'auxiliar capitulos'!$A$2:$M$68,13,FALSE) -> 3.1.9 | W149: =IF(E149="","",IF(E148="",1,W148+1)) -> 1 | Y149: 0
A150: 112 | B150: ARQ901-1 | C150: 3.1.9.2 | D150: =VLOOKUP(B150,'Listado Ins Ana'!$G$3966:$M$8318,2,FALSE) -> P1-A (0.60 X 2.50 MTS) PUERTA EN LÁMINA CR CAL. 18, PINTURA ELECTROSTÁTICA COLOR ALUMINIO ANODIZADO O GRIS RAL 7035., MARCO CR CAL 18, PINTURA ELECTROSTÁTICA COLOR ALUMINIO ANODIZADO O GRIS RAL 7035 | E150: =VLOOKUP(B150,'Listado Ins Ana'!$G$3966:$M$8318,3,FALSE) -> UN | F150: 1 | G150: =VLOOKUP(B150,'Listado Ins Ana'!$G$3966:$M$8318,4,FALSE) -> 757295.88 | H150: 974367 | I150: 974367 | K150: 974367 | N150: No se calculó cantidad para este ítem. Se solicita confirmar que este íem no aplica. | O150: 1 | S150: =VLOOKUP(B150,'Listado Ins Ana'!$G7716:$J100664,4,FALSE)-G150 -> 0 | U150: ='auxiliar capitulos'!$A$28 -> CARPINTERÍA METÁLICA | V150: =VLOOKUP(U150,'auxiliar capitulos'!$A$2:$M$68,13,FALSE) -> 3.1.9 | W150: 2 | Y150: 1 | Z150: 1
A151: 113 | B151: ARQ901-10 | C151: 3.1.9.3 | D151: =VLOOKUP(B151,'Listado Ins Ana'!$G$3966:$M$8318,2,FALSE) -> P4-B (2.00 X 2.50 MTS.) PUERTA EN LÁMINA CR CAL. 18, COLOR ALUMINIO ANODIZADO O GRIS RAL 7035., MARCO CR CAL 18, COLOR ALUMINIO ANODIZADO O GRIS RAL 7035. | E151: =VLOOKUP(B151,'Listado Ins Ana'!$G$3966:$M$8318,3,FALSE) -> UN | F151: 3 | G151: =VLOOKUP(B151,'Listado Ins Ana'!$G$3966:$M$8318,4,FALSE) -> 3118180 | H151: 4011975 | I151: 12035925 | K151: 12035925 | N151: No se calculó cantidad para este ítem. Se solicita confirmar que este íem no aplica. | O151: 1 | S151: =VLOOKUP(B151,'Listado Ins Ana'!$G7716:$J100665,4,FALSE)-G151 -> 0 | U151: ='auxiliar capitulos'!$A$28 -> CARPINTERÍA METÁLICA | V151: =VLOOKUP(U151,'auxiliar capitulos'!$A$2:$M$68,13,FALSE) -> 3.1.9 | W151: 3 | Y151: 3 | Z151: 1 | AA151: 2
A152: 114 | B152: ARQ901-11 | C152: 3.1.9.4 | D152: =VLOOKUP(B152,'Listado Ins Ana'!$G$3966:$M$8318,2,FALSE) -> P4-C (2.40 X 2.50 MTS.) PUERTA ANTIPÁNICO EN LÁMINA CR CAL. 18, PINTURA ELECTROSTÁTICA COLOR ALUMINIO ANODIZADO O GRIS RAL 7035., MARCO CR CAL 18, PINTURA ELECTROSTÁTICA COLOR ALUMINIO ANODIZADO O GRIS RAL 7035, MÁS BARRA ANTIPÁNICO TIPO PUSH CON MANIJA PARA PUERTAS CORTAFUEGO. | E152: =VLOOKUP(B152,'Listado Ins Ana'!$G$3966:$M$8318,3,FALSE) -> UN | F152: 1 | G152: =VLOOKUP(B152,'Listado Ins Ana'!$G$3966:$M$8318,4,FALSE) -> 3897725 | H152: 5014969 | I152: 5014969 | K152: 5014969 | N152: No se calculó cantidad para este ítem. Se solicita confirmar que este íem no aplica. | O152: 1 | S152: =VLOOKUP(B152,'Listado Ins Ana'!$G7716:$J100666,4,FALSE)-G152 -> 0 | U152: ='auxiliar capitulos'!$A$28 -> CARPINTERÍA METÁLICA | V152: =VLOOKUP(U152,'auxiliar capitulos'!$A$2:$M$68,13,FALSE) -> 3.1.9 | W152: 4 | Y152: 1 | Z152: 1
A153: 115 | B153: ARQ901-12 | C153: 3.1.9.5 | D153: =VLOOKUP(B153,'Listado Ins Ana'!$G$3966:$M$8318,2,FALSE) -> P5 (0.90 X 2.20 MTS.) PUERTA EN VIDRIO. PERFIL EN ALUMINIO ALN-A-218 + PISA VIDRIO ALN-A-222+EMPAQUE DE CAUCHO + PIVOTE. VIDRIO TEMPLANO LAMINADO DE 4 MM + 4 MM + PELICULA DE SEGURIDAD DE 75 MICRAS TRANSPARENTE. | E153: =VLOOKUP(B153,'Listado Ins Ana'!$G$3966:$M$8318,3,FALSE) -> UN | F153: 5 | G153: =VLOOKUP(B153,'Listado Ins Ana'!$G$3966:$M$8318,4,FALSE) -> 768186 | H153: 988379 | I153: 4941895 | K153: 4941895 | M153: Este Item ya no esta en IDU | N153: No se calculó cantidad para este ítem. Se solicita confirmar que este íem no aplica. | O153: 1 | S153: =VLOOKUP(B153,'Listado Ins Ana'!$G7716:$J100667,4,FALSE)-G153 -> 0 | U153: ='auxiliar capitulos'!$A$28 -> CARPINTERÍA METÁLICA | V153: =VLOOKUP(U153,'auxiliar capitulos'!$A$2:$M$68,13,FALSE) -> 3.1.9 | W153: 5 | Y153: 5 | Z153: 1 | AB153: 4
A154: 116 | B154: ARQ901-13 | C154: 3.1.9.6 | D154: =VLOOKUP(B154,'Listado Ins Ana'!$G$3966:$M$8318,2,FALSE) -> P5 (1.00 X 2.20 MTS.) PUERTA ANTIPÁNICO, MAS BARRA ANTIPÁNICO TIPO PUSH CON MANIJA PARA PUERTAS CORTAFUEGO. PERFIL EN ALUMINIO ALN-A-218 + PISA VIDRIO ALN-A-222+EMPAQUE DE CAUCHO + PIVOTE. VIDRIO TEMPLANO LAMINADO DE 4 MM + 4 MM + PELICULA DE SEGURIDAD DE 75 MICRAS TRANSPARENTE. | E154: =VLOOKUP(B154,'Listado Ins Ana'!$G$3966:$M$8318,3,FALSE) -> UN | F154: 1 | G154: =VLOOKUP(B154,'Listado Ins Ana'!$G$3966:$M$8318,4,FALSE) -> 853540 | H154: 1098199 | I154: 1098199 | K154: 1098199 | N154: No se calculó cantidad para este ítem. Se solicita confirmar que este íem no aplica. | O154: 1 | S154: =VLOOKUP(B154,'Listado Ins Ana'!$G7716:$J100668,4,FALSE)-G154 -> 0 | U154: ='auxiliar capitulos'!$A$28 -> CARPINTERÍA METÁLICA | V154: =VLOOKUP(U154,'auxiliar capitulos'!$A$2:$M$68,13,FALSE) -> 3.1.9 | W154: 6 | Y154: 1 | AB154: 1
A155: 117 | B155: ARQ901-14 | C155: 3.1.9.7 | D155: =VLOOKUP(B155,'Listado Ins Ana'!$G$3966:$M$8318,2,FALSE) -> P6 (1.50 X 2.20 MTS.) PUERTA EN VIDRIO. PERFIL EN ALUMINIO ALN-A-218 + PISA VIDRIO ALN-A-222+EMPAQUE DE CAUCHO + PIVOTE. VIDRIO TEMPLANO LAMINADO DE 4 MM + 4 MM + PELICULA DE SEGURIDAD DE 75 MICRAS TRANSPARENTE. | E155: =VLOOKUP(B155,'Listado Ins Ana'!$G$3966:$M$8318,3,FALSE) -> UN | F155: 14 | G155: =VLOOKUP(B155,'Listado Ins Ana'!$G$3966:$M$8318,4,FALSE) -> 1280310 | H155: 1647298 | I155: 23062172 | K155: 23062172 | N155: No se calculó cantidad para este ítem. Se solicita confirmar que este íem no aplica. | O155: 1 | S155: =VLOOKUP(B155,'Listado Ins Ana'!$G7716:$J100669,4,FALSE)-G155 -> 0 | U155: ='auxiliar capitulos'!$A$28 -> CARPINTERÍA METÁLICA | V155: =VLOOKUP(U155,'auxiliar capitulos'!$A$2:$M$68,13,FALSE) -> 3.1.9 | W155: 7 | Y155: 14 | Z155: 7 | AA155: 7
A156: 118 | B156: ARQ901-15 | C156: 3.1.9.8 | D156: =VLOOKUP(B156,'Listado Ins Ana'!$G$3966:$M$8318,2,FALSE) -> P6 (2.00 X 2.50 MTS.) PUERTA ANTIPÁNICO, MAS BARRA ANTIPÁNICO TIPO PUSH CON MANIJA PARA PUERTAS CORTAFUEGO. PERFIL EN ALUMINIO ALN-A-218 + PISA VIDRIO ALN-A-222+EMPAQUE DE CAUCHO + PIVOTE. VIDRIO TEMPLANO LAMINADO DE 4 MM + 4 MM + PELICULA DE SEGURIDAD DE 75 MICRAS TRANSPARENTE. | E156: =VLOOKUP(B156,'Listado Ins Ana'!$G$3966:$M$8318,3,FALSE) -> UN | F156: 5 | G156: =VLOOKUP(B156,'Listado Ins Ana'!$G$3966:$M$8318,4,FALSE) -> 1939863.64 | H156: 2495906 | I156: 12479530 | K156: 12479530 | N156: No se calculó cantidad para este ítem. Se solicita confirmar que este íem no aplica. | O156: 1 | S156: =VLOOKUP(B156,'Listado Ins Ana'!$G7716:$J100670,4,FALSE)-G156 -> 0 | U156: ='auxiliar capitulos'!$A$28 -> CARPINTERÍA METÁLICA | V156: =VLOOKUP(U156,'auxiliar capitulos'!$A$2:$M$68,13,FALSE) -> 3.1.9 | W156: 8 | Y156: 5 | Z156: 1 | AA156: 4
A157: 119 | B157: ARQ901-16 | C157: 3.1.9.9 | D157: =VLOOKUP(B157,'Listado Ins Ana'!$G$3966:$M$8318,2,FALSE) -> P6 (3.00 X 2.50 MTS.) PUERTA ANTIPÁNICO, MAS BARRA ANTIPÁNICO TIPO PUSH CON MANIJA PARA PUERTAS CORTAFUEGO. PERFIL EN ALUMINIO ALN-A-218 + PISA VIDRIO ALN-A-222+EMPAQUE DE CAUCHO + PIVOTE. VIDRIO TEMPLANO LAMINADO DE 4 MM + 4 MM + PELICULA DE SEGURIDAD DE 75 MICRAS TRANSPARENTE. | E157: =VLOOKUP(B157,'Listado Ins Ana'!$G$3966:$M$8318,3,FALSE) -> UN | F157: 4 | G157: =VLOOKUP(B157,'Listado Ins Ana'!$G$3966:$M$8318,4,FALSE) -> 2909795.45 | H157: 3743859 | I157: 14975436 | K157: 14975436 | N157: No se calculó cantidad para este ítem. Se solicita confirmar que este íem no aplica. | O157: 1 | S157: =VLOOKUP(B157,'Listado Ins Ana'!$G7716:$J100671,4,FALSE)-G157 -> 0 | U157: ='auxiliar capitulos'!$A$28 -> CARPINTERÍA METÁLICA | V157: =VLOOKUP(U157,'auxiliar capitulos'!$A$2:$M$68,13,FALSE) -> 3.1.9 | W157: 9 | Y157: 4 | Z157: 1 | AB157: 3
A158: 120 | B158: ARQ901-17 | C158: 3.1.9.10 | D158: =VLOOKUP(B158,'Listado Ins Ana'!$G$3966:$M$8318,2,FALSE) -> P7-A (0.60 X 1.90 MTS.) PUERTA DE ACERO INOXIDABLE MAS HERRAJES EN ACERO INOXIDABLE | E158: =VLOOKUP(B158,'Listado Ins Ana'!$G$3966:$M$8318,3,FALSE) -> UN | F158: 25 | G158: =VLOOKUP(B158,'Listado Ins Ana'!$G$3966:$M$8318,4,FALSE) -> 575544.87 | H158: 740519 | I158: 18512975 | K158: 18512975 | N158: No se calculó cantidad para este ítem. Se solicita confirmar que este íem no aplica. | O158: 1 | S158: =VLOOKUP(B158,'Listado Ins Ana'!$G7716:$J100672,4,FALSE)-G158 -> 0 | U158: ='auxiliar capitulos'!$A$28 -> CARPINTERÍA METÁLICA | V158: =VLOOKUP(U158,'auxiliar capitulos'!$A$2:$M$68,13,FALSE) -> 3.1.9 | W158: 10 | Y158: 25 | Z158: 12 | AA158: 8 | AB158: 5
A159: 121 | B159: ARQ901-18 | C159: 3.1.9.11 | D159: =VLOOKUP(B159,'Listado Ins Ana'!$G$3966:$M$8318,2,FALSE) -> P7-B (0.90 X 1.90 MTS.) PUERTA DE ACERO INOXIDABLE MAS HERRAJES EN ACERO INOXIDABLE | E159: =VLOOKUP(B159,'Listado Ins Ana'!$G$3966:$M$8318,3,FALSE) -> UN | F159: 4 | G159: =VLOOKUP(B159,'Listado Ins Ana'!$G$3966:$M$8318,4,FALSE) -> 863317.3 | H159: 1110779 | I159: 4443116 | K159: 4443116 | N159: No se calculó cantidad para este ítem. Se solicita confirmar que este íem no aplica. | O159: 1 | S159: =VLOOKUP(B159,'Listado Ins Ana'!$G7716:$J100673,4,FALSE)-G159 -> 0 | U159: ='auxiliar capitulos'!$A$28 -> CARPINTERÍA METÁLICA | V159: =VLOOKUP(U159,'auxiliar capitulos'!$A$2:$M$68,13,FALSE) -> 3.1.9 | W159: 11 | Y159: 4 | Z159: 2 | AA159: 2
A160: 121 | B160: ARQ901-19 | C160: 3.1.9.12 | D160: =VLOOKUP(B160,'Listado Ins Ana'!$G$3966:$M$8318,2,FALSE) -> P8 COMPUERTA DE MANTENIMIENTO, ACCESO A CUBIERTA. TUBERIA ESTRUCTURAL CUADRADA 60 X 60 MM., COLOR ALUMINIO ANODIZADO O GRIS RAL 7035. | E160: =VLOOKUP(B160,'Listado Ins Ana'!$G$3966:$M$8318,3,FALSE) -> UN | F160: 4 | G160: =VLOOKUP(B160,'Listado Ins Ana'!$G$3966:$M$8318,4,FALSE) -> 224508.96 | H160: 288862 | I160: 1155448 | K160: 1155448 | N160: No se calculó cantidad para este ítem. Se solicita confirmar que este íem no aplica. | O160: 1 | S160: =VLOOKUP(B160,'Listado Ins Ana'!$G7717:$J100674,4,FALSE)-G160 -> 0 | U160: ='auxiliar capitulos'!$A$28 -> CARPINTERÍA METÁLICA | V160: =VLOOKUP(U160,'auxiliar capitulos'!$A$2:$M$68,13,FALSE) -> 3.1.9 | W160: 12 | Y160: 4 | Z160: 1 | AA160: 2 | AB160: 1
A161: 122 | B161: ARQ901-2 | C161: 3.1.9.13 | D161: =VLOOKUP(B161,'Listado Ins Ana'!$G$3966:$M$8318,2,FALSE) -> P1-B (0.80 X 2.50 MTS.) PUERTA EN LÁMINA CR CAL. 18, PINTURA ELECTROSTÁTICA COLOR ALUMINIO ANODIZADO O GRIS RAL 7035., MARCO CR CAL 18, PINTURA ELECTROSTÁTICA COLOR ALUMINIO ANODIZADO O GRIS RAL 7035 | E161: =VLOOKUP(B161,'Listado Ins Ana'!$G$3966:$M$8318,3,FALSE) -> UN | F161: 17 | G161: =VLOOKUP(B161,'Listado Ins Ana'!$G$3966:$M$8318,4,FALSE) -> 1009727.84 | H161: 1299156 | I161: 22085652 | K161: 22085652 | N161: No se calculó cantidad para este ítem. Se solicita confirmar que este íem no aplica. | O161: 1 | S161: =VLOOKUP(B161,'Listado Ins Ana'!$G7716:$J100674,4,FALSE)-G161 -> 0 | U161: ='auxiliar capitulos'!$A$28 -> CARPINTERÍA METÁLICA | V161: =VLOOKUP(U161,'auxiliar capitulos'!$A$2:$M$68,13,FALSE) -> 3.1.9 | W161: 13 | Y161: 17 | Z161: 4 | AA161: 10 | AB161: 3
A162: 123 | B162: ARQ901-20 | C162: 3.1.9.14 | D162: =VLOOKUP(B162,'Listado Ins Ana'!$G$3966:$M$8318,2,FALSE) -> P11 (5.00 X 6.80 MTS.) CORTINA EN LAMINA TUBO DE ALUMINIO ANODIZADO, PLATINA DE ALUMINIO DE 3/4" X 1/8" TROQUELADAS | E162: =VLOOKUP(B162,'Listado Ins Ana'!$G$3966:$M$8318,3,FALSE) -> UN | F162: 1 | G162: =VLOOKUP(B162,'Listado Ins Ana'!$G$3966:$M$8318,4,FALSE) -> 57884442.02 | H162: 74476438 | I162: 74476438 | K162: 74476438 | N162: No se calculó cantidad para este ítem. Se solicita confirmar que este íem no aplica. | O162: 1 | S162: =VLOOKUP(B162,'Listado Ins Ana'!$G7716:$J100675,4,FALSE)-G162 -> 0 | U162: ='auxiliar capitulos'!$A$28 -> CARPINTERÍA METÁLICA | V162: =VLOOKUP(U162,'auxiliar capitulos'!$A$2:$M$68,13,FALSE) -> 3.1.9 | W162: 14 | Y162: 1 | AB162: 1
A163: 124 | B163: ARQ901-21 | C163: 3.1.9.15 | D163: =VLOOKUP(B163,'Listado Ins Ana'!$G$3966:$M$8318,2,FALSE) -> P13 CORTINA EN LAMINA TUBO DE ALUMINIO ANODIZADO, PLATINA DE ALUMINIO DE 3/4" X 1/8" TROQUELADAS | E163: =VLOOKUP(B163,'Listado Ins Ana'!$G$3966:$M$8318,3,FALSE) -> UN | F163: 1 | G163: =VLOOKUP(B163,'Listado Ins Ana'!$G$3966:$M$8318,4,FALSE) -> 0 | H163: 0 | I163: 0 | K163: 0 | N163: No se calculó cantidad para este ítem. Se solicita confirmar que este íem no aplica. | O163: 1 | S163: =VLOOKUP(B163,'Listado Ins Ana'!$G7716:$J100676,4,FALSE)-G163 -> 0 | U163: ='auxiliar capitulos'!$A$28 -> CARPINTERÍA METÁLICA | V163: =VLOOKUP(U163,'auxiliar capitulos'!$A$2:$M$68,13,FALSE) -> 3.1.9 | W163: 15 | Y163: 1 | AB163: 1
A164: 125 | B164: ARQ901-22 | C164: 3.1.9.16 | D164: =VLOOKUP(B164,'Listado Ins Ana'!$G$3966:$M$8318,2,FALSE) -> P15 PUERTA CORREDERA EN LAMINA CR CAL 18 PINTURA ELECTROSTATICA COLOR ALUMINIO ANODIZADO O GRIS RAL 7035., MARCO CR CAL 18, PINTURA ELECTROSTÁTICA COLOR ALUMINIO ANODIZADO O GRIS RAL 7035. | E164: =VLOOKUP(B164,'Listado Ins Ana'!$G$3966:$M$8318,3,FALSE) -> UN | F164: 1 | G164: =VLOOKUP(B164,'Listado Ins Ana'!$G$3966:$M$8318,4,FALSE) -> 0 | H164: 0 | I164: 0 | K164: 0 | N164: No se calculó cantidad para este ítem. Se solicita confirmar que este íem no aplica. | O164: 1 | S164: =VLOOKUP(B164,'Listado Ins Ana'!$G7716:$J100677,4,FALSE)-G164 -> 0 | U164: ='auxiliar capitulos'!$A$28 -> CARPINTERÍA METÁLICA | V164: =VLOOKUP(U164,'auxiliar capitulos'!$A$2:$M$68,13,FALSE) -> 3.1.9 | W164: 16 | Y164: 1 | AB164: 1
A165: 126 | B165: ARQ901-23 | C165: 3.1.9.17 | D165: =VLOOKUP(B165,'Listado Ins Ana'!$G$3966:$M$8318,2,FALSE) -> P16 (1.00 X 2.50 MTS.) PUERTA ANTIPANICO EN LAMINA CR CAL 18 PINTURA ELECTROSTATICA COLOR ALUMINIO ANODIZADO O GRIS RAL 7035., MARCO CR CAL 18, PINTURA ELECTROSTATICA COLOR ALUMINIO ANODIZADO O GRIS CAL 7035, MAS BARRA ANTIPÁNICO TIPO PUSH CON MANIJA PARA PUERTAS CORTAFUEGO | E165: =VLOOKUP(B165,'Listado Ins Ana'!$G$3966:$M$8318,3,FALSE) -> UN | F165: 2 | G165: =VLOOKUP(B165,'Listado Ins Ana'!$G$3966:$M$8318,4,FALSE) -> 1262159.79 | H165: 1623945 | I165: 3247890 | K165: 3247890 | M165: Este Item ya no esta en IDU | N165: No se calculó cantidad para este ítem. Se solicita confirmar que este íem no aplica. | O165: 1 | S165: =VLOOKUP(B165,'Listado Ins Ana'!$G7716:$J100678,4,FALSE)-G165 -> 0 | U165: ='auxiliar capitulos'!$A$28 -> CARPINTERÍA METÁLICA | V165: =VLOOKUP(U165,'auxiliar capitulos'!$A$2:$M$68,13,FALSE) -> 3.1.9 | W165: 17 | Y165: 2 | AB165: 2
A166: 127 | B166: ARQ901-24 | C166: 3.1.9.18 | D166: =VLOOKUP(B166,'Listado Ins Ana'!$G$3966:$M$8318,2,FALSE) -> P17-A (2.00 X 2.50 MTS.) PUERTA ANTIPANICO EN LAMINA CR CAL 18, PINTURA ELECTROSTATICA COLOR ALUMINIO ANODIZADO O GRIS RAL 7035., MARCO CR CAL 18,PINTURA ELECTROSTATICA COLOR ALUMINIO ANODIZADO O GRIS RAL 7035, MAS BARRA ANTIPÁNICO TIPO PUSH CON MANIJA PARA PUERTAS CORTAFUEGO | E166: =VLOOKUP(B166,'Listado Ins Ana'!$G$3966:$M$8318,3,FALSE) -> UN | F166: 3 | G166: =VLOOKUP(B166,'Listado Ins Ana'!$G$3966:$M$8318,4,FALSE) -> 3118180 | H166: 4011975 | I166: 12035925 | K166: 12035925 | N166: No se calculó cantidad para este ítem. Se solicita confirmar que este íem no aplica. | O166: 1 | S166: =VLOOKUP(B166,'Listado Ins Ana'!$G7716:$J100679,4,FALSE)-G166 -> 0 | U166: ='auxiliar capitulos'!$A$28 -> CARPINTERÍA METÁLICA | V166: =VLOOKUP(U166,'auxiliar capitulos'!$A$2:$M$68,13,FALSE) -> 3.1.9 | W166: 18 | Y166: 3 | AA166: 2 | AB166: 1
A167: 128 | B167: ARQ901-25 | C167: 3.1.9.19 | D167: =VLOOKUP(B167,'Listado Ins Ana'!$G$3966:$M$8318,2,FALSE) -> P17-B (2.40 X 2.50 MTS.) PUERTA ANTIPANICO EN LAMINA CR CAL 18, PINTURA ELECTROSTATICA COLOR ALUMINIO ANODIZADO O GRIS RAL 7035., MARCO CR CAL 18,PINTURA ELECTROSTATICA COLOR ALUMINIO ANODIZADO O GRIS RAL 7035, MAS BARRA ANTIPÁNICO TIPO PUSH CON MANIJA PARA PUERTAS CORTAFUEGO | E167: =VLOOKUP(B167,'Listado Ins Ana'!$G$3966:$M$8318,3,FALSE) -> UN | F167: 1 | G167: =VLOOKUP(B167,'Listado Ins Ana'!$G$3966:$M$8318,4,FALSE) -> 3741816 | H167: 4814370 | I167: 4814370 | K167: 4814370 | N167: No se calculó cantidad para este ítem. Se solicita confirmar que este íem no aplica. | O167: 1 | S167: =VLOOKUP(B167,'Listado Ins Ana'!$G7716:$J100680,4,FALSE)-G167 -> 0 | U167: ='auxiliar capitulos'!$A$28 -> CARPINTERÍA METÁLICA | V167: =VLOOKUP(U167,'auxiliar capitulos'!$A$2:$M$68,13,FALSE) -> 3.1.9 | W167: 19 | Y167: 1 | Z167: 1
A168: 129 | B168: ARQ901-26 | C168: 3.1.9.20 | D168: =VLOOKUP(B168,'Listado Ins Ana'!$G$3966:$M$8318,2,FALSE) -> P17-C (2.40 X 2.50 MTS.) PUERTA ANTIPANICO EN LAMINA CR CAL 18, PINTURA ELECTROSTATICA COLOR ALUMINIO ANODIZADO O GRIS RAL 7035., MARCO CR CAL 18,PINTURA ELECTROSTATICA COLOR ALUMINIO ANODIZADO O GRIS RAL 7035, MAS BARRA ANTIPÁNICO TIPO PUSH CON MANIJA PARA PUERTAS CORTAFUEGO | E168: =VLOOKUP(B168,'Listado Ins Ana'!$G$3966:$M$8318,3,FALSE) -> UN | F168: 9 | G168: =VLOOKUP(B168,'Listado Ins Ana'!$G$3966:$M$8318,4,FALSE) -> 3741816 | H168: 4814370 | I168: 43329330 | K168: 43329330 | N168: No se calculó cantidad para este ítem. Se solicita confirmar que este íem no aplica. | O168: 1 | S168: =VLOOKUP(B168,'Listado Ins Ana'!$G7716:$J100681,4,FALSE)-G168 -> 0 | U168: ='auxiliar capitulos'!$A$28 -> CARPINTERÍA METÁLICA | V168: =VLOOKUP(U168,'auxiliar capitulos'!$A$2:$M$68,13,FALSE) -> 3.1.9 | W168: 20 | Y168: 9 | Z168: 3 | AA168: 4 | AB168: 2
A169: 130 | B169: ARQ901-27 | C169: 3.1.9.21 | D169: =VLOOKUP(B169,'Listado Ins Ana'!$G$3966:$M$8318,2,FALSE) -> P17-C (3.00 X 2.50 MTS.) PUERTA ANTIPANICO EN LAMINA CR CAL 18, PINTURA ELECTROSTATICA COLOR ALUMINIO ANODIZADO O GRIS RAL 7035., MARCO CR CAL 18,PINTURA ELECTROSTATICA COLOR ALUMINIO ANODIZADO O GRIS RAL 7035, MAS BARRA ANTIPÁNICO TIPO PUSH CON MANIJA PARA PUERTAS CORTAFUEGO | E169: =VLOOKUP(B169,'Listado Ins Ana'!$G$3966:$M$8318,3,FALSE) -> UN | F169: 1 | G169: =VLOOKUP(B169,'Listado Ins Ana'!$G$3966:$M$8318,4,FALSE) -> 4677270 | H169: 6017963 | I169: 6017963 | K169: 6017963 | N169: No se calculó cantidad para este ítem. Se solicita confirmar que este íem no aplica. | O169: 1 | S169: =VLOOKUP(B169,'Listado Ins Ana'!$G7716:$J100682,4,FALSE)-G169 -> 0 | U169: ='auxiliar capitulos'!$A$28 -> CARPINTERÍA METÁLICA | V169: =VLOOKUP(U169,'auxiliar capitulos'!$A$2:$M$68,13,FALSE) -> 3.1.9 | W169: 21 | Y169: 1 | AB169: 1
A170: 131 | B170: ARQ901-28 | C170: 3.1.9.22 | D170: =VLOOKUP(B170,'Listado Ins Ana'!$G$3966:$M$8318,2,FALSE) -> P18 (1.50 X 2.50 MTS.) PUERTA ANTIPÁNICO, MAS BARRA ANTIPÁNICO TIPO PUSH CON MANIJA PARA PUERTAS CORTAFUEGO. PERFIL EN ALUMINIO ALN-A-218 + PISA VIDRIO ALN-A-222+EMPAQUE DE CAUCHO + PIVOTE. VIDRIO TEMPLANO LAMINADO DE 4 MM + 4 MM + PELICULA DE SEGURIDAD DE 75 MICRAS TRANSPARENTE. | E170: =VLOOKUP(B170,'Listado Ins Ana'!$G$3966:$M$8318,3,FALSE) -> UN | F170: 3 | G170: =VLOOKUP(B170,'Listado Ins Ana'!$G$3966:$M$8318,4,FALSE) -> 1454897.73 | H170: 1871930 | I170: 5615790 | K170: 5615790 | N170: No se calculó cantidad para este ítem. Se solicita confirmar que este íem no aplica. | O170: 1 | S170: =VLOOKUP(B170,'Listado Ins Ana'!$G7716:$J100683,4,FALSE)-G170 -> 0 | U170: ='auxiliar capitulos'!$A$28 -> CARPINTERÍA METÁLICA | V170: =VLOOKUP(U170,'auxiliar capitulos'!$A$2:$M$68,13,FALSE) -> 3.1.9 | W170: 22 | Y170: 3 | AA170: 3
A171: 132 | B171: ARQ901-29 | C171: 3.1.9.23 | D171: =VLOOKUP(B171,'Listado Ins Ana'!$G$3966:$M$8318,2,FALSE) -> P19 PUERTA CORREDERA EN LAMINA CR CAL 18 PINTURA ELECTROSTATICA COLOR ALUMINIO ANODIZADO O GRIS RAL 7035., MARCO CR CAL 18,PINTURA ELECTROSTATICA COLOR ALUMINIO ANODIZADO O GRIS RAL 7035 | E171: =VLOOKUP(B171,'Listado Ins Ana'!$G$3966:$M$8318,3,FALSE) -> UN | F171: 3 | G171: =VLOOKUP(B171,'Listado Ins Ana'!$G$3966:$M$8318,4,FALSE) -> 0 | H171: 0 | I171: 0 | K171: 0 | N171: No se calculó cantidad para este ítem. Se solicita confirmar que este íem no aplica. | O171: 1 | S171: =VLOOKUP(B171,'Listado Ins Ana'!$G7716:$J100684,4,FALSE)-G171 -> 0 | U171: ='auxiliar capitulos'!$A$28 -> CARPINTERÍA METÁLICA | V171: =VLOOKUP(U171,'auxiliar capitulos'!$A$2:$M$68,13,FALSE) -> 3.1.9 | W171: 23 | Y171: 3 | AA171: 1 | AB171: 2
A172: 133 | B172: ARQ901-3 | C172: 3.1.9.24 | D172: =VLOOKUP(B172,'Listado Ins Ana'!$G$3966:$M$8318,2,FALSE) -> P1-C (0.90 X 2.50 MTS.) PUERTA EN LÁMINA CR CAL. 18, PINTURA ELECTROSTÁTICA COLOR ALUMINIO ANODIZADO O GRIS RAL 7035., MARCO CR CAL 18, PINTURA ELECTROSTÁTICA COLOR ALUMINIO ANODIZADO O GRIS RAL 7035 | E172: =VLOOKUP(B172,'Listado Ins Ana'!$G$3966:$M$8318,3,FALSE) -> UN | F172: 28 | G172: =VLOOKUP(B172,'Listado Ins Ana'!$G$3966:$M$8318,4,FALSE) -> 1135943.82 | H172: 1461551 | I172: 40923428 | K172: 40923428 | N172: No se calculó cantidad para este ítem. Se solicita confirmar que este íem no aplica. | O172: 1 | S172: =VLOOKUP(B172,'Listado Ins Ana'!$G7716:$J100685,4,FALSE)-G172 -> 0 | U172: ='auxiliar capitulos'!$A$28 -> CARPINTERÍA METÁLICA | V172: =VLOOKUP(U172,'auxiliar capitulos'!$A$2:$M$68,13,FALSE) -> 3.1.9 | W172: 24 | Y172: 28 | Z172: 7 | AA172: 12 | AB172: 9
A173: 134 | B173: ARQ901-30 | C173: 3.1.9.25 | D173: =VLOOKUP(B173,'Listado Ins Ana'!$G$3966:$M$8318,2,FALSE) -> P20 CORTINA EN LAMINA TUBO DE ALUMINIO ANODIZADO, PLATINA DE ALUMINIO DE 3/4" X 1/8" TROQUELADAS | E173: =VLOOKUP(B173,'Listado Ins Ana'!$G$3966:$M$8318,3,FALSE) -> UN | F173: 2 | G173: =VLOOKUP(B173,'Listado Ins Ana'!$G$3966:$M$8318,4,FALSE) -> 0 | H173: 0 | I173: 0 | K173: 0 | N173: No se calculó cantidad para este ítem. Se solicita confirmar que este íem no aplica. | O173: 1 | S173: =VLOOKUP(B173,'Listado Ins Ana'!$G7716:$J100686,4,FALSE)-G173 -> 0 | U173: ='auxiliar capitulos'!$A$28 -> CARPINTERÍA METÁLICA | V173: =VLOOKUP(U173,'auxiliar capitulos'!$A$2:$M$68,13,FALSE) -> 3.1.9 | W173: 25 | Y173: 2 | AA173: 2
A174: 135 | B174: ARQ901-31 | C174: 3.1.9.26 | D174: =VLOOKUP(B174,'Listado Ins Ana'!$G$3966:$M$8318,2,FALSE) -> P22 PUERTA DE CONTROL INGRESO Y SALIDA DE CABINAS CR CAL 18 PINTURA ELECTROSTATICA COLOR ALUMINIO ANODIZADO O GRIS RAL 7035., MARCO CR CAL 18,PINTURA ELECTROSTATICA COLOR ALUMINIO ANODIZADO O GRIS RAL 7035. | E174: =VLOOKUP(B174,'Listado Ins Ana'!$G$3966:$M$8318,3,FALSE) -> UN | F174: 1 | G174: =VLOOKUP(B174,'Listado Ins Ana'!$G$3966:$M$8318,4,FALSE) -> 0 | H174: 0 | I174: 0 | K174: 0 | M174: Este Item ya no esta en IDU | N174: No se calculó cantidad para este ítem. Se solicita confirmar que este íem no aplica. | O174: 1 | S174: =VLOOKUP(B174,'Listado Ins Ana'!$G7716:$J100687,4,FALSE)-G174 -> 0 | U174: ='auxiliar capitulos'!$A$28 -> CARPINTERÍA METÁLICA | V174: =VLOOKUP(U174,'auxiliar capitulos'!$A$2:$M$68,13,FALSE) -> 3.1.9 | W174: 26 | Y174: 1 | AB174: 1
A175: 136 | B175: ARQ901-4 | C175: =IF(W175="",V175,CONCATENATE(V175,".",W175)) -> 3.1.9.27 | D175: =VLOOKUP(B175,'Listado Ins Ana'!$G$3966:$M$8318,2,FALSE) -> P1-D (1.00 X 2.50 MTS.) PUERTA EN LÁMINA CR CAL. 18, PINTURA ELECTROSTÁTICA COLOR ALUMINIO ANODIZADO O GRIS RAL 7035., MARCO CR CAL 18, PINTURA ELECTROSTÁTICA COLOR ALUMINIO ANODIZADO O GRIS RAL 7035 | E175: =VLOOKUP(B175,'Listado Ins Ana'!$G$3966:$M$8318,3,FALSE) -> UN | F175: 14 | G175: =VLOOKUP(B175,'Listado Ins Ana'!$G$3966:$M$8318,4,FALSE) -> 1262159.79 | H175: 1623945 | I175: 22735230 | K175: 22735230 | N175: No se calculó cantidad para este ítem. Se solicita confirmar que este íem no aplica. | O175: 1 | S175: =VLOOKUP(B175,'Listado Ins Ana'!$G7716:$J100688,4,FALSE)-G175 -> 0 | U175: ='auxiliar capitulos'!$A$28 -> CARPINTERÍA METÁLICA | V175: =VLOOKUP(U175,'auxiliar capitulos'!$A$2:$M$68,13,FALSE) -> 3.1.9 | W175: 27 | Y175: =SUM(Z175:CJ175) -> 14 | Z175: 4 | AA175: 7 | AB175: 3
A176: 137 | B176: ARQ901-5 | C176: 3.1.9.28 | D176: =VLOOKUP(B176,'Listado Ins Ana'!$G$3966:$M$8318,2,FALSE) -> P2-A (0.80 X 2.50 MTS.) PUERTA EN LÁMINA CR CAL. 18, PINTURA ELECTROSTÁTICA COLOR ALUMINIO ANODIZADO O GRIS RAL 7035., MARCO CR CAL 18, PINTURA ELECTROSTÁTICA COLOR ALUMINIO ANODIZADO O GRIS RAL 7035 | E176: =VLOOKUP(B176,'Listado Ins Ana'!$G$3966:$M$8318,3,FALSE) -> UN | F176: 18 | G176: =VLOOKUP(B176,'Listado Ins Ana'!$G$3966:$M$8318,4,FALSE) -> 1009727.84 | H176: 1299156 | I176: 23384808 | K176: 23384808 | N176: No se calculó cantidad para este ítem. Se solicita confirmar que este íem no aplica. | O176: 1 | S176: =VLOOKUP(B176,'Listado Ins Ana'!$G7716:$J100689,4,FALSE)-G176 -> 0 | U176: ='auxiliar capitulos'!$A$28 -> CARPINTERÍA METÁLICA | V176: =VLOOKUP(U176,'auxiliar capitulos'!$A$2:$M$68,13,FALSE) -> 3.1.9 | W176: 28 | Y176: 18 | Z176: 3 | AA176: 9 | AB176: 6
A177: 138 | B177: ARQ901-6 | C177: 3.1.9.29 | D177: =VLOOKUP(B177,'Listado Ins Ana'!$G$3966:$M$8318,2,FALSE) -> P2-B (0.90 X 2.50 MTS.) PUERTA EN LÁMINA CR CAL. 18, PINTURA ELECTROSTÁTICA COLOR ALUMINIO ANODIZADO O GRIS RAL 7035., MARCO CR CAL 18, PINTURA ELECTROSTÁTICA COLOR ALUMINIO ANODIZADO O GRIS RAL 7035 | E177: =VLOOKUP(B177,'Listado Ins Ana'!$G$3966:$M$8318,3,FALSE) -> UN | F177: 3 | G177: =VLOOKUP(B177,'Listado Ins Ana'!$G$3966:$M$8318,4,FALSE) -> 1135943.82 | H177: 1461551 | I177: 4384653 | K177: 4384653 | N177: No se calculó cantidad para este ítem. Se solicita confirmar que este íem no aplica. | O177: 1 | S177: =VLOOKUP(B177,'Listado Ins Ana'!$G7716:$J100690,4,FALSE)-G177 -> 0 | U177: ='auxiliar capitulos'!$A$28 -> CARPINTERÍA METÁLICA | V177: =VLOOKUP(U177,'auxiliar capitulos'!$A$2:$M$68,13,FALSE) -> 3.1.9 | W177: 29 | Y177: 3 | Z177: 3
A178: 139 | B178: ARQ901-7 | C178: 3.1.9.30 | D178: =VLOOKUP(B178,'Listado Ins Ana'!$G$3966:$M$8318,2,FALSE) -> P2-C (1.00 X 2.50 MTS.) PUERTA EN LÁMINA CR CAL. 18, PINTURA ELECTROSTÁTICA COLOR ALUMINIO ANODIZADO O GRIS RAL 7035., MARCO CR CAL 18, PINTURA ELECTROSTÁTICA COLOR ALUMINIO ANODIZADO O GRIS RAL 7035 | E178: =VLOOKUP(B178,'Listado Ins Ana'!$G$3966:$M$8318,3,FALSE) -> UN | F178: 4 | G178: =VLOOKUP(B178,'Listado Ins Ana'!$G$3966:$M$8318,4,FALSE) -> 0 | H178: 0 | I178: 0 | K178: 0 | N178: No se calculó cantidad para este ítem. Se solicita confirmar que este íem no aplica. | O178: 1 | S178: =VLOOKUP(B178,'Listado Ins Ana'!$G7716:$J100691,4,FALSE)-G178 -> 0 | U178: ='auxiliar capitulos'!$A$28 -> CARPINTERÍA METÁLICA | V178: =VLOOKUP(U178,'auxiliar capitulos'!$A$2:$M$68,13,FALSE) -> 3.1.9 | W178: 30 | Y178: 4 | AB178: 4
A179: 140 | B179: ARQ901-8 | C179: 3.1.9.31 | D179: =VLOOKUP(B179,'Listado Ins Ana'!$G$3966:$M$8318,2,FALSE) -> P3-A (0.90 X 2.20 MTS.) PUERTA EN VIDRIO. PERFIL EN ALUMINIO ALN-A-218 + PISA VIDRIO ALN-A-222+EMPAQUE DE CAUCHO + PIVOTE. VIDRIO TEMPLANO LAMINADO DE 4 MM + 4 MM + PELICULA DE SEGURIDAD DE 75 MICRAS TRANSPARENTE. | E179: =VLOOKUP(B179,'Listado Ins Ana'!$G$3966:$M$8318,3,FALSE) -> UN | F179: 3 | G179: =VLOOKUP(B179,'Listado Ins Ana'!$G$3966:$M$8318,4,FALSE) -> 768186 | H179: 988379 | I179: 2965137 | K179: 2965137 | N179: No se calculó cantidad para este ítem. Se solicita confirmar que este íem no aplica. | O179: 1 | S179: =VLOOKUP(B179,'Listado Ins Ana'!$G7716:$J100692,4,FALSE)-G179 -> 0 | U179: ='auxiliar capitulos'!$A$28 -> CARPINTERÍA METÁLICA | V179: =VLOOKUP(U179,'auxiliar capitulos'!$A$2:$M$68,13,FALSE) -> 3.1.9 | W179: 31 | Y179: 3 | AA179: 3
A180: 141 | B180: ARQ901-9 | C180: 3.1.9.32 | D180: =VLOOKUP(B180,'Listado Ins Ana'!$G$3966:$M$8318,2,FALSE) -> P4-A (1.50 X 2.50 MTS.) PUERTA EN LÁMINA CR CAL. 18, PINTURA ELECTROSTÁTICA COLOR ALUMINIO ANODIZADO O GRIS RAL 7035., MARCO CR CAL 18, PINTURA ELECTROSTÁTICA COLOR ALUMINIO ANODIZADO O GRIS RAL 7035, MÁS BARRA ANTIPÁNICO TIPO PUSH CON MANIJA PARA PUERTAS CORTAFUEGO. | E180: =VLOOKUP(B180,'Listado Ins Ana'!$G$3966:$M$8318,3,FALSE) -> UN | F180: 10 | G180: =VLOOKUP(B180,'Listado Ins Ana'!$G$3966:$M$8318,4,FALSE) -> 1782889 | H180: 2293936 | I180: 22939360 | K180: 22939360 | N180: No se calculó cantidad para este ítem. Se solicita confirmar que este íem no aplica. | O180: 1 | S180: =VLOOKUP(B180,'Listado Ins Ana'!$G7716:$J100693,4,FALSE)-G180 -> 0 | U180: ='auxiliar capitulos'!$A$28 -> CARPINTERÍA METÁLICA | V180: =VLOOKUP(U180,'auxiliar capitulos'!$A$2:$M$68,13,FALSE) -> 3.1.9 | W180: 32 | Y180: 10 | Z180: 5 | AA180: 3 | AB180: 2
A181: 168 | C181: 3.1.10 | D181: =+'auxiliar capitulos'!$A$29 -> MUEBLES, ACCESORIOS, APARATOS SANITARIOS Y GRIFERÍA | U181: =+'auxiliar capitulos'!$A$29 -> MUEBLES, ACCESORIOS, APARATOS SANITARIOS Y GRIFERÍA | V181: =VLOOKUP(U181,'auxiliar capitulos'!$A$2:$M$68,13,FALSE) -> 3.1.10 | W181: =IF(E181="","",IF(E173="",1,W173+1)) ->  | Y181: 0
A182: 169 | B182: ARQ1001 | C182: 3.1.10.1 | D182: =VLOOKUP(B182,'Listado Ins Ana'!$G$3966:$M$8318,2,FALSE) -> COCINA INTEGRAL MILÁN 2.10 METROS INCLUYE MESÓN POCETA DERECHA CON ESTUFA 4 PUESTOS A GAS + CAMPANA | E182: =VLOOKUP(B182,'Listado Ins Ana'!$G$3966:$M$8318,3,FALSE) -> UN | F182: =+Y182 -> 4 | G182: =VLOOKUP(B182,'Listado Ins Ana'!$G$3966:$M$8318,4,FALSE) -> 2799836.5 | H182: =ROUND(G182*(1+$F$867),0) -> 3602382 | I182: =ROUND(H182*F182,0) -> 14409528 | K182: =+I182 -> 14409528 | N182: No se calculó cantidad para este ítem. Se solicita confirmar que este íem no aplica. | O182: 1 | S182: =VLOOKUP(B182,'Listado Ins Ana'!$G7716:$J100663,4,FALSE)-G182 -> 0 | U182: =+'auxiliar capitulos'!$A$29 -> MUEBLES, ACCESORIOS, APARATOS SANITARIOS Y GRIFERÍA | V182: =VLOOKUP(U182,'auxiliar capitulos'!$A$2:$M$68,13,FALSE) -> 3.1.10 | W182: =IF(E182="","",IF(E181="",1,W181+1)) -> 1 | Y182: 4 | Z182: 2 | AA182: 1 | AB182: 1
A183: 172 | B183: ARQ1004 | C183: 3.1.10.2 | D183: =VLOOKUP(B183,'Listado Ins Ana'!$G$3966:$M$8318,2,FALSE) -> MESÓN INOXIDABLE CON LAVAPLATOS EN ACERO INOXIDABLE DE EMPOTRAR; GRIFERIA DE LAVAPLATOS ARIZONA, O SIMILAR EQUIVALENTE. | E183: =VLOOKUP(B183,'Listado Ins Ana'!$G$3966:$M$8318,3,FALSE) -> M2 | F183: 7 | G183: =VLOOKUP(B183,'Listado Ins Ana'!$G$3966:$M$8318,4,FALSE) -> 254142 | H183: 326989 | I183: 2288923 | K183: 2288923 | N183: No se calculó cantidad para este ítem. Se solicita confirmar que este íem no aplica. | O183: 1 | S183: =VLOOKUP(B183,'Listado Ins Ana'!$G7716:$J100666,4,FALSE)-G183 -> 0 | U183: =+'auxiliar capitulos'!$A$29 -> MUEBLES, ACCESORIOS, APARATOS SANITARIOS Y GRIFERÍA | V183: =VLOOKUP(U183,'auxiliar capitulos'!$A$2:$M$68,13,FALSE) -> 3.1.10 | W183: 2 | Y183: 7 | Z183: 4 | AA183: 1 | AB183: 2
A184: 174 | B184: ARQ1005 | C184: 3.1.10.3 | D184: =VLOOKUP(B184,'Listado Ins Ana'!$G$3966:$M$8318,2,FALSE) -> NEVERA NO FROST 2 PUERTAS, O SIMILAR EQUIVALENTE. | E184: =VLOOKUP(B184,'Listado Ins Ana'!$G$3966:$M$8318,3,FALSE) -> UN | F184: 3 | G184: =VLOOKUP(B184,'Listado Ins Ana'!$G$3966:$M$8318,4,FALSE) -> 1929000 | H184: 2481929 | I184: 7445787 | K184: 7445787 | N184: No se calculó cantidad para este ítem. Se solicita confirmar que este íem no aplica. | O184: 1 | S184: =VLOOKUP(B184,'Listado Ins Ana'!$G7716:$J100668,4,FALSE)-G184 -> 0 | U184: =+'auxiliar capitulos'!$A$29 -> MUEBLES, ACCESORIOS, APARATOS SANITARIOS Y GRIFERÍA | V184: =VLOOKUP(U184,'auxiliar capitulos'!$A$2:$M$68,13,FALSE) -> 3.1.10 | W184: 3 | Y184: 3 | Z184: 1 | AA184: 1 | AB184: 1
A185: 176 | B185: ARQ1007 | C185: 3.1.10.4 | D185: =VLOOKUP(B185,'Listado Ins Ana'!$G$3966:$M$8318,2,FALSE) -> TORNIQUETE ANTIEVASIÓN SENCILLO REF: TRS 371, AUTOMATIC-SYSTEMS, O SIMILAR EQUIVALENTE | E185: =VLOOKUP(B185,'Listado Ins Ana'!$G$3966:$M$8318,3,FALSE) -> UN | F185: 3 | G185: =VLOOKUP(B185,'Listado Ins Ana'!$G$3966:$M$8318,4,FALSE) -> 0 | H185: 0 | I185: 0 | K185: 0 | N185: No se calculó cantidad para este ítem. Se solicita confirmar que este íem no aplica. | O185: 1 | S185: =VLOOKUP(B185,'Listado Ins Ana'!$G7716:$J100670,4,FALSE)-G185 -> 0 | U185: =+'auxiliar capitulos'!$A$29 -> MUEBLES, ACCESORIOS, APARATOS SANITARIOS Y GRIFERÍA | V185: =VLOOKUP(U185,'auxiliar capitulos'!$A$2:$M$68,13,FALSE) -> 3.1.10 | W185: 4 | Y185: 3 | AA185: 2 | AB185: 1
A186: 177 | B186: ARQ1008 | C186: 3.1.10.5 | D186: =VLOOKUP(B186,'Listado Ins Ana'!$G$3966:$M$8318,2,FALSE) -> TORNIQUETE ANTIEVASIÓN DOBLE REF: TRS 373, AUTOMATIC-SYSTEMS, O SIMILAR EQUIVALENTE | E186: =VLOOKUP(B186,'Listado Ins Ana'!$G$3966:$M$8318,3,FALSE) -> UN | F186: 2 | G186: =VLOOKUP(B186,'Listado Ins Ana'!$G$3966:$M$8318,4,FALSE) -> 0 | H186: 0 | I186: 0 | K186: 0 | N186: No se calculó cantidad para este ítem. Se solicita confirmar que este íem no aplica. | O186: 1 | S186: =VLOOKUP(B186,'Listado Ins Ana'!$G7716:$J100671,4,FALSE)-G186 -> 0 | U186: =+'auxiliar capitulos'!$A$29 -> MUEBLES, ACCESORIOS, APARATOS SANITARIOS Y GRIFERÍA | V186: =VLOOKUP(U186,'auxiliar capitulos'!$A$2:$M$68,13,FALSE) -> 3.1.10 | W186: 5 | Y186: 2 | AA186: 2
A187: 178 | B187: ARQ1009 | C187: 3.1.10.6 | D187: =VLOOKUP(B187,'Listado Ins Ana'!$G$3966:$M$8318,2,FALSE) -> PUERTAS AUTOMATICA RETRÁCTILES REF: TGH800 - TGH810, O SIMILAR EQUIVALENTE. | E187: =VLOOKUP(B187,'Listado Ins Ana'!$G$3966:$M$8318,3,FALSE) -> UN | F187: 11 | G187: =ROUND(1.25*13779345,2) -> 17224181.25 | H187: 22161321 | I187: 243774531 | K187: 243774531 | N187: No se calculó cantidad para este ítem. Se solicita confirmar que este íem no aplica. | O187: 1 | S187: =VLOOKUP(B187,'Listado Ins Ana'!$G7716:$J100672,4,FALSE)-G187 -> -17224181.25 | U187: =+'auxiliar capitulos'!$A$29 -> MUEBLES, ACCESORIOS, APARATOS SANITARIOS Y GRIFERÍA | V187: =VLOOKUP(U187,'auxiliar capitulos'!$A$2:$M$68,13,FALSE) -> 3.1.10 | W187: 6 | Y187: 11 | Z187: 7 | AA187: 2 | AB187: 2
A188: 180 | B188: 3554 | C188: 3.1.10.7 | D188: =VLOOKUP(B188,'Listado Ins Ana'!$G$3966:$M$8318,2,FALSE) -> CICLO-PARQUEADERO TIPO M100 (TIPO 1) (H=1M, L=2M. INCLUYE SUMINISTRO E INSTALACIÓN. NO INCLUYE BASES) | E188: =VLOOKUP(B188,'Listado Ins Ana'!$G$3966:$M$8318,3,FALSE) -> UN | F188: 26 | G188: =VLOOKUP(B188,'Listado Ins Ana'!$G$3966:$M$8318,4,FALSE) -> 407530 | H188: 524344 | I188: 13632944 | K188: 13632944 | N188: No se calculó cantidad para este ítem. Se solicita confirmar que este íem no aplica. | O188: 1 | S188: =VLOOKUP(B188,'Listado Ins Ana'!$G7716:$J100674,4,FALSE)-G188 ->  | U188: =+'auxiliar capitulos'!$A$29 -> MUEBLES, ACCESORIOS, APARATOS SANITARIOS Y GRIFERÍA | V188: =VLOOKUP(U188,'auxiliar capitulos'!$A$2:$M$68,13,FALSE) -> 3.1.10 | W188: 7 | Y188: 26 | AA188: 15 | AB188: 11
A189: 181 | B189: 9165 | C189: 3.1.10.8 | D189: =VLOOKUP(B189,'Listado Ins Ana'!$G$3966:$M$8318,2,FALSE) -> CICLOPARQUEADERO PORTAL SUR Y PORTAL SUBA - CICLOPARQUEADERO DUPLICADOR VERTICAL DE PARQUEO PARA BICICLETAS (INCLUYE SUMINISTRO E INSTALACIÓN) | E189: =VLOOKUP(B189,'Listado Ins Ana'!$G$3966:$M$8318,3,FALSE) -> UN | F189: 21 | G189: =VLOOKUP(B189,'Listado Ins Ana'!$G$3966:$M$8318,4,FALSE) -> 2235976 | H189: 2876896 | I189: 60414816 | K189: 60414816 | N189: No se calculó cantidad para este ítem. Se solicita confirmar que este íem no aplica. | O189: 1 | S189: =VLOOKUP(B189,'Listado Ins Ana'!$G7716:$J100675,4,FALSE)-G189 ->  | U189: =+'auxiliar capitulos'!$A$29 -> MUEBLES, ACCESORIOS, APARATOS SANITARIOS Y GRIFERÍA | V189: =VLOOKUP(U189,'auxiliar capitulos'!$A$2:$M$68,13,FALSE) -> 3.1.10 | W189: 8 | Y189: 21 | AA189: 15 | AB189: 6
A190: 182 | B190: ARQ1027 | C190: 3.1.10.9 | D190: =VLOOKUP(B190,'Listado Ins Ana'!$G$3966:$M$8318,2,FALSE) -> TORNIQUETE SENCILLO EN ACERO INOXIDABLE, MECANISMO DE BLOQUEO (CATRAX - DIGICON),O SIMILAR EQUIVALENTE. | E190: =VLOOKUP(B190,'Listado Ins Ana'!$G$3966:$M$8318,3,FALSE) -> UN | F190: 4 | G190: =ROUND(1.25*9971345,2) -> 12464181.25 | H190: 16036914 | I190: 64147656 | K190: 64147656 | N190: No se calculó cantidad para este ítem. Se solicita confirmar que este íem no aplica. | O190: 1 | S190: =VLOOKUP(B190,'Listado Ins Ana'!$G7716:$J100676,4,FALSE)-G190 -> -12464181.25 | U190: =+'auxiliar capitulos'!$A$29 -> MUEBLES, ACCESORIOS, APARATOS SANITARIOS Y GRIFERÍA | V190: =VLOOKUP(U190,'auxiliar capitulos'!$A$2:$M$68,13,FALSE) -> 3.1.10 | W190: 9 | Y190: 4 | AA190: 3 | AB190: 1
A191: 184 | B191: 7297 | C191: 3.1.10.10 | D191: MESON INTERIOR TAQUILLAS CON ESTRUCTURA METÁLICA DE SOPORTE Y ACABADO EN ACERO INOXIDABLE MATE, CON APOYO PISO DE A=40CM ( SUMINISTRO E INSTALACIÓN) SEGÚN CARTILLAN DE ESTACIONES TRANMILENIO, O SIMILAR EQUIVALENTE. | E191: ML | F191: 4.02 | G191: =1.25*246664 -> 308330 | H191: 396710 | I191: 1594774 | K191: 1594774 | M191: Este Item ya no esta en IDU | N191: No se calculó cantidad para este ítem. Se solicita confirmar que este íem no aplica. | O191: 1 | S191: =VLOOKUP(B191,'Listado Ins Ana'!$G7716:$J100678,4,FALSE)-G191 ->  | U191: =+'auxiliar capitulos'!$A$29 -> MUEBLES, ACCESORIOS, APARATOS SANITARIOS Y GRIFERÍA | V191: =VLOOKUP(U191,'auxiliar capitulos'!$A$2:$M$68,13,FALSE) -> 3.1.10 | W191: 10 | Y191: 4.02 | AA191: 4.02
A192: 185 | B192: 5122 | C192: 3.1.10.11 | D192: =VLOOKUP(B192,'Listado Ins Ana'!$G$3966:$M$8318,2,FALSE) -> SANITARIO LINEA INSTITUCIONAL COLOR BLANCO (VALVULA ANTIVANDALICA TIPO PUSH METALICO, CROMADO) SUMINISTRO E INSTALACION | E192: =VLOOKUP(B192,'Listado Ins Ana'!$G$3966:$M$8318,3,FALSE) -> UN | F192: 51 | G192: =VLOOKUP(B192,'Listado Ins Ana'!$G$3966:$M$8318,4,FALSE) -> 335266 | H192: 431367 | I192: 21999717 | K192: 21999717 | N192: No se calculó cantidad para este ítem. Se solicita confirmar que este íem no aplica. | O192: 1 | S192: =VLOOKUP(B192,'Listado Ins Ana'!$G7716:$J100679,4,FALSE)-G192 ->  | U192: =+'auxiliar capitulos'!$A$29 -> MUEBLES, ACCESORIOS, APARATOS SANITARIOS Y GRIFERÍA | V192: =VLOOKUP(U192,'auxiliar capitulos'!$A$2:$M$68,13,FALSE) -> 3.1.10 | W192: 11 | Y192: 51 | Z192: 17 | AA192: 23 | AB192: 11
A193: 186 | B193: 5123 | C193: 3.1.10.12 | D193: =VLOOKUP(B193,'Listado Ins Ana'!$G$3966:$M$8318,2,FALSE) -> SANITARIO LINEA INSTITUCIONAL PARA DISCAPACITADOS COLOR BLANCO (VALVULA ANTIVANDALICA TIPO PUSH METALICO, CROMADO) SUMINISTRO E INSTALACION. | E193: =VLOOKUP(B193,'Listado Ins Ana'!$G$3966:$M$8318,3,FALSE) -> UN | F193: 0 | G193: =VLOOKUP(B193,'Listado Ins Ana'!$G$3966:$M$8318,4,FALSE) -> 1060622 | H193: 1364639 | I193: 0 | K193: 0 | N193: No se calculó cantidad para este ítem. Se solicita confirmar que este íem no aplica. | O193: 1 | S193: =VLOOKUP(B193,'Listado Ins Ana'!$G7716:$J100680,4,FALSE)-G193 ->  | U193: =+'auxiliar capitulos'!$A$29 -> MUEBLES, ACCESORIOS, APARATOS SANITARIOS Y GRIFERÍA | V193: =VLOOKUP(U193,'auxiliar capitulos'!$A$2:$M$68,13,FALSE) -> 3.1.10 | W193: 12 | Y193: 0
A194: 187 | B194: ARQ902 | C194: 3.1.10.13 | D194: =VLOOKUP(B194,'Listado Ins Ana'!$G$3966:$M$8318,2,FALSE) -> DIVISIONES PARA BAÑOS EN ACERO INOXIDABLE Y ACCESORIOS. | E194: =VLOOKUP(B194,'Listado Ins Ana'!$G$3966:$M$8318,3,FALSE) -> M2 | F194: 127.85 | G194: =VLOOKUP(B194,'Listado Ins Ana'!$G$3966:$M$8318,4,FALSE) -> 541218 | H194: 696353 | I194: 89028731 | K194: 89028731 | N194: No se calculó cantidad para este ítem. Se solicita confirmar que este íem no aplica. | O194: 1 | S194: =VLOOKUP(B194,'Listado Ins Ana'!$G7715:$J100680,4,FALSE)-G194 -> 0 | U194: =+'auxiliar capitulos'!$A$29 -> MUEBLES, ACCESORIOS, APARATOS SANITARIOS Y GRIFERÍA | V194: =VLOOKUP(U194,'auxiliar capitulos'!$A$2:$M$68,13,FALSE) -> 3.1.10 | W194: 13 | Y194: 127.85 | Z194: 42 | AA194: 28.25 | AB194: 57.6
A195: 187 | B195: 5124 | C195: 3.1.10.14 | D195: =VLOOKUP(B195,'Listado Ins Ana'!$G$3966:$M$8318,2,FALSE) -> ORINAL MEDIANO DE COLGAR TIPO INSTITUCIONAL COLOR BLANCO (VALVULA ANTIVANDALICA TIPO PUSH METALICO, CROMADO) SUMINISTRO E INSTALACION | E195: =VLOOKUP(B195,'Listado Ins Ana'!$G$3966:$M$8318,3,FALSE) -> UN | F195: 7 | G195: =VLOOKUP(B195,'Listado Ins Ana'!$G$3966:$M$8318,4,FALSE) -> 352219 | H195: 453179 | I195: 3172253 | K195: 3172253 | N195: No se calculó cantidad para este ítem. Se solicita confirmar que este íem no aplica. | O195: 1 | S195: =VLOOKUP(B195,'Listado Ins Ana'!$G7716:$J100681,4,FALSE)-G195 ->  | U195: =+'auxiliar capitulos'!$A$29 -> MUEBLES, ACCESORIOS, APARATOS SANITARIOS Y GRIFERÍA | V195: =VLOOKUP(U195,'auxiliar capitulos'!$A$2:$M$68,13,FALSE) -> 3.1.10 | W195: 14 | Y195: 7 | Z195: 4 | AA195: 2 | AB195: 1
A196: 188 | B196: 5494 | C196: 3.1.10.15 | D196: =VLOOKUP(B196,'Listado Ins Ana'!$G$3966:$M$8318,2,FALSE) -> LAVAMANOS INSTITUCIONAL DE EMPOTRAR. (SUMINISTRO E INSTALACIÓN. INCLUYE GRIFERÍA TIPO PUSH O SIMILAR Y TUBERÍA DE CONEXIÓN). | E196: =VLOOKUP(B196,'Listado Ins Ana'!$G$3966:$M$8318,3,FALSE) -> UN | F196: 35 | G196: =VLOOKUP(B196,'Listado Ins Ana'!$G$3966:$M$8318,4,FALSE) -> 365827 | H196: 470688 | I196: 16474080 | K196: 16474080 | N196: No se calculó cantidad para este ítem. Se solicita confirmar que este íem no aplica. | O196: 1 | S196: =VLOOKUP(B196,'Listado Ins Ana'!$G7716:$J100682,4,FALSE)-G196 ->  | U196: =+'auxiliar capitulos'!$A$29 -> MUEBLES, ACCESORIOS, APARATOS SANITARIOS Y GRIFERÍA | V196: =VLOOKUP(U196,'auxiliar capitulos'!$A$2:$M$68,13,FALSE) -> 3.1.10 | W196: 15 | Y196: 35 | Z196: 15 | AA196: 14 | AB196: 6
A197: 189 | B197: 5502 | C197: 3.1.10.16 | D197: =VLOOKUP(B197,'Listado Ins Ana'!$G$3966:$M$8318,2,FALSE) -> LAVAMANOS DE COLGAR PARA PERSONAS EN CONDICIÓN DE MOVILIDAD REDUCIDA. (SUMINISTRO E INSTALACIÓN. INCLUYE GRIFERÍA TIPO PUSH ANTIVANDÁLICO). | E197: =VLOOKUP(B197,'Listado Ins Ana'!$G$3966:$M$8318,3,FALSE) -> UN | F197: 18 | G197: =VLOOKUP(B197,'Listado Ins Ana'!$G$3966:$M$8318,4,FALSE) -> 348801 | H197: 448781 | I197: 8078058 | K197: 8078058 | N197: No se calculó cantidad para este ítem. Se solicita confirmar que este íem no aplica. | O197: 1 | S197: =VLOOKUP(B197,'Listado Ins Ana'!$G7716:$J100683,4,FALSE)-G197 ->  | U197: =+'auxiliar capitulos'!$A$29 -> MUEBLES, ACCESORIOS, APARATOS SANITARIOS Y GRIFERÍA | V197: =VLOOKUP(U197,'auxiliar capitulos'!$A$2:$M$68,13,FALSE) -> 3.1.10 | W197: 16 | Y197: 18 | Z197: 2 | AA197: 10 | AB197: 6
A198: 190 | B198: ARQ1028 | C198: 3.1.10.17 | D198: =VLOOKUP(B198,'Listado Ins Ana'!$G$3966:$M$8318,2,FALSE) -> LAVAMANOS DE COLGAR , (SUMINISTRO E INSTALACIÓN, INCLUYE GRIFERÍA TIPO PUSH ANTIVANDÁLICO), O SIMILAR EQUIVALENTE. | E198: =VLOOKUP(B198,'Listado Ins Ana'!$G$3966:$M$8318,3,FALSE) -> UN | F198: 6 | G198: =VLOOKUP(B198,'Listado Ins Ana'!$G$3966:$M$8318,4,FALSE) -> 348802.19 | H198: 448783 | I198: 2692698 | K198: 2692698 | N198: No se calculó cantidad para este ítem. Se solicita confirmar que este íem no aplica. | O198: 1 | S198: =VLOOKUP(B198,'Listado Ins Ana'!$G7716:$J100684,4,FALSE)-G198 -> 0 | U198: =+'auxiliar capitulos'!$A$29 -> MUEBLES, ACCESORIOS, APARATOS SANITARIOS Y GRIFERÍA | V198: =VLOOKUP(U198,'auxiliar capitulos'!$A$2:$M$68,13,FALSE) -> 3.1.10 | W198: 17 | Y198: 6 | Z198: 3 | AA198: 2 | AB198: 1
A199: 191 | B199: 5127 | C199: 3.1.10.18 | D199: =VLOOKUP(B199,'Listado Ins Ana'!$G$3966:$M$8318,2,FALSE) -> SECADOR ELECTRICO PARA MANOS TIPO MANOS LIBRES, CARCAZA OVALADA METALICA ACERO INOXIDABLE 304 SATINADO CAL. 1.2MM MOTOR SIN ESCOBILLAS, RANGO DE DETECCION DEL SENSOR AJUSTABLE, DE 10 CM A 30 CM. SUMINISTRO E INSTALACION. | E199: =VLOOKUP(B199,'Listado Ins Ana'!$G$3966:$M$8318,3,FALSE) -> UN | F199: 53 | G199: =VLOOKUP(B199,'Listado Ins Ana'!$G$3966:$M$8318,4,FALSE) -> 365992 | H199: 470900 | I199: 24957700 | K199: 24957700 | N199: No se calculó cantidad para este ítem. Se solicita confirmar que este íem no aplica. | O199: 1 | S199: =VLOOKUP(B199,'Listado Ins Ana'!$G7716:$J100685,4,FALSE)-G199 ->  | U199: =+'auxiliar capitulos'!$A$29 -> MUEBLES, ACCESORIOS, APARATOS SANITARIOS Y GRIFERÍA | V199: =VLOOKUP(U199,'auxiliar capitulos'!$A$2:$M$68,13,FALSE) -> 3.1.10 | W199: 18 | Y199: 53 | Z199: 36 | AA199: 16 | AB199: 1
A200: 192 | B200: ARQ1012 | C200: 3.1.10.19 | D200: =VLOOKUP(B200,'Listado Ins Ana'!$G$3966:$M$8318,2,FALSE) -> DISPENSADOR DE JABÓN INSTITUCIONAL EXPUESTO CON ACCIONAMIENTO TIPO PUSH, O SIMILAR EQUIVALENTE. | E200: =VLOOKUP(B200,'Listado Ins Ana'!$G$3966:$M$8318,3,FALSE) -> UN | F200: 44 | G200: =VLOOKUP(B200,'Listado Ins Ana'!$G$3966:$M$8318,4,FALSE) -> 91578 | H200: 117828 | I200: 5184432 | K200: 5184432 | N200: No se calculó cantidad para este ítem. Se solicita confirmar que este íem no aplica. | O200: 1 | S200: =VLOOKUP(B200,'Listado Ins Ana'!$G7716:$J100686,4,FALSE)-G200 -> 0 | U200: =+'auxiliar capitulos'!$A$29 -> MUEBLES, ACCESORIOS, APARATOS SANITARIOS Y GRIFERÍA | V200: =VLOOKUP(U200,'auxiliar capitulos'!$A$2:$M$68,13,FALSE) -> 3.1.10 | W200: 19 | Y200: 44 | Z200: 14 | AA200: 19 | AB200: 11
... 708 more rows

Sheet PPTO GRAL CAPEX ELECTROM
A1: 1
A2: 2 | B2: FORMATO
A3: 3 | B3: Presupuesto General de Obras - Costos Directos
A4: 4 | B4: CÓDIGO | D4: PROCESO | F4: VERSIÓN
A5: 5 | B5: FO-DP-01 | D5: Proyectos | F5: 2
A6: 6 | B6: INSTITUTO DE DESARROLLO URBANO
A7: 7 | B7: SUBDIRECCIÓN GENERAL DE DESARROLLO URBANO
A8: 8 | B8: DIRECCIÓN TÉCNICA DE PROYECTOS
A9: 9
A10: 10 | B10: OBJETO DE LA CONTRATACIÓN: | D10: ACTUALIZACIÓN, AJUSTES Y COMPLEMENTACIÓN DE LA FACTIBILIDAD Y ESTUDIOS Y DISEÑOS DEL CABLE AÉREO EN SAN CRISTÓBAL, EN BOGOTÁ D.C.
A11: 11 | B11: PRESUPUESTO GENERAL DE OBRAS ELECTROMECANICAS
A12: 12 | K12: =+'DATOS ENTRADA'!C11 -> 2022-03-22 | P12: =+'DATOS ENTRADA'!C11 -> 2022-03-22
A13: 13 | B13: COD. IDU | C13: ÍTEM | D13: DESCRIPCIÓN | E13: UNIDAD | F13: CANTIDAD | G13: VR. UNITARIO COSTO DIRECTO (euros) | H13: PARTIDA ARANCELARIA DECRETO2153 DE 2021 | I13: VR. UNITARIO COSTO DIRECTO INCLUYE ARANCEL (euros) | J13: VR. UNITARIO CON A.I.U. (euros) | K13: VR. PARCIAL CON A.I.U. (euros) | L13: VR. UNITARIO COSTO DIRECTO ($) | M13: VR. UNITARIO CON A.I.U. (euros) ANTES DE ARANCELES | N13: VR. UNITARIO CON A.I.U. ($) | O13: VR. PARCIAL CON A.I.U. ($) | P13: VALOR TOTAL ($)
A14: 14 | C14: 1 | D14: SISTEMA ELECTROMECANICO
A15: 18 | B15: =+CAPEX!A83 -> ELM001 | C15: 1.1 | D15: PROYECTO DE INGENIERÍA DE DETALLE DEL SISTEMA ELECTROMECÁNICO INCLUIDO ALMACÉN DE CABINAS Y COORDINACIÓN CON EL RESTO DE ESPECIALIDADES PARA EVENTUALES AJUSTES DEL DISEÑO DE LOS EDIFICIOS. | E15: GL | F15: 1 | G15: =+M15/(1+$F$45) -> 457692.3077 | H15: 0 | I15: =+G15*(1+H15) -> 457692.3077 | J15: =+F15*I15+(1+$F$45) -> 457693.6077 | K15: =+F15*J15 -> 457693.6077 | L15: =ROUND(I15*'DATOS ENTRADA'!$C$31,2) -> 1932042808 | M15: =+CAPEX!H83 -> 595000 | N15: =+L15*(1+$F$45) -> 2511655650 | O15: =F15*N15 -> 2511655650 | P15: =ROUND(N15*F15,0) -> 2511655650 | Q15: =+P15-'[93]PPTO GRAL CAPEX ELECTROM'!P15 -> 0
A16: 19 | B16: =+CAPEX!A84 -> ELM002 | C16: 1.2 | D16: ESTACIÓN MOTRIZ COMPLETA: INCLUYE LA FABRICACIÓN DE LOS COMPONENTES, EL TRANSPORTE, DISTRIBUCIÓN EN OBRA, MONTAJE, REGLAJES Y PRUEBAS PREVIAS A LA PUESTA EN MARCHA. LA ESTACIÓN DEBE INCLUIR (LISTA NO EXHAUSTIVA) LA ESTRUCTURA DE SOPORTE, EL SISTEMA DE MOTORIZACIÓN PRINCIPAL, EL MOTOR DE EMERGENCIA, LOS FRENOS DE SERVICIO Y SEGURIDAD, LAS VÍAS DE TRANSFERENCIA DE CABINAS ENTRE BUCLES, LOS EQUIPOS ELÉCTRICOS DE MANDO Y SEGURIDAD, LOS ANDENES, BARANDILLAS Y OTROS ACCESORIOS, MEDIA CUBIERTA (PARTE EXTERIOR AL EDIFICIO), LA SEÑALIZACIÓN DE ESTACIÓN Y EL UTILLAJE ESPECÍFICO Y SUMINISTROS DE RECAMBIO PARA EL PRIMER AÑO DE EXPLOTACIÓN. | E16: GL | F16: 1 | G16: =+M16/(1+$F$45) -> 6612778.949 | H16: 0.05 | I16: =+G16*(1+H16) -> 6943417.897 | J16: =+I16*(1+$F$45) -> 9026443.266 | K16: =+F16*J16 -> 9026443.266 | L16: =ROUND(I16*'DATOS ENTRADA'!$C$31,2) -> 2.931004166e+10 | M16: =+CAPEX!H84 -> 8596612.634 | N16: =+L16*(1+$F$45) -> 3.810305416e+10 | O16: 3.810305416e+10 | P16: 38103054163 | Q16: =+P16-'[93]PPTO GRAL CAPEX ELECTROM'!P16 -> 0
A17: 20 | B17: =+CAPEX!A85 -> ELM003 | C17: 1.3 | D17: ESTACIÓN DE RETORNO COMPLETA: INCLUYE LA FABRICACIÓN DE LOS COMPONENTES, EL TRANSPORTE, DISTRIBUCIÓN EN OBRA, MONTAJE, REGLAJES Y PRUEBAS PREVIAS A LA PUESTA EN MARCHA. LA ESTACIÓN DEBE INCLUIR (LISTA NO EXHAUSTIVA) LA ESTRUCTURA DE SOPORTE, EL SISTEMA DE TENSIÓN (PISTONES, CENTRAL HIDRÁULICA, ETC.), LOS EQUIPOS ELÉCTRICOS DE MANDO Y SEGURIDAD, LOS ANDENES, BARANDILLAS Y OTROS ACCESORIOS, MEDIA CUBIERTA (PARTE EXTERIOR AL EDIFICIO), LA SEÑALIZACIÓN DE ESTACIÓN Y EL UTILLAJE ESPECÍFICO Y SUMINISTROS DE RECAMBIO PARA EL PRIMER AÑO DE EXPLOTACIÓN. | E17: GL | F17: 1 | G17: 4721409.113 | H17: 0.05 | I17: 4957479.569 | J17: =+I17*(1+$F$45) -> 6444723.44 | K17: 6444723.44 | L17: =ROUND(I17*'DATOS ENTRADA'!$C$31,2) -> 2.092685978e+10 | M17: =+CAPEX!H85 -> 6137831.847 | N17: =+L17*(1+$F$45) -> 2.720491771e+10 | O17: 2.720491771e+10 | P17: 27204917715 | Q17: =+P17-'[93]PPTO GRAL CAPEX ELECTROM'!P17 -> 0
B18: =+CAPEX!A86 -> ELM004 | C18: 1.4 | D18: ALMACÉN DE VEHÍCULOS COMPLETO: INCLUYE LA FABRICACIÓN DE LOS COMPONENTES, EL TRANSPORTE, DISTRIBUCIÓN EN OBRA, MONTAJE, REGLAJES Y PRUEBAS PREVIAS A LA PUESTA EN MARCHA. EL ALMACÉN DEBE INCLUIR (LISTA NO EXHAUSTIVA), EL SISTEMA DE AGUJAS DE ESTACIÓN PARA EL CICLADO/DESCICLADO DE VEHÍCULOS, LOS ANDENES ESCAMOTEABLES PARA EL PASO DE CABINAS HACIA/DESDE ESTACIÓN, LA ESTRUCTURA DE SOPORTE Y GUIADO DE LAS CABINAS, LOS EQUIPAMIENTOS PARA LA AUTOMATIZACIÓN (MOTORES), EL SISTEMA DE ASCENSOR PARA EL MOVIMIENTO ENTRE PLANTAS DEL GARAJE, LOS EQUIPOS ELÉCTRICOS DE MANDO Y SEGURIDAD, LA SEÑALIZACIÓN Y EL UTILLAJE ESPECÍFICO (ESPECIALMENTE EL REQUERIDO PARA EL MANTENIMIENTO DE PINZAS) Y SUMINISTROS DE RECAMBIO PARA EL PRIMER AÑO DE EXPLOTACIÓN. | E18: GL | F18: 1 | G18: 1360015.015 | H18: 0.05 | I18: 1428015.766 | J18: 1856420.496 | K18: 1856420.496 | L18: =ROUND(I18*'DATOS ENTRADA'!$C$31,2) -> 6028040113 | M18: =+CAPEX!H86 -> 1768019.52 | N18: 7836452146 | O18: 7836452146 | P18: 7836452146 | Q18: =+P18-'[93]PPTO GRAL CAPEX ELECTROM'!P18 -> 0
B19: =+CAPEX!A87 -> ELM005 | C19: 1.5 | D19: CABLE TRACTOR-PORTADOR: INCLUYE LA FABRICACIÓN DE LOS CABLES, EL TRANSPORTE, DISTRIBUCIÓN EN OBRA, EXTENDIDO DEL CABLE, RETENCIÓN DEL CABLE, PASO DE CABLES GUÍA Y EMPALME. POSTERIOR RECABLEADO DEL CABLE SOBRE TORRES, ALINEACIÓN DEL CABLE SOBRE LOS BALANCINES, REGLAJES Y PRUEBAS PREVIAS A LA PUESTA EN MARCHA. SE INCLUYE EL CONTROL MAGNETOGRÁFICO DEL CABLE Y EL UTILLAJE ESPECÍFICO NECESARIO. | E19: GL | F19: 1 | G19: 1036644.867 | H19: 0.05 | I19: 1088477.11 | J19: 1415020.244 | K19: 1415020.244 | L19: =ROUND(I19*'DATOS ENTRADA'!$C$31,2) -> 4594755772 | M19: =+CAPEX!H87 -> 1347638.327 | N19: 5973182504 | O19: 5973182504 | P19: 5973182504 | Q19: =+P19-'[93]PPTO GRAL CAPEX ELECTROM'!P19 -> 0
B20: =+CAPEX!A88 -> ELM006 | C20: 1.6 | D20: DOBLE LÍNEA DE SEGURIDAD Y COMUNICACIÓN INCLUYENDO LA CABLETA DE ACERO PORTANTE ASÍ COMO EL SISTEMA DE POSICIONAMIENTO DEL CABLE. INCLUYE LA FABRICACIÓN DE LOS COMPONENTES, EL TRANSPORTE, LA DISTRIBUCIÓN EN OBRA, EL MONTAJE, REGLAJES Y Y PRUEBAS PREVIAS A LA PUESTA EN MARCHA. SE INCLUYE TAMBIÉN LOS ANEMÓMETROS, VELETAS, AISLADORES, CAJAS DE CONEXIÓN Y RESTO DE ACCESORIOS ELÉCTRICOS Y EL SUMINISTRO DE RECAMBIOS PARA EL PRIMER AÑO DE EXPLOTACIÓN. | E20: GL | F20: 1 | G20: 368971.2456 | H20: 0.05 | I20: 387419.8079 | J20: 503645.7502 | K20: 503645.7502 | L20: =ROUND(I20*'DATOS ENTRADA'!$C$31,2) -> 1635403612 | M20: =+CAPEX!H88 -> 479662.6193 | N20: 2126024696 | O20: 2126024696 | P20: 2126024696 | Q20: =+P20-'[93]PPTO GRAL CAPEX ELECTROM'!P20 -> 0
B21: =+CAPEX!A89 -> ELM007 | C21: 1.7 | D21: TORRE 1 DE H ENTRE 10 Y <15 M Y EQUIPOS 12C (SUBIDA) Y 12C (BAJADA). INCLUYE LA FABRICACIÓN DE LOS COMPONENTES, EL TRANSPORTE, DISTRIBUCIÓN EN OBRA, MONTAJE, REGLAJES Y PRUEBAS PREVIAS A LA PUESTA EN MARCHA. LA TORRE SERÁ COMPLETA, INCLUYENDO (LISTA NO EXHAUSTIVA): LOS FUSTES, POTENCIAS, SOBREPOTENCIAS, PASARELAS, ESCALERAS DE ACCESO, LÍNEA DE VIDA Y RESTO DE EQUIPAMIENTOS, INCLUIDOS LOS PERNOS DE ANCLAJE PARA LA OBRA CIVIL Y SISTEMA DE DESCABLEADO, Y EL SISTEMA DE ILUMINACIÓN PARA LA EXPLOTACIÓN NOCTURNA. | E21: GL | F21: 1 | G21: 191822.568 | H21: 0.05 | I21: 201413.6964 | J21: 261837.8053 | K21: 261837.8053 | L21: =ROUND(I21*'DATOS ENTRADA'!$C$31,2) -> 850221594.2 | M21: =+CAPEX!H89 -> 249369.3384 | N21: 1105288073 | O21: 1105288073 | P21: 1105288073 | Q21: =+P21-'[93]PPTO GRAL CAPEX ELECTROM'!P21 -> 0
B22: =+CAPEX!A90 -> ELM008 | C22: 1.8 | D22: TORRE 2 DE H ENTRE 20 Y <25 M Y EQUIPOS 8S (SUBIDA) Y 8S (BAJADA). INCLUYE LA FABRICACIÓN DE LOS COMPONENTES, EL TRANSPORTE, DISTRIBUCIÓN EN OBRA, MONTAJE, REGLAJES Y PRUEBAS PREVIAS A LA PUESTA EN MARCHA. LA TORRE SERÁ COMPLETA, INCLUYENDO (LISTA NO EXHAUSTIVA): LOS FUSTES, POTENCIAS, SOBREPOTENCIAS, PASARELAS, ESCALERAS DE ACCESO, LÍNEA DE VIDA Y RESTO DE EQUIPAMIENTOS, INCLUIDOS LOS PERNOS DE ANCLAJE PARA LA OBRA CIVIL Y EL SISTEMA DE ILUMINACIÓN PARA LA EXPLOTACIÓN NOCTURNA. | E22: GL | F22: 1 | G22: 228830.9016 | H22: 0.05 | I22: 240272.4467 | J22: 312354.1807 | K22: 312354.1807 | L22: =ROUND(I22*'DATOS ENTRADA'!$C$31,2) -> 1014254871 | M22: =+CAPEX!H90 -> 297480.1721 | N22: 1318531332 | O22: 1318531332 | P22: 1318531332 | Q22: =+P22-'[93]PPTO GRAL CAPEX ELECTROM'!P22 -> 0
B23: =+CAPEX!A91 -> ELM009 | C23: 1.9 | D23: TORRE 3 DE H ENTRE 30 Y <35 M Y EQUIPOS 10S (SUBIDA) Y 10S (BAJADA). INCLUYE LA FABRICACIÓN DE LOS COMPONENTES, EL TRANSPORTE, DISTRIBUCIÓN EN OBRA, MONTAJE, REGLAJES Y PRUEBAS PREVIAS A LA PUESTA EN MARCHA. LA TORRE SERÁ COMPLETA, INCLUYENDO (LISTA NO EXHAUSTIVA): LOS FUSTES, POTENCIAS, SOBREPOTENCIAS, PASARELAS, ESCALERAS DE ACCESO, LÍNEA DE VIDA Y RESTO DE EQUIPAMIENTOS, INCLUIDOS LOS PERNOS DE ANCLAJE PARA LA OBRA CIVIL Y EL SISTEMA DE ILUMINACIÓN PARA LA EXPLOTACIÓN NOCTURNA. | E23: GL | F23: 1 | G23: 282399.8323 | H23: 0.05 | I23: 296519.8239 | J23: 385475.7711 | K23: 385475.7711 | L23: =ROUND(I23*'DATOS ENTRADA'!$C$31,2) -> 1251690237 | M23: =+CAPEX!H91 -> 367119.782 | N23: 1627197308 | O23: 1627197308 | P23: 1627197308 | Q23: =+P23-'[93]PPTO GRAL CAPEX ELECTROM'!P23 -> 0
B24: =+CAPEX!A92 -> ELM010 | C24: 1.10 | D24: TORRE 4 DE H ENTRE 25 Y <30 M Y EQUIPOS 12S (SUBIDA) Y 12S (BAJADA). INCLUYE LA FABRICACIÓN DE LOS COMPONENTES, EL TRANSPORTE, DISTRIBUCIÓN EN OBRA, MONTAJE, REGLAJES Y PRUEBAS PREVIAS A LA PUESTA EN MARCHA. LA TORRE SERÁ COMPLETA, INCLUYENDO (LISTA NO EXHAUSTIVA): LOS FUSTES, POTENCIAS, SOBREPOTENCIAS, PASARELAS, ESCALERAS DE ACCESO, LÍNEA DE VIDA Y RESTO DE EQUIPAMIENTOS, INCLUIDOS LOS PERNOS DE ANCLAJE PARA LA OBRA CIVIL Y EL SISTEMA DE ILUMINACIÓN PARA LA EXPLOTACIÓN NOCTURNA. | E24: GL | F24: 1 | G24: 275279.3647 | H24: 0.05 | I24: 289043.3329 | J24: 375756.3328 | K24: 375756.3328 | L24: =ROUND(I24*'DATOS ENTRADA'!$C$31,2) -> 1220129950 | M24: =+CAPEX!H92 -> 357863.1741 | N24: 1586168935 | O24: 1586168935 | P24: 1586168935 | Q24: =+P24-'[93]PPTO GRAL CAPEX ELECTROM'!P24 -> 0
B25: =+CAPEX!A93 -> ELM011 | C25: 1.11 | D25: TORRE 5 DE H ENTRE 20 Y <25 M Y EQUIPOS 10S (SUBIDA) Y 10S (BAJADA). INCLUYE LA FABRICACIÓN DE LOS COMPONENTES, EL TRANSPORTE, DISTRIBUCIÓN EN OBRA, MONTAJE, REGLAJES Y PRUEBAS PREVIAS A LA PUESTA EN MARCHA. LA TORRE SERÁ COMPLETA, INCLUYENDO (LISTA NO EXHAUSTIVA): LOS FUSTES, POTENCIAS, SOBREPOTENCIAS, PASARELAS, ESCALERAS DE ACCESO, LÍNEA DE VIDA Y RESTO DE EQUIPAMIENTOS, INCLUIDOS LOS PERNOS DE ANCLAJE PARA LA OBRA CIVIL Y EL SISTEMA DE ILUMINACIÓN PARA LA EXPLOTACIÓN NOCTURNA. | E25: GL | F25: 1 | G25: 224329.9849 | H25: 0.05 | I25: 235546.4842 | J25: 306210.4294 | K25: 306210.4294 | L25: =ROUND(I25*'DATOS ENTRADA'!$C$31,2) -> 994305307.1 | M25: =+CAPEX!H93 -> 291628.9804 | N25: 1292596899 | O25: 1292596899 | P25: 1292596899 | Q25: =+P25-'[93]PPTO GRAL CAPEX ELECTROM'!P25 -> 0
B26: =+CAPEX!A94 -> ELM012 | C26: 1.12 | D26: TORRE 6 DE H ENTRE 35 Y <40 M Y EQUIPOS 12S (SUBIDA) Y 12S (BAJADA). INCLUYE LA FABRICACIÓN DE LOS COMPONENTES, EL TRANSPORTE, DISTRIBUCIÓN EN OBRA, MONTAJE, REGLAJES Y PRUEBAS PREVIAS A LA PUESTA EN MARCHA. LA TORRE SERÁ COMPLETA, INCLUYENDO (LISTA NO EXHAUSTIVA): LOS FUSTES, POTENCIAS, SOBREPOTENCIAS, PASARELAS, ESCALERAS DE ACCESO, LÍNEA DE VIDA Y RESTO DE EQUIPAMIENTOS, INCLUIDOS LOS PERNOS DE ANCLAJE PARA LA OBRA CIVIL Y EL SISTEMA DE ILUMINACIÓN PARA LA EXPLOTACIÓN NOCTURNA. | E26: GL | F26: 1 | G26: 303772.4804 | H26: 0.05 | I26: 318961.1044 | J26: 414649.4358 | K26: 414649.4358 | L26: =ROUND(I26*'DATOS ENTRADA'!$C$31,2) -> 1346420941 | M26: =+CAPEX!H94 -> 394904.2245 | N26: 1750347224 | O26: 1750347224 | P26: 1750347224 | Q26: =+P26-'[93]PPTO GRAL CAPEX ELECTROM'!P26 -> 0
B27: =+CAPEX!A95 -> ELM013 | C27: 1.13 | D27: TORRE 7 DE H ENTRE 35 Y <40 M Y EQUIPOS 12S (SUBIDA) Y 12S (BAJADA). INCLUYE LA FABRICACIÓN DE LOS COMPONENTES, EL TRANSPORTE, DISTRIBUCIÓN EN OBRA, MONTAJE, REGLAJES Y PRUEBAS PREVIAS A LA PUESTA EN MARCHA. LA TORRE SERÁ COMPLETA, INCLUYENDO (LISTA NO EXHAUSTIVA): LOS FUSTES, POTENCIAS, SOBREPOTENCIAS, PASARELAS, ESCALERAS DE ACCESO, LÍNEA DE VIDA Y RESTO DE EQUIPAMIENTOS, INCLUIDOS LOS PERNOS DE ANCLAJE PARA LA OBRA CIVIL Y EL SISTEMA DE ILUMINACIÓN PARA LA EXPLOTACIÓN NOCTURNA. | E27: GL | F27: 1 | G27: 303772.4804 | H27: 0.05 | I27: 318961.1044 | J27: 414649.4358 | K27: 414649.4358 | L27: =ROUND(I27*'DATOS ENTRADA'!$C$31,2) -> 1346420941 | M27: =+CAPEX!H95 -> 394904.2245 | N27: 1750347224 | O27: 1750347224 | P27: 1750347224 | Q27: =+P27-'[93]PPTO GRAL CAPEX ELECTROM'!P27 -> 0
B28: =+CAPEX!A96 -> ELM014 | C28: 1.14 | D28: TORRE 8 DE H ENTRE 20 Y <25 M Y EQUIPOS 12S (SUBIDA) Y 12S (BAJADA). INCLUYE LA FABRICACIÓN DE LOS COMPONENTES, EL TRANSPORTE, DISTRIBUCIÓN EN OBRA, MONTAJE, REGLAJES Y PRUEBAS PREVIAS A LA PUESTA EN MARCHA. LA TORRE SERÁ COMPLETA, INCLUYENDO (LISTA NO EXHAUSTIVA): LOS FUSTES, POTENCIAS, SOBREPOTENCIAS, PASARELAS, ESCALERAS DE ACCESO, LÍNEA DE VIDA Y RESTO DE EQUIPAMIENTOS, INCLUIDOS LOS PERNOS DE ANCLAJE PARA LA OBRA CIVIL Y EL SISTEMA DE ILUMINACIÓN PARA LA EXPLOTACIÓN NOCTURNA. | E28: GL | F28: 1 | G28: 234419.1922 | H28: 0.05 | I28: 246140.1519 | J28: 319982.1974 | K28: 319982.1974 | L28: =ROUND(I28*'DATOS ENTRADA'!$C$31,2) -> 1039024039 | M28: =+CAPEX!H96 -> 304744.9499 | N28: 1350731250 | O28: 1350731250 | P28: 1350731250 | Q28: =+P28-'[93]PPTO GRAL CAPEX ELECTROM'!P28 -> 0
B29: =+CAPEX!A97 -> ELM015 | C29: 1.15 | D29: TORRE 9 EN "Y" DE HA=15,1 M Y HB=15,2 MY EQUIPOS 10S (A) Y 12S (B) (SUBIDA) Y 10S (A) Y 12S (B) (BAJADA). INCLUYE LA FABRICACIÓN DE LOS COMPONENTES, EL TRANSPORTE, DISTRIBUCIÓN EN OBRA, MONTAJE, REGLAJES Y PRUEBAS PREVIAS A LA PUESTA EN MARCHA. LA TORRE SERÁ COMPLETA, INCLUYENDO (LISTA NO EXHAUSTIVA): LOS FUSTES, POTENCIAS, SOBREPOTENCIAS, PASARELAS, ESCALERAS DE ACCESO, LÍNEA DE VIDA Y RESTO DE EQUIPAMIENTOS, INCLUIDOS LOS PERNOS DE ANCLAJE PARA LA OBRA CIVIL Y EL SISTEMA DE ILUMINACIÓN PARA LA EXPLOTACIÓN NOCTURNA. | E29: GL | F29: 1 | G29: 292673.8088 | H29: 0.05 | I29: 307307.4993 | J29: 399499.749 | K29: 399499.749 | L29: =ROUND(I29*'DATOS ENTRADA'!$C$31,2) -> 1297227927 | M29: =+CAPEX!H97 -> 380475.9515 | N29: 1686396306 | O29: 1686396306 | P29: 1686396306 | Q29: =+P29-'[93]PPTO GRAL CAPEX ELECTROM'!P29 -> 0
B30: =+CAPEX!A98 -> ELM016 | C30: 1.16 | D30: TORRE 10 DE H ENTRE 25 Y <30 M Y EQUIPOS 10S (SUBIDA) Y 10S (BAJADA). INCLUYE LA FABRICACIÓN DE LOS COMPONENTES, EL TRANSPORTE, DISTRIBUCIÓN EN OBRA, MONTAJE, REGLAJES Y PRUEBAS PREVIAS A LA PUESTA EN MARCHA. LA TORRE SERÁ COMPLETA, INCLUYENDO (LISTA NO EXHAUSTIVA): LOS FUSTES, POTENCIAS, SOBREPOTENCIAS, PASARELAS, ESCALERAS DE ACCESO, LÍNEA DE VIDA Y RESTO DE EQUIPAMIENTOS, INCLUIDOS LOS PERNOS DE ANCLAJE PARA LA OBRA CIVIL Y EL SISTEMA DE ILUMINACIÓN PARA LA EXPLOTACIÓN NOCTURNA. | E30: GL | F30: 1 | G30: 238886.7873 | H30: 0.05 | I30: 250831.1266 | J30: 326080.4646 | K30: 326080.4646 | L30: =ROUND(I30*'DATOS ENTRADA'!$C$31,2) -> 1058825910 | M30: =+CAPEX!H98 -> 310552.8234 | N30: 1376473683 | O30: 1376473683 | P30: 1376473683 | Q30: =+P30-'[93]PPTO GRAL CAPEX ELECTROM'!P30 -> 0
B31: =+CAPEX!A99 -> ELM017 | C31: 1.17 | D31: TORRE 11 DE H ENTRE 15 Y <20 M Y EQUIPOS 8S8C (SUBIDA) Y 8S8C (BAJADA). INCLUYE LA FABRICACIÓN DE LOS COMPONENTES, EL TRANSPORTE, DISTRIBUCIÓN EN OBRA, MONTAJE, REGLAJES Y PRUEBAS PREVIAS A LA PUESTA EN MARCHA. LA TORRE SERÁ COMPLETA, INCLUYENDO (LISTA NO EXHAUSTIVA): LOS FUSTES, POTENCIAS, SOBREPOTENCIAS, PASARELAS, ESCALERAS DE ACCESO, LÍNEA DE VIDA Y RESTO DE EQUIPAMIENTOS, INCLUIDOS LOS PERNOS DE ANCLAJE PARA LA OBRA CIVIL Y EL SISTEMA DE ILUMINACIÓN PARA LA EXPLOTACIÓN NOCTURNA. | E31: GL | F31: 1 | G31: 271411.0061 | H31: 0.05 | I31: 284981.5564 | J31: 370476.0234 | K31: 370476.0234 | L31: =ROUND(I31*'DATOS ENTRADA'!$C$31,2) -> 1202984095 | M31: =+CAPEX!H99 -> 352834.308 | N31: 1563879323 | O31: 1563879323 | P31: 1563879323 | Q31: =+P31-'[93]PPTO GRAL CAPEX ELECTROM'!P31 -> 0
B32: =+CAPEX!A100 -> ELM018 | C32: 1.18 | D32: TORRE 12 DE H ENTRE 10 Y <15 M Y EQUIPOS 12C (SUBIDA) Y 12C (BAJADA). INCLUYE LA FABRICACIÓN DE LOS COMPONENTES, EL TRANSPORTE, DISTRIBUCIÓN EN OBRA, MONTAJE, REGLAJES Y PRUEBAS PREVIAS A LA PUESTA EN MARCHA. LA TORRE SERÁ COMPLETA, INCLUYENDO (LISTA NO EXHAUSTIVA): LOS FUSTES, POTENCIAS, SOBREPOTENCIAS, PASARELAS, ESCALERAS DE ACCESO, LÍNEA DE VIDA Y RESTO DE EQUIPAMIENTOS, INCLUIDOS LOS PERNOS DE ANCLAJE PARA LA OBRA CIVIL Y EL SISTEMA DE ILUMINACIÓN PARA LA EXPLOTACIÓN NOCTURNA. | E32: GL | F32: 1 | G32: 172805.8009 | H32: 0.05 | I32: 181446.091 | J32: 235879.9183 | K32: 235879.9183 | L32: =ROUND(I32*'DATOS ENTRADA'!$C$31,2) -> 765932940.5 | M32: =+CAPEX!H100 -> 224647.5412 | N32: 995712822.6 | O32: 995712822.6 | P32: 995712823 | Q32: =+P32-'[93]PPTO GRAL CAPEX ELECTROM'!P32 -> 0
B33: =+CAPEX!A101 -> ELM019 | C33: 1.19 | D33: TORRE 13 DE H ENTRE 10 Y <15 M Y EQUIPOS 12C (SUBIDA) Y 12C (BAJADA). INCLUYE LA FABRICACIÓN DE LOS COMPONENTES, EL TRANSPORTE, DISTRIBUCIÓN EN OBRA, MONTAJE, REGLAJES Y PRUEBAS PREVIAS A LA PUESTA EN MARCHA. LA TORRE SERÁ COMPLETA, INCLUYENDO (LISTA NO EXHAUSTIVA): LOS FUSTES, POTENCIAS, SOBREPOTENCIAS, PASARELAS, ESCALERAS DE ACCESO, LÍNEA DE VIDA Y RESTO DE EQUIPAMIENTOS, INCLUIDOS LOS PERNOS DE ANCLAJE PARA LA OBRA CIVIL Y SISTEMA DE DESCABLEADO Y EL SISTEMA DE ILUMINACIÓN PARA LA EXPLOTACIÓN NOCTURNA. | E33: GL | F33: 1 | G33: 172805.8009 | H33: 0.05 | I33: 181446.091 | J33: 235879.9183 | K33: 235879.9183 | L33: =ROUND(I33*'DATOS ENTRADA'!$C$31,2) -> 765932940.5 | M33: =+CAPEX!H101 -> 224647.5412 | N33: 995712822.6 | O33: 995712822.6 | P33: 995712823 | Q33: =+P33-'[93]PPTO GRAL CAPEX ELECTROM'!P33 -> 0
B34: =+CAPEX!A102 -> ELM020 | C34: 1.20 | D34: TORRE 14 DE H ENTRE 15 Y <20 M Y EQUIPOS 12S (SUBIDA) Y 12S (BAJADA). INCLUYE LA FABRICACIÓN DE LOS COMPONENTES, EL TRANSPORTE, DISTRIBUCIÓN EN OBRA, MONTAJE, REGLAJES Y PRUEBAS PREVIAS A LA PUESTA EN MARCHA. LA TORRE SERÁ COMPLETA, INCLUYENDO (LISTA NO EXHAUSTIVA): LOS FUSTES, POTENCIAS, SOBREPOTENCIAS, PASARELAS, ESCALERAS DE ACCESO, LÍNEA DE VIDA Y RESTO DE EQUIPAMIENTOS, INCLUIDOS LOS PERNOS DE ANCLAJE PARA LA OBRA CIVIL Y EL SISTEMA DE ILUMINACIÓN PARA LA EXPLOTACIÓN NOCTURNA. | E34: GL | F34: 1 | G34: 209350.7305 | H34: 0.05 | I34: 219818.267 | J34: 285763.7471 | K34: 285763.7471 | L34: =ROUND(I34*'DATOS ENTRADA'!$C$31,2) -> 927912255.8 | M34: =+CAPEX!H102 -> 272155.9496 | N34: 1206285933 | O34: 1206285933 | P34: 1206285933 | Q34: =+P34-'[93]PPTO GRAL CAPEX ELECTROM'!P34 -> 0
B35: =+CAPEX!A103 -> ELM021 | C35: 1.21 | D35: TORRE 15 DE H ENTRE 20 Y <25 M Y EQUIPOS 10S (SUBIDA) Y 10S (BAJADA). INCLUYE LA FABRICACIÓN DE LOS COMPONENTES, EL TRANSPORTE, DISTRIBUCIÓN EN OBRA, MONTAJE, REGLAJES Y PRUEBAS PREVIAS A LA PUESTA EN MARCHA. LA TORRE SERÁ COMPLETA, INCLUYENDO (LISTA NO EXHAUSTIVA): LOS FUSTES, POTENCIAS, SOBREPOTENCIAS, PASARELAS, ESCALERAS DE ACCESO, LÍNEA DE VIDA Y RESTO DE EQUIPAMIENTOS, INCLUIDOS LOS PERNOS DE ANCLAJE PARA LA OBRA CIVIL Y EL SISTEMA DE ILUMINACIÓN PARA LA EXPLOTACIÓN NOCTURNA. | E35: GL | F35: 1 | G35: 224329.9849 | H35: 0.05 | I35: 235546.4842 | J35: 306210.4294 | K35: 306210.4294 | L35: =ROUND(I35*'DATOS ENTRADA'!$C$31,2) -> 994305307.1 | M35: =+CAPEX!H103 -> 291628.9804 | N35: 1292596899 | O35: 1292596899 | P35: 1292596899 | Q35: =+P35-'[93]PPTO GRAL CAPEX ELECTROM'!P35 -> 0
B36: =+CAPEX!A104 -> ELM022 | C36: 1.22 | D36: TORRE 16 DE H ENTRE 25 Y <30 M Y EQUIPOS 10S (SUBIDA) Y 10S (BAJADA). INCLUYE LA FABRICACIÓN DE LOS COMPONENTES, EL TRANSPORTE, DISTRIBUCIÓN EN OBRA, MONTAJE, REGLAJES Y PRUEBAS PREVIAS A LA PUESTA EN MARCHA. LA TORRE SERÁ COMPLETA, INCLUYENDO (LISTA NO EXHAUSTIVA): LOS FUSTES, POTENCIAS, SOBREPOTENCIAS, PASARELAS, ESCALERAS DE ACCESO, LÍNEA DE VIDA Y RESTO DE EQUIPAMIENTOS, INCLUIDOS LOS PERNOS DE ANCLAJE PARA LA OBRA CIVIL Y EL SISTEMA DE ILUMINACIÓN PARA LA EXPLOTACIÓN NOCTURNA. | E36: GL | F36: 1 | G36: 238886.7873 | H36: 0.05 | I36: 250831.1266 | J36: 326080.4646 | K36: 326080.4646 | L36: =ROUND(I36*'DATOS ENTRADA'!$C$31,2) -> 1058825910 | M36: =+CAPEX!H104 -> 310552.8234 | N36: 1376473683 | O36: 1376473683 | P36: 1376473683 | Q36: =+P36-'[93]PPTO GRAL CAPEX ELECTROM'!P36 -> 0
B37: =+CAPEX!A105 -> ELM023 | C37: 1.23 | D37: TORRE 17 DE H ENTRE 25 Y <30 M Y EQUIPOS 10S (SUBIDA) Y 10S (BAJADA). INCLUYE LA FABRICACIÓN DE LOS COMPONENTES, EL TRANSPORTE, DISTRIBUCIÓN EN OBRA, MONTAJE, REGLAJES Y PRUEBAS PREVIAS A LA PUESTA EN MARCHA. LA TORRE SERÁ COMPLETA, INCLUYENDO (LISTA NO EXHAUSTIVA): LOS FUSTES, POTENCIAS, SOBREPOTENCIAS, PASARELAS, ESCALERAS DE ACCESO, LÍNEA DE VIDA Y RESTO DE EQUIPAMIENTOS, INCLUIDOS LOS PERNOS DE ANCLAJE PARA LA OBRA CIVIL Y EL SISTEMA DE ILUMINACIÓN PARA LA EXPLOTACIÓN NOCTURNA. | E37: GL | F37: 1 | G37: 238886.7873 | H37: 0.05 | I37: 250831.1266 | J37: 326080.4646 | K37: 326080.4646 | L37: =ROUND(I37*'DATOS ENTRADA'!$C$31,2) -> 1058825910 | M37: =+CAPEX!H105 -> 310552.8234 | N37: 1376473683 | O37: 1376473683 | P37: 1376473683 | Q37: =+P37-'[93]PPTO GRAL CAPEX ELECTROM'!P37 -> 0
B38: =+CAPEX!A106 -> ELM024 | C38: 1.24 | D38: TORRE 18 DE H ENTRE 25 Y <30 M Y EQUIPOS 12S (SUBIDA) Y 12S (BAJADA). INCLUYE LA FABRICACIÓN DE LOS COMPONENTES, EL TRANSPORTE, DISTRIBUCIÓN EN OBRA, MONTAJE, REGLAJES Y PRUEBAS PREVIAS A LA PUESTA EN MARCHA. LA TORRE SERÁ COMPLETA, INCLUYENDO (LISTA NO EXHAUSTIVA): LOS FUSTES, POTENCIAS, SOBREPOTENCIAS, PASARELAS, ESCALERAS DE ACCESO, LÍNEA DE VIDA Y RESTO DE EQUIPAMIENTOS, INCLUIDOS LOS PERNOS DE ANCLAJE PARA LA OBRA CIVIL Y EL SISTEMA DE ILUMINACIÓN PARA LA EXPLOTACIÓN NOCTURNA. | E38: GL | F38: 1 | G38: 248975.9946 | H38: 0.05 | I38: 261424.7943 | J38: 339852.2326 | K38: 339852.2326 | L38: =ROUND(I38*'DATOS ENTRADA'!$C$31,2) -> 1103544642 | M38: =+CAPEX!H106 -> 323668.793 | N38: 1434608034 | O38: 1434608034 | P38: 1434608034 | Q38: =+P38-'[93]PPTO GRAL CAPEX ELECTROM'!P38 -> 0
B39: =+CAPEX!A107 -> ELM025 | C39: 1.25 | D39: TORRE 19 DE H ENTRE 30 Y <35 M Y EQUIPOS 12S (SUBIDA) Y 12S (BAJADA). INCLUYE LA FABRICACIÓN DE LOS COMPONENTES, EL TRANSPORTE, DISTRIBUCIÓN EN OBRA, MONTAJE, REGLAJES Y PRUEBAS PREVIAS A LA PUESTA EN MARCHA. LA TORRE SERÁ COMPLETA, INCLUYENDO (LISTA NO EXHAUSTIVA): LOS FUSTES, POTENCIAS, SOBREPOTENCIAS, PASARELAS, ESCALERAS DE ACCESO, LÍNEA DE VIDA Y RESTO DE EQUIPAMIENTOS, INCLUIDOS LOS PERNOS DE ANCLAJE PARA LA OBRA CIVIL Y EL SISTEMA DE ILUMINACIÓN PARA LA EXPLOTACIÓN NOCTURNA. | E39: GL | F39: 1 | G39: 271230.2732 | H39: 0.05 | I39: 284791.7869 | J39: 370229.3229 | K39: 370229.3229 | L39: =ROUND(I39*'DATOS ENTRADA'!$C$31,2) -> 1202183026 | M39: =+CAPEX!H107 -> 352599.3552 | N39: 1562837934 | O39: 1562837934 | P39: 1562837934 | Q39: =+P39-'[93]PPTO GRAL CAPEX ELECTROM'!P39 -> 0
B40: =+CAPEX!A108 -> ELM026 | C40: 1.26 | D40: TORRE 20 DE H ENTRE 30 Y <35 M Y EQUIPOS 10S (SUBIDA) Y 10S (BAJADA). INCLUYE LA FABRICACIÓN DE LOS COMPONENTES, EL TRANSPORTE, DISTRIBUCIÓN EN OBRA, MONTAJE, REGLAJES Y PRUEBAS PREVIAS A LA PUESTA EN MARCHA. LA TORRE SERÁ COMPLETA, INCLUYENDO (LISTA NO EXHAUSTIVA): LOS FUSTES, POTENCIAS, SOBREPOTENCIAS, PASARELAS, ESCALERAS DE ACCESO, LÍNEA DE VIDA Y RESTO DE EQUIPAMIENTOS, INCLUIDOS LOS PERNOS DE ANCLAJE PARA LA OBRA CIVIL Y EL SISTEMA DE ILUMINACIÓN PARA LA EXPLOTACIÓN NOCTURNA. | E40: GL | F40: 1 | G40: 261141.0659 | H40: 0.05 | I40: 274198.1192 | J40: 356457.5549 | K40: 356457.5549 | L40: =ROUND(I40*'DATOS ENTRADA'!$C$31,2) -> 1157464295 | M40: =+CAPEX!H108 -> 339483.3856 | N40: 1504703583 | O40: 1504703583 | P40: 1504703583 | Q40: =+P40-'[93]PPTO GRAL CAPEX ELECTROM'!P40 -> 0
B41: =+CAPEX!A109 -> ELM027 | C41: 1.27 | D41: TORRE 21 DE H ENTRE 20 Y <25 M Y EQUIPOS 12S (SUBIDA) Y 12S (BAJADA). INCLUYE LA FABRICACIÓN DE LOS COMPONENTES, EL TRANSPORTE, DISTRIBUCIÓN EN OBRA, MONTAJE, REGLAJES Y PRUEBAS PREVIAS A LA PUESTA EN MARCHA. LA TORRE SERÁ COMPLETA, INCLUYENDO (LISTA NO EXHAUSTIVA): LOS FUSTES, POTENCIAS, SOBREPOTENCIAS, PASARELAS, ESCALERAS DE ACCESO, LÍNEA DE VIDA Y RESTO DE EQUIPAMIENTOS, INCLUIDOS LOS PERNOS DE ANCLAJE PARA LA OBRA CIVIL Y EL SISTEMA DE ILUMINACIÓN PARA LA EXPLOTACIÓN NOCTURNA. | E41: GL | F41: 1 | G41: 234419.1922 | H41: 0.05 | I41: 246140.1519 | J41: 319982.1974 | K41: 319982.1974 | L41: =ROUND(I41*'DATOS ENTRADA'!$C$31,2) -> 1039024039 | M41: =+CAPEX!H109 -> 304744.9499 | N41: 1350731250 | O41: 1350731250 | P41: 1350731250 | Q41: =+P41-'[93]PPTO GRAL CAPEX ELECTROM'!P41 -> 0
B42: =+CAPEX!A110 -> ELM028 | C42: 1.28 | D42: TORRE 22 DE H ENTRE 10 Y <15 M Y EQUIPOS 10C (SUBIDA) Y 10C (BAJADA). INCLUYE LA FABRICACIÓN DE LOS COMPONENTES, EL TRANSPORTE, DISTRIBUCIÓN EN OBRA, MONTAJE, REGLAJES Y PRUEBAS PREVIAS A LA PUESTA EN MARCHA. LA TORRE SERÁ COMPLETA, INCLUYENDO (LISTA NO EXHAUSTIVA): LOS FUSTES, POTENCIAS, SOBREPOTENCIAS, PASARELAS, ESCALERAS DE ACCESO, LÍNEA DE VIDA Y RESTO DE EQUIPAMIENTOS, INCLUIDOS LOS PERNOS DE ANCLAJE PARA LA OBRA CIVIL Y SISTEMA DE DESCABLEADO Y EL SISTEMA DE ILUMINACIÓN PARA LA EXPLOTACIÓN NOCTURNA. | E42: GL | F42: 1 | G42: 180412.5078 | H42: 0.05 | I42: 189433.1332 | J42: 246263.0731 | K42: 246263.0731 | L42: =ROUND(I42*'DATOS ENTRADA'!$C$31,2) -> 799648402 | M42: =+CAPEX!H110 -> 234536.2601 | N42: 1039542923 | O42: 1039542923 | P42: 1039542923 | Q42: =+P42-'[93]PPTO GRAL CAPEX ELECTROM'!P42 -> 0
B43: =+CAPEX!A111 -> ELM029 | C43: 1.29 | D43: VEHÍCULOS: INCLUYE LA FABRICACIÓN DE LOS COMPONENTES, EL TRANSPORTE, DISTRIBUCIÓN EN OBRA, MONTAJE, REGLAJES Y PRUEBAS PREVIAS A LA PUESTA EN MARCHA. LOS VEHÍCULOS INCLUYEN LA CABINA COMPLETA PARA EL TRANSPORTE DE VIAJEROS, INCLUIDO EL BRAZO DE SUSPENSIÓN Y LA PINZA DESEMBRAGABLE, EL SISTEMA DE COMUNICACIÓN BIDIRECCIONAL, LA ILUMINACIÓN, LA VIDEOVIGILANCIA Y EL SISTEMA DE CARGA DE BATERÍAS. TAMBIÉN SE INCLUYE LOS VEHÍCULOS DE MANTENIMIENTO COMPLETOS Y LOS EQUIPOS DE RESCATE VERTICAL, ASÍ COMO LA SEÑALIZACIÓN DE LAS CABINAS, EL UTILLAJE ESPECÍFICO Y SUMINISTROS DE RECAMBIO PARA EL PRIMER AÑO DE EXPLOTACIÓN. | E43: GL | F43: 1 | G43: 6929129.699 | H43: 0.05 | I43: 7275586.184 | J43: 9458262.039 | K43: 9458262.039 | L43: =ROUND(I43*'DATOS ENTRADA'!$C$31,2) -> 3.071221369e+10 | M43: =+CAPEX!H111 -> 9007868.609 | N43: 3.99258778e+10 | O43: 3.99258778e+10 | P43: 39925877799 | Q43: =+P43-'[93]PPTO GRAL CAPEX ELECTROM'!P43 -> 0
Q44: =+P44-'[93]PPTO GRAL CAPEX ELECTROM'!P44 -> 0
D45: AIU | F45: 0.3 | K45: =SUM(K15:K44) -> 36397859.99 | P45: =SUM(P15:P44) -> 154224801798 | Q45: =+P45-'[93]PPTO GRAL CAPEX ELECTROM'!P45 -> 0

Sheet CAPEX (hidden)
E1: Estimación Costos de Inversión | F1: 0 | G1: 0 | H1: 0 | J1: Tasa de cambio COP/euro | K1: =+'DATOS ENTRADA'!C31 -> 4221.27
C2: 0 | D2: 0 | E2: Grupo 3 | F2: 0 | G2: 0 | H2: 0
E3: TC San Cristobal (secciones 1+2) | F3: 0 | G3: 0 | H3: 0
B4: 0 | C4: 0 | D4: Unidades | E4: Precios unitarios (€) | F4: Metrado (Cantidad) | G4: Coste € | H4: Coste COP
B5: 1 | C5: PROYECTO Y SUPERVISIÓN DE OBRA | G5: =+G6 -> 595000
B6: 1.01 | C6: Proyecto de ingeniería de detalle del sistema electromecánico incluido almacén de cabinas y coordinación con el resto de especialidades para eventuales ajustes del diseño de los edificios. | D6: und (bucles) | E6: 297500 | F6: 2 | G6: =+E6*F6 -> 595000
B7: 2 | C7: CONJUNTO DE ESTACIONES | G7: =+SUM(G8:G11) -> 9376840.741
B8: 2.01 | C8: Estructura de estación motriz completa, incluidos andenes, barandillas y accesorios | D8: und (bucles) | E8: 1753756.752 | F8: 2 | G8: =+E8*F8 -> 3507513.503
B9: 2.02 | C9: Estructura de estación de reenvío completa, incluidos andenes, barandillas y accesorios | D9: und (bucles) | E9: 1866835.286 | F9: 2 | G9: 3733670.573
B10: 2.03 | C10: Cubierta parcial de estación (parte del sistema electromecánico no integrada dentro de los edificios de estación) | D10: und | E10: 244979.1662 | F10: 4 | G10: 979916.6648
B11: 2.04 | C11: Estructura del almacén para todas las cabinas y los vehículos de mantenimiento, incluidas vías de garaje, ascensores/rampas, vía y plataforma de mantenimiento, plataforma abatible automática en andén para transferencia línea-garaje y accionamiento para el funcionamiento semi-automático del ciclado/desciclado de vehículos | D11: und | E11: 1155740 | F11: 1 | G11: 1155740
B12: 3 | C12: MAQUINARIA | G12: =+SUM(G13:G17) -> 4271467.856
B13: 3.01 | C13: Sistema de motorización, compuesto de un motor de acoplamiento directo de cuatro sectores como mínimo, dimensionado para funcionamiento en condiciones normales de operación en caso de avería de uno de los sectores. Se incluye asimismo el chasis, aparamenta eléctrica (variador de frecuencia) y accesorios. Potencia según descrito en la pestaña "Caract básicas" | D13: und (bucles) | E13: 1109846.044 | F13: 2 | G13: =+E13*F13 -> 2219692.087
B14: 3.02 | C14: Equipo eléctrico de mando y seguridad y accesorios | D14: und (bucles) | E14: 411950 | F14: 2 | G14: 823900
B15: 3.03 | C15: Motor térmico de emergencia, incluidos chasis, aparamenta eléctrica, acoplamiento y depósito de combustible | D15: und (bucles) | E15: 265251.9642 | F15: 2 | G15: 530503.9283
B16: 3.04 | C16: Sistema de frenos de servicio y de seguridad, todo incluido | D16: und (bucles) | E16: 96235.92 | F16: 2 | G16: 192471.84
B17: 3.05 | C17: Sistema de tensión del cable tractor, incluye chasis, contrapeso y elementos de seguridad | D17: und (bucles) | E17: 252450 | F17: 2 | G17: 504900
B18: 4 | C18: LÍNEA | G18: =+SUM(G19:G33) -> 6541212.466
B19: 4.01 | C19: Cable portador/tractor, de composición 6x25 FW o bien 6 x 26WS y 1.720 kN de fuerza de rotura mínima. El cable contiene perfiles plásticos entre los cordones para eliminar vibraciones y ruidos. Diámetro según descrito en la pestaña "Caract básicas" | D19: m | E19: 137.8020084 | F19: 6175.845123 | G19: =+E19*F19 -> 851043.8618
B20: 4.02 | C20: Doble línea de seguridad (compuesta por sistema redundante de barretas rompibles) y, además, sistema de control de posicionamiento del cable. Cableado en línea sportado por cableta de acero. Se incluyen dos anemómetros y dos veletas por sección, aisladores, cajas de conexión y resto de accesorios | D20: m | E20: 125.0745191 | F20: 2987.922562 | G20: 373712.9775
B21: 4.03 | C21: Torre de línea doble en "Y", incluidas potencias, sobrepotencias, pasarelas, escaleras de acceso, líneas de vida y resto de equipamientos. Se incluyen pernos de anclaje para obra civil y sistema de iluminación para explotación nocturna | D21: und | E21: 185239.8189 | F21: 1 | G21: 185239.8189
B22: 4.04 | C22: Torre de línea entre 10 m y menos de 15 m, incluida potencia, sobrepotencia, pasarelas, escaleras de acceso, línea de vida y resto de equipamientos. Se incluyen pernos de anclaje para obra civil y sistema de iluminación para explotación nocturna | D22: und | E22: 103629.3693 | F22: 4 | G22: 414517.4773
B23: 4.05 | C23: Torre de línea entre 15 m y menos de 20 m, incluida potencia, sobrepotencia, pasarelas, escaleras de acceso, línea de vida y resto de equipamientos. Se incluyen pernos de anclaje para obra civil y sistema de iluminación para explotación nocturna | D23: und | E23: 132192.6098 | F23: 2 | G23: 264385.2196
B24: 4.06 | C24: Torre de línea entre 20 m y menos de 25 m, incluida potencia, sobrepotencia, pasarelas, escaleras de acceso, línea de vida y resto de equipamientos. Se incluyen pernos de anclaje para obra civil y sistema de iluminación para explotación nocturna | D24: und | E24: 164781.6101 | F24: 5 | G24: 823908.0507
B25: 4.07 | C25: Torre de línea entre 25 m y menos de 30 m, incluida potencia, sobrepotencia, pasarelas, escaleras de acceso, línea de vida y resto de equipamientos. Se incluyen pernos de anclaje para obra civil y sistema de iluminación para explotación nocturna | D25: und | E25: 183705.4532 | F25: 5 | G25: 918527.266
B26: 4.08 | C26: Torre de línea entre 30 m y menos de 35 m, incluida potencia, sobrepotencia, pasarelas, escaleras de acceso, línea de vida y resto de equipamientos. Se incluyen pernos de anclaje para obra civil y sistema de iluminación para explotación nocturna | D26: und | E26: 212636.0154 | F26: 3 | G26: 637908.0462
B27: 4.09 | C27: Torre de línea entre 35 m y menos de 40 m, incluida potencia, sobrepotencia, pasarelas, escaleras de acceso, línea de vida y resto de equipamientos. Se incluyen pernos de anclaje para obra civil y sistema de iluminación para explotación nocturna | D27: und | E27: 254940.8848 | F27: 2 | G27: 509881.7695
B28: 4.1 | C28: Equipo balancín de soporte: 8S. Nota: Se incluye un balancín 8S extra para sustitución por uno de los balancines instalados en línea durante las tareas de mantenimiento | D28: und | E28: 20374.66148 | F28: 3 | G28: 61123.98443
B29: 4.11 | C29: Equipo balancín de soporte: 10S. Se incluye un balancín 10S extra para sustitución por uno de los balancines instalados en línea durante las tareas de mantenimiento | D29: und | E29: 27636.39637 | F29: 17 | G29: 469818.7383
B30: 4.12 | C30: Equipo balancín de soporte: 12S. Se incluye un balancín 12S extra para sustitución por uno de los balancines instalados en línea durante las tareas de mantenimiento | D30: und | E30: 34194.38114 | F30: 19 | G30: 649693.2417
B31: 4.13 | C31: Equipo balancín de compresión: 10C. Se incluye un balancín 10C extra para sustitución por uno de los balancines instalados en línea durante las tareas de mantenimiento | D31: und | E31: 19777.43775 | F31: 3 | G31: 59332.31326
B32: 4.14 | C32: Equipo balancín de compresión: 12C. Se incluye un balancín 12C extra para sustitución por uno de los balancines instalados en línea durante las tareas de mantenimiento | D32: und | E32: 24721.79719 | F32: 7 | G32: 173052.5804
B33: 4.15 | C33: Equipo balancín soporte/compresión: 8S/8C. Se incluye un balancín 8S/8C extra para sustitución por uno de los balancines instalados en línea durante las tareas de mantenimiento | D33: und | E33: 49689.04022 | F33: 3 | G33: 149067.1207
B34: 5 | C34: VEHÍCULOS | G34: =+SUM(G35:G38) -> 8447150.994
B35: 5.01 | C35: Cabina completa para el transporte de viajeros, incluido brazo de suspensión y pinza desembragable | D35: und | E35: 47150.15 | F35: 144 | G35: 6789621.6
B36: 5.02 | C36: Sistema de comunicación bidireccional vía radio y de difusión de mensajes en cabinas, iluminación y sistema de carga de baterías (según tecnología del proveedor) | D36: und | E36: 9782.383503 | F36: 144 | G36: 1408663.224
B37: 5.03 | C37: Vehículo de mantenimiento, incluido brazo de suspensión y pinza desembragable | D37: und (bucles) | E37: 32141 | F37: 2 | G37: 64282
B38: 5.04 | C38: Equipos de evacuación de pasajeros | D38: und | E38: 7383.366764 | F38: 25 | G38: 184584.1691
B39: 6 | C39: SEÑALIZACIÓN Y VARIOS | G39: =+SUM(G40:G42) -> 297924.4763
B40: 6.01 | C40: Control magnético del cable y control vibratorio del conjunto motores/reductores | D40: und (bucles) | E40: 19260 | F40: 2 | G40: 38520
B41: 6.02 | C41: Señalización completa para estaciones y vehículos | D41: und (bucles) | E41: 44940 | F41: 2 | G41: 89880
B42: 6.03 | C42: Herramientas específicas para el mantenimiento del sistema | D42: global | E42: 169524.4763 | F42: 1 | G42: 169524.4763
C43: TOTAL | G43: =+G39+G34+G18+G12+G7+G5 -> 29529596.53
B44: 7 | C44: TRANSPORTE | G44: =+SUM(G45:G46) -> 1931885
B45: 7.01 | C45: Flete Marítimo de equipos de fabrica (incluye aranceles aduana) | D45: contenedor | E45: 10700 | F45: 157 | G45: =+E45*F45 -> 1679900
B46: 7.02 | C46: Flete terrestre hasta lugar de la obra | D46: contenedor | E46: 1605 | F46: 157 | G46: 251985
B47: 8 | C47: DISTRIBUCIÓN | G47: =+G48 -> 706200
B48: 8.01 | C48: Distribución del material dentro de la zona de obra (incluido transporte y manutención) | D48: und (bucles) | E48: 353100 | F48: 2 | G48: =+E48*F48 -> 706200
B49: 9 | C49: MONTAJE (PARTE REALIZADA POR EL EQUIPO DE MONTADORES DE LA EMPRESA PROVEEDORA) | G49: =+SUM(G50:G57) -> 610891.1219
B50: 9.01 | C50: Montaje de estación, se incluyen todas las estaciones: motrices y reenvío | D50: und | E50: 40004.05371 | F50: 4 | G50: =+E50*F50 -> 160016.2149
B51: 9.02 | C51: Montaje de almacén para todas las cabinas y los vehículos de mantenimiento, incluidas vías de garaje, ascensores/rampas, vía y plataforma de mantenimiento, plataforma abatible automática en andén para transferencia línea-garaje y accionamiento para el funcionamiento automático del ciclado/desciclado de vehículos | D51: und | E51: 10272.9507 | F51: 1 | G51: =+E51*F51 -> 10272.9507
B52: 9.03 | C52: Montaje de media cubierta de estación | D52: und | E52: 4445.636929 | F52: 4 | G52: 17782.54772
B53: 9.04 | C53: Montaje de línea | D53: und (bucles) | E53: 108284 | F53: 2 | G53: 216568
B54: 9.05 | C54: Puesta en obra del cable y empalme, incluido andamiaje si es necesario | D54: und (bucles) | E54: 43144.53767 | F54: 2 | G54: 86289.07533
B55: 9.06 | C55: Conexiones eléctricas e hidráulicas, todo incluido | D55: und (bucles) | E55: 13511.94432 | F55: 2 | G55: 27023.88864
B56: 9.07 | C56: Montaje y colocación de vehículos | D56: nº cabinas | E56: 194.2225322 | F56: 144 | G56: 27968.04463
B57: 9.08 | C57: Reglajes y pruebas previos a la puesta en marcha | D57: und (bucles) | E57: 32485.2 | F57: 2 | G57: 64970.4
B58: 10 | C58: MONTAJE (PARTE REALIZADA POR EQUIPO NACIONAL) | G58: =+SUM(G59:G66) -> 2045157.234
B59: 10.01 | C59: =+C50 -> Montaje de estación, se incluyen todas las estaciones: motrices y reenvío | D59: =+D50 -> und | E59: 133926.6146 | F59: 4 | G59: =+E59*F59 -> 535706.4584
B60: 10.02 | C60: =+C51 -> Montaje de almacén para todas las cabinas y los vehículos de mantenimiento, incluidas vías de garaje, ascensores/rampas, vía y plataforma de mantenimiento, plataforma abatible automática en andén para transferencia línea-garaje y accionamiento para el funcionamiento automático del ciclado/desciclado de vehículos | D60: und | E60: 34392.05233 | F60: 1 | G60: =+E60*F60 -> 34392.05233
B61: 10.03 | C61: Montaje de media cubierta de estación | D61: und | E61: 14883.21928 | F61: 4 | G61: 59532.87713
B62: 10.04 | C62: Montaje de línea | D62: und (bucles) | E62: 362516 | F62: 2 | G62: 725032
B63: 10.05 | C63: Puesta en obra del cable y empalme, incluido andamiaje si es necesario | D63: und (bucles) | E63: 144440.4087 | F63: 2 | G63: 288880.8174
B64: 10.06 | C64: Conexiones eléctricas e hidráulicas, todo incluido | D64: und (bucles) | E64: 45235.63968 | F64: 2 | G64: 90471.27937
B65: 10.07 | C65: Montaje y colocación de vehículos | D65: nº cabinas | E65: 650.2232599 | F65: 144 | G65: 93632.14943
B66: 10.08 | C66: Reglajes y pruebas previos a la puesta en marcha | D66: und (bucles) | E66: 108754.8 | F66: 2 | G66: 217509.6
C68: COSTE TOTAL DE INVERSIÓN | G68: =+G58+G49+G47+G44+G39+G34+G18+G12+G7+G5 -> 34823729.89
C70: RESUMEN POR CAPÍTULOS | G70: Coste € | H70: Coste COP
B71: 1 | C71: PROYECTO Y SUPERVISIÓN DE OBRA | G71: =+G5 -> 595000 | H71: =+G71*$K$1 -> 2511655650
B72: 2 | C72: CONJUNTO DE ESTACIONES | G72: =+G7 -> 9376840.741 | H72: 3.958217651e+10
B73: 3 | C73: MAQUINARIA | G73: =+G12 -> 4271467.856 | H73: 1.803101912e+10
B74: 4 | C74: LÍNEA | G74: =+G18 -> 6541212.466 | H74: 2.761222395e+10
B75: 5 | C75: VEHÍCULOS | G75: =+G34 -> 8447150.994 | H75: 3.565770507e+10
B76: 6 | C76: SEÑALIZACIÓN Y VARIOS | G76: =+G39 -> 297924.4763 | H76: 1257619654
B77: 7 | C77: TRANSPORTE | G77: =+G44 -> 1931885 | H77: 8155008194
B78: 8 | C78: DISTRIBUCIÓN | G78: =+G47 -> 706200 | H78: 2981060874
B79: 9 | C79: MONTAJE | G79: =+G49+G58 -> 2656048.356 | H79: 1.121189724e+10
C80: COSTE TOTAL DE INVERSIÓN | G80: =+SUM(G71:G79) -> 34823729.89 | H80: =+SUM(H71:H79) -> 1.470003663e+11
C82: RESUMEN POR CAPÍTULOS PARA BIM | G82: Coste Directo € | H82: Coste Total € | I82: Coste COP
A83: ELM001 | B83: 1 | C83: Proyecto de ingeniería de detalle del sistema electromecánico incluido almacén de cabinas y coordinación con el resto de especialidades para eventuales ajustes del diseño de los edificios. | G83: =ROUND(H83/(1+$G$114),2) -> 457692.31 | H83: =+G6 -> 595000 | I83: =ROUND($K$1*H83,0) -> 2511655650
A84: ELM002 | B84: 2 | C84: Estación motriz completa: Incluye la fabricación de los componentes, el transporte, distribución en obra, montaje, reglajes y pruebas previas a la puesta en marcha. La estación debe incluir (lista no exhaustiva) la estructura de soporte, el sistema de motorización principal, el motor de emergencia, los frenos de servicio y seguridad, las vías de transferencia de cabinas entre bucles, los equipos eléctricos de mando y seguridad, los andenes, barandillas y otros accesorios, media cubierta (parte exterior al edificio), la señalización de estación y el utillaje específico y suministros de recambio para el primer año de explotación. | G84: 6612778.95 | H84: =+G8+G10*0.5+G13+G14*0.65+G15+G16+G50*0.5+G52*0.5+G59*0.5+G61*0.5+0.4*G41+G42*0.3+G44*0.2+G47*0.2+G55*0.3+G64*0.3+G57*0.3+G66*0.3 -> 8596612.634 | I84: 36288623013
A85: ELM003 | B85: 3 | C85: Estación de retorno completa: Incluye la fabricación de los componentes, el transporte, distribución en obra, montaje, reglajes y pruebas previas a la puesta en marcha. La estación debe incluir (lista no exhaustiva) la estructura de soporte, el sistema de tensión (pistones, central hidráulica, etc.), los equipos eléctricos de mando y seguridad, los andenes, barandillas y otros accesorios, media cubierta (parte exterior al edificio), la señalización de estación y el utillaje específico y suministros de recambio para el primer año de explotación. | G85: 4721409.11 | H85: =+G9+G10*0.5+G14*0.35+G17+G50*0.5+G52*0.5+G59*0.5+G61*0.5+0.4*G41+G42*0.3+G44*0.2+G47*0.2+G55*0.3+G64*0.3+G57*0.3+G66*0.3 -> 6137831.847 | I85: 25909445443
A86: ELM004 | B86: 4 | C86: Almacén de vehículos completo: Incluye la fabricación de los componentes, el transporte, distribución en obra, montaje, reglajes y pruebas previas a la puesta en marcha. El almacén debe incluir (lista no exhaustiva), el sistema de agujas de estación para el ciclado/desciclado de vehículos, los andenes escamoteables para el paso de cabinas hacia/desde estación, la estructura de soporte y guiado de las cabinas, los equipamientos para la automatización (motores), el sistema de ascensor para el movimiento entre plantas del garaje, los equipos eléctricos de mando y seguridad, la señalización y el utillaje específico (especialmente el requerido para el mantenimiento de pinzas) y suministros de recambio para el primer año de explotación. | G86: 1360015.02 | H86: =+G11+G51+G60+G44*0.2+G47*0.2+G55*0.1+G64*0.1+G57*0.1+G66*0.1 -> 1768019.52 | I86: 7463287758
A87: ELM005 | B87: 5 | C87: Cable tractor-portador: Incluye la fabricación de los cables, el transporte, distribución en obra, extendido del cable, retención del cable, paso de cables guía y empalme. Posterior recableado del cable sobre torres, alineación del cable sobre los balancines, reglajes y pruebas previas a la puesta en marcha. Se incluye el control magnetográfico del cable y el utillaje específico necesario. | G87: 1036644.87 | H87: =+G19+G40+G54+G63+G42*0.1+G44*0.025+G47*0.025 -> 1347638.327 | I87: 5688745241
A88: ELM006 | B88: 6 | C88: Doble línea de seguridad y comunicación incluyendo la cableta de acero portante así como el sistema de posicionamiento del cable. Incluye la fabricación de los componentes, el transporte, la distribución en obra, el montaje, reglajes y y pruebas previas a la puesta en marcha. Se incluye también los anemómetros, veletas, aisladores, cajas de conexión y resto de accesorios eléctricos y el suministro de recambios para el primer año de explotación. | G88: 368971.25 | H88: =+G20+G44*0.025+G47*0.025+G55*0.1+G64*0.1+G57*0.1+G66*0.1 -> 479662.6193 | I88: 2024785425
A89: ELM007 | B89: 7 | C89: Torre 1 de H entre 10 y <15 m y equipos 12C (subida) y 12C (bajada). Incluye la fabricación de los componentes, el transporte, distribución en obra, montaje, reglajes y pruebas previas a la puesta en marcha. La torre será completa, incluyendo (lista no exhaustiva): los fustes, potencias, sobrepotencias, pasarelas, escaleras de acceso, línea de vida y resto de equipamientos, incluidos los pernos de anclaje para la obra civil y sistema de descableado, y el sistema de iluminación para la explotación nocturna. | G89: 191822.57 | H89: =+E22+3*E32+1/22*G53+1/22*G62+G42*0.15*1/22+G44*0.2*1/22+G47*0.2*1/22+G55*0.2*1/22+G64*0.2*1/22+G57*0.2*1/22+G66*0.2*1/22 -> 249369.3384 | I89: 1052655307
A90: ELM008 | B90: 8 | C90: Torre 2 de H entre 20 y <25 m y equipos 8S (subida) y 8s (bajada). Incluye la fabricación de los componentes, el transporte, distribución en obra, montaje, reglajes y pruebas previas a la puesta en marcha. La torre será completa, incluyendo (lista no exhaustiva): los fustes, potencias, sobrepotencias, pasarelas, escaleras de acceso, línea de vida y resto de equipamientos, incluidos los pernos de anclaje para la obra civil y el sistema de iluminación para la explotación nocturna. | G90: 228830.9 | H90: =+E24+3*E28+1/22*G53+1/22*G62+G42*0.15*1/22+G44*0.2*1/22+G47*0.2*1/22+G55*0.2*1/22+G64*0.2*1/22+G57*0.2*1/22+G66*0.2*1/22 -> 297480.1721 | I90: 1255744126
A91: ELM009 | B91: 9 | C91: Torre 3 de H entre 30 y <35 m y equipos 10S (subida) y 10S (bajada). Incluye la fabricación de los componentes, el transporte, distribución en obra, montaje, reglajes y pruebas previas a la puesta en marcha. La torre será completa, incluyendo (lista no exhaustiva): los fustes, potencias, sobrepotencias, pasarelas, escaleras de acceso, línea de vida y resto de equipamientos, incluidos los pernos de anclaje para la obra civil y el sistema de iluminación para la explotación nocturna. | G91: 282399.83 | H91: =+E26+3*E29+1/22*G53+1/22*G62+G42*0.15*1/22+G44*0.2*1/22+G47*0.2*1/22+G55*0.2*1/22+G64*0.2*1/22+G57*0.2*1/22+G66*0.2*1/22 -> 367119.782 | I91: 1549711722
A92: ELM010 | B92: 10 | C92: Torre 4 de H entre 25 y <30 m y equipos 12S (subida) y 12S (bajada). Incluye la fabricación de los componentes, el transporte, distribución en obra, montaje, reglajes y pruebas previas a la puesta en marcha. La torre será completa, incluyendo (lista no exhaustiva): los fustes, potencias, sobrepotencias, pasarelas, escaleras de acceso, línea de vida y resto de equipamientos, incluidos los pernos de anclaje para la obra civil y el sistema de iluminación para la explotación nocturna. | G92: 275279.36 | H92: =+E25+3*E30+1/22*G53+1/22*G62+G42*0.15*1/22+G44*0.2*1/22+G47*0.2*1/22+G55*0.2*1/22+G64*0.2*1/22+G57*0.2*1/22+G66*0.2*1/22 -> 357863.1741 | I92: 1510637081
A93: ELM011 | B93: 11 | C93: Torre 5 de H entre 20 y <25 m y equipos 10S (subida) y 10S (bajada). Incluye la fabricación de los componentes, el transporte, distribución en obra, montaje, reglajes y pruebas previas a la puesta en marcha. La torre será completa, incluyendo (lista no exhaustiva): los fustes, potencias, sobrepotencias, pasarelas, escaleras de acceso, línea de vida y resto de equipamientos, incluidos los pernos de anclaje para la obra civil y el sistema de iluminación para la explotación nocturna. | G93: 224329.98 | H93: =+E24+2*E29+1/22*G53+1/22*G62+G42*0.15*1/22+G44*0.2*1/22+G47*0.2*1/22+G55*0.2*1/22+G64*0.2*1/22+G57*0.2*1/22+G66*0.2*1/22 -> 291628.9804 | I93: 1231044666
A94: ELM012 | B94: 12 | C94: Torre 6 de H entre 35 y <40 m y equipos 12S (subida) y 12S (bajada). Incluye la fabricación de los componentes, el transporte, distribución en obra, montaje, reglajes y pruebas previas a la puesta en marcha. La torre será completa, incluyendo (lista no exhaustiva): los fustes, potencias, sobrepotencias, pasarelas, escaleras de acceso, línea de vida y resto de equipamientos, incluidos los pernos de anclaje para la obra civil y el sistema de iluminación para la explotación nocturna. | G94: 303772.48 | H94: =+E27+2*E30+1/22*G53+1/22*G62+G42*0.15*1/22+G44*0.2*1/22+G47*0.2*1/22+G55*0.2*1/22+G64*0.2*1/22+G57*0.2*1/22+G66*0.2*1/22 -> 394904.2245 | I94: 1666997356
A95: ELM013 | B95: 13 | C95: Torre 7 de H entre 35 y <40 m y equipos 12S (subida) y 12S (bajada). Incluye la fabricación de los componentes, el transporte, distribución en obra, montaje, reglajes y pruebas previas a la puesta en marcha. La torre será completa, incluyendo (lista no exhaustiva): los fustes, potencias, sobrepotencias, pasarelas, escaleras de acceso, línea de vida y resto de equipamientos, incluidos los pernos de anclaje para la obra civil y el sistema de iluminación para la explotación nocturna. | G95: 303772.48 | H95: =+E27+2*E30+1/22*G53+1/22*G62+G42*0.15*1/22+G44*0.2*1/22+G47*0.2*1/22+G55*0.2*1/22+G64*0.2*1/22+G57*0.2*1/22+G66*0.2*1/22 -> 394904.2245 | I95: 1666997356
A96: ELM014 | B96: 14 | C96: Torre 8 de H entre 20 y <25 m y equipos 12S (subida) y 12S (bajada). Incluye la fabricación de los componentes, el transporte, distribución en obra, montaje, reglajes y pruebas previas a la puesta en marcha. La torre será completa, incluyendo (lista no exhaustiva): los fustes, potencias, sobrepotencias, pasarelas, escaleras de acceso, línea de vida y resto de equipamientos, incluidos los pernos de anclaje para la obra civil y el sistema de iluminación para la explotación nocturna. | G96: 234419.19 | H96: =+E24+2*E30+1/22*G53+1/22*G62+G42*0.15*1/22+G44*0.2*1/22+G47*0.2*1/22+G55*0.2*1/22+G64*0.2*1/22+G57*0.2*1/22+G66*0.2*1/22 -> 304744.9499 | I96: 1286410715
A97: ELM015 | B97: 15 | C97: Torre 9 en "Y" de HA=15,1 m y HB=15,2 my equipos 10S (A) y 12S (B) (subida) y 10S (A) y 12S (B) (bajada). Incluye la fabricación de los componentes, el transporte, distribución en obra, montaje, reglajes y pruebas previas a la puesta en marcha. La torre será completa, incluyendo (lista no exhaustiva): los fustes, potencias, sobrepotencias, pasarelas, escaleras de acceso, línea de vida y resto de equipamientos, incluidos los pernos de anclaje para la obra civil y el sistema de iluminación para la explotación nocturna. | G97: 292673.81 | H97: =+E21+2*E29+2*E30+1/22*G53+1/22*G62+G42*0.15*1/22+G44*0.2*1/22+G47*0.2*1/22+G55*0.2*1/22+G64*0.2*1/22+G57*0.2*1/22+G66*0.2*1/22 -> 380475.9515 | I97: 1606091720
A98: ELM016 | B98: 16 | C98: Torre 10 de H entre 25 y <30 m y equipos 10S (subida) y 10S (bajada). Incluye la fabricación de los componentes, el transporte, distribución en obra, montaje, reglajes y pruebas previas a la puesta en marcha. La torre será completa, incluyendo (lista no exhaustiva): los fustes, potencias, sobrepotencias, pasarelas, escaleras de acceso, línea de vida y resto de equipamientos, incluidos los pernos de anclaje para la obra civil y el sistema de iluminación para la explotación nocturna. | G98: 238886.79 | H98: =+E25+2*E29+1/22*G53+1/22*G62+G42*0.15*1/22+G44*0.2*1/22+G47*0.2*1/22+G55*0.2*1/22+G64*0.2*1/22+G57*0.2*1/22+G66*0.2*1/22 -> 310552.8234 | I98: 1310927317
A99: ELM017 | B99: 17 | C99: Torre 11 de H entre 15 y <20 m y equipos 8S8C (subida) y 8S8C (bajada). Incluye la fabricación de los componentes, el transporte, distribución en obra, montaje, reglajes y pruebas previas a la puesta en marcha. La torre será completa, incluyendo (lista no exhaustiva): los fustes, potencias, sobrepotencias, pasarelas, escaleras de acceso, línea de vida y resto de equipamientos, incluidos los pernos de anclaje para la obra civil y el sistema de iluminación para la explotación nocturna. | G99: 271411.01 | H99: =+E23+3*E33+1/22*G53+1/22*G62+G42*0.15*1/22+G44*0.2*1/22+G47*0.2*1/22+G55*0.2*1/22+G64*0.2*1/22+G57*0.2*1/22+G66*0.2*1/22 -> 352834.308 | I99: 1489408879
A100: ELM018 | B100: 18 | C100: Torre 12 de H entre 10 y <15 m y equipos 12C (subida) y 12C (bajada). Incluye la fabricación de los componentes, el transporte, distribución en obra, montaje, reglajes y pruebas previas a la puesta en marcha. La torre será completa, incluyendo (lista no exhaustiva): los fustes, potencias, sobrepotencias, pasarelas, escaleras de acceso, línea de vida y resto de equipamientos, incluidos los pernos de anclaje para la obra civil y el sistema de iluminación para la explotación nocturna. | G100: 172805.8 | H100: =+E22+2*E32+1/22*G53+1/22*G62+G42*0.15*1/22+G44*0.2*1/22+G47*0.2*1/22+G55*0.2*1/22+G64*0.2*1/22+G57*0.2*1/22+G66*0.2*1/22 -> 224647.5412 | I100: 948297926
A101: ELM019 | B101: 19 | C101: Torre 13 de H entre 10 y <15 m y equipos 12C (subida) y 12C (bajada). Incluye la fabricación de los componentes, el transporte, distribución en obra, montaje, reglajes y pruebas previas a la puesta en marcha. La torre será completa, incluyendo (lista no exhaustiva): los fustes, potencias, sobrepotencias, pasarelas, escaleras de acceso, línea de vida y resto de equipamientos, incluidos los pernos de anclaje para la obra civil y sistema de descableado y el sistema de iluminación para la explotación nocturna. | G101: 172805.8 | H101: =+E22+2*E32+1/22*G53+1/22*G62+G42*0.15*1/22+G44*0.2*1/22+G47*0.2*1/22+G55*0.2*1/22+G64*0.2*1/22+G57*0.2*1/22+G66*0.2*1/22 -> 224647.5412 | I101: 948297926
A102: ELM020 | B102: 20 | C102: Torre 14 de H entre 15 y <20 m y equipos 12S (subida) y 12S (bajada). Incluye la fabricación de los componentes, el transporte, distribución en obra, montaje, reglajes y pruebas previas a la puesta en marcha. La torre será completa, incluyendo (lista no exhaustiva): los fustes, potencias, sobrepotencias, pasarelas, escaleras de acceso, línea de vida y resto de equipamientos, incluidos los pernos de anclaje para la obra civil y el sistema de iluminación para la explotación nocturna. | G102: 209350.73 | H102: =+E23+2*E30+1/22*G53+1/22*G62+G42*0.15*1/22+G44*0.2*1/22+G47*0.2*1/22+G55*0.2*1/22+G64*0.2*1/22+G57*0.2*1/22+G66*0.2*1/22 -> 272155.9496 | I102: 1148843745
A103: ELM021 | B103: 21 | C103: Torre 15 de H entre 20 y <25 m y equipos 10S (subida) y 10S (bajada). Incluye la fabricación de los componentes, el transporte, distribución en obra, montaje, reglajes y pruebas previas a la puesta en marcha. La torre será completa, incluyendo (lista no exhaustiva): los fustes, potencias, sobrepotencias, pasarelas, escaleras de acceso, línea de vida y resto de equipamientos, incluidos los pernos de anclaje para la obra civil y el sistema de iluminación para la explotación nocturna. | G103: 224329.98 | H103: =+E24+2*E29+1/22*G53+1/22*G62+G42*0.15*1/22+G44*0.2*1/22+G47*0.2*1/22+G55*0.2*1/22+G64*0.2*1/22+G57*0.2*1/22+G66*0.2*1/22 -> 291628.9804 | I103: 1231044666
A104: ELM022 | B104: 22 | C104: Torre 16 de H entre 25 y <30 m y equipos 10S (subida) y 10S (bajada). Incluye la fabricación de los componentes, el transporte, distribución en obra, montaje, reglajes y pruebas previas a la puesta en marcha. La torre será completa, incluyendo (lista no exhaustiva): los fustes, potencias, sobrepotencias, pasarelas, escaleras de acceso, línea de vida y resto de equipamientos, incluidos los pernos de anclaje para la obra civil y el sistema de iluminación para la explotación nocturna. | G104: 238886.79 | H104: =+E25+2*E29+1/22*G53+1/22*G62+G42*0.15*1/22+G44*0.2*1/22+G47*0.2*1/22+G55*0.2*1/22+G64*0.2*1/22+G57*0.2*1/22+G66*0.2*1/22 -> 310552.8234 | I104: 1310927317
A105: ELM023 | B105: 23 | C105: Torre 17 de H entre 25 y <30 m y equipos 10S (subida) y 10S (bajada). Incluye la fabricación de los componentes, el transporte, distribución en obra, montaje, reglajes y pruebas previas a la puesta en marcha. La torre será completa, incluyendo (lista no exhaustiva): los fustes, potencias, sobrepotencias, pasarelas, escaleras de acceso, línea de vida y resto de equipamientos, incluidos los pernos de anclaje para la obra civil y el sistema de iluminación para la explotación nocturna. | G105: 238886.79 | H105: =+E25+2*E29+1/22*G53+1/22*G62+G42*0.15*1/22+G44*0.2*1/22+G47*0.2*1/22+G55*0.2*1/22+G64*0.2*1/22+G57*0.2*1/22+G66*0.2*1/22 -> 310552.8234 | I105: 1310927317
A106: ELM024 | B106: 24 | C106: Torre 18 de H entre 25 y <30 m y equipos 12S (subida) y 12S (bajada). Incluye la fabricación de los componentes, el transporte, distribución en obra, montaje, reglajes y pruebas previas a la puesta en marcha. La torre será completa, incluyendo (lista no exhaustiva): los fustes, potencias, sobrepotencias, pasarelas, escaleras de acceso, línea de vida y resto de equipamientos, incluidos los pernos de anclaje para la obra civil y el sistema de iluminación para la explotación nocturna. | G106: 248975.99 | H106: =+E25+2*E30+1/22*G53+1/22*G62+G42*0.15*1/22+G44*0.2*1/22+G47*0.2*1/22+G55*0.2*1/22+G64*0.2*1/22+G57*0.2*1/22+G66*0.2*1/22 -> 323668.793 | I106: 1366293366
A107: ELM025 | B107: 25 | C107: Torre 19 de H entre 30 y <35 m y equipos 12S (subida) y 12S (bajada). Incluye la fabricación de los componentes, el transporte, distribución en obra, montaje, reglajes y pruebas previas a la puesta en marcha. La torre será completa, incluyendo (lista no exhaustiva): los fustes, potencias, sobrepotencias, pasarelas, escaleras de acceso, línea de vida y resto de equipamientos, incluidos los pernos de anclaje para la obra civil y el sistema de iluminación para la explotación nocturna. | G107: 271230.27 | H107: =+E26+2*E30+1/22*G53+1/22*G62+G42*0.15*1/22+G44*0.2*1/22+G47*0.2*1/22+G55*0.2*1/22+G64*0.2*1/22+G57*0.2*1/22+G66*0.2*1/22 -> 352599.3552 | I107: 1488417080
A108: ELM026 | B108: 26 | C108: Torre 20 de H entre 30 y <35 m y equipos 10S (subida) y 10S (bajada). Incluye la fabricación de los componentes, el transporte, distribución en obra, montaje, reglajes y pruebas previas a la puesta en marcha. La torre será completa, incluyendo (lista no exhaustiva): los fustes, potencias, sobrepotencias, pasarelas, escaleras de acceso, línea de vida y resto de equipamientos, incluidos los pernos de anclaje para la obra civil y el sistema de iluminación para la explotación nocturna. | G108: 261141.07 | H108: =+E26+2*E29+1/22*G53+1/22*G62+G42*0.15*1/22+G44*0.2*1/22+G47*0.2*1/22+G55*0.2*1/22+G64*0.2*1/22+G57*0.2*1/22+G66*0.2*1/22 -> 339483.3856 | I108: 1433051031
A109: ELM027 | B109: 27 | C109: Torre 21 de H entre 20 y <25 m y equipos 12S (subida) y 12S (bajada). Incluye la fabricación de los componentes, el transporte, distribución en obra, montaje, reglajes y pruebas previas a la puesta en marcha. La torre será completa, incluyendo (lista no exhaustiva): los fustes, potencias, sobrepotencias, pasarelas, escaleras de acceso, línea de vida y resto de equipamientos, incluidos los pernos de anclaje para la obra civil y el sistema de iluminación para la explotación nocturna. | G109: 234419.19 | H109: =+E24+2*E30+1/22*G53+1/22*G62+G42*0.15*1/22+G44*0.2*1/22+G47*0.2*1/22+G55*0.2*1/22+G64*0.2*1/22+G57*0.2*1/22+G66*0.2*1/22 -> 304744.9499 | I109: 1286410715
A110: ELM028 | B110: 28 | C110: Torre 22 de H entre 10 y <15 m y equipos 10C (subida) y 10C (bajada). Incluye la fabricación de los componentes, el transporte, distribución en obra, montaje, reglajes y pruebas previas a la puesta en marcha. La torre será completa, incluyendo (lista no exhaustiva): los fustes, potencias, sobrepotencias, pasarelas, escaleras de acceso, línea de vida y resto de equipamientos, incluidos los pernos de anclaje para la obra civil y sistema de descableado y el sistema de iluminación para la explotación nocturna. | G110: 180412.51 | H110: =+E22+3*E31+1/22*G53+1/22*G62+G42*0.15*1/22+G44*0.2*1/22+G47*0.2*1/22+G55*0.2*1/22+G64*0.2*1/22+G57*0.2*1/22+G66*0.2*1/22 -> 234536.2601 | I110: 990040879
A111: ELM029 | B111: 29 | C111: Vehículos: Incluye la fabricación de los componentes, el transporte, distribución en obra, montaje, reglajes y pruebas previas a la puesta en marcha. Los vehículos incluyen la cabina completa para el transporte de viajeros, incluido el brazo de suspensión y la pinza desembragable, el sistema de comunicación bidireccional, la iluminación, la videovigilancia y el sistema de carga de baterías. También se incluye los vehículos de mantenimiento completos y los equipos de rescate vertical, así como la señalización de las cabinas, el utillaje específico y suministros de recambio para el primer año de explotación. | G111: 6929129.7 | H111: =+G34+G56+G65+0.2*G41+G42*0.15+G44*0.15+G47*0.15 -> 9007868.609 | I111: 38024645523
H112: =+SUM(H83:H111) -> 34823729.89 | I112: =SUM(I83:I111) -> 147000366266
F114: AIU | G114: 0.3

Sheet auxiliar capitulos (hidden)
A1: DESCRIPCIÓN | B1: UNIDAD | C1: CANTIDAD | D1: VR. UNITARIO | E1: VR. UNITARIO CON A.I.U. | F1: VALOR TOTAL | H1: Capitulo | I1: Subcapitulo 1 | J1: Subcapitulo 2 | K1: Aux 1 | L1: Aux 2 | M1: Codigo parcial
A2: PRELIMINARES, MOVIMIENTO DE TIERRAS Y RELLENOS (INCLUYE CANTIDADES PARA ESTABILIZACION | B2: 0 | C2: 0 | D2: 0 | E2: 0 | F2: 0 | H2: 1 | K2: =IF(I2="","",".") ->  | L2: =IF(J2="","",".") ->  | M2: =CONCATENATE(H2,K2,I2,L2,J2) -> 1
A3: PRELIMINARES | H3: 1 | I3: 1 | K3: =IF(I3="","",".") -> . | L3: =IF(J3="","",".") ->  | M3: =CONCATENATE(H3,K3,I3,L3,J3) -> 1.1
A4: DEMOLICIONES | D4: 0 | H4: 1 | I4: 2 | K4: . | M4: 1.2
A5: MOVIMIENTO DE TERRAS | D5: 0 | H5: 1 | I5: 3 | K5: . | M5: 1.3
A6: RELLENOS | D6: 0 | H6: 1 | I6: 4 | K6: . | M6: 1.4
A7: ESTRUCTURAS | D7: 0 | H7: 2 | M7: 2
A8: SUBESTRUCTURA | D8: 0 | H8: 2 | I8: 1 | K8: . | M8: 2.1
A9: SUPERESTRUCTURA | D9: 0 | H9: 2 | I9: 2 | K9: . | M9: 2.2
A10: OTROS CONCRETOS | D10: 0 | H10: 2 | I10: 3 | K10: . | M10: 2.3
A11: ACERO DE REFUERZO | D11: 0 | H11: 2 | I11: 4 | K11: . | M11: 2.4
A12: ACERO ESTRUCTURAL | D12: 0 | H12: 2 | I12: 5 | K12: . | M12: 2.5
A13: ACERO DE REFUERZO | D13: 0 | H13: 2 | I13: 6 | K13: . | M13: 2.6
A14: ESTRUCTURAS EDIFICACIONES | H14: 2 | I14: 1 | K14: =IF(I14="","",".") -> . | L14: =IF(J14="","",".") ->  | M14: =CONCATENATE(H14,K14,I14,L14,J14) -> 2.1
A15: ESTRUCTURAS DE CIMENTACIÓN MASTILES | H15: 2 | I15: 2 | K15: =IF(I15="","",".") -> . | L15: =IF(J15="","",".") ->  | M15: =CONCATENATE(H15,K15,I15,L15,J15) -> 2.2
A16: CIMENTACIÓN PILONAS | H16: 2 | I16: 3 | K16: . | M16: 2.3
A17: ESTRUCTURAS PARA CONTENCIÓN URBANISMO | H17: 2 | I17: 4 | K17: =IF(I17="","",".") -> . | L17: =IF(J17="","",".") ->  | M17: =CONCATENATE(H17,K17,I17,L17,J17) -> 2.4
A18: ARQUITECTURA Y PAISAJISMO | H18: 3 | M18: 3
A19: MAMPOSTERIA Y ACABADOS ARQUITECTONICOS | H19: 3 | I19: 1 | K19: . | M19: 3.1
A20: MAMPOSTERÍA MUROS DIVISORIOS | D20: 0 | H20: 3 | I20: 1 | J20: 1 | K20: . | L20: . | M20: 3.1.1 | N20: =+A20 -> MAMPOSTERÍA MUROS DIVISORIOS
A21: REFORZAMIENTO MAMPOSTERÍA EN CONCRETO | D21: 0 | H21: 3 | I21: 1 | J21: 2 | K21: . | L21: . | M21: 3.1.2 | N21: =+A30 -> PASAMANOS Y BARANDAS
A22: PAÑETES, ENCHAPES Y PINTURAS | D22: 0 | H22: 3 | I22: 1 | J22: 3 | K22: . | L22: . | M22: 3.1.3 | N22: =+A21 -> REFORZAMIENTO MAMPOSTERÍA EN CONCRETO
A23: PISOS EN CONCRETO | D23: 0 | H23: 3 | I23: 1 | J23: 4 | K23: . | L23: . | M23: 3.1.4 | N23: =+A29 -> MUEBLES, ACCESORIOS, APARATOS SANITARIOS Y GRIFERÍA
A24: ACABADOS EN PISOS | D24: 0 | H24: 3 | I24: 1 | J24: 5 | K24: . | L24: . | M24: 3.1.5 | N24: =+A22 -> PAÑETES, ENCHAPES Y PINTURAS
A25: CUBIERTAS, CIELO RASO, ACABADOS, IMPERMEABILIZACIÓN | D25: 0 | H25: 3 | I25: 1 | J25: 6 | K25: . | L25: . | M25: 3.1.6 | N25: =+A23 -> PISOS EN CONCRETO
A26: FACHADAS Y ACABADOS ARQUITECTÓNICOS | D26: 0 | H26: 3 | I26: 1 | J26: 7 | K26: . | L26: . | M26: 3.1.7 | N26: =+A24 -> ACABADOS EN PISOS
A27: CARPINTERÍA EN ALUMINIO INTERNA | D27: 0 | H27: 3 | I27: 1 | J27: 8 | K27: . | L27: . | M27: 3.1.8 | N27: =+A25 -> CUBIERTAS, CIELO RASO, ACABADOS, IMPERMEABILIZACIÓN
A28: CARPINTERÍA METÁLICA | D28: 0 | H28: 3 | I28: 1 | J28: 9 | K28: . | L28: . | M28: 3.1.9 | N28: =+A31 -> ESTRUCTURAS ARQUITECTURA
A29: MUEBLES, ACCESORIOS, APARATOS SANITARIOS Y GRIFERÍA | H29: 3 | I29: 1 | J29: 10 | K29: =IF(I29="","",".") -> . | L29: =IF(J29="","",".") -> . | M29: =CONCATENATE(H29,K29,I29,L29,J29) -> 3.1.10 | N29: =+A26 -> FACHADAS Y ACABADOS ARQUITECTÓNICOS
A30: PASAMANOS Y BARANDAS | H30: 3 | I30: 1 | J30: 11 | K30: . | L30: . | M30: 3.1.11 | N30: =+A27 -> CARPINTERÍA EN ALUMINIO INTERNA
A31: ESTRUCTURAS ARQUITECTURA | H31: 3 | I31: 1 | J31: 12 | K31: . | L31: . | M31: 3.1.12 | N31: =+A28 -> CARPINTERÍA METÁLICA
A32: URBANISMO, ESPACIO PÚBLICO Y PAISAJISMO | D32: 0 | H32: 3 | I32: 2 | K32: . | M32: 3.2
A33: PREFABRICADOS | D33: 0 | H33: 3 | I33: 2 | J33: 1 | K33: =IF(I33="","",".") -> . | L33: =IF(J33="","",".") -> . | M33: =CONCATENATE(H33,K33,I33,L33,J33) -> 3.2.1
A34: ACABADOS | D34: 0 | H34: 3 | I34: 2 | J34: 2 | K34: . | L34: . | M34: 3.2.2
A35: MOBILIARIO Y ELEMENTOS INDEPENDIENTES | D35: 0 | H35: 3 | I35: 2 | J35: 3 | K35: . | L35: . | M35: 3.2.3
A36: PAISAJISMO | D36: 0 | H36: 3 | I36: 2 | J36: 4 | K36: . | L36: . | M36: 3.2.4
A37: REDES HUMEDAS | H37: 4 | M37: 4
A38: REDES HUMEDAS INTERNAS | H38: 4 | I38: 1 | K38: . | M38: 4.1
A39: SUMINISTRO AGUA POTABLE | D39: 0 | H39: 4 | I39: 1 | J39: 1 | K39: . | L39: . | M39: 4.1.1
A40: SUMINISTRO AGUA TRATADA | D40: 0 | H40: 4 | I40: 1 | J40: 2 | K40: =IF(I40="","",".") -> . | L40: =IF(J40="","",".") -> . | M40: =CONCATENATE(H40,K40,I40,L40,J40) -> 4.1.2
A41: DESAGUE AGUAS LLUVIAS | D41: 0 | H41: 4 | I41: 1 | J41: 3 | K41: . | L41: . | M41: 4.1.3
A42: DESAGUE AGUAS SERVIDAS | D42: 0 | H42: 4 | I42: 1 | J42: 4 | K42: . | L42: . | M42: 4.1.4
A43: EXTINCIÓN DE INCENDIOS - RED RM | D43: 0 | H43: 4 | I43: 1 | J43: 5 | K43: =IF(I43="","",".") -> . | L43: =IF(J43="","",".") -> . | M43: =CONCATENATE(H43,K43,I43,L43,J43) -> 4.1.5
A44: EXTINCIÓN DE INCENDIOS - RED RR | D44: 0 | H44: 4 | I44: 1 | J44: 6 | K44: =IF(I44="","",".") -> . | L44: =IF(J44="","",".") -> . | M44: =CONCATENATE(H44,K44,I44,L44,J44) -> 4.1.6
A45: REDES HUMEDAS EXTERNAS | H45: 4 | I45: 2 | K45: . | M45: 4.2
A46: REDES HÚMEDAS EXTERNAS ACUEDUCTO | D46: 0 | H46: 4 | I46: 2 | J46: 1 | K46: . | L46: . | M46: 4.2.1
A47: RED DE ALCANTARILLADO AGUAS RESIDUALES | D47: 0 | H47: 4 | I47: 2 | J47: 2 | K47: . | L47: . | M47: 4.2.2
A48: RED DE ALCANTARILLADO AGUAS LLUVIAS | D48: 0 | H48: 4 | I48: 2 | J48: 3 | K48: . | L48: . | M48: 4.2.3
A49: SISTEMAS URBANOS DE DRENAJE SOSTENIBLE SUDS | D49: 0 | H49: 4 | I49: 2 | J49: 4 | K49: =IF(I49="","",".") -> . | L49: =IF(J49="","",".") -> . | M49: =CONCATENATE(H49,K49,I49,L49,J49) -> 4.2.4
A50: REDES SECAS | H50: 5 | K50: =IF(I50="","",".") ->  | L50: =IF(J50="","",".") ->  | M50: 5
A51: REDES SECAS INTERNAS | H51: 5 | I51: 1 | K51: . | M51: =CONCATENATE(H51,K51,I51,L51,J51) -> 5.1
A52: SISTEMA DE APANTALLAMIENTO Y PUESTA A TIERRA | D52: 0 | H52: 5 | I52: 1 | J52: 1 | K52: . | L52: . | M52: 5.1.1
A53: REDES DE BAJA TENSIÓN | D53: 0 | H53: 5 | I53: 1 | J53: 2 | K53: . | L53: . | M53: 5.1.2
A54: SISTEMA DE ALUMBRADO Y FUERZA | D54: 0 | H54: 5 | I54: 1 | J54: 3 | K54: . | L54: . | M54: 5.1.3
A55: RED DE VOZ Y DATOS. COMUNICACIONES | D55: 0 | H55: 5 | I55: 1 | J55: 4 | K55: . | L55: . | M55: 5.1.4
A56: REDES SECAS EXTERNAS | D56: 0 | H56: 5 | I56: 2 | K56: =IF(I56="","",".") -> . | L56: =IF(J56="","",".") ->  | M56: =CONCATENATE(H56,K56,I56,L56,J56) -> 5.2
A57: REDES COMUNICACIONES ETB | D57: 0 | H57: 5 | I57: 2 | J57: 1 | K57: . | L57: . | M57: 5.2.1
A58: REDES COMUNICACIONES MOVISTAR | D58: 0 | H58: 5 | I58: 2 | J58: 2 | K58: . | L58: . | M58: 5.2.2
A59: REDES DE BAJA TENSIÓN | D59: 0 | H59: 5 | I59: 2 | J59: 3 | K59: . | L59: . | M59: 5.2.3
A60: REDES DE MEDIA TENSIÓN | D60: 0 | H60: 5 | I60: 2 | J60: 4 | K60: . | L60: . | M60: 5.2.4
A61: REDES GAS NATURAL | D61: 0 | H61: 5 | I61: 3 | K61: =IF(I61="","",".") -> . | L61: =IF(J61="","",".") ->  | M61: =CONCATENATE(H61,K61,I61,L61,J61) -> 5.3
A62: EQUIPOS ESPECIALES | B62: 0 | C62: 0 | D62: 0 | E62: 0 | F62: 0 | H62: 6 | M62: 6
A63: PAVIMENTO | B63: 0 | C63: 0 | D63: 0 | E63: 0 | F63: 0 | H63: 7 | M63: 7
A64: PAVIMENTO RIGIDO | H64: 7 | I64: 1 | K64: =IF(I64="","",".") -> . | L64: =IF(J64="","",".") ->  | M64: 7.1
A65: PAVIMENTO FLEXBLE | H65: 7 | I65: 2 | K65: . | M65: =CONCATENATE(H65,K65,I65,L65,J65) -> 7.2
A66: SEÑALIZACIÓN, DEMARCAIÓN Y SEMAFORIZACIÓN | B66: 0 | C66: 0 | D66: 0 | E66: 0 | F66: 0 | H66: 8 | K66: =IF(I66="","",".") ->  | L66: =IF(J66="","",".") ->  | M66: =CONCATENATE(H66,K66,I66,L66,J66) -> 8
A67: SEÑALIZACIÓN VERTICAL | D67: 0 | H67: 8 | I67: 1 | K67: . | M67: 8.1
A68: DEMARCACIÓN HORIZONTAL | H68: 8 | I68: 2 | K68: . | M68: 8.2

Sheet FORMULARIO 1-PPTO OFICIAL (hidden)
C2: FORMULARIO 1
C3: PRESUPUESTO OFICIAL
C4: [El presente formulario aplica para los procesos de contratación que tengan como forma de pago precios unitarios, la Entidad debe ajustarlo cuando la modalidad de pago corresponde a: precio global, llave en mano, administración delegada y reembolso de gastos]
C7: ETAPA DE OBRA
C8: Nº | D8: ITEM DE PAGO | E8: ESPECIFICACIONES | G8: DESCRIPCION | H8: UND. | J8: CANTIDAD | K8: VALOR UNITARIO | L8: VALOR TOTAL
E9: GENERAL | F9: PARTICULAR
D10: ='PPTO GRAL CAPEX CIVIL'!C14 -> 1 | G10: ='PPTO GRAL CAPEX CIVIL'!D14 -> PRELIMINARES, MOVIMIENTO DE TIERRAS Y RELLENOS (INCLUYE CANTIDADES PARA ESTABILIZACION
C11: ='PPTO GRAL CAPEX CIVIL'!B15 -> 0 | D11: ='PPTO GRAL CAPEX CIVIL'!C15 -> 1.1 | G11: ='PPTO GRAL CAPEX CIVIL'!D15 -> PRELIMINARES | H11: ='PPTO GRAL CAPEX CIVIL'!E15 -> 0 | J11: ='PPTO GRAL CAPEX CIVIL'!F15 -> 0 | K11: ='PPTO GRAL CAPEX CIVIL'!H15 -> 0 | L11: =ROUND(J11*K11,0) -> 0
C12: ='PPTO GRAL CAPEX CIVIL'!B16 -> 3007 | D12: ='PPTO GRAL CAPEX CIVIL'!C16 -> 1.1.1 | G12: ='PPTO GRAL CAPEX CIVIL'!D16 -> REPLANTEO GENERAL | H12: ='PPTO GRAL CAPEX CIVIL'!E16 -> M2 | J12: ='PPTO GRAL CAPEX CIVIL'!F16 -> 171688.8065 | K12: ='PPTO GRAL CAPEX CIVIL'!H16 -> 863 | L12: 148167440
C13: ='PPTO GRAL CAPEX CIVIL'!B17 -> 0 | D13: ='PPTO GRAL CAPEX CIVIL'!C17 -> 1.2 | G13: ='PPTO GRAL CAPEX CIVIL'!D17 -> DEMOLICIONES | H13: ='PPTO GRAL CAPEX CIVIL'!E17 -> 0 | J13: ='PPTO GRAL CAPEX CIVIL'!F17 -> 0 | K13: ='PPTO GRAL CAPEX CIVIL'!H17 -> 0 | L13: 0
C14: ='PPTO GRAL CAPEX CIVIL'!B18 -> 6141 | D14: ='PPTO GRAL CAPEX CIVIL'!C18 -> 1.2.1 | G14: ='PPTO GRAL CAPEX CIVIL'!D18 -> DEMOLICIÓN CONSTRUCCIONES DE 1 PISO TEJA. INCLUYEN EL CARGUE, TRANSPORTE Y DISPOSICIÓN FINAL DE ESCOMBROS EN SITIO AUTORIZADO (DISTANCIA DE TRANSPORTE 28 KM.). INCLUYE MUROS INTERNOS, EXTERNOS, PLACAS Y CUBIERTAS, ADEMÁS DE LOS ELEMENTOS INTERNOS QUE SE ENCUENTREN EN LOS MISMOS. | H14: ='PPTO GRAL CAPEX CIVIL'!E18 -> M2 | J14: ='PPTO GRAL CAPEX CIVIL'!F18 -> 5478.35 | K14: ='PPTO GRAL CAPEX CIVIL'!H18 -> 48110 | L14: 263563419
C15: ='PPTO GRAL CAPEX CIVIL'!B19 -> 6143 | D15: ='PPTO GRAL CAPEX CIVIL'!C19 -> 1.2.2 | G15: ='PPTO GRAL CAPEX CIVIL'!D19 -> DEMOLICIÓN CONSTRUCCIONES DE 2 HASTA 3 PISOS. INCLUYEN EL CARGUE, TRANSPORTE Y DISPOSICIÓN FINAL DE ESCOMBROS EN SITIO AUTORIZADO (DISTANCIA DE TRANSPORTE 28 KM.). INCLUYE MUROS INTERNOS, EXTERNOS, PLACAS Y CUBIERTAS, ADEMÁS DE LOS ELEMENTOS INTERNOS QUE SE ENCUENTREN EN LOS MISMOS. | H15: ='PPTO GRAL CAPEX CIVIL'!E19 -> M2 | J15: ='PPTO GRAL CAPEX CIVIL'!F19 -> 10316.2 | K15: ='PPTO GRAL CAPEX CIVIL'!H19 -> 84119 | L15: 867788428
C16: ='PPTO GRAL CAPEX CIVIL'!B20 -> 6144 | D16: ='PPTO GRAL CAPEX CIVIL'!C20 -> 1.2.3 | G16: ='PPTO GRAL CAPEX CIVIL'!D20 -> DEMOLICIÓN CONSTRUCCIONES DE 4 HASTA 6 PISOS. INCLUYEN EL CARGUE, TRANSPORTE Y DISPOSICIÓN FINAL DE ESCOMBROS EN SITIO AUTORIZADO (DISTANCIA DE TRANSPORTE 28 KM.). INCLUYE MUROS INTERNOS, EXTERNOS, PLACAS Y CUBIERTAS, ADEMÁS DE LOS ELEMENTOS INTERNOS QUE SE ENCUENTREN EN LOS MISMOS. | H16: ='PPTO GRAL CAPEX CIVIL'!E20 -> M2 | J16: ='PPTO GRAL CAPEX CIVIL'!F20 -> 1530.73 | K16: ='PPTO GRAL CAPEX CIVIL'!H20 -> 97473 | L16: 149204845
C17: ='PPTO GRAL CAPEX CIVIL'!B21 -> 0 | D17: ='PPTO GRAL CAPEX CIVIL'!C21 -> 1.3 | G17: ='PPTO GRAL CAPEX CIVIL'!D21 -> MOVIMIENTO DE TERRAS | H17: ='PPTO GRAL CAPEX CIVIL'!E21 -> 0 | J17: ='PPTO GRAL CAPEX CIVIL'!F21 -> 0 | K17: ='PPTO GRAL CAPEX CIVIL'!H21 -> 0 | L17: 0
C18: ='PPTO GRAL CAPEX CIVIL'!B22 -> 3464 | D18: ='PPTO GRAL CAPEX CIVIL'!C22 -> 1.3.1 | G18: ='PPTO GRAL CAPEX CIVIL'!D22 -> EXCAVACION MANUAL EN MATERIAL COMUN. INCLUYE CARGUE. | H18: ='PPTO GRAL CAPEX CIVIL'!E22 -> M3 | J18: ='PPTO GRAL CAPEX CIVIL'!F22 -> 20849.99072 | K18: ='PPTO GRAL CAPEX CIVIL'!H22 -> 41013 | L18: 855120669
C19: ='PPTO GRAL CAPEX CIVIL'!#REF! ->  | D19: ='PPTO GRAL CAPEX CIVIL'!#REF! ->  | G19: ='PPTO GRAL CAPEX CIVIL'!#REF! ->  | H19: ='PPTO GRAL CAPEX CIVIL'!#REF! ->  | J19: ='PPTO GRAL CAPEX CIVIL'!#REF! ->  | K19: ='PPTO GRAL CAPEX CIVIL'!#REF! -> 
C20: Subtotal | L20: =SUM(L11:L19) ->  | O20: ='PPTO GRAL CAPEX CIVIL'!I14 -> 0 | P20: =L20-O20 -> 
D21: ='PPTO GRAL CAPEX CIVIL'!C24 -> 1.3.2 | G21: ='PPTO GRAL CAPEX CIVIL'!D24 -> GAVIONES - SUMINISTRO Y CONSTRUCCIÓN. INCLUYE RAJÓN, MALLA PARA GAVIONES Y ALAMBRE RECOCIDO.
C22: ='PPTO GRAL CAPEX CIVIL'!B25 -> 4788 | D22: ='PPTO GRAL CAPEX CIVIL'!C25 -> 1.3.3 | G22: ='PPTO GRAL CAPEX CIVIL'!D25 -> GEODREN PLANAR H=1.0 M. SUMINISTRO E INSTALACION. | H22: ='PPTO GRAL CAPEX CIVIL'!E25 -> ML | J22: ='PPTO GRAL CAPEX CIVIL'!F25 -> 5 | K22: ='PPTO GRAL CAPEX CIVIL'!H25 -> 44073 | L22: =ROUND(J22*K22,0) -> 220365
C23: ='PPTO GRAL CAPEX CIVIL'!B26 -> 5180 | D23: ='PPTO GRAL CAPEX CIVIL'!C26 -> 1.3.4 | G23: ='PPTO GRAL CAPEX CIVIL'!D26 -> FILTRO DE DRENAJE DE 0.6M X 1.0M. SUMINISTRO E INSTALACION. (INCLUYE TUBERIA PERFORADA D=4", GRAVA COMUN 1/2" Y GEOTEXTIL NT 4000 O SIMILAR). | H23: ='PPTO GRAL CAPEX CIVIL'!E26 -> ML | J23: ='PPTO GRAL CAPEX CIVIL'!F26 -> 100 | K23: ='PPTO GRAL CAPEX CIVIL'!H26 -> 242056 | L23: 24205600
C24: ='PPTO GRAL CAPEX CIVIL'!#REF! ->  | D24: ='PPTO GRAL CAPEX CIVIL'!#REF! ->  | G24: ='PPTO GRAL CAPEX CIVIL'!#REF! ->  | H24: ='PPTO GRAL CAPEX CIVIL'!#REF! ->  | J24: ='PPTO GRAL CAPEX CIVIL'!#REF! ->  | K24: ='PPTO GRAL CAPEX CIVIL'!#REF! -> 
C25: ='PPTO GRAL CAPEX CIVIL'!#REF! ->  | D25: ='PPTO GRAL CAPEX CIVIL'!#REF! ->  | G25: ='PPTO GRAL CAPEX CIVIL'!#REF! ->  | H25: ='PPTO GRAL CAPEX CIVIL'!#REF! ->  | J25: ='PPTO GRAL CAPEX CIVIL'!#REF! ->  | K25: ='PPTO GRAL CAPEX CIVIL'!#REF! -> 
C26: ='PPTO GRAL CAPEX CIVIL'!#REF! ->  | D26: ='PPTO GRAL CAPEX CIVIL'!#REF! ->  | G26: ='PPTO GRAL CAPEX CIVIL'!#REF! ->  | H26: ='PPTO GRAL CAPEX CIVIL'!#REF! ->  | J26: ='PPTO GRAL CAPEX CIVIL'!#REF! ->  | K26: ='PPTO GRAL CAPEX CIVIL'!#REF! -> 
C27: ='PPTO GRAL CAPEX CIVIL'!B27 -> 0 | D27: ='PPTO GRAL CAPEX CIVIL'!C27 -> 1.4 | G27: ='PPTO GRAL CAPEX CIVIL'!D27 -> RELLENOS | H27: ='PPTO GRAL CAPEX CIVIL'!E27 -> 0 | J27: ='PPTO GRAL CAPEX CIVIL'!F27 -> 0 | K27: ='PPTO GRAL CAPEX CIVIL'!H27 -> 0 | L27: 0
C28: ='PPTO GRAL CAPEX CIVIL'!B28 -> 4792 | D28: ='PPTO GRAL CAPEX CIVIL'!C28 -> 1.4.1 | G28: ='PPTO GRAL CAPEX CIVIL'!D28 -> RELLENO EN RECEBO COMUN (SUMINISTRO E INSTALACIÓN EXTENDIDO MANUAL, HUMEDECIMIENTO Y COMPACTACIÓN TRANSPORTE A 28 KM). | H28: ='PPTO GRAL CAPEX CIVIL'!E28 -> M3 | J28: ='PPTO GRAL CAPEX CIVIL'!F28 -> 3545.529047 | K28: ='PPTO GRAL CAPEX CIVIL'!H28 -> 101346 | L28: 359325187
C29: ='PPTO GRAL CAPEX CIVIL'!#REF! ->  | D29: ='PPTO GRAL CAPEX CIVIL'!#REF! ->  | G29: ='PPTO GRAL CAPEX CIVIL'!#REF! ->  | H29: ='PPTO GRAL CAPEX CIVIL'!#REF! ->  | J29: ='PPTO GRAL CAPEX CIVIL'!#REF! ->  | K29: ='PPTO GRAL CAPEX CIVIL'!#REF! -> 
C30: ='PPTO GRAL CAPEX CIVIL'!#REF! ->  | D30: ='PPTO GRAL CAPEX CIVIL'!#REF! ->  | G30: ='PPTO GRAL CAPEX CIVIL'!#REF! ->  | H30: ='PPTO GRAL CAPEX CIVIL'!#REF! ->  | J30: ='PPTO GRAL CAPEX CIVIL'!#REF! ->  | K30: ='PPTO GRAL CAPEX CIVIL'!#REF! -> 
C31: ='PPTO GRAL CAPEX CIVIL'!#REF! ->  | D31: ='PPTO GRAL CAPEX CIVIL'!#REF! ->  | G31: ='PPTO GRAL CAPEX CIVIL'!#REF! ->  | H31: ='PPTO GRAL CAPEX CIVIL'!#REF! ->  | J31: ='PPTO GRAL CAPEX CIVIL'!#REF! ->  | K31: ='PPTO GRAL CAPEX CIVIL'!#REF! -> 
C32: ='PPTO GRAL CAPEX CIVIL'!#REF! ->  | D32: ='PPTO GRAL CAPEX CIVIL'!#REF! ->  | G32: ='PPTO GRAL CAPEX CIVIL'!#REF! ->  | H32: ='PPTO GRAL CAPEX CIVIL'!#REF! ->  | J32: ='PPTO GRAL CAPEX CIVIL'!#REF! ->  | K32: ='PPTO GRAL CAPEX CIVIL'!#REF! -> 
C33: Subtotal | L33: =SUM(L22:L32) ->  | O33: =+'PPTO GRAL CAPEX CIVIL'!I24 -> 6440485 | P33: =L33-O33 -> 
D34: ='PPTO GRAL CAPEX CIVIL'!#REF! ->  | G34: ='PPTO GRAL CAPEX CIVIL'!#REF! -> 
G35: ='PPTO GRAL CAPEX CIVIL'!#REF! -> 
C36: ='PPTO GRAL CAPEX CIVIL'!#REF! ->  | D36: ='PPTO GRAL CAPEX CIVIL'!#REF! ->  | G36: ='PPTO GRAL CAPEX CIVIL'!#REF! ->  | H36: ='PPTO GRAL CAPEX CIVIL'!#REF! ->  | J36: ='PPTO GRAL CAPEX CIVIL'!#REF! ->  | K36: ='PPTO GRAL CAPEX CIVIL'!#REF! ->  | L36: =ROUND(J36*K36,0) -> 
C37: ='PPTO GRAL CAPEX CIVIL'!#REF! ->  | D37: ='PPTO GRAL CAPEX CIVIL'!#REF! ->  | G37: ='PPTO GRAL CAPEX CIVIL'!#REF! ->  | H37: ='PPTO GRAL CAPEX CIVIL'!#REF! ->  | J37: ='PPTO GRAL CAPEX CIVIL'!#REF! ->  | K37: ='PPTO GRAL CAPEX CIVIL'!#REF! -> 
C38: ='PPTO GRAL CAPEX CIVIL'!B29 -> 0 | D38: ='PPTO GRAL CAPEX CIVIL'!C29 -> 2 | G38: ='PPTO GRAL CAPEX CIVIL'!D29 -> ESTRUCTURAS | H38: ='PPTO GRAL CAPEX CIVIL'!E29 -> 0 | J38: ='PPTO GRAL CAPEX CIVIL'!F29 -> 0 | K38: ='PPTO GRAL CAPEX CIVIL'!H29 -> 0 | L38: 0
C39: ='PPTO GRAL CAPEX CIVIL'!#REF! ->  | D39: ='PPTO GRAL CAPEX CIVIL'!#REF! ->  | G39: ='PPTO GRAL CAPEX CIVIL'!#REF! ->  | H39: ='PPTO GRAL CAPEX CIVIL'!#REF! ->  | J39: ='PPTO GRAL CAPEX CIVIL'!#REF! ->  | K39: ='PPTO GRAL CAPEX CIVIL'!#REF! -> 
C40: ='PPTO GRAL CAPEX CIVIL'!B55 -> 6007 | D40: ='PPTO GRAL CAPEX CIVIL'!C55 -> 2.3.15 | G40: ='PPTO GRAL CAPEX CIVIL'!D55 -> PILOTE PREEXCAVADO EN CONCRETO TREMIE DE 4000 PSI (280 KG/CM2) ACELERADO A 2 DÍAS. INCLUYE ACELERANTE, ALQUILER DE EQUIPO DE PERFORACIÓN CON OPERARIO, MOTOBOMBA, BENTONITA, MANO DE OBRA, TRANSPORTE Y DISPOSICIÓN FINAL DE ESCOMBROS EN SITIO AUTORIZADO. DISTANCIA DE TRANSPORTE 21 KM. | H40: ='PPTO GRAL CAPEX CIVIL'!E55 -> M3 | J40: ='PPTO GRAL CAPEX CIVIL'!F55 -> 1362.280968 | K40: ='PPTO GRAL CAPEX CIVIL'!H55 -> 1905173 | L40: 2595380919
C41: ='PPTO GRAL CAPEX CIVIL'!#REF! ->  | D41: ='PPTO GRAL CAPEX CIVIL'!#REF! ->  | G41: ='PPTO GRAL CAPEX CIVIL'!#REF! ->  | H41: ='PPTO GRAL CAPEX CIVIL'!#REF! ->  | J41: ='PPTO GRAL CAPEX CIVIL'!#REF! ->  | K41: ='PPTO GRAL CAPEX CIVIL'!#REF! -> 
C42: ='PPTO GRAL CAPEX CIVIL'!B57 -> 3637 | D42: ='PPTO GRAL CAPEX CIVIL'!C57 -> 2.3.16 | G42: ='PPTO GRAL CAPEX CIVIL'!D57 -> DADO EN CONCRETO 4000 PSI, (27 Mpa) PREMEZCLADO, GRAVA COMÚN (Incluye Suministro, Formaleteo en madera, Bombeo, colocación y Curado. No incluye refuerzo) | H42: ='PPTO GRAL CAPEX CIVIL'!E57 -> M3 | J42: ='PPTO GRAL CAPEX CIVIL'!F57 -> 1461.561981 | K42: ='PPTO GRAL CAPEX CIVIL'!H57 -> 760874 | L42: 1112064510
C43: ='PPTO GRAL CAPEX CIVIL'!B58 -> 5055 | D43: ='PPTO GRAL CAPEX CIVIL'!C58 -> 2.3.17 | G43: ='PPTO GRAL CAPEX CIVIL'!D58 -> DESCABECE DE PILOTES (INCLUYE TRANSPORTE Y DISPOSICIÓN FINAL DE ESCOMBROS EN SITIO AUTORIZADO A 21 KM. | H43: ='PPTO GRAL CAPEX CIVIL'!E58 -> M3 | J43: ='PPTO GRAL CAPEX CIVIL'!F58 -> 176.9957593 | K43: ='PPTO GRAL CAPEX CIVIL'!H58 -> 213645 | L43: 37814259
C44: ='PPTO GRAL CAPEX CIVIL'!B59 -> 6021 | D44: ='PPTO GRAL CAPEX CIVIL'!C59 -> 2.3.18 | G44: ='PPTO GRAL CAPEX CIVIL'!D59 -> CONCRETO DE NIVELACIÓN 2000 PSI GRAVA COMÚN (140 KG/CM2) (PREMEZCLADO. INCLUYE SUMINISTRO, FUNDIDA Y NIVELACIÓN Y COLOCACIÓN. NO INCLUYE REFUERZO, CURADO) PARA MEJORAMIENTO, ADECUACIÓN Y REHABILITACIÓN DE ESPACIO PÚBLICO. | H44: ='PPTO GRAL CAPEX CIVIL'!E59 -> M3 | J44: ='PPTO GRAL CAPEX CIVIL'!F59 -> 25.5038059 | K44: ='PPTO GRAL CAPEX CIVIL'!H59 -> 645655 | L44: 16466660
C45: ='PPTO GRAL CAPEX CIVIL'!B60 -> 5416 | D45: ='PPTO GRAL CAPEX CIVIL'!C60 -> 2.3.19 | G45: ='PPTO GRAL CAPEX CIVIL'!D60 -> EXCAVACIÓN MECÁNICA PARA DADOS (NIVEL DE FUNCIONAMIENTO. INCLUYE CARGUE). | H45: ='PPTO GRAL CAPEX CIVIL'!E60 -> M3 | J45: ='PPTO GRAL CAPEX CIVIL'!F60 -> 3098.225 | K45: ='PPTO GRAL CAPEX CIVIL'!H60 -> 53092 | L45: 164490962
C46: ='PPTO GRAL CAPEX CIVIL'!B61 -> 3017 | D46: ='PPTO GRAL CAPEX CIVIL'!C61 -> 2.3.20 | G46: ='PPTO GRAL CAPEX CIVIL'!D61 -> TRANSPORTE Y DISPOSICIÓN FINAL DE ESCOMBROS EN SITIO AUTORIZADO (DISTANCIA DE TRANSPORTE 21 KM). A DISTANCIA MAYOR DEL ACARREO LIBRE (90 M) EN SITIO AUTORIZADO POR LA ENTIDAD AMBIENTAL COMPETENTE. | H46: ='PPTO GRAL CAPEX CIVIL'!E61 -> M3 | J46: ='PPTO GRAL CAPEX CIVIL'!F61 -> 3613.1375 | K46: ='PPTO GRAL CAPEX CIVIL'!H61 -> 44298 | L46: 160054765
C47: ='PPTO GRAL CAPEX CIVIL'!B62 -> 4908 | D47: ='PPTO GRAL CAPEX CIVIL'!C62 -> 2.3.21 | G47: ='PPTO GRAL CAPEX CIVIL'!D62 -> MATERIAL SELECCIONADO. SUMINISTRO, EXTENDIDO MANUAL, NIVELACIÓN, HUMEDECIMIENTO Y COMPACTACIÓN. | H47: ='PPTO GRAL CAPEX CIVIL'!E62 -> M3 | J47: ='PPTO GRAL CAPEX CIVIL'!F62 -> 1911.331371 | K47: ='PPTO GRAL CAPEX CIVIL'!H62 -> 102490 | L47: 195892352
C48: ='PPTO GRAL CAPEX CIVIL'!B63 -> 6226 | D48: ='PPTO GRAL CAPEX CIVIL'!C63 -> 2.3.22 | G48: ='PPTO GRAL CAPEX CIVIL'!D63 -> DEMOLICIÓN PAVIMENTO ASFÁLTICO DE ESPESOR 10 CM. INCLUYE TODOS LOS COSTOS DE SUMINISTRO DE EQUIPOS (HERRAMIENTA MENOR, MARTILLO NEUMÁTICO, COMPRESOR, PROVISIONAL DE ENERGÍA), TRANSPORTE, MANEJO, ALMACENAMIENTO, DESPERDICIOS, CARGUE Y TRANSPORTE DE MATERIALES SOBRANTES A ESCOMBRERA AUTORIZADA Y MANO DE OBRA. | H48: ='PPTO GRAL CAPEX CIVIL'!E63 -> M2 | J48: ='PPTO GRAL CAPEX CIVIL'!F63 -> 8.4375 | K48: ='PPTO GRAL CAPEX CIVIL'!H63 -> 13656 | L48: 115223
C49: ='PPTO GRAL CAPEX CIVIL'!B64 -> 5196 | D49: ='PPTO GRAL CAPEX CIVIL'!C64 -> 2.3.23 | G49: ='PPTO GRAL CAPEX CIVIL'!D64 -> DEMOLICIÓN DE CONCRETO: ESPESORES 8CM A 15CM. (INCLUYE RETIRO DE MATERIAL, TRANSPORTE Y DISPOSICIÓN FINAL DE ESCOMBROS EN SITIO AUTORIZADO). | H49: ='PPTO GRAL CAPEX CIVIL'!E64 -> M3 | J49: ='PPTO GRAL CAPEX CIVIL'!F64 -> 144.375 | K49: ='PPTO GRAL CAPEX CIVIL'!H64 -> 107514 | L49: 15522334
C50: ='PPTO GRAL CAPEX CIVIL'!#REF! ->  | D50: ='PPTO GRAL CAPEX CIVIL'!#REF! ->  | G50: ='PPTO GRAL CAPEX CIVIL'!#REF! ->  | H50: ='PPTO GRAL CAPEX CIVIL'!#REF! ->  | J50: ='PPTO GRAL CAPEX CIVIL'!#REF! ->  | K50: ='PPTO GRAL CAPEX CIVIL'!#REF! -> 
C51: ='PPTO GRAL CAPEX CIVIL'!#REF! ->  | D51: ='PPTO GRAL CAPEX CIVIL'!#REF! ->  | G51: ='PPTO GRAL CAPEX CIVIL'!#REF! ->  | H51: ='PPTO GRAL CAPEX CIVIL'!#REF! ->  | J51: ='PPTO GRAL CAPEX CIVIL'!#REF! ->  | K51: ='PPTO GRAL CAPEX CIVIL'!#REF! -> 
C52: ='PPTO GRAL CAPEX CIVIL'!#REF! ->  | D52: ='PPTO GRAL CAPEX CIVIL'!#REF! ->  | G52: ='PPTO GRAL CAPEX CIVIL'!#REF! ->  | H52: ='PPTO GRAL CAPEX CIVIL'!#REF! ->  | J52: ='PPTO GRAL CAPEX CIVIL'!#REF! ->  | K52: ='PPTO GRAL CAPEX CIVIL'!#REF! -> 
C53: ='PPTO GRAL CAPEX CIVIL'!#REF! ->  | D53: ='PPTO GRAL CAPEX CIVIL'!#REF! ->  | G53: ='PPTO GRAL CAPEX CIVIL'!#REF! ->  | H53: ='PPTO GRAL CAPEX CIVIL'!#REF! ->  | J53: ='PPTO GRAL CAPEX CIVIL'!#REF! ->  | K53: ='PPTO GRAL CAPEX CIVIL'!#REF! -> 
C54: ='PPTO GRAL CAPEX CIVIL'!#REF! ->  | D54: ='PPTO GRAL CAPEX CIVIL'!#REF! ->  | G54: ='PPTO GRAL CAPEX CIVIL'!#REF! ->  | H54: ='PPTO GRAL CAPEX CIVIL'!#REF! ->  | J54: ='PPTO GRAL CAPEX CIVIL'!#REF! ->  | K54: ='PPTO GRAL CAPEX CIVIL'!#REF! -> 
C55: ='PPTO GRAL CAPEX CIVIL'!#REF! ->  | D55: ='PPTO GRAL CAPEX CIVIL'!#REF! ->  | G55: ='PPTO GRAL CAPEX CIVIL'!#REF! ->  | H55: ='PPTO GRAL CAPEX CIVIL'!#REF! ->  | J55: ='PPTO GRAL CAPEX CIVIL'!#REF! ->  | K55: ='PPTO GRAL CAPEX CIVIL'!#REF! -> 
C56: ='PPTO GRAL CAPEX CIVIL'!#REF! ->  | D56: ='PPTO GRAL CAPEX CIVIL'!#REF! ->  | G56: ='PPTO GRAL CAPEX CIVIL'!#REF! ->  | H56: ='PPTO GRAL CAPEX CIVIL'!#REF! ->  | J56: ='PPTO GRAL CAPEX CIVIL'!#REF! ->  | K56: ='PPTO GRAL CAPEX CIVIL'!#REF! -> 
C57: ='PPTO GRAL CAPEX CIVIL'!#REF! ->  | D57: ='PPTO GRAL CAPEX CIVIL'!#REF! ->  | G57: ='PPTO GRAL CAPEX CIVIL'!#REF! ->  | H57: ='PPTO GRAL CAPEX CIVIL'!#REF! ->  | J57: ='PPTO GRAL CAPEX CIVIL'!#REF! ->  | K57: ='PPTO GRAL CAPEX CIVIL'!#REF! -> 
C58: ='PPTO GRAL CAPEX CIVIL'!#REF! ->  | D58: ='PPTO GRAL CAPEX CIVIL'!#REF! ->  | G58: ='PPTO GRAL CAPEX CIVIL'!#REF! ->  | H58: ='PPTO GRAL CAPEX CIVIL'!#REF! ->  | J58: ='PPTO GRAL CAPEX CIVIL'!#REF! ->  | K58: ='PPTO GRAL CAPEX CIVIL'!#REF! -> 
C59: ='PPTO GRAL CAPEX CIVIL'!#REF! ->  | D59: ='PPTO GRAL CAPEX CIVIL'!#REF! ->  | G59: ='PPTO GRAL CAPEX CIVIL'!#REF! ->  | H59: ='PPTO GRAL CAPEX CIVIL'!#REF! ->  | J59: ='PPTO GRAL CAPEX CIVIL'!#REF! ->  | K59: ='PPTO GRAL CAPEX CIVIL'!#REF! -> 
G60: ='PPTO GRAL CAPEX CIVIL'!#REF! -> 
C61: ='PPTO GRAL CAPEX CIVIL'!#REF! ->  | D61: ='PPTO GRAL CAPEX CIVIL'!#REF! ->  | G61: ='PPTO GRAL CAPEX CIVIL'!#REF! ->  | H61: ='PPTO GRAL CAPEX CIVIL'!#REF! ->  | J61: ='PPTO GRAL CAPEX CIVIL'!#REF! ->  | K61: ='PPTO GRAL CAPEX CIVIL'!#REF! ->  | L61: =ROUND(J61*K61,0) -> 
C62: ='PPTO GRAL CAPEX CIVIL'!#REF! ->  | D62: ='PPTO GRAL CAPEX CIVIL'!#REF! ->  | G62: ='PPTO GRAL CAPEX CIVIL'!#REF! ->  | H62: ='PPTO GRAL CAPEX CIVIL'!#REF! ->  | J62: ='PPTO GRAL CAPEX CIVIL'!#REF! ->  | K62: ='PPTO GRAL CAPEX CIVIL'!#REF! ->  | L62: =ROUND(J62*K62,0) -> 
C63: ='PPTO GRAL CAPEX CIVIL'!#REF! ->  | D63: ='PPTO GRAL CAPEX CIVIL'!#REF! ->  | G63: ='PPTO GRAL CAPEX CIVIL'!#REF! ->  | H63: ='PPTO GRAL CAPEX CIVIL'!#REF! ->  | J63: ='PPTO GRAL CAPEX CIVIL'!#REF! ->  | K63: ='PPTO GRAL CAPEX CIVIL'!#REF! ->  | L63: =ROUND(J63*K63,0) -> 
G64: ='PPTO GRAL CAPEX CIVIL'!#REF! -> 
C65: ='PPTO GRAL CAPEX CIVIL'!#REF! ->  | D65: ='PPTO GRAL CAPEX CIVIL'!#REF! ->  | G65: ='PPTO GRAL CAPEX CIVIL'!#REF! ->  | H65: ='PPTO GRAL CAPEX CIVIL'!#REF! ->  | J65: ='PPTO GRAL CAPEX CIVIL'!#REF! ->  | K65: ='PPTO GRAL CAPEX CIVIL'!#REF! ->  | L65: =ROUND(J65*K65,0) -> 
G66: ='PPTO GRAL CAPEX CIVIL'!#REF! -> 
C67: ='PPTO GRAL CAPEX CIVIL'!#REF! ->  | D67: ='PPTO GRAL CAPEX CIVIL'!#REF! ->  | G67: ='PPTO GRAL CAPEX CIVIL'!#REF! ->  | H67: ='PPTO GRAL CAPEX CIVIL'!#REF! ->  | J67: ='PPTO GRAL CAPEX CIVIL'!#REF! ->  | K67: ='PPTO GRAL CAPEX CIVIL'!#REF! ->  | L67: =ROUND(J67*K67,0) -> 
C68: ='PPTO GRAL CAPEX CIVIL'!#REF! ->  | D68: ='PPTO GRAL CAPEX CIVIL'!#REF! ->  | G68: ='PPTO GRAL CAPEX CIVIL'!#REF! ->  | H68: ='PPTO GRAL CAPEX CIVIL'!#REF! ->  | J68: ='PPTO GRAL CAPEX CIVIL'!#REF! ->  | K68: ='PPTO GRAL CAPEX CIVIL'!#REF! ->  | L68: =ROUND(J68*K68,0) -> 
C69: ='PPTO GRAL CAPEX CIVIL'!#REF! ->  | D69: ='PPTO GRAL CAPEX CIVIL'!#REF! ->  | G69: ='PPTO GRAL CAPEX CIVIL'!#REF! ->  | H69: ='PPTO GRAL CAPEX CIVIL'!#REF! ->  | J69: ='PPTO GRAL CAPEX CIVIL'!#REF! ->  | K69: ='PPTO GRAL CAPEX CIVIL'!#REF! ->  | L69: =ROUND(J69*K69,0) -> 
G70: ='PPTO GRAL CAPEX CIVIL'!#REF! -> 
C71: ='PPTO GRAL CAPEX CIVIL'!#REF! ->  | D71: ='PPTO GRAL CAPEX CIVIL'!#REF! ->  | G71: ='PPTO GRAL CAPEX CIVIL'!#REF! ->  | H71: ='PPTO GRAL CAPEX CIVIL'!#REF! ->  | J71: ='PPTO GRAL CAPEX CIVIL'!#REF! ->  | K71: ='PPTO GRAL CAPEX CIVIL'!#REF! ->  | L71: =ROUND(J71*K71,0) -> 
C72: ='PPTO GRAL CAPEX CIVIL'!#REF! ->  | D72: ='PPTO GRAL CAPEX CIVIL'!#REF! ->  | G72: ='PPTO GRAL CAPEX CIVIL'!#REF! ->  | H72: ='PPTO GRAL CAPEX CIVIL'!#REF! ->  | J72: ='PPTO GRAL CAPEX CIVIL'!#REF! ->  | K72: ='PPTO GRAL CAPEX CIVIL'!#REF! -> 
C73: ='PPTO GRAL CAPEX CIVIL'!#REF! ->  | D73: ='PPTO GRAL CAPEX CIVIL'!#REF! ->  | G73: ='PPTO GRAL CAPEX CIVIL'!#REF! ->  | H73: ='PPTO GRAL CAPEX CIVIL'!#REF! ->  | J73: ='PPTO GRAL CAPEX CIVIL'!#REF! ->  | K73: ='PPTO GRAL CAPEX CIVIL'!#REF! -> 
C74: ='PPTO GRAL CAPEX CIVIL'!#REF! ->  | D74: ='PPTO GRAL CAPEX CIVIL'!#REF! ->  | G74: ='PPTO GRAL CAPEX CIVIL'!#REF! ->  | H74: ='PPTO GRAL CAPEX CIVIL'!#REF! ->  | J74: ='PPTO GRAL CAPEX CIVIL'!#REF! ->  | K74: ='PPTO GRAL CAPEX CIVIL'!#REF! -> 
C75: ='PPTO GRAL CAPEX CIVIL'!B78 -> 0 | D75: ='PPTO GRAL CAPEX CIVIL'!C78 -> 3 | G75: ='PPTO GRAL CAPEX CIVIL'!D78 -> ARQUITECTURA Y PAISAJISMO | H75: ='PPTO GRAL CAPEX CIVIL'!E78 -> 0 | J75: ='PPTO GRAL CAPEX CIVIL'!F78 -> 0 | K75: ='PPTO GRAL CAPEX CIVIL'!H78 -> 0 | L75: 0
C76: ='PPTO GRAL CAPEX CIVIL'!B79 -> 0 | D76: ='PPTO GRAL CAPEX CIVIL'!C79 -> 3.1 | G76: ='PPTO GRAL CAPEX CIVIL'!D79 -> MAMPOSTERIA Y ACABADOS ARQUITECTONICOS | H76: ='PPTO GRAL CAPEX CIVIL'!E79 -> 0 | J76: ='PPTO GRAL CAPEX CIVIL'!F79 -> 0 | K76: ='PPTO GRAL CAPEX CIVIL'!H79 -> 0 | L76: 0
C77: ='PPTO GRAL CAPEX CIVIL'!B80 -> 0 | D77: ='PPTO GRAL CAPEX CIVIL'!C80 -> 3.1.1 | G77: ='PPTO GRAL CAPEX CIVIL'!D80 -> MAMPOSTERÍA MUROS DIVISORIOS | H77: ='PPTO GRAL CAPEX CIVIL'!E80 -> 0 | J77: ='PPTO GRAL CAPEX CIVIL'!F80 -> 0 | K77: ='PPTO GRAL CAPEX CIVIL'!H80 -> 0 | L77: 0
C78: ='PPTO GRAL CAPEX CIVIL'!B81 -> ARQ101 | D78: ='PPTO GRAL CAPEX CIVIL'!C81 -> 3.1.1.1 | G78: ='PPTO GRAL CAPEX CIVIL'!D81 -> MAMPOSTERIA EN BLOQUE DE CONCRETO 12X19X39, REVITADO, Y RANURADO CADA 5 HILADAS, INCLUYE MORTERO DE PEGA PREMEZCLADO , TIPO INDURAL O SIMILAR EQUIVALENTE. | H78: ='PPTO GRAL CAPEX CIVIL'!E81 -> M2 | J78: ='PPTO GRAL CAPEX CIVIL'!F81 -> 2393.54 | K78: ='PPTO GRAL CAPEX CIVIL'!H81 -> 1 | L78: 2394
C79: ='PPTO GRAL CAPEX CIVIL'!B82 -> ARQ102 | D79: ='PPTO GRAL CAPEX CIVIL'!C82 -> 3.1.1.2 | G79: ='PPTO GRAL CAPEX CIVIL'!D82 -> SUMINISTRO, TRANSPORTE E INSTALACIÓN MURO EN PLACA DE TABLA YESO ½” TIPO DRYWALL, GYPLAC, O SIMILAR EQUIVALENTE, MASILLADO Y PINTADO COLOR BLANCO. INCLUYE: PERFILERÍA GALVANIZADA PARA SOPORTE, CHAZOS, CINTAS DE UNIÓN O ENSAMBLE ENTRE ELEMENTOS, CORTES, FILETES Y TODO LO NECESARIO PARA SU CORRECTA INSTALACIÓN Y ACABADO ESTÉTICO. | H79: ='PPTO GRAL CAPEX CIVIL'!E82 -> M2 | J79: ='PPTO GRAL CAPEX CIVIL'!F82 -> 1295.07 | K79: ='PPTO GRAL CAPEX CIVIL'!H82 -> 87010 | L79: 112684041
C80: ='PPTO GRAL CAPEX CIVIL'!#REF! ->  | D80: ='PPTO GRAL CAPEX CIVIL'!#REF! ->  | G80: ='PPTO GRAL CAPEX CIVIL'!#REF! ->  | H80: ='PPTO GRAL CAPEX CIVIL'!#REF! ->  | J80: ='PPTO GRAL CAPEX CIVIL'!#REF! ->  | K80: ='PPTO GRAL CAPEX CIVIL'!#REF! -> 
C81: ='PPTO GRAL CAPEX CIVIL'!#REF! ->  | D81: ='PPTO GRAL CAPEX CIVIL'!#REF! ->  | G81: ='PPTO GRAL CAPEX CIVIL'!#REF! ->  | H81: ='PPTO GRAL CAPEX CIVIL'!#REF! ->  | J81: ='PPTO GRAL CAPEX CIVIL'!#REF! ->  | K81: ='PPTO GRAL CAPEX CIVIL'!#REF! -> 
C82: ='PPTO GRAL CAPEX CIVIL'!#REF! ->  | D82: ='PPTO GRAL CAPEX CIVIL'!#REF! ->  | G82: ='PPTO GRAL CAPEX CIVIL'!#REF! ->  | H82: ='PPTO GRAL CAPEX CIVIL'!#REF! ->  | J82: ='PPTO GRAL CAPEX CIVIL'!#REF! ->  | K82: ='PPTO GRAL CAPEX CIVIL'!#REF! -> 
C83: ='PPTO GRAL CAPEX CIVIL'!#REF! ->  | D83: ='PPTO GRAL CAPEX CIVIL'!#REF! ->  | G83: ='PPTO GRAL CAPEX CIVIL'!#REF! ->  | H83: ='PPTO GRAL CAPEX CIVIL'!#REF! ->  | J83: ='PPTO GRAL CAPEX CIVIL'!#REF! ->  | K83: ='PPTO GRAL CAPEX CIVIL'!#REF! -> 
C84: ='PPTO GRAL CAPEX CIVIL'!#REF! ->  | D84: ='PPTO GRAL CAPEX CIVIL'!#REF! ->  | G84: ='PPTO GRAL CAPEX CIVIL'!#REF! ->  | H84: ='PPTO GRAL CAPEX CIVIL'!#REF! ->  | J84: ='PPTO GRAL CAPEX CIVIL'!#REF! ->  | K84: ='PPTO GRAL CAPEX CIVIL'!#REF! -> 
C85: Subtotal | L85: =SUM(L35:L84) ->  | O85: =+'PPTO GRAL CAPEX CIVIL'!#REF! ->  | P85: =L85-O85 -> 
D86: ='PPTO GRAL CAPEX CIVIL'!#REF! ->  | G86: =+'PPTO GRAL CAPEX CIVIL'!#REF! -> 
C87: ='PPTO GRAL CAPEX CIVIL'!#REF! ->  | D87: ='PPTO GRAL CAPEX CIVIL'!#REF! ->  | G87: ='PPTO GRAL CAPEX CIVIL'!#REF! ->  | H87: ='PPTO GRAL CAPEX CIVIL'!#REF! ->  | J87: ='PPTO GRAL CAPEX CIVIL'!#REF! ->  | K87: ='PPTO GRAL CAPEX CIVIL'!#REF! ->  | L87: =ROUND(J87*K87,0) -> 
C88: ='PPTO GRAL CAPEX CIVIL'!#REF! ->  | D88: ='PPTO GRAL CAPEX CIVIL'!#REF! ->  | G88: ='PPTO GRAL CAPEX CIVIL'!#REF! ->  | H88: ='PPTO GRAL CAPEX CIVIL'!#REF! ->  | J88: ='PPTO GRAL CAPEX CIVIL'!#REF! ->  | K88: ='PPTO GRAL CAPEX CIVIL'!#REF! ->  | L88: =ROUND(J88*K88,0) -> 
C89: ='PPTO GRAL CAPEX CIVIL'!#REF! ->  | D89: ='PPTO GRAL CAPEX CIVIL'!#REF! ->  | G89: ='PPTO GRAL CAPEX CIVIL'!#REF! ->  | H89: ='PPTO GRAL CAPEX CIVIL'!#REF! ->  | J89: ='PPTO GRAL CAPEX CIVIL'!#REF! ->  | K89: ='PPTO GRAL CAPEX CIVIL'!#REF! ->  | L89: =ROUND(J89*K89,0) -> 
C90: ='PPTO GRAL CAPEX CIVIL'!#REF! ->  | D90: ='PPTO GRAL CAPEX CIVIL'!#REF! ->  | G90: ='PPTO GRAL CAPEX CIVIL'!#REF! ->  | H90: ='PPTO GRAL CAPEX CIVIL'!#REF! ->  | J90: ='PPTO GRAL CAPEX CIVIL'!#REF! ->  | K90: ='PPTO GRAL CAPEX CIVIL'!#REF! ->  | L90: =ROUND(J90*K90,0) -> 
C91: Subtotal | L91: =SUM(L87:L90) ->  | O91: ='PPTO GRAL CAPEX CIVIL'!#REF! ->  | P91: =L91-O91 -> 
D92: ='PPTO GRAL CAPEX CIVIL'!#REF! ->  | G92: ='PPTO GRAL CAPEX CIVIL'!#REF! -> 
G93: ='PPTO GRAL CAPEX CIVIL'!#REF! -> 
C94: ='PPTO GRAL CAPEX CIVIL'!#REF! ->  | D94: ='PPTO GRAL CAPEX CIVIL'!#REF! ->  | G94: ='PPTO GRAL CAPEX CIVIL'!#REF! ->  | H94: ='PPTO GRAL CAPEX CIVIL'!#REF! ->  | J94: ='PPTO GRAL CAPEX CIVIL'!#REF! ->  | K94: ='PPTO GRAL CAPEX CIVIL'!#REF! ->  | L94: =ROUND(J94*K94,0) -> 
C95: ='PPTO GRAL CAPEX CIVIL'!#REF! ->  | D95: ='PPTO GRAL CAPEX CIVIL'!#REF! ->  | G95: ='PPTO GRAL CAPEX CIVIL'!#REF! ->  | H95: ='PPTO GRAL CAPEX CIVIL'!#REF! ->  | J95: ='PPTO GRAL CAPEX CIVIL'!#REF! ->  | K95: ='PPTO GRAL CAPEX CIVIL'!#REF! ->  | L95: =ROUND(J95*K95,0) -> 
C96: ='PPTO GRAL CAPEX CIVIL'!#REF! ->  | D96: ='PPTO GRAL CAPEX CIVIL'!#REF! ->  | G96: ='PPTO GRAL CAPEX CIVIL'!#REF! ->  | H96: ='PPTO GRAL CAPEX CIVIL'!#REF! ->  | J96: ='PPTO GRAL CAPEX CIVIL'!#REF! ->  | K96: ='PPTO GRAL CAPEX CIVIL'!#REF! ->  | L96: =ROUND(J96*K96,0) -> 
G97: ='PPTO GRAL CAPEX CIVIL'!#REF! -> 
C98: ='PPTO GRAL CAPEX CIVIL'!#REF! ->  | D98: ='PPTO GRAL CAPEX CIVIL'!#REF! ->  | G98: ='PPTO GRAL CAPEX CIVIL'!#REF! ->  | H98: ='PPTO GRAL CAPEX CIVIL'!#REF! ->  | J98: ='PPTO GRAL CAPEX CIVIL'!#REF! ->  | K98: ='PPTO GRAL CAPEX CIVIL'!#REF! ->  | L98: =ROUND(J98*K98,0) -> 
C99: ='PPTO GRAL CAPEX CIVIL'!#REF! ->  | D99: ='PPTO GRAL CAPEX CIVIL'!#REF! ->  | G99: ='PPTO GRAL CAPEX CIVIL'!#REF! ->  | H99: ='PPTO GRAL CAPEX CIVIL'!#REF! ->  | J99: ='PPTO GRAL CAPEX CIVIL'!#REF! ->  | K99: ='PPTO GRAL CAPEX CIVIL'!#REF! -> 
C100: ='PPTO GRAL CAPEX CIVIL'!#REF! ->  | D100: ='PPTO GRAL CAPEX CIVIL'!#REF! ->  | G100: ='PPTO GRAL CAPEX CIVIL'!#REF! ->  | H100: ='PPTO GRAL CAPEX CIVIL'!#REF! ->  | J100: ='PPTO GRAL CAPEX CIVIL'!#REF! ->  | K100: ='PPTO GRAL CAPEX CIVIL'!#REF! -> 
C101: ='PPTO GRAL CAPEX CIVIL'!#REF! ->  | D101: ='PPTO GRAL CAPEX CIVIL'!#REF! ->  | G101: ='PPTO GRAL CAPEX CIVIL'!#REF! ->  | H101: ='PPTO GRAL CAPEX CIVIL'!#REF! ->  | J101: ='PPTO GRAL CAPEX CIVIL'!#REF! ->  | K101: ='PPTO GRAL CAPEX CIVIL'!#REF! -> 
C102: ='PPTO GRAL CAPEX CIVIL'!#REF! ->  | D102: ='PPTO GRAL CAPEX CIVIL'!#REF! ->  | G102: ='PPTO GRAL CAPEX CIVIL'!#REF! ->  | H102: ='PPTO GRAL CAPEX CIVIL'!#REF! ->  | J102: ='PPTO GRAL CAPEX CIVIL'!#REF! ->  | K102: ='PPTO GRAL CAPEX CIVIL'!#REF! -> 
C103: ='PPTO GRAL CAPEX CIVIL'!#REF! ->  | D103: ='PPTO GRAL CAPEX CIVIL'!#REF! ->  | G103: ='PPTO GRAL CAPEX CIVIL'!#REF! ->  | H103: ='PPTO GRAL CAPEX CIVIL'!#REF! ->  | J103: ='PPTO GRAL CAPEX CIVIL'!#REF! ->  | K103: ='PPTO GRAL CAPEX CIVIL'!#REF! -> 
C104: ='PPTO GRAL CAPEX CIVIL'!#REF! ->  | D104: ='PPTO GRAL CAPEX CIVIL'!#REF! ->  | G104: ='PPTO GRAL CAPEX CIVIL'!#REF! ->  | H104: ='PPTO GRAL CAPEX CIVIL'!#REF! ->  | J104: ='PPTO GRAL CAPEX CIVIL'!#REF! ->  | K104: ='PPTO GRAL CAPEX CIVIL'!#REF! -> 
C105: ='PPTO GRAL CAPEX CIVIL'!#REF! ->  | D105: ='PPTO GRAL CAPEX CIVIL'!#REF! ->  | G105: ='PPTO GRAL CAPEX CIVIL'!#REF! ->  | H105: ='PPTO GRAL CAPEX CIVIL'!#REF! ->  | J105: ='PPTO GRAL CAPEX CIVIL'!#REF! ->  | K105: ='PPTO GRAL CAPEX CIVIL'!#REF! -> 
C106: ='PPTO GRAL CAPEX CIVIL'!#REF! ->  | D106: ='PPTO GRAL CAPEX CIVIL'!#REF! ->  | G106: ='PPTO GRAL CAPEX CIVIL'!#REF! ->  | H106: ='PPTO GRAL CAPEX CIVIL'!#REF! ->  | J106: ='PPTO GRAL CAPEX CIVIL'!#REF! ->  | K106: ='PPTO GRAL CAPEX CIVIL'!#REF! -> 
C107: ='PPTO GRAL CAPEX CIVIL'!#REF! ->  | D107: ='PPTO GRAL CAPEX CIVIL'!#REF! ->  | G107: ='PPTO GRAL CAPEX CIVIL'!#REF! ->  | H107: ='PPTO GRAL CAPEX CIVIL'!#REF! ->  | J107: ='PPTO GRAL CAPEX CIVIL'!#REF! ->  | K107: ='PPTO GRAL CAPEX CIVIL'!#REF! -> 
C108: ='PPTO GRAL CAPEX CIVIL'!#REF! ->  | D108: ='PPTO GRAL CAPEX CIVIL'!#REF! ->  | G108: ='PPTO GRAL CAPEX CIVIL'!#REF! ->  | H108: ='PPTO GRAL CAPEX CIVIL'!#REF! ->  | J108: ='PPTO GRAL CAPEX CIVIL'!#REF! ->  | K108: ='PPTO GRAL CAPEX CIVIL'!#REF! -> 
C109: ='PPTO GRAL CAPEX CIVIL'!#REF! ->  | D109: ='PPTO GRAL CAPEX CIVIL'!#REF! ->  | G109: ='PPTO GRAL CAPEX CIVIL'!#REF! ->  | H109: ='PPTO GRAL CAPEX CIVIL'!#REF! ->  | J109: ='PPTO GRAL CAPEX CIVIL'!#REF! ->  | K109: ='PPTO GRAL CAPEX CIVIL'!#REF! -> 
C110: ='PPTO GRAL CAPEX CIVIL'!#REF! ->  | D110: ='PPTO GRAL CAPEX CIVIL'!#REF! ->  | G110: ='PPTO GRAL CAPEX CIVIL'!#REF! ->  | H110: ='PPTO GRAL CAPEX CIVIL'!#REF! ->  | J110: ='PPTO GRAL CAPEX CIVIL'!#REF! ->  | K110: ='PPTO GRAL CAPEX CIVIL'!#REF! -> 
C111: ='PPTO GRAL CAPEX CIVIL'!#REF! ->  | D111: ='PPTO GRAL CAPEX CIVIL'!#REF! ->  | G111: ='PPTO GRAL CAPEX CIVIL'!#REF! ->  | H111: ='PPTO GRAL CAPEX CIVIL'!#REF! ->  | J111: ='PPTO GRAL CAPEX CIVIL'!#REF! ->  | K111: ='PPTO GRAL CAPEX CIVIL'!#REF! -> 
C112: ='PPTO GRAL CAPEX CIVIL'!#REF! ->  | D112: ='PPTO GRAL CAPEX CIVIL'!#REF! ->  | G112: ='PPTO GRAL CAPEX CIVIL'!#REF! ->  | H112: ='PPTO GRAL CAPEX CIVIL'!#REF! ->  | J112: ='PPTO GRAL CAPEX CIVIL'!#REF! ->  | K112: ='PPTO GRAL CAPEX CIVIL'!#REF! -> 
C113: ='PPTO GRAL CAPEX CIVIL'!#REF! ->  | D113: ='PPTO GRAL CAPEX CIVIL'!#REF! ->  | G113: ='PPTO GRAL CAPEX CIVIL'!#REF! ->  | H113: ='PPTO GRAL CAPEX CIVIL'!#REF! ->  | J113: ='PPTO GRAL CAPEX CIVIL'!#REF! ->  | K113: ='PPTO GRAL CAPEX CIVIL'!#REF! -> 
C114: ='PPTO GRAL CAPEX CIVIL'!#REF! ->  | D114: ='PPTO GRAL CAPEX CIVIL'!#REF! ->  | G114: ='PPTO GRAL CAPEX CIVIL'!#REF! ->  | H114: ='PPTO GRAL CAPEX CIVIL'!#REF! ->  | J114: ='PPTO GRAL CAPEX CIVIL'!#REF! ->  | K114: ='PPTO GRAL CAPEX CIVIL'!#REF! -> 
C115: ='PPTO GRAL CAPEX CIVIL'!#REF! ->  | D115: ='PPTO GRAL CAPEX CIVIL'!#REF! ->  | G115: ='PPTO GRAL CAPEX CIVIL'!#REF! ->  | H115: ='PPTO GRAL CAPEX CIVIL'!#REF! ->  | J115: ='PPTO GRAL CAPEX CIVIL'!#REF! ->  | K115: ='PPTO GRAL CAPEX CIVIL'!#REF! -> 
C116: ='PPTO GRAL CAPEX CIVIL'!#REF! ->  | D116: ='PPTO GRAL CAPEX CIVIL'!#REF! ->  | G116: ='PPTO GRAL CAPEX CIVIL'!#REF! ->  | H116: ='PPTO GRAL CAPEX CIVIL'!#REF! ->  | J116: ='PPTO GRAL CAPEX CIVIL'!#REF! ->  | K116: ='PPTO GRAL CAPEX CIVIL'!#REF! -> 
C117: ='PPTO GRAL CAPEX CIVIL'!#REF! ->  | D117: ='PPTO GRAL CAPEX CIVIL'!#REF! ->  | G117: ='PPTO GRAL CAPEX CIVIL'!#REF! ->  | H117: ='PPTO GRAL CAPEX CIVIL'!#REF! ->  | J117: ='PPTO GRAL CAPEX CIVIL'!#REF! ->  | K117: ='PPTO GRAL CAPEX CIVIL'!#REF! -> 
G118: ='PPTO GRAL CAPEX CIVIL'!#REF! -> 
C119: ='PPTO GRAL CAPEX CIVIL'!#REF! ->  | D119: ='PPTO GRAL CAPEX CIVIL'!#REF! ->  | G119: ='PPTO GRAL CAPEX CIVIL'!#REF! ->  | H119: ='PPTO GRAL CAPEX CIVIL'!#REF! ->  | J119: ='PPTO GRAL CAPEX CIVIL'!#REF! ->  | K119: ='PPTO GRAL CAPEX CIVIL'!#REF! ->  | L119: =ROUND(J119*K119,0) -> 
G120: ='PPTO GRAL CAPEX CIVIL'!#REF! -> 
C121: ='PPTO GRAL CAPEX CIVIL'!#REF! ->  | D121: ='PPTO GRAL CAPEX CIVIL'!#REF! ->  | G121: ='PPTO GRAL CAPEX CIVIL'!#REF! ->  | H121: ='PPTO GRAL CAPEX CIVIL'!#REF! ->  | J121: ='PPTO GRAL CAPEX CIVIL'!#REF! ->  | K121: ='PPTO GRAL CAPEX CIVIL'!#REF! ->  | L121: =ROUND(J121*K121,0) -> 
C122: ='PPTO GRAL CAPEX CIVIL'!#REF! ->  | D122: ='PPTO GRAL CAPEX CIVIL'!#REF! ->  | G122: ='PPTO GRAL CAPEX CIVIL'!#REF! ->  | H122: ='PPTO GRAL CAPEX CIVIL'!#REF! ->  | J122: ='PPTO GRAL CAPEX CIVIL'!#REF! ->  | K122: ='PPTO GRAL CAPEX CIVIL'!#REF! ->  | L122: =ROUND(J122*K122,0) -> 
C123: ='PPTO GRAL CAPEX CIVIL'!#REF! ->  | D123: ='PPTO GRAL CAPEX CIVIL'!#REF! ->  | G123: ='PPTO GRAL CAPEX CIVIL'!#REF! ->  | H123: ='PPTO GRAL CAPEX CIVIL'!#REF! ->  | J123: ='PPTO GRAL CAPEX CIVIL'!#REF! ->  | K123: ='PPTO GRAL CAPEX CIVIL'!#REF! ->  | L123: =ROUND(J123*K123,0) -> 
C124: ='PPTO GRAL CAPEX CIVIL'!#REF! ->  | D124: ='PPTO GRAL CAPEX CIVIL'!#REF! ->  | G124: ='PPTO GRAL CAPEX CIVIL'!#REF! ->  | H124: ='PPTO GRAL CAPEX CIVIL'!#REF! ->  | J124: ='PPTO GRAL CAPEX CIVIL'!#REF! ->  | K124: ='PPTO GRAL CAPEX CIVIL'!#REF! ->  | L124: =ROUND(J124*K124,0) -> 
C125: ='PPTO GRAL CAPEX CIVIL'!#REF! ->  | D125: ='PPTO GRAL CAPEX CIVIL'!#REF! ->  | G125: ='PPTO GRAL CAPEX CIVIL'!#REF! ->  | H125: ='PPTO GRAL CAPEX CIVIL'!#REF! ->  | J125: ='PPTO GRAL CAPEX CIVIL'!#REF! ->  | K125: ='PPTO GRAL CAPEX CIVIL'!#REF! ->  | L125: =ROUND(J125*K125,0) -> 
C126: Subtotal | L126: =SUM(L93:L125) ->  | O126: ='PPTO GRAL CAPEX CIVIL'!#REF! ->  | P126: =L126-O126 -> 
D127: ='PPTO GRAL CAPEX CIVIL'!#REF! ->  | G127: ='PPTO GRAL CAPEX CIVIL'!#REF! -> 
G128: ='PPTO GRAL CAPEX CIVIL'!#REF! -> 
C129: ='PPTO GRAL CAPEX CIVIL'!#REF! ->  | D129: ='PPTO GRAL CAPEX CIVIL'!#REF! ->  | G129: ='PPTO GRAL CAPEX CIVIL'!#REF! ->  | H129: ='PPTO GRAL CAPEX CIVIL'!#REF! ->  | J129: ='PPTO GRAL CAPEX CIVIL'!#REF! ->  | K129: ='PPTO GRAL CAPEX CIVIL'!#REF! ->  | L129: =ROUND(J129*K129,0) -> 
C130: ='PPTO GRAL CAPEX CIVIL'!#REF! ->  | D130: ='PPTO GRAL CAPEX CIVIL'!#REF! ->  | G130: ='PPTO GRAL CAPEX CIVIL'!#REF! ->  | H130: ='PPTO GRAL CAPEX CIVIL'!#REF! ->  | J130: ='PPTO GRAL CAPEX CIVIL'!#REF! ->  | K130: ='PPTO GRAL CAPEX CIVIL'!#REF! -> 
C131: ='PPTO GRAL CAPEX CIVIL'!#REF! ->  | D131: ='PPTO GRAL CAPEX CIVIL'!#REF! ->  | G131: ='PPTO GRAL CAPEX CIVIL'!#REF! ->  | H131: ='PPTO GRAL CAPEX CIVIL'!#REF! ->  | J131: ='PPTO GRAL CAPEX CIVIL'!#REF! ->  | K131: ='PPTO GRAL CAPEX CIVIL'!#REF! -> 
C132: ='PPTO GRAL CAPEX CIVIL'!#REF! ->  | D132: ='PPTO GRAL CAPEX CIVIL'!#REF! ->  | G132: ='PPTO GRAL CAPEX CIVIL'!#REF! ->  | H132: ='PPTO GRAL CAPEX CIVIL'!#REF! ->  | J132: ='PPTO GRAL CAPEX CIVIL'!#REF! ->  | K132: ='PPTO GRAL CAPEX CIVIL'!#REF! -> 
C133: ='PPTO GRAL CAPEX CIVIL'!#REF! ->  | D133: ='PPTO GRAL CAPEX CIVIL'!#REF! ->  | G133: ='PPTO GRAL CAPEX CIVIL'!#REF! ->  | H133: ='PPTO GRAL CAPEX CIVIL'!#REF! ->  | J133: ='PPTO GRAL CAPEX CIVIL'!#REF! ->  | K133: ='PPTO GRAL CAPEX CIVIL'!#REF! -> 
C134: ='PPTO GRAL CAPEX CIVIL'!#REF! ->  | D134: ='PPTO GRAL CAPEX CIVIL'!#REF! ->  | G134: ='PPTO GRAL CAPEX CIVIL'!#REF! ->  | H134: ='PPTO GRAL CAPEX CIVIL'!#REF! ->  | J134: ='PPTO GRAL CAPEX CIVIL'!#REF! ->  | K134: ='PPTO GRAL CAPEX CIVIL'!#REF! -> 
C135: ='PPTO GRAL CAPEX CIVIL'!#REF! ->  | D135: ='PPTO GRAL CAPEX CIVIL'!#REF! ->  | G135: ='PPTO GRAL CAPEX CIVIL'!#REF! ->  | H135: ='PPTO GRAL CAPEX CIVIL'!#REF! ->  | J135: ='PPTO GRAL CAPEX CIVIL'!#REF! ->  | K135: ='PPTO GRAL CAPEX CIVIL'!#REF! -> 
C136: ='PPTO GRAL CAPEX CIVIL'!#REF! ->  | D136: ='PPTO GRAL CAPEX CIVIL'!#REF! ->  | G136: ='PPTO GRAL CAPEX CIVIL'!#REF! ->  | H136: ='PPTO GRAL CAPEX CIVIL'!#REF! ->  | J136: ='PPTO GRAL CAPEX CIVIL'!#REF! ->  | K136: ='PPTO GRAL CAPEX CIVIL'!#REF! -> 
C137: ='PPTO GRAL CAPEX CIVIL'!#REF! ->  | D137: ='PPTO GRAL CAPEX CIVIL'!#REF! ->  | G137: ='PPTO GRAL CAPEX CIVIL'!#REF! ->  | H137: ='PPTO GRAL CAPEX CIVIL'!#REF! ->  | J137: ='PPTO GRAL CAPEX CIVIL'!#REF! ->  | K137: ='PPTO GRAL CAPEX CIVIL'!#REF! -> 
C138: ='PPTO GRAL CAPEX CIVIL'!#REF! ->  | D138: ='PPTO GRAL CAPEX CIVIL'!#REF! ->  | G138: ='PPTO GRAL CAPEX CIVIL'!#REF! ->  | H138: ='PPTO GRAL CAPEX CIVIL'!#REF! ->  | J138: ='PPTO GRAL CAPEX CIVIL'!#REF! ->  | K138: ='PPTO GRAL CAPEX CIVIL'!#REF! -> 
C139: ='PPTO GRAL CAPEX CIVIL'!#REF! ->  | D139: ='PPTO GRAL CAPEX CIVIL'!#REF! ->  | G139: ='PPTO GRAL CAPEX CIVIL'!#REF! ->  | H139: ='PPTO GRAL CAPEX CIVIL'!#REF! ->  | J139: ='PPTO GRAL CAPEX CIVIL'!#REF! ->  | K139: ='PPTO GRAL CAPEX CIVIL'!#REF! -> 
C140: ='PPTO GRAL CAPEX CIVIL'!#REF! ->  | D140: ='PPTO GRAL CAPEX CIVIL'!#REF! ->  | G140: ='PPTO GRAL CAPEX CIVIL'!#REF! ->  | H140: ='PPTO GRAL CAPEX CIVIL'!#REF! ->  | J140: ='PPTO GRAL CAPEX CIVIL'!#REF! ->  | K140: ='PPTO GRAL CAPEX CIVIL'!#REF! -> 
C141: ='PPTO GRAL CAPEX CIVIL'!#REF! ->  | D141: ='PPTO GRAL CAPEX CIVIL'!#REF! ->  | G141: ='PPTO GRAL CAPEX CIVIL'!#REF! ->  | H141: ='PPTO GRAL CAPEX CIVIL'!#REF! ->  | J141: ='PPTO GRAL CAPEX CIVIL'!#REF! ->  | K141: ='PPTO GRAL CAPEX CIVIL'!#REF! -> 
C142: ='PPTO GRAL CAPEX CIVIL'!#REF! ->  | D142: ='PPTO GRAL CAPEX CIVIL'!#REF! ->  | G142: ='PPTO GRAL CAPEX CIVIL'!#REF! ->  | H142: ='PPTO GRAL CAPEX CIVIL'!#REF! ->  | J142: ='PPTO GRAL CAPEX CIVIL'!#REF! ->  | K142: ='PPTO GRAL CAPEX CIVIL'!#REF! -> 
C143: ='PPTO GRAL CAPEX CIVIL'!#REF! ->  | D143: ='PPTO GRAL CAPEX CIVIL'!#REF! ->  | G143: ='PPTO GRAL CAPEX CIVIL'!#REF! ->  | H143: ='PPTO GRAL CAPEX CIVIL'!#REF! ->  | J143: ='PPTO GRAL CAPEX CIVIL'!#REF! ->  | K143: ='PPTO GRAL CAPEX CIVIL'!#REF! -> 
C144: ='PPTO GRAL CAPEX CIVIL'!#REF! ->  | D144: ='PPTO GRAL CAPEX CIVIL'!#REF! ->  | G144: ='PPTO GRAL CAPEX CIVIL'!#REF! ->  | H144: ='PPTO GRAL CAPEX CIVIL'!#REF! ->  | J144: ='PPTO GRAL CAPEX CIVIL'!#REF! ->  | K144: ='PPTO GRAL CAPEX CIVIL'!#REF! -> 
C145: ='PPTO GRAL CAPEX CIVIL'!#REF! ->  | D145: ='PPTO GRAL CAPEX CIVIL'!#REF! ->  | G145: ='PPTO GRAL CAPEX CIVIL'!#REF! ->  | H145: ='PPTO GRAL CAPEX CIVIL'!#REF! ->  | J145: ='PPTO GRAL CAPEX CIVIL'!#REF! ->  | K145: ='PPTO GRAL CAPEX CIVIL'!#REF! -> 
C146: ='PPTO GRAL CAPEX CIVIL'!#REF! ->  | D146: ='PPTO GRAL CAPEX CIVIL'!#REF! ->  | G146: ='PPTO GRAL CAPEX CIVIL'!#REF! ->  | H146: ='PPTO GRAL CAPEX CIVIL'!#REF! ->  | J146: ='PPTO GRAL CAPEX CIVIL'!#REF! ->  | K146: ='PPTO GRAL CAPEX CIVIL'!#REF! -> 
C147: ='PPTO GRAL CAPEX CIVIL'!#REF! ->  | D147: ='PPTO GRAL CAPEX CIVIL'!#REF! ->  | G147: ='PPTO GRAL CAPEX CIVIL'!#REF! ->  | H147: ='PPTO GRAL CAPEX CIVIL'!#REF! ->  | J147: ='PPTO GRAL CAPEX CIVIL'!#REF! ->  | K147: ='PPTO GRAL CAPEX CIVIL'!#REF! -> 
C148: ='PPTO GRAL CAPEX CIVIL'!#REF! ->  | D148: ='PPTO GRAL CAPEX CIVIL'!#REF! ->  | G148: ='PPTO GRAL CAPEX CIVIL'!#REF! ->  | H148: ='PPTO GRAL CAPEX CIVIL'!#REF! ->  | J148: ='PPTO GRAL CAPEX CIVIL'!#REF! ->  | K148: ='PPTO GRAL CAPEX CIVIL'!#REF! -> 
G149: ='PPTO GRAL CAPEX CIVIL'!#REF! -> 
C150: ='PPTO GRAL CAPEX CIVIL'!#REF! ->  | D150: ='PPTO GRAL CAPEX CIVIL'!#REF! ->  | G150: ='PPTO GRAL CAPEX CIVIL'!#REF! ->  | H150: ='PPTO GRAL CAPEX CIVIL'!#REF! ->  | J150: ='PPTO GRAL CAPEX CIVIL'!#REF! ->  | K150: ='PPTO GRAL CAPEX CIVIL'!#REF! ->  | L150: =ROUND(J150*K150,0) -> 
C151: ='PPTO GRAL CAPEX CIVIL'!#REF! ->  | D151: ='PPTO GRAL CAPEX CIVIL'!#REF! ->  | G151: ='PPTO GRAL CAPEX CIVIL'!#REF! ->  | H151: ='PPTO GRAL CAPEX CIVIL'!#REF! ->  | J151: ='PPTO GRAL CAPEX CIVIL'!#REF! ->  | K151: ='PPTO GRAL CAPEX CIVIL'!#REF! -> 
C152: ='PPTO GRAL CAPEX CIVIL'!#REF! ->  | D152: ='PPTO GRAL CAPEX CIVIL'!#REF! ->  | G152: ='PPTO GRAL CAPEX CIVIL'!#REF! ->  | H152: ='PPTO GRAL CAPEX CIVIL'!#REF! ->  | J152: ='PPTO GRAL CAPEX CIVIL'!#REF! ->  | K152: ='PPTO GRAL CAPEX CIVIL'!#REF! -> 
C153: ='PPTO GRAL CAPEX CIVIL'!#REF! ->  | D153: ='PPTO GRAL CAPEX CIVIL'!#REF! ->  | G153: ='PPTO GRAL CAPEX CIVIL'!#REF! ->  | H153: ='PPTO GRAL CAPEX CIVIL'!#REF! ->  | J153: ='PPTO GRAL CAPEX CIVIL'!#REF! ->  | K153: ='PPTO GRAL CAPEX CIVIL'!#REF! -> 
C154: ='PPTO GRAL CAPEX CIVIL'!#REF! ->  | D154: ='PPTO GRAL CAPEX CIVIL'!#REF! ->  | G154: ='PPTO GRAL CAPEX CIVIL'!#REF! ->  | H154: ='PPTO GRAL CAPEX CIVIL'!#REF! ->  | J154: ='PPTO GRAL CAPEX CIVIL'!#REF! ->  | K154: ='PPTO GRAL CAPEX CIVIL'!#REF! -> 
C155: ='PPTO GRAL CAPEX CIVIL'!#REF! ->  | D155: ='PPTO GRAL CAPEX CIVIL'!#REF! ->  | G155: ='PPTO GRAL CAPEX CIVIL'!#REF! ->  | H155: ='PPTO GRAL CAPEX CIVIL'!#REF! ->  | J155: ='PPTO GRAL CAPEX CIVIL'!#REF! ->  | K155: ='PPTO GRAL CAPEX CIVIL'!#REF! -> 
C156: ='PPTO GRAL CAPEX CIVIL'!#REF! ->  | D156: ='PPTO GRAL CAPEX CIVIL'!#REF! ->  | G156: ='PPTO GRAL CAPEX CIVIL'!#REF! ->  | H156: ='PPTO GRAL CAPEX CIVIL'!#REF! ->  | J156: ='PPTO GRAL CAPEX CIVIL'!#REF! ->  | K156: ='PPTO GRAL CAPEX CIVIL'!#REF! -> 
C157: ='PPTO GRAL CAPEX CIVIL'!#REF! ->  | D157: ='PPTO GRAL CAPEX CIVIL'!#REF! ->  | G157: ='PPTO GRAL CAPEX CIVIL'!#REF! ->  | H157: ='PPTO GRAL CAPEX CIVIL'!#REF! ->  | J157: ='PPTO GRAL CAPEX CIVIL'!#REF! ->  | K157: ='PPTO GRAL CAPEX CIVIL'!#REF! -> 
C158: ='PPTO GRAL CAPEX CIVIL'!#REF! ->  | D158: ='PPTO GRAL CAPEX CIVIL'!#REF! ->  | G158: ='PPTO GRAL CAPEX CIVIL'!#REF! ->  | H158: ='PPTO GRAL CAPEX CIVIL'!#REF! ->  | J158: ='PPTO GRAL CAPEX CIVIL'!#REF! ->  | K158: ='PPTO GRAL CAPEX CIVIL'!#REF! -> 
C159: ='PPTO GRAL CAPEX CIVIL'!#REF! ->  | D159: ='PPTO GRAL CAPEX CIVIL'!#REF! ->  | G159: ='PPTO GRAL CAPEX CIVIL'!#REF! ->  | H159: ='PPTO GRAL CAPEX CIVIL'!#REF! ->  | J159: ='PPTO GRAL CAPEX CIVIL'!#REF! ->  | K159: ='PPTO GRAL CAPEX CIVIL'!#REF! -> 
G160: ='PPTO GRAL CAPEX CIVIL'!#REF! -> 
C161: ='PPTO GRAL CAPEX CIVIL'!#REF! ->  | D161: ='PPTO GRAL CAPEX CIVIL'!#REF! ->  | G161: ='PPTO GRAL CAPEX CIVIL'!#REF! ->  | H161: ='PPTO GRAL CAPEX CIVIL'!#REF! ->  | J161: ='PPTO GRAL CAPEX CIVIL'!#REF! ->  | K161: ='PPTO GRAL CAPEX CIVIL'!#REF! ->  | L161: =ROUND(J161*K161,0) -> 
C162: ='PPTO GRAL CAPEX CIVIL'!#REF! ->  | D162: ='PPTO GRAL CAPEX CIVIL'!#REF! ->  | G162: ='PPTO GRAL CAPEX CIVIL'!#REF! ->  | H162: ='PPTO GRAL CAPEX CIVIL'!#REF! ->  | J162: ='PPTO GRAL CAPEX CIVIL'!#REF! ->  | K162: ='PPTO GRAL CAPEX CIVIL'!#REF! -> 
C163: ='PPTO GRAL CAPEX CIVIL'!#REF! ->  | D163: ='PPTO GRAL CAPEX CIVIL'!#REF! ->  | G163: ='PPTO GRAL CAPEX CIVIL'!#REF! ->  | H163: ='PPTO GRAL CAPEX CIVIL'!#REF! ->  | J163: ='PPTO GRAL CAPEX CIVIL'!#REF! ->  | K163: ='PPTO GRAL CAPEX CIVIL'!#REF! -> 
C164: ='PPTO GRAL CAPEX CIVIL'!#REF! ->  | D164: ='PPTO GRAL CAPEX CIVIL'!#REF! ->  | G164: ='PPTO GRAL CAPEX CIVIL'!#REF! ->  | H164: ='PPTO GRAL CAPEX CIVIL'!#REF! ->  | J164: ='PPTO GRAL CAPEX CIVIL'!#REF! ->  | K164: ='PPTO GRAL CAPEX CIVIL'!#REF! -> 
C165: ='PPTO GRAL CAPEX CIVIL'!#REF! ->  | D165: ='PPTO GRAL CAPEX CIVIL'!#REF! ->  | G165: ='PPTO GRAL CAPEX CIVIL'!#REF! ->  | H165: ='PPTO GRAL CAPEX CIVIL'!#REF! ->  | J165: ='PPTO GRAL CAPEX CIVIL'!#REF! ->  | K165: ='PPTO GRAL CAPEX CIVIL'!#REF! -> 
C166: ='PPTO GRAL CAPEX CIVIL'!#REF! ->  | D166: ='PPTO GRAL CAPEX CIVIL'!#REF! ->  | G166: ='PPTO GRAL CAPEX CIVIL'!#REF! ->  | H166: ='PPTO GRAL CAPEX CIVIL'!#REF! ->  | J166: ='PPTO GRAL CAPEX CIVIL'!#REF! ->  | K166: ='PPTO GRAL CAPEX CIVIL'!#REF! -> 
C167: ='PPTO GRAL CAPEX CIVIL'!#REF! ->  | D167: ='PPTO GRAL CAPEX CIVIL'!#REF! ->  | G167: ='PPTO GRAL CAPEX CIVIL'!#REF! ->  | H167: ='PPTO GRAL CAPEX CIVIL'!#REF! ->  | J167: ='PPTO GRAL CAPEX CIVIL'!#REF! ->  | K167: ='PPTO GRAL CAPEX CIVIL'!#REF! -> 
C168: ='PPTO GRAL CAPEX CIVIL'!#REF! ->  | D168: ='PPTO GRAL CAPEX CIVIL'!#REF! ->  | G168: ='PPTO GRAL CAPEX CIVIL'!#REF! ->  | H168: ='PPTO GRAL CAPEX CIVIL'!#REF! ->  | J168: ='PPTO GRAL CAPEX CIVIL'!#REF! ->  | K168: ='PPTO GRAL CAPEX CIVIL'!#REF! -> 
C169: ='PPTO GRAL CAPEX CIVIL'!#REF! ->  | D169: ='PPTO GRAL CAPEX CIVIL'!#REF! ->  | G169: ='PPTO GRAL CAPEX CIVIL'!#REF! ->  | H169: ='PPTO GRAL CAPEX CIVIL'!#REF! ->  | J169: ='PPTO GRAL CAPEX CIVIL'!#REF! ->  | K169: ='PPTO GRAL CAPEX CIVIL'!#REF! -> 
C170: ='PPTO GRAL CAPEX CIVIL'!#REF! ->  | D170: ='PPTO GRAL CAPEX CIVIL'!#REF! ->  | G170: ='PPTO GRAL CAPEX CIVIL'!#REF! ->  | H170: ='PPTO GRAL CAPEX CIVIL'!#REF! ->  | J170: ='PPTO GRAL CAPEX CIVIL'!#REF! ->  | K170: ='PPTO GRAL CAPEX CIVIL'!#REF! -> 
C171: ='PPTO GRAL CAPEX CIVIL'!#REF! ->  | D171: ='PPTO GRAL CAPEX CIVIL'!#REF! ->  | G171: ='PPTO GRAL CAPEX CIVIL'!#REF! ->  | H171: ='PPTO GRAL CAPEX CIVIL'!#REF! ->  | J171: ='PPTO GRAL CAPEX CIVIL'!#REF! ->  | K171: ='PPTO GRAL CAPEX CIVIL'!#REF! -> 
C172: ='PPTO GRAL CAPEX CIVIL'!#REF! ->  | D172: ='PPTO GRAL CAPEX CIVIL'!#REF! ->  | G172: ='PPTO GRAL CAPEX CIVIL'!#REF! ->  | H172: ='PPTO GRAL CAPEX CIVIL'!#REF! ->  | J172: ='PPTO GRAL CAPEX CIVIL'!#REF! ->  | K172: ='PPTO GRAL CAPEX CIVIL'!#REF! -> 
C173: ='PPTO GRAL CAPEX CIVIL'!#REF! ->  | D173: ='PPTO GRAL CAPEX CIVIL'!#REF! ->  | G173: ='PPTO GRAL CAPEX CIVIL'!#REF! ->  | H173: ='PPTO GRAL CAPEX CIVIL'!#REF! ->  | J173: ='PPTO GRAL CAPEX CIVIL'!#REF! ->  | K173: ='PPTO GRAL CAPEX CIVIL'!#REF! -> 
C174: ='PPTO GRAL CAPEX CIVIL'!#REF! ->  | D174: ='PPTO GRAL CAPEX CIVIL'!#REF! ->  | G174: ='PPTO GRAL CAPEX CIVIL'!#REF! ->  | H174: ='PPTO GRAL CAPEX CIVIL'!#REF! ->  | J174: ='PPTO GRAL CAPEX CIVIL'!#REF! ->  | K174: ='PPTO GRAL CAPEX CIVIL'!#REF! -> 
C175: ='PPTO GRAL CAPEX CIVIL'!#REF! ->  | D175: ='PPTO GRAL CAPEX CIVIL'!#REF! ->  | G175: ='PPTO GRAL CAPEX CIVIL'!#REF! ->  | H175: ='PPTO GRAL CAPEX CIVIL'!#REF! ->  | J175: ='PPTO GRAL CAPEX CIVIL'!#REF! ->  | K175: ='PPTO GRAL CAPEX CIVIL'!#REF! -> 
C176: ='PPTO GRAL CAPEX CIVIL'!#REF! ->  | D176: ='PPTO GRAL CAPEX CIVIL'!#REF! ->  | G176: ='PPTO GRAL CAPEX CIVIL'!#REF! ->  | H176: ='PPTO GRAL CAPEX CIVIL'!#REF! ->  | J176: ='PPTO GRAL CAPEX CIVIL'!#REF! ->  | K176: ='PPTO GRAL CAPEX CIVIL'!#REF! -> 
C177: ='PPTO GRAL CAPEX CIVIL'!#REF! ->  | D177: ='PPTO GRAL CAPEX CIVIL'!#REF! ->  | G177: ='PPTO GRAL CAPEX CIVIL'!#REF! ->  | H177: ='PPTO GRAL CAPEX CIVIL'!#REF! ->  | J177: ='PPTO GRAL CAPEX CIVIL'!#REF! ->  | K177: ='PPTO GRAL CAPEX CIVIL'!#REF! -> 
C178: ='PPTO GRAL CAPEX CIVIL'!#REF! ->  | D178: ='PPTO GRAL CAPEX CIVIL'!#REF! ->  | G178: ='PPTO GRAL CAPEX CIVIL'!#REF! ->  | H178: ='PPTO GRAL CAPEX CIVIL'!#REF! ->  | J178: ='PPTO GRAL CAPEX CIVIL'!#REF! ->  | K178: ='PPTO GRAL CAPEX CIVIL'!#REF! -> 
C179: ='PPTO GRAL CAPEX CIVIL'!#REF! ->  | D179: ='PPTO GRAL CAPEX CIVIL'!#REF! ->  | G179: ='PPTO GRAL CAPEX CIVIL'!#REF! ->  | H179: ='PPTO GRAL CAPEX CIVIL'!#REF! ->  | J179: ='PPTO GRAL CAPEX CIVIL'!#REF! ->  | K179: ='PPTO GRAL CAPEX CIVIL'!#REF! -> 
C180: ='PPTO GRAL CAPEX CIVIL'!#REF! ->  | D180: ='PPTO GRAL CAPEX CIVIL'!#REF! ->  | G180: ='PPTO GRAL CAPEX CIVIL'!#REF! ->  | H180: ='PPTO GRAL CAPEX CIVIL'!#REF! ->  | J180: ='PPTO GRAL CAPEX CIVIL'!#REF! ->  | K180: ='PPTO GRAL CAPEX CIVIL'!#REF! -> 
C181: ='PPTO GRAL CAPEX CIVIL'!#REF! ->  | D181: ='PPTO GRAL CAPEX CIVIL'!#REF! ->  | G181: ='PPTO GRAL CAPEX CIVIL'!#REF! ->  | H181: ='PPTO GRAL CAPEX CIVIL'!#REF! ->  | J181: ='PPTO GRAL CAPEX CIVIL'!#REF! ->  | K181: ='PPTO GRAL CAPEX CIVIL'!#REF! -> 
C182: ='PPTO GRAL CAPEX CIVIL'!#REF! ->  | D182: ='PPTO GRAL CAPEX CIVIL'!#REF! ->  | G182: ='PPTO GRAL CAPEX CIVIL'!#REF! ->  | H182: ='PPTO GRAL CAPEX CIVIL'!#REF! ->  | J182: ='PPTO GRAL CAPEX CIVIL'!#REF! ->  | K182: ='PPTO GRAL CAPEX CIVIL'!#REF! -> 
C183: ='PPTO GRAL CAPEX CIVIL'!#REF! ->  | D183: ='PPTO GRAL CAPEX CIVIL'!#REF! ->  | G183: ='PPTO GRAL CAPEX CIVIL'!#REF! ->  | H183: ='PPTO GRAL CAPEX CIVIL'!#REF! ->  | J183: ='PPTO GRAL CAPEX CIVIL'!#REF! ->  | K183: ='PPTO GRAL CAPEX CIVIL'!#REF! -> 
C184: ='PPTO GRAL CAPEX CIVIL'!#REF! ->  | D184: ='PPTO GRAL CAPEX CIVIL'!#REF! ->  | G184: ='PPTO GRAL CAPEX CIVIL'!#REF! ->  | H184: ='PPTO GRAL CAPEX CIVIL'!#REF! ->  | J184: ='PPTO GRAL CAPEX CIVIL'!#REF! ->  | K184: ='PPTO GRAL CAPEX CIVIL'!#REF! -> 
C185: Subtotal | L185: =SUM(L129:L184) ->  | O185: ='PPTO GRAL CAPEX CIVIL'!#REF! ->  | P185: =L185-O185 -> 
D186: ='PPTO GRAL CAPEX CIVIL'!#REF! ->  | G186: ='PPTO GRAL CAPEX CIVIL'!#REF! -> 
G187: ='PPTO GRAL CAPEX CIVIL'!#REF! -> 
G188: ='PPTO GRAL CAPEX CIVIL'!#REF! -> 
C189: ='PPTO GRAL CAPEX CIVIL'!#REF! ->  | D189: ='PPTO GRAL CAPEX CIVIL'!#REF! ->  | G189: ='PPTO GRAL CAPEX CIVIL'!#REF! ->  | H189: ='PPTO GRAL CAPEX CIVIL'!#REF! ->  | J189: ='PPTO GRAL CAPEX CIVIL'!#REF! ->  | K189: ='PPTO GRAL CAPEX CIVIL'!#REF! ->  | L189: =J189*K189 -> 
C190: ='PPTO GRAL CAPEX CIVIL'!#REF! ->  | D190: ='PPTO GRAL CAPEX CIVIL'!#REF! ->  | G190: ='PPTO GRAL CAPEX CIVIL'!#REF! ->  | H190: ='PPTO GRAL CAPEX CIVIL'!#REF! ->  | J190: ='PPTO GRAL CAPEX CIVIL'!#REF! ->  | K190: ='PPTO GRAL CAPEX CIVIL'!#REF! ->  | L190: =J190*K190 -> 
C191: ='PPTO GRAL CAPEX CIVIL'!#REF! ->  | D191: ='PPTO GRAL CAPEX CIVIL'!#REF! ->  | G191: ='PPTO GRAL CAPEX CIVIL'!#REF! ->  | H191: ='PPTO GRAL CAPEX CIVIL'!#REF! ->  | J191: ='PPTO GRAL CAPEX CIVIL'!#REF! ->  | K191: ='PPTO GRAL CAPEX CIVIL'!#REF! ->  | L191: =J191*K191 -> 
C192: ='PPTO GRAL CAPEX CIVIL'!#REF! ->  | D192: ='PPTO GRAL CAPEX CIVIL'!#REF! ->  | G192: ='PPTO GRAL CAPEX CIVIL'!#REF! ->  | H192: ='PPTO GRAL CAPEX CIVIL'!#REF! ->  | J192: ='PPTO GRAL CAPEX CIVIL'!#REF! ->  | K192: ='PPTO GRAL CAPEX CIVIL'!#REF! ->  | L192: =J192*K192 -> 
G193: ='PPTO GRAL CAPEX CIVIL'!#REF! -> 
C194: ='PPTO GRAL CAPEX CIVIL'!#REF! ->  | D194: ='PPTO GRAL CAPEX CIVIL'!#REF! ->  | G194: ='PPTO GRAL CAPEX CIVIL'!#REF! ->  | H194: ='PPTO GRAL CAPEX CIVIL'!#REF! ->  | J194: ='PPTO GRAL CAPEX CIVIL'!#REF! ->  | K194: ='PPTO GRAL CAPEX CIVIL'!#REF! ->  | L194: =J194*K194 -> 
C195: ='PPTO GRAL CAPEX CIVIL'!#REF! ->  | D195: ='PPTO GRAL CAPEX CIVIL'!#REF! ->  | G195: ='PPTO GRAL CAPEX CIVIL'!#REF! ->  | H195: ='PPTO GRAL CAPEX CIVIL'!#REF! ->  | J195: ='PPTO GRAL CAPEX CIVIL'!#REF! ->  | K195: ='PPTO GRAL CAPEX CIVIL'!#REF! -> 
C196: ='PPTO GRAL CAPEX CIVIL'!#REF! ->  | D196: ='PPTO GRAL CAPEX CIVIL'!#REF! ->  | G196: ='PPTO GRAL CAPEX CIVIL'!#REF! ->  | H196: ='PPTO GRAL CAPEX CIVIL'!#REF! ->  | J196: ='PPTO GRAL CAPEX CIVIL'!#REF! ->  | K196: ='PPTO GRAL CAPEX CIVIL'!#REF! -> 
C197: ='PPTO GRAL CAPEX CIVIL'!#REF! ->  | D197: ='PPTO GRAL CAPEX CIVIL'!#REF! ->  | G197: ='PPTO GRAL CAPEX CIVIL'!#REF! ->  | H197: ='PPTO GRAL CAPEX CIVIL'!#REF! ->  | J197: ='PPTO GRAL CAPEX CIVIL'!#REF! ->  | K197: ='PPTO GRAL CAPEX CIVIL'!#REF! -> 
C198: ='PPTO GRAL CAPEX CIVIL'!#REF! ->  | D198: ='PPTO GRAL CAPEX CIVIL'!#REF! ->  | G198: ='PPTO GRAL CAPEX CIVIL'!#REF! ->  | H198: ='PPTO GRAL CAPEX CIVIL'!#REF! ->  | J198: ='PPTO GRAL CAPEX CIVIL'!#REF! ->  | K198: ='PPTO GRAL CAPEX CIVIL'!#REF! -> 
C199: ='PPTO GRAL CAPEX CIVIL'!#REF! ->  | D199: ='PPTO GRAL CAPEX CIVIL'!#REF! ->  | G199: ='PPTO GRAL CAPEX CIVIL'!#REF! ->  | H199: ='PPTO GRAL CAPEX CIVIL'!#REF! ->  | J199: ='PPTO GRAL CAPEX CIVIL'!#REF! ->  | K199: ='PPTO GRAL CAPEX CIVIL'!#REF! -> 
C200: ='PPTO GRAL CAPEX CIVIL'!#REF! ->  | D200: ='PPTO GRAL CAPEX CIVIL'!#REF! ->  | G200: ='PPTO GRAL CAPEX CIVIL'!#REF! ->  | H200: ='PPTO GRAL CAPEX CIVIL'!#REF! ->  | J200: ='PPTO GRAL CAPEX CIVIL'!#REF! ->  | K200: ='PPTO GRAL CAPEX CIVIL'!#REF! -> 
C201: ='PPTO GRAL CAPEX CIVIL'!#REF! ->  | D201: ='PPTO GRAL CAPEX CIVIL'!#REF! ->  | G201: ='PPTO GRAL CAPEX CIVIL'!#REF! ->  | H201: ='PPTO GRAL CAPEX CIVIL'!#REF! ->  | J201: ='PPTO GRAL CAPEX CIVIL'!#REF! ->  | K201: ='PPTO GRAL CAPEX CIVIL'!#REF! -> 
C202: ='PPTO GRAL CAPEX CIVIL'!#REF! ->  | D202: ='PPTO GRAL CAPEX CIVIL'!#REF! ->  | G202: ='PPTO GRAL CAPEX CIVIL'!#REF! ->  | H202: ='PPTO GRAL CAPEX CIVIL'!#REF! ->  | J202: ='PPTO GRAL CAPEX CIVIL'!#REF! ->  | K202: ='PPTO GRAL CAPEX CIVIL'!#REF! -> 
C203: ='PPTO GRAL CAPEX CIVIL'!#REF! ->  | D203: ='PPTO GRAL CAPEX CIVIL'!#REF! ->  | G203: ='PPTO GRAL CAPEX CIVIL'!#REF! ->  | H203: ='PPTO GRAL CAPEX CIVIL'!#REF! ->  | J203: ='PPTO GRAL CAPEX CIVIL'!#REF! ->  | K203: ='PPTO GRAL CAPEX CIVIL'!#REF! -> 
... 56 more rows

Sheet AIU
B2: FORMATO | D2: CÓDIGO | E2: PROCESO | I2: VERSIÓN
B3: MATRIZ PARA CÁLCULO DE A.I.U. | D3: FO-DP-01 | E3: Proyectos | I3: 2.0
B4: ='DATOS ENTRADA'!$C$2 -> INSTITUTO DE DESARROLLO URBANO
B5: ='DATOS ENTRADA'!$C$3 -> SUBDIRECCIÓN GENERAL DE DESARROLLO URBANO
B6: ='DATOS ENTRADA'!$C$4 -> DIRECCIÓN TÉCNICA DE PROYECTOS
B7: =IF('DATOS ENTRADA'!C5=0,"",'DATOS ENTRADA'!C5) -> 
B8: ='DATOS ENTRADA'!B7 -> OBJETO DE LA CONTRATACIÓN: | D8: ='DATOS ENTRADA'!$C$7 -> "ACTUALIZACIÓN, AJUSTES Y COMPLEMENTACIÓN DE LA FACTIBILIDAD Y ESTUDIOS Y DISEÑOS DEL CABLE AÉREO EN SAN CRISTÓBAL, EN BOGOTÁ D.C."
B10: COSTO DIRECTO ESTIMADO DE OBRA (CD) | E10: =+'PPTO GRAL CAPEX CIVIL'!I867/(1+'PPTO GRAL CAPEX CIVIL'!F867) -> 5.400986129e+10 | I10: FECHA: | J10: ='DATOS ENTRADA'!C11 -> 2022-03-22
B11: TERMINO ESTIMADO PRELIMINARES | E11: ='DATOS ENTRADA'!C14 -> 6.33 | F11: MESES | I11: CONTRATO No. | J11: =IF('DATOS ENTRADA'!C9=0,"",'DATOS ENTRADA'!C9) -> 1630 de 2020
B12: TERMINO ESTIMADO DE EJECUCIÓN DE OBRA | E12: ='DATOS ENTRADA'!C15 -> 23 | F12: MESES
B13: TERMINO ESTIMADO DE ENTREGA DE OBRA | E13: ='DATOS ENTRADA'!C16 -> 3 | F13: MESES
B15: COSTOS ESTIMADOS PARA PRELIMINARES | E15: =PRELIMINARES!K74 -> 792738645
B16: COSTOS ESTIMADOS PARA COMPENSACIONES A SDA | E16: ='COMPENSAC-EVALUAC-SEG-SDA'!J15 -> 55611323
B17: COSTOS ESTIMADOS PARA ENSAYOS DE LABORATORIO | E17: =+'ENSAYOS-OBRA'!H53 -> 254758865
B18: AJUSTES POR CAMBIO DE VIGENCIA | E18: =+AJUSTES!G32 -> 5064246591
A20: CÓD. IDU | B20: ÍTEM | C20: A. ADMINISTRACIÓN
C21: 1. COSTOS DE PERSONAL
C22: CARGO | E22: CANTIDAD | F22: CATEGORÍA | G22: DEDICACIÓN FASE DE OBRA (MES) | H22: DEDICACIÓN FASE DE RECIBO (MES) | I22: TARIFA (MES) | J22: FACTOR PRESTACIONAL | K22: N. MESES OBRA | L22: N. MESES RECIBO | M22: SALARIO + PRESTACIONES
E23: A | G23: B | H23: C | I23: D | J23: E | K23: F | L23: G | M23: H = A*D*E*(B*F+C*G) | O23: CANTID MES
B24: 1.1 | C24: PERSONAL PROFESIONAL (Ingenieros y Otros)
A25: =VLOOKUP(F25,TABLAS!$C$24:$H$31,6,FALSE) -> 9108 | B25: =B24+0.001 -> 1.101 | C25: DIRECTOR DE OBRA | E25: 1 | F25: 2 | G25: 1 | H25: 1 | I25: =VLOOKUP(A25,TABLAS!$A$2:$G$44,4,FALSE) -> 9695000 | J25: =VLOOKUP(A25,TABLAS!$A$2:$G$44,5) -> 1.5854 | K25: =$E$12 -> 23 | L25: =$E$13 -> 3 | M25: =ROUND(E25*I25*J25*(G25*K25+H25*L25),0) -> 399631778 | O25: =E25*G25 -> 1
A26: =VLOOKUP(F26,TABLAS!$C$24:$H$31,6,FALSE) -> 9109 | B26: =B25+0.001 -> 1.102 | C26: INGENIERO RESIDENTE DE OBRA | E26: 1 | F26: 3 | G26: 1 | H26: 1 | I26: =VLOOKUP(A26,TABLAS!$A$2:$G$44,4,FALSE) -> 8182000 | J26: =VLOOKUP(A26,TABLAS!$A$2:$G$44,5) -> 1.4509 | K26: =$E$12 -> 23 | L26: =$E$13 -> 3 | M26: 308652859 | O26: =E26*G26 -> 1
A27: =VLOOKUP(F27,TABLAS!$C$24:$H$31,6,FALSE) -> 9109 | B27: =B26+0.001 -> 1.103 | C27: INGENIERO RESIDENTE DE VIAS | E27: 1 | F27: 3 | G27: 0 | H27: 0 | I27: =VLOOKUP(A27,TABLAS!$A$2:$G$44,4,FALSE) -> 8182000 | J27: =VLOOKUP(A27,TABLAS!$A$2:$G$44,5) -> 1.4509 | K27: 23 | L27: 3 | M27: 0 | O27: =E27*G27 -> 0
A28: =VLOOKUP(F28,TABLAS!$C$24:$H$31,6,FALSE) -> 9109 | B28: =B27+0.001 -> 1.104 | C28: INGENIERO RESIDENTE DE REDES | E28: 1 | F28: 3 | G28: 0 | H28: 0 | I28: =VLOOKUP(A28,TABLAS!$A$2:$G$44,4,FALSE) -> 8182000 | J28: =VLOOKUP(A28,TABLAS!$A$2:$G$44,5) -> 1.4509 | K28: 23 | L28: 3 | M28: 0 | O28: =E28*G28 -> 0
A29: =VLOOKUP(F29,TABLAS!$C$24:$H$31,6,FALSE) -> 9109 | B29: =B28+0.001 -> 1.105 | C29: INGENIERO RESIDENTE DE CIMENTACIÓN Y ESTRUCTURA | E29: 1 | F29: 3 | G29: 0 | H29: 0 | I29: =VLOOKUP(A29,TABLAS!$A$2:$G$44,4,FALSE) -> 8182000 | J29: =VLOOKUP(A29,TABLAS!$A$2:$G$44,5) -> 1.4509 | K29: 23 | L29: 3 | M29: 0 | O29: =E29*G29 -> 0
A30: =VLOOKUP(F30,TABLAS!$C$24:$H$31,6,FALSE) -> 9110 | B30: =B29+0.001 -> 1.106 | C30: ARQUITECTO RESIDENTE EN URBANISMO Y ESPACIO PÚBLICO | E30: 1 | F30: 4 | G30: 0 | H30: 0 | I30: =VLOOKUP(A30,TABLAS!$A$2:$G$44,4,FALSE) -> 6967000 | J30: =VLOOKUP(A30,TABLAS!$A$2:$G$44,5) -> 1.4514 | K30: 23 | L30: 3 | M30: 0 | O30: =E30*G30 -> 0
A31: =VLOOKUP(F31,TABLAS!$C$24:$H$31,6,FALSE) -> 9109 | B31: 1.107 | C31: ESPECIALISTA EN DISEÑO GEOMÉTRICO | E31: 1 | F31: 3 | G31: 0.25 | H31: 0.2 | I31: =VLOOKUP(A31,TABLAS!$A$2:$G$44,4,FALSE) -> 8182000 | J31: =VLOOKUP(A31,TABLAS!$A$2:$G$44,5) -> 1.4509 | K31: 23 | L31: 3 | M31: 75382525 | O31: 0.25
A32: =VLOOKUP(F32,TABLAS!$C$24:$H$31,6,FALSE) -> 9109 | B32: 1.108 | C32: ESPECIALISTA EN URBANISMO Y ESPACIO PÚBLICO | E32: 1 | F32: 3 | G32: 0.25 | H32: 0.2 | I32: =VLOOKUP(A32,TABLAS!$A$2:$G$44,4,FALSE) -> 8182000 | J32: =VLOOKUP(A32,TABLAS!$A$2:$G$44,5) -> 1.4509 | K32: 23 | L32: 3 | M32: 75382525 | O32: 0.25
A33: =VLOOKUP(F33,TABLAS!$C$24:$H$31,6,FALSE) -> 9109 | B33: 1.109 | C33: ESPECIALISTA EN ESTRUCTURAS | E33: 1 | F33: 3 | G33: 0.5 | H33: 0.25 | I33: =VLOOKUP(A33,TABLAS!$A$2:$G$44,4,FALSE) -> 8182000 | J33: =VLOOKUP(A33,TABLAS!$A$2:$G$44,5) -> 1.4509 | K33: 23 | L33: 3 | M33: 145422982 | O33: =E33*G33 -> 0.5
A34: =VLOOKUP(F34,TABLAS!$C$24:$H$31,6,FALSE) -> 9109 | B34: 1.11 | C34: ESPECIALISTA EN GEOTECNIA | E34: 1 | F34: 3 | G34: 0.5 | H34: 0.25 | I34: =VLOOKUP(A34,TABLAS!$A$2:$G$44,4,FALSE) -> 8182000 | J34: =VLOOKUP(A34,TABLAS!$A$2:$G$44,5) -> 1.4509 | K34: 23 | L34: 3 | M34: 145422982 | O34: 0.5
A35: =VLOOKUP(F35,TABLAS!$C$24:$H$31,6,FALSE) -> 9109 | B35: 1.111 | C35: ESPECIALISTA EN PAVIMENTOS | E35: 1 | F35: 3 | G35: 0.2 | H35: 0.2 | I35: =VLOOKUP(A35,TABLAS!$A$2:$G$44,4,FALSE) -> 8182000 | J35: =VLOOKUP(A35,TABLAS!$A$2:$G$44,5) -> 1.4509 | K35: 23 | L35: 3 | M35: 61730572 | O35: 0.2
A36: =VLOOKUP(F36,TABLAS!$C$24:$H$31,6,FALSE) -> 9109 | B36: 1.112 | C36: ESPECIALISTA EN REDES HIDROSANITARIAS | E36: 1 | F36: 3 | G36: 0.25 | H36: 0.25 | I36: =VLOOKUP(A36,TABLAS!$A$2:$G$44,4,FALSE) -> 8182000 | J36: =VLOOKUP(A36,TABLAS!$A$2:$G$44,5) -> 1.4509 | K36: 23 | L36: 3 | M36: 77163215 | O36: 0.25
A37: =VLOOKUP(F37,TABLAS!$C$24:$H$31,6,FALSE) -> 9110 | B37: 1.113 | C37: ESPECIALISTA EN REDES ELÉCTRICAS, GAS, TELÉFONO Y FIBRA ÓPTICA | E37: 1 | F37: 4 | G37: 0.25 | H37: 0.25 | I37: =VLOOKUP(A37,TABLAS!$A$2:$G$44,4,FALSE) -> 6967000 | J37: =VLOOKUP(A37,TABLAS!$A$2:$G$44,5) -> 1.4514 | K37: 23 | L37: 3 | M37: 65727375 | O37: 0.25
A38: =VLOOKUP(F38,TABLAS!$C$24:$H$31,6,FALSE) -> 9109 | B38: 1.114 | C38: PROFESIONAL EN PRESUPUESTO Y PROGRAMACIÓN | E38: 1 | F38: 3 | G38: 1 | H38: 0.5 | I38: =VLOOKUP(A38,TABLAS!$A$2:$G$44,4,FALSE) -> 8182000 | J38: =VLOOKUP(A38,TABLAS!$A$2:$G$44,5) -> 1.4509 | K38: 23 | L38: 3 | M38: 290845963 | O38: 1
A39: =VLOOKUP(F39,TABLAS!$C$24:$H$31,6,FALSE) -> 9112 | B39: 1.115 | C39: PROFESIONAL SIG-CAD | E39: 1 | F39: 6 | G39: 0.25 | H39: 0.25 | I39: =VLOOKUP(A39,TABLAS!$A$2:$G$44,4,FALSE) -> 5604000 | J39: =VLOOKUP(A39,TABLAS!$A$2:$G$44,5) -> 1.4522 | K39: 23 | L39: 3 | M39: 52897837 | O39: 0.25
B40: 1.2 | C40: PERSONAL TÉCNICO Y PERSONAL AUXILIAR
A41: 9085 | B41: =B40+0.001 -> 1.201 | C41: =VLOOKUP(A41,TABLAS!$A$2:$G$44,2,FALSE) -> TARIFA MES - PERSONAL TÉCNICO - AUXILIAR DE INGENIERÍA (NO INCLUYE FACTOR DE PRESTACIONES) | E41: 4 | F41: N/A | G41: 1 | H41: 0.5 | I41: =VLOOKUP(A41,TABLAS!$A$2:$G$44,4,FALSE) -> 2305000 | J41: =VLOOKUP(A41,TABLAS!$A$2:$G$44,5) -> 1.4583 | K41: =$E$12 -> 23 | L41: =$E$13 -> 3 | M41: =ROUND(E41*I41*J41*(G41*K41+H41*L41),0) -> 329415387 | O41: 4
A42: 9094 | B42: 1.202 | C42: =VLOOKUP(A42,TABLAS!$A$2:$G$44,2,FALSE) -> TARIFA MES - PERSONAL TÉCNICO - INSPECTOR 2 (NO INCLUYE FACTOR DE PRESTACIONES) | E42: 4 | F42: N/A | G42: 1 | H42: 0.5 | I42: =VLOOKUP(A42,TABLAS!$A$2:$G$44,4,FALSE) -> 1790000 | J42: =VLOOKUP(A42,TABLAS!$A$2:$G$44,5) -> 1.5589 | K42: 23 | L42: 3 | M42: =ROUND(E42*I42*J42*(G42*K42+H42*L42),0) -> 273462238 | O42: 4
A43: 9088 | B43: 1.203 | C43: =VLOOKUP(A43,TABLAS!$A$2:$G$44,2,FALSE) -> TARIFA MES - PERSONAL TÉCNICO - TOPÓGRAFO INSPECTOR (NO INCLUYE FACTOR DE PRESTACIONES) | E43: 2 | F43: N/A | G43: 1 | H43: 1 | I43: =VLOOKUP(A43,TABLAS!$A$2:$G$44,4,FALSE) -> 2733000 | J43: =VLOOKUP(A43,TABLAS!$A$2:$G$44,5) -> 1.4567 | K43: 23 | L43: 3 | M43: 207020377 | O43: 2
A44: 9098 | B44: 1.204 | C44: =VLOOKUP(A44,TABLAS!$A$2:$G$44,2,FALSE) -> TARIFA MES - PERSONAL AUXILIAR TÉCNICO - CADENERO 1 (NO INCLUYE FACTOR DE PRESTACIONES) | E44: 2 | F44: N/A | G44: 1 | H44: 1 | I44: =VLOOKUP(A44,TABLAS!$A$2:$G$44,4,FALSE) -> 1695000 | J44: =VLOOKUP(A44,TABLAS!$A$2:$G$44,5) -> 1.5652 | K44: 23 | L44: 3 | M44: 137956728 | O44: 2
A45: 9099 | B45: 1.205 | C45: =VLOOKUP(A45,TABLAS!$A$2:$G$44,2,FALSE) -> TARIFA MES - PERSONAL AUXILIAR TÉCNICO - CADENERO 2 (NO INCLUYE FACTOR DE PRESTACIONES) | E45: 2 | F45: N/A | G45: 1 | H45: 1 | I45: =VLOOKUP(A45,TABLAS!$A$2:$G$44,4,FALSE) -> 1476000 | J45: =VLOOKUP(A45,TABLAS!$A$2:$G$44,5) -> 1.5825 | K45: 23 | L45: 3 | M45: 121460040 | O45: 2
A46: 9089 | B46: 1.206 | C46: =VLOOKUP(A46,TABLAS!$A$2:$G$44,2,FALSE) -> TARIFA MES - PERSONAL TÉCNICO - LABORATORISTA INSPECTOR (NO INCLUYE FACTOR DE PRESTACIONES) | E46: 1 | F46: N/A | G46: 1 | H46: 0.5 | I46: =VLOOKUP(A46,TABLAS!$A$2:$G$44,4,FALSE) -> 2421000 | J46: =VLOOKUP(A46,TABLAS!$A$2:$G$44,5) -> 1.4578 | K46: 23 | L46: 3 | M46: 86468678 | O46: 1
A47: 9090 | B47: 1.207 | C47: =VLOOKUP(A47,TABLAS!$A$2:$G$44,2,FALSE) -> TARIFA MES - PERSONAL TÉCNICO - LABORATORISTA AUXILIAR (NO INCLUYE FACTOR DE PRESTACIONES) | E47: 1 | F47: N/A | G47: 1 | H47: 0.5 | I47: =VLOOKUP(A47,TABLAS!$A$2:$G$44,4,FALSE) -> 1695000 | J47: =VLOOKUP(A47,TABLAS!$A$2:$G$44,5) -> 1.5652 | K47: 23 | L47: 3 | M47: =ROUND(E47*I47*J47*(G47*K47+H47*L47),0) -> 64998843 | O47: =E47*G47 -> 1
B48: 1.3 | C48: PERSONAL ADMINISTRATIVO | O48: 0
A49: 9102 | B49: =B48+0.001 -> 1.301 | C49: =VLOOKUP(A49,TABLAS!$A$2:$G$44,2,FALSE) -> TARIFA MES - PERSONAL ADMINISTRATIVO - ADMINISTRADOR (NO INCLUYE FACTOR DE PRESTACIONES) | E49: 2 | F49: N/A | G49: 1 | H49: 0.5 | I49: =VLOOKUP(A49,TABLAS!$A$2:$G$44,4,FALSE) -> 2454000 | J49: =VLOOKUP(A49,TABLAS!$A$2:$G$44,5) -> 1.4573 | K49: 23 | L49: 3 | M49: 175234496 | O49: 2
A50: 9100 | B50: =B49+0.001 -> 1.302 | C50: =VLOOKUP(A50,TABLAS!$A$2:$G$44,2,FALSE) -> TARIFA MES - PERSONAL AUXILIAR TÉCNICO - CONDUCTOR O MOTORISTA (NO INCLUYE FACTOR DE PRESTACIONES) | E50: 1 | F50: N/A | G50: 1 | H50: 0.5 | I50: =VLOOKUP(A50,TABLAS!$A$2:$G$44,4,FALSE) -> 1228000 | J50: =VLOOKUP(A50,TABLAS!$A$2:$G$44,5) -> 1.6097 | K50: 23 | L50: 3 | M50: =ROUND(E50*I50*J50*(G50*K50+H50*L50),0) -> 48429434 | O50: 1
A51: 9105 | B51: =B50+0.001 -> 1.303 | C51: =VLOOKUP(A51,TABLAS!$A$2:$G$44,2,FALSE) -> TARIFA MES - PERSONAL ADMINISTRATIVO - SECRETARIA 2 (NO INCLUYE FACTOR DE PRESTACIONES) | E51: 1 | F51: N/A | G51: 1 | H51: 1 | I51: =VLOOKUP(A51,TABLAS!$A$2:$G$44,4,FALSE) -> 1228000 | J51: =VLOOKUP(A51,TABLAS!$A$2:$G$44,5) -> 1.6097 | K51: 23 | L51: 3 | M51: 51394502 | O51: 1
C52: SUBTOTAL COSTOS DE PERSONAL | M52: =SUM(M25:M51) -> 3194101336
O53: =SUM(O25:O51) -> 25.45
A54: CÓD. IDU | B54: 2 | C54: GASTOS OPERACIONALES | E54: CANT. | F54: ÁREA (M2) | G54: DEDICACIÓN FASE DE OBRA | H54: DEDICACIÓN FASE DE RECIBO | I54: DEDICACIÓN X ÁREA (M2) OBRA | J54: COSTO ($/M2.MES) | K54: N. MESES OBRA | L54: N. MESES RECIBO | M54: VALOR ($)
A55: 9576 | B55: =B54+0.001 -> 2.001 | C55: =VLOOKUP(A55,TABLAS!$A$48:$D$61,2,FALSE) -> ALQUILER MES - ARRIENDO OFICINA INCL. ADMINISTRACIÓN, SERVICIOS PÚBLICOS, COMUNICACIONES | E55: 1 | F55: 150 | G55: 1 | H55: 0.7 | I55: =F55*G55*E55 -> 150 | J55: =VLOOKUP(A55,TABLAS!$A$49:$D$64,4,0) -> 32508 | K55: =$E$12 -> 23 | L55: =$E$13 -> 3 | M55: =ROUND(J55*(I55*K55+E55*F55*H55*L55),0) -> 122392620
A56: 9577 | B56: 2.002 | C56: =VLOOKUP(A56,TABLAS!$A$48:$D$61,2,FALSE) -> ALQUILER MES - CAMPAMENTOS INCL. SERVICIOS PÚBLICOS PROVISIONALES | E56: 1 | F56: 300 | G56: 1 | H56: 0.25 | I56: =E56*F56*G56 -> 300 | J56: =VLOOKUP(A56,TABLAS!$A$49:$D$64,4,0) -> 26189 | K56: =$E$12 -> 23 | L56: =$E$13 -> 3 | M56: =ROUND(J56*(I56*K56+E56*F56*H56*L56),0) -> 186596625
A57: 9578 | B57: =B56+0.001 -> 2.003 | C57: =VLOOKUP(A57,TABLAS!$A$48:$D$61,2,FALSE) -> GASTOS OFICINA (PAPELERIA, FOTOCOPIAS Y OTROS) | E57: 2 | F57: N/A | G57: 1 | H57: 0.25 | I57: N/A | J57: =VLOOKUP(A57,TABLAS!$A$49:$D$64,4,0) -> 922582 | K57: =$E$12 -> 23 | L57: =$E$13 -> 3 | M57: =ROUND(E57*J57*(G57*K57+L57*H57),0) -> 43822645
A58: 9456 | B58: 2.004 | C58: =VLOOKUP(A58,TABLAS!$A$48:$D$61,2,FALSE) -> ALQUILER DE VEHICULO: CAMPERO, PICK-UP, CAMIONETA, CAMION O SIMILAR DE 1300cc A 2000cc DE CILINDRADA, MODELO 2014 A 2011. 75% DE LA TARIFA ESTABLECIDA. INCLUYE TODOS LOS COSTOS DE OPERACIÓN Y MANTENIMIENTO EXCEPTO EL SALARIO DEL CONDUCTOR | E58: =E46 -> 1 | F58: N/A | G58: =G50 -> 1 | H58: =H50 -> 0.5 | I58: N/A | J58: =VLOOKUP(A58,TABLAS!$A$49:$D$64,4,0) -> 4816500 | K58: =$E$12 -> 23 | L58: =$E$13 -> 3 | M58: =ROUND(E58*J58*(G58*K58+L58*H58),0) -> 118004250
A59: 9117 | B59: 2.005 | C59: =VLOOKUP(A59,TABLAS!$A$48:$D$61,2,FALSE) -> EQUIPO COMPLETO DE LABORATORIO - ESTUDIOS - MES | E59: =E46 -> 1 | F59: N/A | G59: =G46 -> 1 | H59: =H46 -> 0.5 | I59: N/A | J59: =VLOOKUP(A59,TABLAS!$A$49:$D$64,4,0) -> 5657000 | K59: =$E$12 -> 23 | L59: =$E$13 -> 3 | M59: =ROUND(E59*J59*(G59*K59+L59*H59),0) -> 138596500
A60: 9115 | B60: 2.006 | C60: =VLOOKUP(A60,TABLAS!$A:$G,2,FALSE) -> EQUIPO DE TOPOGRAFÍA. INCLUYE TRÁNSITO, NIVEL Y ELEMENTOS COMPLEMENTARIOS - MES | E60: =E43 -> 2 | F60: N/A | G60: =G43 -> 1 | H60: =H43 -> 1 | I60: N/A | J60: =VLOOKUP(A60,TABLAS!$A$49:$D$64,4,0) -> 3627000 | K60: 23 | L60: 3 | M60: =ROUND(E60*J60*(G60*K60+L60*H60),0) -> 188604000
C61: SUBTOTAL GASTOS OPERACIONALES | M61: =SUM(M55:M60) -> 798016640
C63: TOTAL COSTOS PERSONAL + GASTOS OPERACIONALES POR EL TÉRMINO DE EJECUCIÓN DE OBRA (INCLUYE PLAZO DE RECIBO DE OBRA) | M63: =(M52+M61) -> 3992117976
C64: TOTAL COSTOS PERSONAL + GASTOS OPERACIONALES POR EL TÉRMINO DE EJECUCIÓN EN PORCENTAJE DEL COSTO DIRECTO | M64: =ROUND(M63/E10,5) -> 0.07391
B66: 3. IMPUESTOS Y GARANTÍAS
B67: 3.1 | C67: IMPUESTOS
B68: ÍTEM | C68: DESCRIPCIÓN | J68: IMPUESTO | M68: VALOR ($)
B69: =B67+0.001 -> 3.101 | C69: Contribución Especial (Impuesto de Guerra Ley 1738 DIC18-2014 prorroga 4 años) | J69: 0.05 | M69: =+$O$69*J69 -> 3474562397 | N69: ok | O69: =+'PPTO GRAL CAPEX CIVIL'!I867 -> 69491247936
B70: =B69+0.001 -> 3.102 | C70: ICA (Ley 14 6jul1983, Res 219 25feb2004) | J70: =6.9/1000 -> 0.0069 | M70: =+$O$69*J70 -> 479489610.8 | N70: ok
B71: 3.103 | C71: GMF (Ley 1739 23dic2014 modifica el Estatuto Tributario) | J71: =(4/1000) -> 0.004 | M71: 277964991.7 | N71: ok
B72: 3.104 | C72: Estampilla Universidad Distrital (Acuerdo 696 de 2017) | J72: 0.011 | M72: 764403727.3 | N72: ok
B73: 3.105 | C73: Estampilla procultura (Acuerdo 187 20 dic 2005) | J73: 0.005 | M73: 347456239.7 | N73: ok
B74: 3.106 | C74: Estampilla pro personas Mayores (Acuerdo 645 de 9 de junio de 2016) | J74: 0.02 | M74: 1389824959 | N74: ok
B75: 3.107 | C75: Estampilla Unipedagógica (Dec 584 de 19 dic 2014) | J75: 0.005 | M75: 347456239.7 | N75: ok
C76: SUBTOTAL IMPUESTOS | M76: =SUM(M69:M75) -> 7081158165 | N76: =+M76/O69 -> 0.1019
B78: =B67+0.1 -> 3.2 | C78: GARANTÍAS
B79: ÍTEM | C79: DESCRIPCIÓN | E79: VR. BASE | G79: % ASEGURADO | I79: VIGENCIA AMPARO (MESES) | J79: TASA ASEGURADORA | M79: VALOR ($)
B80: =B78+0.001 -> 3.201 | C80: Cumplimiento | D80: GARANTÍA ÚNICA | E80: =+O80 -> 69491247936 | G80: 0.3 | I80: =$E$11+$E$12+$E$13+8 -> 40.33 | J80: 0.002 | M80: =ROUND((((((E80*G80)*J80)/12)*I80)+2500)*1.19,0) -> 166756606 | N80: ok | O80: =+O69 -> 69491247936
B81: =B80+0.001 -> 3.202 | C81: Buen Manejo de Anticipo (20%) | E81: =ROUND(E80*'DATOS ENTRADA'!C29,0) -> 13898249587 | G81: 1 | I81: =$E$11+$E$12+$E$13+8 -> 40.33 | J81: 0.002 | M81: =ROUND((((((E81*G81)*J81)/12)*I81)+2500)*1.19,0) -> 111172062 | P81: =+TABLAS!J64 -> 908526 | Q81: SMMLV 2021
B82: =B81+0.001 -> 3.203 | C82: Salarios y Prestaciones Sociales | E82: =$E$80 -> 69491247936 | G82: 0.1 | I82: =$E$11+$E$12+$E$13+36 -> 68.33 | J82: 0.002 | M82: =ROUND((((((E82*G82)*J82)/12)*I82)+2500)*1.19,0) -> 94178325
B83: =B82+0.001 -> 3.204 | C83: Estabilidad de la Obra | E83: ='PPTO GRAL CAPEX CIVIL'!I867 -> 69491247936 | G83: 0.3 | I83: 60 | J83: 0.002 | M83: =ROUND((((((E83*G83)*J83)/12)*I83)+2500)*1.19,0) -> 248086730
